Workbook

Sheet Charges_includingSlice
B2: Tier 1 rate impacts of proposed updates to long-term hydro generation forecasts due to climate change
C4: Critical Water Data | D4: T1SFCO aMW | E4: Rates
B5: Previous | C5: 80WY/1937 | D5: 6738.75 | E5: BP-22 adjusted for TOCAs 1/
B6: Current | C6: 30WY/P10 | D6: =RT1SC!J7 -> 6954.52 | E6: =IF(C6="30WY/P10", " BP-22 adjusted for TOCAs and Climate Change rate analysis 2/", E5) -> BP-22 adjusted for TOCAs and Climate Change rate analysis 2/
D9: Previous 3/ | O9: Current 3/ | AB9: Change in Tier 1 Load | AG9: Slice/Block Customer Analysis | AK9: =CONCATENATE(C5, " aMW:") -> 80WY/1937 aMW: | AL9: =D5 -> 6738.75 | AP9: =CONCATENATE(C6, " aMW:") -> 30WY/P10 aMW: | AQ9: =D6 -> 6954.52 | AU9: Input actual system aMW >>> | AW9: 6954.52
B10: BESID | C10: Customer Name | D10: Composite $ | E10: NonSlice $ | F10: Load Shaping $ | G10: Demand $ | H10: LDD $ | I10: IRD $ | J10: Total $ | K10: Critical Slice MWh | L10: Non-Slice MWh | M10: Tier 1 Load MWh | N10: Effective Rate $/MWh | O10: Composite $ | P10: NonSlice $ | Q10: Load Shaping $ | R10: Demand $ | S10: LDD $ | T10: IRD $ | U10: Total $ | V10: Critical Slice MWh | W10: Non-Slice MWh | X10: Tier 1 Load MWh | Y10: Effective Rate $/MWh | Z10: Effective Rate Percent Change | AB10: Customer Name | AC10: Change in Critical Slice aMW | AD10: Change in Non-Slice aMW | AE10: Change in Tier 1 Load aMW | AG10: BESID | AH10: Slice/Block Customer Name | AI10: Initial Slice % | AJ10: Slice % | AK10: Tier 1 Charges $ | AL10: Critical Slice Amounts aMW | AM10: Block Amounts aMW | AN10: Total Tier 1 aMW | AO10: Effective Rate $/MWh | AP10: Tier 1 Charges $ | AQ10: Critical Slice Amounts aMW | AR10: Block Amounts aMW | AS10: Total Tier 1 aMW | AT10: Effective Rate $/MWh | AU10: Actual Slice Amounts aMW | AV10: Fixed Block Amounts aMW | AW10: Total Tier 1 aMW | AX10: Effective Rate* $/MWh | AY10: Effective Rate Percent Change
B11: 10005 | C11: Alder Mutual | D11: 185929.4086 | E11: -30699.28555 | F11: 36075.93129 | G11: 12505.66671 | H11: -6291.914874 | I11: 0 | J11: 197519.8062 | K11: 0 | L11: 5719.83 | M11: 5719.83 | N11: 34.53246096 | O11: =AVERAGE(TOCA!$AG4:$AH4)*Rates_2022!$G$76*12*100 -> 187635.4311 | P11: =AVERAGE(TOCA!$AJ4:$AK4)*Rates_2022!$G$77*12*100 -> -27976.87991 | Q11: =SUMPRODUCT(LoadShp!$D4:$AY4, Rates_2022!$H$8:$BC$8)/2 -> 30837.85891 | R11: =SUMPRODUCT(Demand!$D4:$AY4, Rates_2022!$H$9:$BC$9)/2 -> 12505.66671 | S11: =SUM(O11:R11)*AVERAGE(TOCA!$AQ4:$AR4)*-1 -> -6071.438262 | T11: =Init!$FD5*-10.9 -> 0 | U11: =SUM(O11:T11) -> 196930.6386 | V11: =SUM(SliceResource!$D4:$AY4)/2 -> 0 | W11: =SUM(Tier1!$D4:$AY4)/2 -> 5719.83 | X11: =IF(Init!$T5=1, " ",V11+W11) -> 5719.83 | Y11: =IFERROR(U11/X11, " ") -> 34.42945657 | Z11: =IFERROR(Y11/N11-1, " ") -> -0.002982827954 | AB11: =C11 -> Alder Mutual | AC11: =(V11-K11)/((8784+8760)/2) -> 0 | AD11: =(W11-L11)/((8784+8760)/2) -> 0 | AE11: =IFERROR((X11-M11)/((8784+8760)/2), " ") -> 0 | AG11: 10024 | AH11: Benton County PUD #1 | AI11: =VLOOKUP(AG11, Init!$Q$5:$AE$139, 15, FALSE) -> 0.0138126 | AJ11: =ROUND(AI11*ROUND(SUMPRODUCT(TOCA!$F$4:$F$138, TOCA!$D$4:$D$138)/SUMPRODUCT(TOCA!$G$4:$G$138, TOCA!$D$4:$D$138), 5), 7) -> 0.0136763 | AK11: =VLOOKUP($AG11, $B$11:$N$145, 9, FALSE) -> 59039595.22 | AL11: =VLOOKUP($AG11, $B$11:$N$145, 10, FALSE)/8772 -> 93.12873497 | AM11: =VLOOKUP($AG11, $B$11:$N$145, 11, FALSE)/8772 -> 100.916265 | AN11: =AL11+AM11 -> 194.045 | AO11: =AK11/(AN11*8772) -> 34.68504734 | AP11: =VLOOKUP(AG11, $B$11:$Y$145, 20, FALSE) -> 59901395.17 | AQ11: =VLOOKUP(AG11, $B$11:$Z$145, 21, FALSE)/8772 -> 96.07966647 | AR11: =VLOOKUP(AG11, $B$11:$Z$145, 22, FALSE)/8772 -> 104.1143335 | AS11: =AQ11+AR11 -> 200.194 | AT11: =AP11/(AS11*8772) -> 34.11043498 | AU11: =($AW$9+RT1SC!$J$8)*AJ11 -> 96.07967275 | AV11: =AR11 -> 104.1143335 | AW11: =AU11+AV11 -> 200.1940063 | AX11: =(AP11)/((AW11)*8772) -> 34.11043391 | AY11: =AX11/AO11-1 -> -0.0165666037
B12: 10015 | C12: Asotin County PUD #1 | D12: 194806.0384 | E12: -32164.92886 | F12: 1558.453071 | G12: 30132.03433 | H12: 0 | I12: 0 | J12: 194331.597 | K12: 0 | L12: 5112.6335 | M12: 5112.6335 | N12: 38.01007778 | O12: =AVERAGE(TOCA!$AG5:$AH5)*Rates_2022!$G$76*12*100 -> 196098.3694 | P12: =AVERAGE(TOCA!$AJ5:$AK5)*Rates_2022!$G$77*12*100 -> -29238.72372 | Q12: =SUMPRODUCT(LoadShp!$D5:$AY5, Rates_2022!$H$8:$BC$8)/2 -> -3582.005855 | R12: =SUMPRODUCT(Demand!$D5:$AY5, Rates_2022!$H$9:$BC$9)/2 -> 30132.03433 | S12: =SUM(O12:R12)*AVERAGE(TOCA!$AQ5:$AR5)*-1 -> 0 | T12: =Init!$FD6*-10.9 -> 0 | U12: =SUM(O12:T12) -> 193409.6741 | V12: =SUM(SliceResource!$D5:$AY5)/2 -> 0 | W12: =SUM(Tier1!$D5:$AY5)/2 -> 5112.6335 | X12: =IF(Init!$T6=1, " ",V12+W12) -> 5112.6335 | Y12: =IFERROR(U12/X12, " ") -> 37.82975528 | Z12: =IFERROR(Y12/N12-1, " ") -> -0.004744070672 | AB12: Asotin County PUD #1 | AC12: 0 | AD12: 0 | AE12: 0 | AG12: 10103 | AH12: Clark County PUD #1 | AI12: =VLOOKUP(AG12, Init!$Q$5:$AE$139, 15, FALSE) -> 0.0220344 | AJ12: =ROUND(AI12*ROUND(SUMPRODUCT(TOCA!$F$4:$F$138, TOCA!$D$4:$D$138)/SUMPRODUCT(TOCA!$G$4:$G$138, TOCA!$D$4:$D$138), 5), 7) -> 0.0218169 | AK12: 99894917.9 | AL12: 148.5621329 | AM12: 158.4848671 | AN12: =AL12+AM12 -> 307.047 | AO12: =AK12/(AN12*8772) -> 37.08855497 | AP12: =VLOOKUP(AG12, $B$11:$Y$145, 20, FALSE) -> 99831638.95 | AQ12: =VLOOKUP(AG12, $B$11:$Z$145, 21, FALSE)/8772 -> 153.2695594 | AR12: =VLOOKUP(AG12, $B$11:$Z$145, 22, FALSE)/8772 -> 158.6028441 | AS12: =AQ12+AR12 -> 311.8724036 | AT12: =AP12/(AS12*8772) -> 36.49157689 | AU12: =($AW$9+RT1SC!$J$8)*AJ12 -> 153.2695694 | AV12: =AR12 -> 158.6028441 | AW12: =AU12+AV12 -> 311.8724136 | AX12: =(AP12)/((AW12)*8772) -> 36.49157572 | AY12: =AX12/AO12-1 -> -0.01609605035
B13: 10024 | C13: Benton County PUD #1 | D13: 68364924.04 | E13: -5870456.024 | F13: -51465.51996 | G13: 0 | H13: 0 | I13: -3403407.28 | J13: 59039595.22 | K13: 816925.2631 | L13: 885237.4769 | M13: 1702162.74 | N13: 34.68504734 | O13: =AVERAGE(TOCA!$AG6:$AH6)*Rates_2022!$G$76*12*100 -> 68903550.72 | P13: =AVERAGE(TOCA!$AJ6:$AK6)*Rates_2022!$G$77*12*100 -> -5343007.22 | Q13: =SUMPRODUCT(LoadShp!$D6:$AY6, Rates_2022!$H$8:$BC$8)/2 -> -255741.0518 | R13: =SUMPRODUCT(Demand!$D6:$AY6, Rates_2022!$H$9:$BC$9)/2 -> 0 | S13: =SUM(O13:R13)*AVERAGE(TOCA!$AQ6:$AR6)*-1 -> 0 | T13: =Init!$FD7*-10.9 -> -3403407.28 | U13: 59901395.17 | V13: =SUM(SliceResource!$D6:$AY6)/2 -> 842810.8342 | W13: =SUM(Tier1!$D6:$AY6)/2 -> 913290.9338 | X13: =IF(Init!$T7=1, " ",V13+W13) -> 1756101.768 | Y13: 34.11043498 | Z13: -0.01656657285 | AB13: Benton County PUD #1 | AC13: 2.9509315 | AD13: 3.1980685 | AE13: 6.149 | AG13: 10105 | AH13: Clatskanie PUD | AI13: =VLOOKUP(AG13, Init!$Q$5:$AE$139, 15, FALSE) -> 0.0073242 | AJ13: =ROUND(AI13*ROUND(SUMPRODUCT(TOCA!$F$4:$F$138, TOCA!$D$4:$D$138)/SUMPRODUCT(TOCA!$G$4:$G$138, TOCA!$D$4:$D$138), 5), 7) -> 0.0072519 | AK13: 27209020.88 | AL13: 49.3817972 | AM13: 32.97602496 | AN13: 82.35782216 | AO13: 37.66252536 | AP13: 26779194.11 | AQ13: 50.94653768 | AR13: 31.41128448 | AS13: 82.35782216 | AT13: 37.06756232 | AU13: =($AW$9+RT1SC!$J$8)*AJ13 -> 50.94654101 | AV13: 31.41128448 | AW13: 82.35782549 | AX13: 37.06756082 | AY13: -0.01579725561
B14: 10025 | C14: Benton REA | D14: 20263426.63 | E14: -3345746.781 | F14: 96059.26419 | G14: 1091007.97 | H14: -1301095.926 | I14: -903619.3413 | J14: 15900031.82 | K14: 0 | L14: 504519.9255 | M14: 504519.9255 | N14: 31.51517118 | O14: =AVERAGE(TOCA!$AG7:$AH7)*Rates_2022!$G$76*12*100 -> 20422762.61 | P14: =AVERAGE(TOCA!$AJ7:$AK7)*Rates_2022!$G$77*12*100 -> -3045081.483 | Q14: =SUMPRODUCT(LoadShp!$D7:$AY7, Rates_2022!$H$8:$BC$8)/2 -> -16737.30048 | R14: =SUMPRODUCT(Demand!$D7:$AY7, Rates_2022!$H$9:$BC$9)/2 -> 1091007.97 | S14: =SUM(O14:R14)*AVERAGE(TOCA!$AQ7:$AR7)*-1 -> -1285330.18 | T14: =Init!$FD8*-10.9 -> -903619.3413 | U14: 16263002.27 | V14: =SUM(SliceResource!$D7:$AY7)/2 -> 0 | W14: =SUM(Tier1!$D7:$AY7)/2 -> 520502.5095 | X14: =IF(Init!$T8=1, " ",V14+W14) -> 520502.5095 | Y14: 31.2448105 | Z14: -0.008578747071 | AB14: Benton REA | AC14: 0 | AD14: 1.822 | AE14: 1.822 | AG14: 10123 | AH14: Cowlitz County PUD #1 | AI14: =VLOOKUP(AG14, Init!$Q$5:$AE$139, 15, FALSE) -> 0.040273 | AJ14: =ROUND(AI14*ROUND(SUMPRODUCT(TOCA!$F$4:$F$138, TOCA!$D$4:$D$138)/SUMPRODUCT(TOCA!$G$4:$G$138, TOCA!$D$4:$D$138), 5), 7) -> 0.0398755 | AK14: 156695049.6 | AL14: 271.5321301 | AM14: 205.4759287 | AN14: 477.0080588 | AO14: 37.44819909 | AP14: 154258166.6 | AQ14: 280.1360558 | AR14: 196.872003 | AS14: 477.0080588 | AT14: 36.86581388 | AU14: =($AW$9+RT1SC!$J$8)*AJ14 -> 280.1360741 | AV14: 196.872003 | AW14: 477.0080771 | AX14: 36.86581246 | AY14: -0.01555179255
B15: 10027 | C15: Big Bend Elec Coop | D15: 20784748.7 | E15: -3431823.616 | F15: -598966.9924 | G15: 1421765.634 | H15: -1445046.288 | I15: -2285397.986 | J15: 14445279.45 | K15: 0 | L15: 517507.073 | M15: 517507.073 | N15: 27.91320198 | O15: =AVERAGE(TOCA!$AG8:$AH8)*Rates_2022!$G$76*12*100 -> 20948431.97 | P15: =AVERAGE(TOCA!$AJ8:$AK8)*Rates_2022!$G$77*12*100 -> -3123460.01 | Q15: =SUMPRODUCT(LoadShp!$D8:$AY8, Rates_2022!$H$8:$BC$8)/2 -> -714809.5242 | R15: =SUMPRODUCT(Demand!$D8:$AY8, Rates_2022!$H$9:$BC$9)/2 -> 1421765.634 | S15: =SUM(O15:R15)*AVERAGE(TOCA!$AQ8:$AR8)*-1 -> -1428122.188 | T15: =Init!$FD9*-10.9 -> -2285397.986 | U15: 14818407.9 | V15: =SUM(SliceResource!$D8:$AY8)/2 -> 0 | W15: =SUM(Tier1!$D8:$AY8)/2 -> 533901.941 | X15: =IF(Init!$T9=1, " ",V15+W15) -> 533901.941 | Y15: 27.75492419 | Z15: -0.005670355611 | AB15: Big Bend Elec Coop | AC15: 0 | AD15: 1.869 | AE15: 1.869 | AG15: 10157 | AH15: Emerald PUD | AI15: =VLOOKUP(AG15, Init!$Q$5:$AE$139, 15, FALSE) -> 0.0037341 | AJ15: =ROUND(AI15*ROUND(SUMPRODUCT(TOCA!$F$4:$F$138, TOCA!$D$4:$D$138)/SUMPRODUCT(TOCA!$G$4:$G$138, TOCA!$D$4:$D$138), 5), 7) -> 0.0036972 | AK15: 14959825.59 | AL15: 25.17607532 | AM15: 22.98592468 | AN15: 48.162 | AO15: 35.40979349 | AP15: 15187647.11 | AQ15: 25.97381915 | AR15: 23.71418085 | AS15: 49.688 | AT15: 34.84499114 | AU15: =($AW$9+RT1SC!$J$8)*AJ15 -> 25.97382085 | AV15: 23.71418085 | AW15: 49.6880017 | AX15: 34.84498995 | AY15: -0.01595048976
... 18 more rows

Sheet Chart_data
C2: BES ID | D2: Contract Type | E2: Customer | F2: Load Following | G2: Block-only | H2: Slice/Block | I2: Tier 1 Energy | L2: Load Following | M2: Block-only | N2: Slice/Block
C3: 10306 | D3: Block-only | E3: Pend Oreille | F3: =IF($D3="LF", VLOOKUP($C3, Charges_includingSlice!$B$11:$Z$145, 25, FALSE), " ") ->  | G3: =IF($D3="Block-only", VLOOKUP($C3, Charges_includingSlice!$B$11:$Z$145, 25, FALSE), " ") ->  | H3: =IF($D3="Slice/Block", VLOOKUP($C3, Charges_includingSlice!$B$11:$Z$145, 25, FALSE), " ") ->  | I3: =VLOOKUP(C3, Charges_includingSlice!$B$11:$X$145, 23, FALSE) -> 0 | L3: =IF($D3="LF", VLOOKUP($C3, Charges_includingSlice!$B$11:$AE$145, 30, FALSE), " ") ->  | M3: =IF($D3="Block-only", VLOOKUP($C3, Charges_includingSlice!$B$11:$AE$145, 30, FALSE), " ") -> 0 | N3: =IF($D3="Slice/Block", VLOOKUP($C3, Charges_includingSlice!$B$11:$AE$145, 30, FALSE), " ") -> 
C4: 10082 | D4: LF | E4: Minidoka | F4: =IF($D4="LF", VLOOKUP($C4, Charges_includingSlice!$B$11:$Z$145, 25, FALSE), " ") -> -0.01099093992 | G4: =IF($D4="Block-only", VLOOKUP($C4, Charges_includingSlice!$B$11:$Z$145, 25, FALSE), " ") ->  | H4: =IF($D4="Slice/Block", VLOOKUP($C4, Charges_includingSlice!$B$11:$Z$145, 25, FALSE), " ") ->  | I4: =VLOOKUP(C4, Charges_includingSlice!$B$11:$X$145, 23, FALSE) -> 833.9985 | L4: =IF($D4="LF", VLOOKUP($C4, Charges_includingSlice!$B$11:$AE$145, 30, FALSE), " ") -> 0 | M4: =IF($D4="Block-only", VLOOKUP($C4, Charges_includingSlice!$B$11:$AE$145, 30, FALSE), " ") ->  | N4: =IF($D4="Slice/Block", VLOOKUP($C4, Charges_includingSlice!$B$11:$AE$145, 30, FALSE), " ") -> 
C5: 10116 | D5: LF | E5: Consolidated | F5: =IF($D5="LF", VLOOKUP($C5, Charges_includingSlice!$B$11:$Z$145, 25, FALSE), " ") -> -0.005175772962 | G5: =IF($D5="Block-only", VLOOKUP($C5, Charges_includingSlice!$B$11:$Z$145, 25, FALSE), " ") ->  | H5: =IF($D5="Slice/Block", VLOOKUP($C5, Charges_includingSlice!$B$11:$Z$145, 25, FALSE), " ") ->  | I5: =VLOOKUP(C5, Charges_includingSlice!$B$11:$X$145, 23, FALSE) -> 2020.6375 | L5: =IF($D5="LF", VLOOKUP($C5, Charges_includingSlice!$B$11:$AE$145, 30, FALSE), " ") -> 0 | M5: =IF($D5="Block-only", VLOOKUP($C5, Charges_includingSlice!$B$11:$AE$145, 30, FALSE), " ") ->  | N5: =IF($D5="Slice/Block", VLOOKUP($C5, Charges_includingSlice!$B$11:$AE$145, 30, FALSE), " ") -> 
C6: 10070 | D6: LF | E6: Declo | F6: =IF($D6="LF", VLOOKUP($C6, Charges_includingSlice!$B$11:$Z$145, 25, FALSE), " ") -> -0.004600525097 | G6: =IF($D6="Block-only", VLOOKUP($C6, Charges_includingSlice!$B$11:$Z$145, 25, FALSE), " ") ->  | H6: =IF($D6="Slice/Block", VLOOKUP($C6, Charges_includingSlice!$B$11:$Z$145, 25, FALSE), " ") ->  | I6: =VLOOKUP(C6, Charges_includingSlice!$B$11:$X$145, 23, FALSE) -> 3321.719 | L6: =IF($D6="LF", VLOOKUP($C6, Charges_includingSlice!$B$11:$AE$145, 30, FALSE), " ") -> 0 | M6: =IF($D6="Block-only", VLOOKUP($C6, Charges_includingSlice!$B$11:$AE$145, 30, FALSE), " ") ->  | N6: =IF($D6="Slice/Block", VLOOKUP($C6, Charges_includingSlice!$B$11:$AE$145, 30, FALSE), " ") -> 
C7: 10055 | D7: LF | E7: Albion | F7: =IF($D7="LF", VLOOKUP($C7, Charges_includingSlice!$B$11:$Z$145, 25, FALSE), " ") -> -0.009405595503 | G7: =IF($D7="Block-only", VLOOKUP($C7, Charges_includingSlice!$B$11:$Z$145, 25, FALSE), " ") ->  | H7: =IF($D7="Slice/Block", VLOOKUP($C7, Charges_includingSlice!$B$11:$Z$145, 25, FALSE), " ") ->  | I7: =VLOOKUP(C7, Charges_includingSlice!$B$11:$X$145, 23, FALSE) -> 3371.548 | L7: =IF($D7="LF", VLOOKUP($C7, Charges_includingSlice!$B$11:$AE$145, 30, FALSE), " ") -> 0 | M7: =IF($D7="Block-only", VLOOKUP($C7, Charges_includingSlice!$B$11:$AE$145, 30, FALSE), " ") ->  | N7: =IF($D7="Slice/Block", VLOOKUP($C7, Charges_includingSlice!$B$11:$AE$145, 30, FALSE), " ") -> 
C8: 10174 | D8: LF | E8: Farmers | F8: =IF($D8="LF", VLOOKUP($C8, Charges_includingSlice!$B$11:$Z$145, 25, FALSE), " ") -> -0.008570617975 | G8: =IF($D8="Block-only", VLOOKUP($C8, Charges_includingSlice!$B$11:$Z$145, 25, FALSE), " ") ->  | H8: =IF($D8="Slice/Block", VLOOKUP($C8, Charges_includingSlice!$B$11:$Z$145, 25, FALSE), " ") ->  | I8: =VLOOKUP(C8, Charges_includingSlice!$B$11:$X$145, 23, FALSE) -> 4322.756 | L8: =IF($D8="LF", VLOOKUP($C8, Charges_includingSlice!$B$11:$AE$145, 30, FALSE), " ") -> 0 | M8: =IF($D8="Block-only", VLOOKUP($C8, Charges_includingSlice!$B$11:$AE$145, 30, FALSE), " ") ->  | N8: =IF($D8="Slice/Block", VLOOKUP($C8, Charges_includingSlice!$B$11:$AE$145, 30, FALSE), " ") -> 
C9: 10015 | D9: LF | E9: Asotin PUD | F9: =IF($D9="LF", VLOOKUP($C9, Charges_includingSlice!$B$11:$Z$145, 25, FALSE), " ") -> -0.004744070672 | G9: =IF($D9="Block-only", VLOOKUP($C9, Charges_includingSlice!$B$11:$Z$145, 25, FALSE), " ") ->  | H9: =IF($D9="Slice/Block", VLOOKUP($C9, Charges_includingSlice!$B$11:$Z$145, 25, FALSE), " ") ->  | I9: =VLOOKUP(C9, Charges_includingSlice!$B$11:$X$145, 23, FALSE) -> 5112.6335 | L9: =IF($D9="LF", VLOOKUP($C9, Charges_includingSlice!$B$11:$AE$145, 30, FALSE), " ") -> 0 | M9: =IF($D9="Block-only", VLOOKUP($C9, Charges_includingSlice!$B$11:$AE$145, 30, FALSE), " ") ->  | N9: =IF($D9="Slice/Block", VLOOKUP($C9, Charges_includingSlice!$B$11:$AE$145, 30, FALSE), " ") -> 
C10: 10005 | D10: LF | E10: Alder | F10: =IF($D10="LF", VLOOKUP($C10, Charges_includingSlice!$B$11:$Z$145, 25, FALSE), " ") -> -0.002982827954 | G10: =IF($D10="Block-only", VLOOKUP($C10, Charges_includingSlice!$B$11:$Z$145, 25, FALSE), " ") ->  | H10: =IF($D10="Slice/Block", VLOOKUP($C10, Charges_includingSlice!$B$11:$Z$145, 25, FALSE), " ") ->  | I10: =VLOOKUP(C10, Charges_includingSlice!$B$11:$X$145, 23, FALSE) -> 5719.83 | L10: =IF($D10="LF", VLOOKUP($C10, Charges_includingSlice!$B$11:$AE$145, 30, FALSE), " ") -> 0 | M10: =IF($D10="Block-only", VLOOKUP($C10, Charges_includingSlice!$B$11:$AE$145, 30, FALSE), " ") ->  | N10: =IF($D10="Slice/Block", VLOOKUP($C10, Charges_includingSlice!$B$11:$AE$145, 30, FALSE), " ") -> 
C11: 10406 | D11: LF | E11: NETL | F11: =IF($D11="LF", VLOOKUP($C11, Charges_includingSlice!$B$11:$Z$145, 25, FALSE), " ") -> -0.003262866084 | G11: =IF($D11="Block-only", VLOOKUP($C11, Charges_includingSlice!$B$11:$Z$145, 25, FALSE), " ") ->  | H11: =IF($D11="Slice/Block", VLOOKUP($C11, Charges_includingSlice!$B$11:$Z$145, 25, FALSE), " ") ->  | I11: =VLOOKUP(C11, Charges_includingSlice!$B$11:$X$145, 23, FALSE) -> 6447.1745 | L11: =IF($D11="LF", VLOOKUP($C11, Charges_includingSlice!$B$11:$AE$145, 30, FALSE), " ") -> 0 | M11: =IF($D11="Block-only", VLOOKUP($C11, Charges_includingSlice!$B$11:$AE$145, 30, FALSE), " ") ->  | N11: =IF($D11="Slice/Block", VLOOKUP($C11, Charges_includingSlice!$B$11:$AE$145, 30, FALSE), " ") -> 
C12: 10408 | D12: LF | E12: USN Everett | F12: =IF($D12="LF", VLOOKUP($C12, Charges_includingSlice!$B$11:$Z$145, 25, FALSE), " ") -> -0.00467596634 | G12: =IF($D12="Block-only", VLOOKUP($C12, Charges_includingSlice!$B$11:$Z$145, 25, FALSE), " ") ->  | H12: =IF($D12="Slice/Block", VLOOKUP($C12, Charges_includingSlice!$B$11:$Z$145, 25, FALSE), " ") ->  | I12: =VLOOKUP(C12, Charges_includingSlice!$B$11:$X$145, 23, FALSE) -> 14393.013 | L12: =IF($D12="LF", VLOOKUP($C12, Charges_includingSlice!$B$11:$AE$145, 30, FALSE), " ") -> 0 | M12: =IF($D12="Block-only", VLOOKUP($C12, Charges_includingSlice!$B$11:$AE$145, 30, FALSE), " ") ->  | N12: =IF($D12="Slice/Block", VLOOKUP($C12, Charges_includingSlice!$B$11:$AE$145, 30, FALSE), " ") -> 
C13: 10071 | D13: LF | E13: Drain | F13: =IF($D13="LF", VLOOKUP($C13, Charges_includingSlice!$B$11:$Z$145, 25, FALSE), " ") -> -0.008748573953 | G13: =IF($D13="Block-only", VLOOKUP($C13, Charges_includingSlice!$B$11:$Z$145, 25, FALSE), " ") ->  | H13: =IF($D13="Slice/Block", VLOOKUP($C13, Charges_includingSlice!$B$11:$Z$145, 25, FALSE), " ") ->  | I13: =VLOOKUP(C13, Charges_includingSlice!$B$11:$X$145, 23, FALSE) -> 16341.107 | L13: =IF($D13="LF", VLOOKUP($C13, Charges_includingSlice!$B$11:$AE$145, 30, FALSE), " ") -> 0 | M13: =IF($D13="Block-only", VLOOKUP($C13, Charges_includingSlice!$B$11:$AE$145, 30, FALSE), " ") ->  | N13: =IF($D13="Slice/Block", VLOOKUP($C13, Charges_includingSlice!$B$11:$AE$145, 30, FALSE), " ") -> 
C14: 10097 | D14: LF | E14: Troy | F14: =IF($D14="LF", VLOOKUP($C14, Charges_includingSlice!$B$11:$Z$145, 25, FALSE), " ") -> -0.007161651195 | G14: =IF($D14="Block-only", VLOOKUP($C14, Charges_includingSlice!$B$11:$Z$145, 25, FALSE), " ") ->  | H14: =IF($D14="Slice/Block", VLOOKUP($C14, Charges_includingSlice!$B$11:$Z$145, 25, FALSE), " ") ->  | I14: =VLOOKUP(C14, Charges_includingSlice!$B$11:$X$145, 23, FALSE) -> 17510.861 | L14: =IF($D14="LF", VLOOKUP($C14, Charges_includingSlice!$B$11:$AE$145, 30, FALSE), " ") -> 0 | M14: =IF($D14="Block-only", VLOOKUP($C14, Charges_includingSlice!$B$11:$AE$145, 30, FALSE), " ") ->  | N14: =IF($D14="Slice/Block", VLOOKUP($C14, Charges_includingSlice!$B$11:$AE$145, 30, FALSE), " ") -> 
C15: 10378 | D15: LF | E15: Coulee Dam | F15: =IF($D15="LF", VLOOKUP($C15, Charges_includingSlice!$B$11:$Z$145, 25, FALSE), " ") -> -0.004559410865 | G15: =IF($D15="Block-only", VLOOKUP($C15, Charges_includingSlice!$B$11:$Z$145, 25, FALSE), " ") ->  | H15: =IF($D15="Slice/Block", VLOOKUP($C15, Charges_includingSlice!$B$11:$Z$145, 25, FALSE), " ") ->  | I15: =VLOOKUP(C15, Charges_includingSlice!$B$11:$X$145, 23, FALSE) -> 17882.1865 | L15: =IF($D15="LF", VLOOKUP($C15, Charges_includingSlice!$B$11:$AE$145, 30, FALSE), " ") -> 0 | M15: =IF($D15="Block-only", VLOOKUP($C15, Charges_includingSlice!$B$11:$AE$145, 30, FALSE), " ") ->  | N15: =IF($D15="Slice/Block", VLOOKUP($C15, Charges_includingSlice!$B$11:$AE$145, 30, FALSE), " ") -> 
... 18 more rows

Sheet Rates_2022
B1: Cost Allocation under Tiered Rates
B2: RAMmodel_REP2022.xls
B5: Costs ($000) | C5: 2022 | D5: 2023 | E5: Rate Period | G5: Reshaping physical format of rates for calculations
B6: Composite | C6: 2559204.597 | D6: 2605041.597 | E6: 5164246.194 | H6: 2021-10-01 | I6: 2021-10-01 | J6: 2021-11-01 | K6: 2021-11-01 | L6: 2021-12-01 | M6: 2021-12-01 | N6: 2022-01-01 | O6: 2022-01-01 | P6: 2022-02-01 | Q6: 2022-02-01 | R6: 2022-03-01 | S6: 2022-03-01 | T6: 2022-04-01 | U6: 2022-04-01 | V6: 2022-05-01 | W6: 2022-05-01 | X6: 2022-06-01 | Y6: 2022-06-01 | Z6: 2022-07-01 | AA6: 2022-07-01 | AB6: 2022-08-01 | AC6: 2022-08-01 | AD6: 2022-09-01 | AE6: 2022-09-01 | AF6: 2022-10-01 | AG6: 2022-10-01 | AH6: 2022-11-01 | AI6: 2022-11-01 | AJ6: 2022-12-01 | AK6: 2022-12-01 | AL6: 2023-01-01 | AM6: 2023-01-01 | AN6: 2023-02-01 | AO6: 2023-02-01 | AP6: 2023-03-01 | AQ6: 2023-03-01 | AR6: 2023-04-01 | AS6: 2023-04-01 | AT6: 2023-05-01 | AU6: 2023-05-01 | AV6: 2023-06-01 | AW6: 2023-06-01 | AX6: 2023-07-01 | AY6: 2023-07-01 | AZ6: 2023-08-01 | BA6: 2023-08-01 | BB6: 2023-09-01 | BC6: 2023-09-01
B7: Non-Slice | C7: 153612.7252 | D7: 145002.0921 | E7: 298614.8173 | H7: HLH | I7: LLH | J7: HLH | K7: LLH | L7: HLH | M7: LLH | N7: HLH | O7: LLH | P7: HLH | Q7: LLH | R7: HLH | S7: LLH | T7: HLH | U7: LLH | V7: HLH | W7: LLH | X7: HLH | Y7: LLH | Z7: HLH | AA7: LLH | AB7: HLH | AC7: LLH | AD7: HLH | AE7: LLH | AF7: HLH | AG7: LLH | AH7: HLH | AI7: LLH | AJ7: HLH | AK7: LLH | AL7: HLH | AM7: LLH | AN7: HLH | AO7: LLH | AP7: HLH | AQ7: LLH | AR7: HLH | AS7: LLH | AT7: HLH | AU7: LLH | AV7: HLH | AW7: LLH | AX7: HLH | AY7: LLH | AZ7: HLH | BA7: LLH | BB7: HLH | BC7: LLH
B8: Slice | C8: 0 | D8: 0 | E8: 0 | G8: BP22 Load Shaping | H8: 29.92 | I8: 28.27 | J8: 31.71 | K8: 29.14 | L8: 38.76 | M8: 32.05 | N8: 34.29 | O8: 25.85 | P8: 34.79 | Q8: 28.29 | R8: 27.57 | S8: 28.44 | T8: 20.71 | U8: 25.66 | V8: 16.28 | W8: 16.3 | X8: 17.15 | Y8: 10.62 | Z8: 36.83 | AA8: 21.36 | AB8: 35.87 | AC8: 26.85 | AD8: 28.15 | AE8: 28.95 | AF8: 29.92 | AG8: 28.27 | AH8: 31.71 | AI8: 29.14 | AJ8: 38.76 | AK8: 32.05 | AL8: 34.29 | AM8: 25.85 | AN8: 34.79 | AO8: 28.29 | AP8: 27.57 | AQ8: 28.44 | AR8: 20.71 | AS8: 25.66 | AT8: 16.28 | AU8: 16.3 | AV8: 17.15 | AW8: 10.62 | AX8: 36.83 | AY8: 21.36 | AZ8: 35.87 | BA8: 26.85 | BB8: 28.15 | BC8: 28.95
B9: Tier 2 | C9: 46009.38649 | D9: 48974.65838 | E9: 94984.04487 | G9: BP22 Demand | H9: 9.87 | I9: 0 | J9: 10.46 | K9: 0 | L9: 12.78 | M9: 0 | N9: 11.31 | O9: 0 | P9: 11.47 | Q9: 0 | R9: 9.09 | S9: 0 | T9: 6.83 | U9: 0 | V9: 5.36 | W9: 0 | X9: 5.65 | Y9: 0 | Z9: 12.14 | AA9: 0 | AB9: 11.83 | AC9: 0 | AD9: 9.29 | AE9: 0 | AF9: 9.87 | AG9: 0 | AH9: 10.46 | AI9: 0 | AJ9: 12.78 | AK9: 0 | AL9: 11.31 | AM9: 0 | AN9: 11.47 | AO9: 0 | AP9: 9.09 | AQ9: 0 | AR9: 6.83 | AS9: 0 | AT9: 5.36 | AU9: 0 | AV9: 5.65 | AW9: 0 | AX9: 12.14 | AY9: 0 | AZ9: 11.83 | BA9: 0 | BB9: 9.29 | BC9: 0
B10: Total Costs | C10: 2758826.709 | D10: 2799018.347 | E10: 5557845.056
B12: Adjustments
B14: Revenues from Rate Pools to Composite Cost Pool | C14: 2022 | D14: 2023 | E14: Rate Period
B15: DSI Revenue Credit | C15: -4277.3328 | D15: -4277.3328 | E15: -8554.6656
... 16 more rows

Sheet Init
B1: Initiation Sheet
A2: TOC
B3: Input Parameters | E3: Monthly Hours | M3: Annual Hours | Q3: Preference Customer Parameters | CB3: 9 | CC3: =+CB3+1 -> 10 | CD3: =+CC3+1 -> 11 | CE3: =+CD3+1 -> 12 | CF3: 13 | CG3: 14 | CH3: 15 | CI3: 16 | CJ3: 17 | CK3: 18 | CL3: 19 | CT3: 22 | CU3: =+CT3+1 -> 23 | CV3: 24 | CW3: 25 | CX3: 26 | CY3: 27 | CZ3: 28 | DL3: 35 | DM3: =+DL3+1 -> 36 | DN3: =+DM3+1 -> 37 | DO3: 38 | DP3: 39 | DQ3: 40 | DR3: 41 | DS3: 42 | DT3: 43 | DU3: 44 | DV3: 45
E4: FiscalID | F4: Cal Date | G4: HLH | H4: LLH | I4: Total | J4: HLH% | K4: LLH% | M4: year | N4: days | O4: hours | Q4: BESID | R4: AccountName | S4: Slice | T4: PNGC | U4: Initial CHWM | V4: RHWM Aug 2016 | W4: RHWM Aug 2018 | X4: RHWM Aug 2020 | Y4: RHWM Aug 2022 | Z4: RHWM Aug 2024 | AA4: RHWM Aug 2026 | AB4: RHWM Aug 2028 | AC4: RHWM Aug 2030 | AD4: RHWM Aug 2032 | AE4: Initial Slice% | AF4: 60-40 | AG4: RHWM 2016 | AH4: RHWM 2018 | AI4: RHWM 2020 | AJ4: RHWM 2022 | AK4: RHWM 2024 | AL4: RHWM 2026 | AM4: RHWM 2028 | AN4: RHWM 2030 | AO4: RHWM 2032 | AP4: TRL - NLSL - Existing Resource 2016 | AQ4: TRL - NLSL - Existing Resource 2017 | AR4: TRL - NLSL - Existing Resource 2018 | AS4: TRL - NLSL - Existing Resource 2019 | AT4: TRL - NLSL - Existing Resource 2020 | AU4: TRL - NLSL - Existing Resource 2021 | AV4: TRL - NLSL - Existing Resource 2022 | AW4: TRL - NLSL - Existing Resource 2023 | AX4: TRL - NLSL - Existing Resource 2024 | AY4: TRL - NLSL - Existing Resource 2025 | AZ4: TRL - NLSL - Existing Resource 2026 | BA4: TRL - NLSL - Existing Resource 2027 | BB4: TRL - NLSL - Existing Resource 2028 | BC4: TRL - NLSL - Existing Resource 2029 | BD4: TRL - NLSL - Existing Resource 2030 | BE4: TRL - NLSL - Existing Resource 2031 | BF4: TRL - NLSL - Existing Resource 2032 | BG4: TRL - NLSL - Existing Resource 2033 | BH4: Above RHWM 2016 | BI4: Above RHWM 2017 | BJ4: Above RHWM 2018 | BK4: Above RHWM 2019 | BL4: Above RHWM 2020 | BM4: Above RHWM 2021 | BN4: Above RHWM 2022 | BO4: Above RHWM 2023 | BP4: Above RHWM 2024 | BQ4: Above RHWM 2025 | BR4: Above RHWM 2026 | BS4: Above RHWM 2027 | BT4: Above RHWM 2028 | BU4: Above RHWM 2029 | BV4: Above RHWM 2030 | BW4: Above RHWM 2031 | BX4: Above RHWM 2032 | BY4: Above RHWM 2033 | BZ4: Election 2016 | CA4: Election 2017 | CB4: Election 2018 | CC4: Election 2019 | CD4: Election 2020 | CE4: Election 2021 | CF4: Election 2022 | CG4: Election 2023 | CH4: Election 2024 | CI4: Election 2025 | CJ4: Election 2026 | CK4: Election 2027 | CL4: Election 2028 | CM4: Election 2029 | CN4: Election 2030 | CO4: Election 2031 | CP4: Election 2032 | CQ4: Election 2033 | CR4: Amount 2016 | CS4: Amount 2017 | CT4: Amount 2018 | CU4: Amount 2019 | CV4: Amount 2020 | CW4: Amount 2021 | CX4: Amount 2022 | CY4: Amount 2023 | CZ4: Amount 2024 | DA4: Amount 2025 | DB4: Amount 2026 | DC4: Amount 2027 | DD4: Amount 2028 | DE4: Amount 2029 | DF4: Amount 2030 | DG4: Amount 2031 | DH4: Amount 2032 | DI4: Amount 2033 | DJ4: Type 2016 | DK4: Type 2017 | DL4: Type 2018 | DM4: Type 2019 | DN4: Type 2020 | DO4: Type 2021 | DP4: Type 2022 | DQ4: Type 2023 | DR4: Type 2024 | DS4: Type 2025 | DT4: Type 2026 | DU4: Type 2027 | DV4: Type 2028 | DW4: Type 2029 | DX4: Type 2030 | DY4: Type 2031 | DZ4: Type 2032 | EA4: Type 2033 | EB4: Vintage 2014 for 2016 | EC4: Vintage 2014 for 2017 | ED4: Vintage 2014 for 2018 | EE4: Vintage 2014 for 2019 | EF4: Vintage 2016 for 2016 | EG4: Vintage 2016 for 2017 | EH4: Vintage 2016 for 2018 | EI4: Vintage 2016 for 2019 | EJ4: Total Vintage 2016 | EK4: Total Vintage 2017 | EL4: Total Vintage 2018 | EM4: Total Vintage 2019 | EN4: Total Vintage 2020 | EO4: Total Vintage 2021 | EP4: Total Vintage 2022 | EQ4: Total Vintage 2023 | ER4: Total Vintage 2024 | ES4: Total Vintage 2025 | ET4: Total Vintage 2026 | EU4: Total Vintage 2027 | EV4: Total Vintage 2028 | EW4: Total Vintage 2029 | EX4: Total Vintage 2030 | EY4: Total Vintage 2031 | EZ4: Total Vintage 2032 | FA4: Total Vintage 2033 | FB4: Rounddown | FC4: Eligible LDD | FD4: IRD Loads | FE4: T1 Percentage 2016 | FF4: T1 Percentage 2017 | FG4: T1 Percentage 2018 | FH4: T1 Percentage 2019 | FI4: T1 Percentage 2020 | FJ4: T1 Percentage 2021 | FK4: T1 Percentage 2022 | FL4: T1 Percentage 2023 | FM4: T1 Percentage 2024 | FN4: T1 Percentage 2025 | FO4: T1 Percentage 2026 | FP4: T1 Percentage 2027 | FQ4: T1 Percentage 2028 | FR4: T1 Percentage 2029 | FS4: T1 Percentage 2030 | FT4: T1 Percentage 2031 | FU4: T1 Percentage 2032 | FV4: T1 Percentage 2033
E5: 2015_1 | F5: 2014-10-01 | G5: 432 | H5: 312 | I5: 744 | J5: 0.5806451613 | K5: 0.4193548387 | M5: 2009 | N5: 365 | O5: 8760 | Q5: 10005 | R5: Alder Mutual | S5: 0 | T5: 0 | U5: 0.556 | V5: 0 | W5: 0 | X5: 0 | Y5: 0 | Z5: 0 | AA5: 0 | AB5: 0 | AC5: 0 | AD5: 0 | AE5: 0 | AF5: 0 | AG5: 0.542 | AH5: 0.539 | AI5: 0.545 | AJ5: 0.523 | AK5: 0 | AL5: 0 | AM5: 0 | AN5: 0 | AO5: 0 | AP5: 0.538 | AQ5: 0.542 | AR5: 0.531 | AS5: 0.535 | AT5: 0.544 | AU5: 0.545 | AV5: 0.623 | AW5: 0.631 | AX5: 0 | AY5: 0 | AZ5: 0 | BA5: 0 | BB5: 0 | BC5: 0 | BD5: 0 | BE5: 0 | BF5: 0 | BG5: 0 | BH5: 0 | BI5: 0 | BJ5: 0 | BK5: 0 | BL5: 0 | BM5: 0 | BN5: 0.1 | BO5: 0.108 | BP5: 0 | BQ5: 0 | BR5: 0 | BS5: 0 | BT5: 0 | BU5: 0 | BV5: 0 | BW5: 0 | BX5: 0 | BY5: 0 | BZ5: 1 | CA5: 1 | CB5: 1 | CC5: 1 | CD5: 1 | CE5: 1 | CF5: 1 | CG5: 1 | CH5: 1 | CI5: =+CH5 -> 1 | CJ5: =+CI5 -> 1 | CK5: 1 | CL5: 1 | CM5: 1 | CN5: 1 | CO5: 1 | CP5: 1 | CQ5: 1 | CR5: 0 | CS5: 0 | CT5: 0 | CU5: 0 | CV5: 0 | CW5: 0 | CX5: 0 | CY5: 0 | CZ5: 0 | DA5: =+CZ5 -> 0 | DB5: =+DA5 -> 0 | DC5: 0 | DD5: 0 | DE5: 0 | DF5: 0 | DG5: 0 | DH5: 0 | DI5: 0 | DJ5: LGR | DK5: LGR | DL5: LGR | DM5: LGR | DN5: LGR | DO5: LGR | DP5: LGR | DQ5: LGR | DR5: LGR | DS5: =+DR5 -> LGR | DT5: =+DS5 -> LGR | DU5: LGR | DV5: LGR | DW5: LGR | DX5: LGR | DY5: LGR | DZ5: LGR | EA5: LGR | EB5: 0 | EC5: 0 | ED5: 0 | EE5: 0 | EF5: 0 | EG5: 0 | EH5: 0 | EI5: 0 | EJ5: =+EB5+EF5 -> 0 | EK5: =+EC5+EG5 -> 0 | EL5: =+ED5+EH5 -> 0 | EM5: =+EE5+EI5 -> 0 | EN5: 0 | EO5: 0 | EP5: 0 | EQ5: 0 | ER5: 0 | ES5: 0 | ET5: 0 | EU5: 0 | EV5: 0 | EW5: 0 | EX5: 0 | EY5: 0 | EZ5: 0 | FA5: 0 | FB5: 0 | FC5: 0.025 | FD5: 0 | FE5: 0.9992982549 | FF5: 1 | FG5: 1 | FH5: 0.9995385832 | FI5: 0.9994434353 | FJ5: 1 | FK5: 0.8390713618 | FL5: 0.8284333731 | FM5: 0 | FN5: 0 | FO5: 0 | FP5: 0 | FQ5: 0 | FR5: 0 | FS5: 0 | FT5: 0 | FU5: 0 | FV5: 0
E6: 2015_2 | F6: 2014-11-01 | G6: 384 | H6: 337 | I6: 721 | J6: 0.53259362 | K6: 0.46740638 | M6: 2010 | N6: 365 | O6: 8760 | Q6: 10015 | R6: Asotin County PUD #1 | S6: 0 | T6: 0 | U6: 0.582 | V6: 0 | W6: 0 | X6: 0 | Y6: 0 | Z6: 0 | AA6: 0 | AB6: 0 | AC6: 0 | AD6: 0 | AE6: 0 | AF6: 0 | AG6: 0.568 | AH6: 0.564 | AI6: 0.57 | AJ6: 0.547 | AK6: 0 | AL6: 0 | AM6: 0 | AN6: 0 | AO6: 0 | AP6: 0.591 | AQ6: 0.597 | AR6: 0.618 | AS6: 0.621 | AT6: 0.667 | AU6: 0.67 | AV6: 0.63 | AW6: 0.634 | AX6: 0 | AY6: 0 | AZ6: 0 | BA6: 0 | BB6: 0 | BC6: 0 | BD6: 0 | BE6: 0 | BF6: 0 | BG6: 0 | BH6: 0.023 | BI6: 0.029 | BJ6: 0.054 | BK6: 0.057 | BL6: 0.097 | BM6: 0.1 | BN6: 0.083 | BO6: 0.087 | BP6: 0 | BQ6: 0 | BR6: 0 | BS6: 0 | BT6: 0 | BU6: 0 | BV6: 0 | BW6: 0 | BX6: 0 | BY6: 0 | BZ6: 1 | CA6: 1 | CB6: 1 | CC6: 1 | CD6: 1 | CE6: 1 | CF6: 1 | CG6: 1 | CH6: 1 | CI6: =+CH6 -> 1 | CJ6: 1 | CK6: 1 | CL6: 1 | CM6: 1 | CN6: 1 | CO6: 1 | CP6: 1 | CQ6: 1 | CR6: 0 | CS6: 0 | CT6: 0 | CU6: 0 | CV6: 0 | CW6: 0 | CX6: 0 | CY6: 0 | CZ6: 0 | DA6: =+CZ6 -> 0 | DB6: 0 | DC6: 0 | DD6: 0 | DE6: 0 | DF6: 0 | DG6: 0 | DH6: 0 | DI6: 0 | DJ6: LGR | DK6: LGR | DL6: LGR | DM6: LGR | DN6: LGR | DO6: LGR | DP6: LGR | DQ6: LGR | DR6: LGR | DS6: =+DR6 -> LGR | DT6: LGR | DU6: LGR | DV6: LGR | DW6: LGR | DX6: LGR | DY6: LGR | DZ6: LGR | EA6: LGR | EB6: 0 | EC6: 0 | ED6: 0 | EE6: 0 | EF6: 0 | EG6: 0 | EH6: 0 | EI6: 0 | EJ6: =+EB6+EF6 -> 0 | EK6: 0 | EL6: 0 | EM6: 0 | EN6: 0 | EO6: 0 | EP6: 0 | EQ6: 0 | ER6: 0 | ES6: 0 | ET6: 0 | EU6: 0 | EV6: 0 | EW6: 0 | EX6: 0 | EY6: 0 | EZ6: 0 | FA6: 0 | FB6: 0 | FC6: 0 | FD6: 0 | FE6: 0.9609300997 | FF6: 0.9511712639 | FG6: 0.9124943288 | FH6: 0.9080861436 | FI6: 0.8541048324 | FJ6: 0.8502804824 | FK6: 0.8682418267 | FL6: 0.8627639603 | FM6: 0 | FN6: 0 | FO6: 0 | FP6: 0 | FQ6: 0 | FR6: 0 | FS6: 0 | FT6: 0 | FU6: 0 | FV6: 0
B7: Loss Percent Assumption | C7: 0.03209825575 | E7: 2015_3 | F7: 2014-12-01 | G7: 416 | H7: 328 | I7: 744 | J7: 0.5591397849 | K7: 0.4408602151 | M7: 2011 | N7: 365 | O7: 8760 | Q7: 10024 | R7: Benton County PUD #1 | S7: 1 | T7: 0 | U7: 204.282 | V7: 0 | W7: 0 | X7: 0 | Y7: 0 | Z7: 0 | AA7: 0 | AB7: 0 | AC7: 0 | AD7: 0 | AE7: 0.0138126 | AF7: 0 | AG7: 199.617 | AH7: 198.049 | AI7: 200.214 | AJ7: 192.001 | AK7: 0 | AL7: 0 | AM7: 0 | AN7: 0 | AO7: 0 | AP7: 204.386 | AQ7: 206.55 | AR7: 209.206 | AS7: 209.939 | AT7: 205.669 | AU7: 206.52 | AV7: 209.048 | AW7: 209.063 | AX7: 0 | AY7: 0 | AZ7: 0 | BA7: 0 | BB7: 0 | BC7: 0 | BD7: 0 | BE7: 0 | BF7: 0 | BG7: 0 | BH7: 4.769 | BI7: 6.933 | BJ7: 10.857 | BK7: 11.59 | BL7: 5.455 | BM7: 6.306 | BN7: 17.047 | BO7: 17.062 | BP7: 0 | BQ7: 0 | BR7: 0 | BS7: 0 | BT7: 0 | BU7: 0 | BV7: 0 | BW7: 0 | BX7: 0 | BY7: 0 | BZ7: 4 | CA7: 4 | CB7: 4 | CC7: 4 | CD7: 4 | CE7: 4 | CF7: 4 | CG7: 4 | CH7: 4 | CI7: =+CH7 -> 4 | CJ7: 4 | CK7: 4 | CL7: 4 | CM7: 4 | CN7: 4 | CO7: 4 | CP7: 4 | CQ7: 4 | CR7: 0 | CS7: 0 | CT7: 0 | CU7: 0 | CV7: 0 | CW7: 0 | CX7: 0 | CY7: 0 | CZ7: 0 | DA7: =+CZ7 -> 0 | DB7: 0 | DC7: 0 | DD7: 0 | DE7: 0 | DF7: 0 | DG7: 0 | DH7: 0 | DI7: 0 | DJ7: 0 | DK7: 0 | DL7: 0 | DM7: 0 | DN7: 0 | DO7: 0 | DP7: 0 | DQ7: 0 | DR7: 0 | DS7: =+DR7 -> 0 | DT7: 0 | DU7: 0 | DV7: 0 | DW7: 0 | DX7: 0 | DY7: 0 | DZ7: 0 | EA7: 0 | EB7: 0 | EC7: 0 | ED7: 0 | EE7: 0 | EF7: 0 | EG7: 0 | EH7: 0 | EI7: 0 | EJ7: 0 | EK7: 0 | EL7: 0 | EM7: 0 | EN7: 0 | EO7: 0 | EP7: 0 | EQ7: 0 | ER7: 0 | ES7: 0 | ET7: 0 | EU7: 0 | EV7: 0 | EW7: 0 | EX7: 0 | EY7: 0 | EZ7: 0 | FA7: 0 | FB7: 0 | FC7: 0 | FD7: 312239.2 | FE7: 0.9767722178 | FF7: 0.9665810551 | FG7: 0.9483306064 | FH7: 0.9450339502 | FI7: 0.9735948822 | FJ7: 0.9696009233 | FK7: 0.9171911079 | FL7: 0.9171255887 | FM7: 0 | FN7: 0 | FO7: 0 | FP7: 0 | FQ7: 0 | FR7: 0 | FS7: 0 | FT7: 0 | FU7: 0 | FV7: 0
E8: 2015_4 | F8: 2015-01-01 | G8: 416 | H8: 328 | I8: 744 | J8: 0.5591397849 | K8: 0.4408602151 | M8: 2012 | N8: 366 | O8: 8784 | Q8: 10025 | R8: Benton REA | S8: 0 | T8: 0 | U8: 60.549 | V8: 0 | W8: 0 | X8: 0 | Y8: 0 | Z8: 0 | AA8: 0 | AB8: 0 | AC8: 0 | AD8: 0 | AE8: 0 | AF8: 0 | AG8: 66.081 | AH8: 58.702 | AI8: 59.343 | AJ8: 56.909 | AK8: 0 | AL8: 0 | AM8: 0 | AN8: 0 | AO8: 0 | AP8: 69.528 | AQ8: 70.504 | AR8: 64.711 | AS8: 65.775 | AT8: 66.508 | AU8: 67.372 | AV8: 66.666 | AW8: 67.355 | AX8: 0 | AY8: 0 | AZ8: 0 | BA8: 0 | BB8: 0 | BC8: 0 | BD8: 0 | BE8: 0 | BF8: 0 | BG8: 0 | BH8: 3.447 | BI8: 4.423 | BJ8: 7.579 | BK8: 8.643 | BL8: 7.165 | BM8: 8.029 | BN8: 9.757 | BO8: 10.446 | BP8: 0 | BQ8: 0 | BR8: 0 | BS8: 0 | BT8: 0 | BU8: 0 | BV8: 0 | BW8: 0 | BX8: 0 | BY8: 0 | BZ8: 3 | CA8: 3 | CB8: 3 | CC8: 3 | CD8: 1 | CE8: 1 | CF8: 1 | CG8: 1 | CH8: 1 | CI8: =+CH8 -> 1 | CJ8: 1 | CK8: 1 | CL8: 1 | CM8: 1 | CN8: 1 | CO8: 1 | CP8: 1 | CQ8: 1 | CR8: 10 | CS8: 11 | CT8: 12 | CU8: 14 | CV8: 0 | CW8: 0 | CX8: 0 | CY8: 0 | CZ8: 0 | DA8: =+CZ8 -> 0 | DB8: 0 | DC8: 0 | DD8: 0 | DE8: 0 | DF8: 0 | DG8: 0 | DH8: 0 | DI8: 0 | DJ8: LGR | DK8: LGR | DL8: LGR | DM8: LGR | DN8: STR | DO8: STR | DP8: STR | DQ8: STR | DR8: STR | DS8: =+DR8 -> STR | DT8: STR | DU8: STR | DV8: STR | DW8: STR | DX8: STR | DY8: STR | DZ8: STR | EA8: STR | EB8: 0 | EC8: 0 | ED8: 0 | EE8: 0 | EF8: 0 | EG8: 0 | EH8: 0 | EI8: 0 | EJ8: 0 | EK8: 0 | EL8: 0 | EM8: 0 | EN8: 0 | EO8: 0 | EP8: 0 | EQ8: 0 | ER8: 0 | ES8: 0 | ET8: 0 | EU8: 0 | EV8: 0 | EW8: 0 | EX8: 0 | EY8: 0 | EZ8: 0 | FA8: 0 | FB8: 0 | FC8: 0.06 | FD8: 82900.857 | FE8: 0.9504215223 | FF8: 0.9372695023 | FG8: 0.8965214833 | FH8: 0.88368387 | FI8: 0.8922697627 | FJ8: 0.8808270109 | FK8: 0.8536399489 | FL8: 0.8449077401 | FM8: 0 | FN8: 0 | FO8: 0 | FP8: 0 | FQ8: 0 | FR8: 0 | FS8: 0 | FT8: 0 | FU8: 0 | FV8: 0
B9: Base Year | C9: 2024 | E9: 2015_5 | F9: 2015-02-01 | G9: 384 | H9: 288 | I9: 672 | J9: 0.5714285714 | K9: 0.4285714286 | M9: 2013 | N9: 365 | O9: 8760 | Q9: 10027 | R9: Big Bend Elec Coop | S9: 0 | T9: 0 | U9: 62.107 | V9: 0 | W9: 0 | X9: 0 | Y9: 0 | Z9: 0 | AA9: 0 | AB9: 0 | AC9: 0 | AD9: 0 | AE9: 0 | AF9: 0 | AG9: 60.597 | AH9: 60.212 | AI9: 60.87 | AJ9: 58.373 | AK9: 0 | AL9: 0 | AM9: 0 | AN9: 0 | AO9: 0 | AP9: 60.704 | AQ9: 61.23 | AR9: 63.741 | AS9: 64.451 | AT9: 65.199 | AU9: 65.771 | AV9: 66.27 | AW9: 66.586 | AX9: 0 | AY9: 0 | AZ9: 0 | BA9: 0 | BB9: 0 | BC9: 0 | BD9: 0 | BE9: 0 | BF9: 0 | BG9: 0 | BH9: 0.107 | BI9: 0.633 | BJ9: 3.529 | BK9: 4.239 | BL9: 4.329 | BM9: 4.901 | BN9: 7.897 | BO9: 8.213 | BP9: 0 | BQ9: 0 | BR9: 0 | BS9: 0 | BT9: 0 | BU9: 0 | BV9: 0 | BW9: 0 | BX9: 0 | BY9: 0 | BZ9: 3 | CA9: 3 | CB9: 3 | CC9: 3 | CD9: 3 | CE9: 3 | CF9: 3 | CG9: 3 | CH9: 3 | CI9: =+CH9 -> 3 | CJ9: 3 | CK9: 3 | CL9: 3 | CM9: 3 | CN9: 3 | CO9: 3 | CP9: 3 | CQ9: 3 | CR9: 4.52 | CS9: 5.57 | CT9: 6.45 | CU9: 7.35 | CV9: 24 | CW9: 25 | CX9: 25 | CY9: 26 | CZ9: 27 | DA9: =+CZ9 -> 27 | DB9: 27 | DC9: 27 | DD9: 27 | DE9: 27 | DF9: 27 | DG9: 27 | DH9: 27 | DI9: 27 | DJ9: STR | DK9: STR | DL9: STR | DM9: STR | DN9: STR | DO9: STR | DP9: STR | DQ9: STR | DR9: STR | DS9: =+DR9 -> STR | DT9: STR | DU9: STR | DV9: STR | DW9: STR | DX9: STR | DY9: STR | DZ9: STR | EA9: STR | EB9: 1 | EC9: 1 | ED9: 1 | EE9: 1 | EF9: 0 | EG9: 0 | EH9: 0 | EI9: 0 | EJ9: 1 | EK9: 1 | EL9: 1 | EM9: 1 | EN9: 0 | EO9: 0 | EP9: 0 | EQ9: 0 | ER9: 0 | ES9: 0 | ET9: 0 | EU9: 0 | EV9: 0 | EW9: 0 | EX9: 0 | EY9: 0 | EZ9: 0 | FA9: 0 | FB9: 1 | FC9: 0.07 | FD9: 209669.54 | FE9: 0.9982323218 | FF9: 0.9896615614 | FG9: 0.9446324159 | FH9: 0.9342262311 | FI9: 0.93360644 | FJ9: 0.9254870123 | FK9: 0.8808396752 | FL9: 0.8766594371 | FM9: 0 | FN9: 0 | FO9: 0 | FP9: 0 | FQ9: 0 | FR9: 0 | FS9: 0 | FT9: 0 | FU9: 0 | FV9: 0
E10: 2015_6 | F10: 2015-03-01 | G10: 416 | H10: 327 | I10: 743 | J10: 0.5598923284 | K10: 0.4401076716 | M10: 2014 | N10: 365 | O10: 8760 | Q10: 10029 | R10: Blachly Lane Elec Coop | S10: 0 | T10: 1 | U10: 17.879 | V10: 0 | W10: 0 | X10: 0 | Y10: 0 | Z10: 0 | AA10: 0 | AB10: 0 | AC10: 0 | AD10: 0 | AE10: 0 | AF10: 0 | AG10: 17.444 | AH10: 17.333 | AI10: 17.523 | AJ10: 16.804 | AK10: 0 | AL10: 0 | AM10: 0 | AN10: 0 | AO10: 0 | AP10: 19.667 | AQ10: 19.874 | AR10: 20.024 | AS10: 20.024 | AT10: 21.166 | AU10: 21.178 | AV10: 21.914 | AW10: 22.349 | AX10: 0 | AY10: 0 | AZ10: 0 | BA10: 0 | BB10: 0 | BC10: 0 | BD10: 0 | BE10: 0 | BF10: 0 | BG10: 0 | BH10: 2.223 | BI10: 2.43 | BJ10: 2.691 | BK10: 2.691 | BL10: 3.643 | BM10: 3.655 | BN10: 5.11 | BO10: 5.545 | BP10: 0 | BQ10: 0 | BR10: 0 | BS10: 0 | BT10: 0 | BU10: 0 | BV10: 0 | BW10: 0 | BX10: 0 | BY10: 0 | BZ10: 6 | CA10: 6 | CB10: 6 | CC10: 6 | CD10: 6 | CE10: 6 | CF10: 6 | CG10: 6 | CH10: 6 | CI10: =+CH10 -> 6 | CJ10: 6 | CK10: 6 | CL10: 6 | CM10: 6 | CN10: 6 | CO10: 6 | CP10: 6 | CQ10: 6 | CR10: 0 | CS10: 0 | CT10: 0 | CU10: 0 | CV10: 0 | CW10: 0 | CX10: 0 | CY10: 0 | CZ10: 0 | DA10: =+CZ10 -> 0 | DB10: 0 | DC10: 0 | DD10: 0 | DE10: 0 | DF10: 0 | DG10: 0 | DH10: 0 | DI10: 0 | DJ10: STR | DK10: STR | DL10: STR | DM10: STR | DN10: STR | DO10: STR | DP10: STR | DQ10: STR | DR10: STR | DS10: =+DR10 -> STR | DT10: STR | DU10: STR | DV10: STR | DW10: STR | DX10: STR | DY10: STR | DZ10: STR | EA10: STR | EB10: 0 | EC10: 0 | ED10: 0 | EE10: 0 | EF10: 0 | EG10: 0 | EH10: 0 | EI10: 0 | EJ10: 0 | EK10: 0 | EL10: 0 | EM10: 0 | EN10: 0 | EO10: 0 | EP10: 0 | EQ10: 0 | ER10: 0 | ES10: 0 | ET10: 0 | EU10: 0 | EV10: 0 | EW10: 0 | EX10: 0 | EY10: 0 | EZ10: 0 | FA10: 0 | FB10: 0 | FC10: 0.065 | FD10: 0 | FE10: 0.8869483627 | FF10: 0.8777277374 | FG10: 0.865608602 | FH10: 0.865608602 | FI10: 0.8278675793 | FJ10: 0.8273984882 | FK10: 0.7668087764 | FL10: 0.7518836425 | FM10: 0 | FN10: 0 | FO10: 0 | FP10: 0 | FQ10: 0 | FR10: 0 | FS10: 0 | FT10: 0 | FU10: 0 | FV10: 0
B11: Base Month | C11: 10 | E11: 2015_7 | F11: 2015-04-01 | G11: 416 | H11: 304 | I11: 720 | J11: 0.5777777778 | K11: 0.4222222222 | M11: 2015 | N11: 365 | O11: 8760 | Q11: 10044 | R11: Canby, City of | S11: 0 | T11: 0 | U11: 20.612 | V11: 0 | W11: 0 | X11: 0 | Y11: 0 | Z11: 0 | AA11: 0 | AB11: 0 | AC11: 0 | AD11: 0 | AE11: 0 | AF11: 0 | AG11: 20.111 | AH11: 19.983 | AI11: 20.202 | AJ11: 19.373 | AK11: 0 | AL11: 0 | AM11: 0 | AN11: 0 | AO11: 0 | AP11: 21.792 | AQ11: 21.96 | AR11: 20.635 | AS11: 20.731 | AT11: 20.77 | AU11: 20.893 | AV11: 21.998 | AW11: 22.09 | AX11: 0 | AY11: 0 | AZ11: 0 | BA11: 0 | BB11: 0 | BC11: 0 | BD11: 0 | BE11: 0 | BF11: 0 | BG11: 0 | BH11: 1.681 | BI11: 1.849 | BJ11: 0.652 | BK11: 0.748 | BL11: 0.568 | BM11: 0.691 | BN11: 2.625 | BO11: 2.717 | BP11: 0 | BQ11: 0 | BR11: 0 | BS11: 0 | BT11: 0 | BU11: 0 | BV11: 0 | BW11: 0 | BX11: 0 | BY11: 0 | BZ11: 1 | CA11: 1 | CB11: 1 | CC11: 1 | CD11: 1 | CE11: 1 | CF11: 1 | CG11: 1 | CH11: 1 | CI11: =+CH11 -> 1 | CJ11: 1 | CK11: 1 | CL11: 1 | CM11: 1 | CN11: 1 | CO11: 1 | CP11: 1 | CQ11: 1 | CR11: 0 | CS11: 0 | CT11: 0 | CU11: 0 | CV11: 0 | CW11: 0 | CX11: 0 | CY11: 0 | CZ11: 0 | DA11: =+CZ11 -> 0 | DB11: 0 | DC11: 0 | DD11: 0 | DE11: 0 | DF11: 0 | DG11: 0 | DH11: 0 | DI11: 0 | DJ11: STR | DK11: STR | DL11: STR | DM11: STR | DN11: STR | DO11: STR | DP11: STR | DQ11: STR | DR11: STR | DS11: =+DR11 -> STR | DT11: STR | DU11: STR | DV11: STR | DW11: STR | DX11: STR | DY11: STR | DZ11: STR | EA11: STR | EB11: 0 | EC11: 0 | ED11: 0 | EE11: 0 | EF11: 0 | EG11: 0 | EH11: 0 | EI11: 0 | EJ11: 0 | EK11: 0 | EL11: 0 | EM11: 0 | EN11: 0 | EO11: 0 | EP11: 0 | EQ11: 0 | ER11: 0 | ES11: 0 | ET11: 0 | EU11: 0 | EV11: 0 | EW11: 0 | EX11: 0 | EY11: 0 | EZ11: 0 | FA11: 0 | FB11: 0 | FC11: 0 | FD11: 0 | FE11: 0.9228727893 | FF11: 0.9158119221 | FG11: 0.9684080388 | FH11: 0.9639235869 | FI11: 0.9726429495 | FJ11: 0.966916865 | FK11: 0.8806752818 | FL11: 0.8770074626 | FM11: 0 | FN11: 0 | FO11: 0 | FP11: 0 | FQ11: 0 | FR11: 0 | FS11: 0 | FT11: 0 | FU11: 0 | FV11: 0
C12: =DATE((C9-1),C11,1) -> 2023-10-01 | E12: 2015_8 | F12: 2015-05-01 | G12: 400 | H12: 344 | I12: 744 | J12: 0.5376344086 | K12: 0.4623655914 | M12: 2016 | N12: 366 | O12: 8784 | Q12: 10046 | R12: Central Electric Coop | S12: 0 | T12: 1 | U12: 83.072 | V12: 0 | W12: 0 | X12: 0 | Y12: 0 | Z12: 0 | AA12: 0 | AB12: 0 | AC12: 0 | AD12: 0 | AE12: 0 | AF12: 0 | AG12: 81.052 | AH12: 80.537 | AI12: 81.418 | AJ12: 78.078 | AK12: 0 | AL12: 0 | AM12: 0 | AN12: 0 | AO12: 0 | AP12: 82.298 | AQ12: 82.947 | AR12: 82.607 | AS12: 82.967 | AT12: 90.594 | AU12: 92.031 | AV12: 95.832 | AW12: 97.424 | AX12: 0 | AY12: 0 | AZ12: 0 | BA12: 0 | BB12: 0 | BC12: 0 | BD12: 0 | BE12: 0 | BF12: 0 | BG12: 0 | BH12: 1.246 | BI12: 1.895 | BJ12: 2.07 | BK12: 2.43 | BL12: 9.176 | BM12: 10.613 | BN12: 17.754 | BO12: 19.346 | BP12: 0 | BQ12: 0 | BR12: 0 | BS12: 0 | BT12: 0 | BU12: 0 | BV12: 0 | BW12: 0 | BX12: 0 | BY12: 0 | BZ12: 6 | CA12: 6 | CB12: 6 | CC12: 6 | CD12: 6 | CE12: 6 | CF12: 6 | CG12: 6 | CH12: 6 | CI12: =+CH12 -> 6 | CJ12: 6 | CK12: 6 | CL12: 6 | CM12: 6 | CN12: 6 | CO12: 6 | CP12: 6 | CQ12: 6 | CR12: 0 | CS12: 0 | CT12: 0 | CU12: 0 | CV12: 0 | CW12: 0 | CX12: 0 | CY12: 0 | CZ12: 0 | DA12: =+CZ12 -> 0 | DB12: 0 | DC12: 0 | DD12: 0 | DE12: 0 | DF12: 0 | DG12: 0 | DH12: 0 | DI12: 0 | DJ12: STR | DK12: STR | DL12: STR | DM12: STR | DN12: STR | DO12: STR | DP12: STR | DQ12: STR | DR12: STR | DS12: =+DR12 -> STR | DT12: STR | DU12: STR | DV12: STR | DW12: STR | DX12: STR | DY12: STR | DZ12: STR | EA12: STR | EB12: 0 | EC12: 0 | ED12: 0 | EE12: 0 | EF12: 0 | EG12: 0 | EH12: 0 | EI12: 0 | EJ12: 0 | EK12: 0 | EL12: 0 | EM12: 0 | EN12: 0 | EO12: 0 | EP12: 0 | EQ12: 0 | ER12: 0 | ES12: 0 | ET12: 0 | EU12: 0 | EV12: 0 | EW12: 0 | EX12: 0 | EY12: 0 | EZ12: 0 | FA12: 0 | FB12: 0 | FC12: 0.065 | FD12: 41085.457 | FE12: 0.9848639457 | FF12: 0.9771570969 | FG12: 0.9749451694 | FH12: 0.9707148096 | FI12: 0.8987163475 | FJ12: 0.8846835174 | FK12: 0.8147358814 | FL12: 0.8014223291 | FM12: 0 | FN12: 0 | FO12: 0 | FP12: 0 | FQ12: 0 | FR12: 0 | FS12: 0 | FT12: 0 | FU12: 0 | FV12: 0
E13: 2015_9 | F13: 2015-06-01 | G13: 416 | H13: 304 | I13: 720 | J13: 0.5777777778 | K13: 0.4222222222 | M13: 2017 | N13: 365 | O13: 8760 | Q13: 10047 | R13: Central Lincoln PUD | S13: 0 | T13: 0 | U13: 159.01 | V13: 0 | W13: 0 | X13: 0 | Y13: 0 | Z13: 0 | AA13: 0 | AB13: 0 | AC13: 0 | AD13: 0 | AE13: 0 | AF13: 0 | AG13: 155.144 | AH13: 154.158 | AI13: 155.843 | AJ13: 149.45 | AK13: 0 | AL13: 0 | AM13: 0 | AN13: 0 | AO13: 0 | AP13: 153.104 | AQ13: 153.501 | AR13: 152.864 | AS13: 153.239 | AT13: 154.201 | AU13: 154.536 | AV13: 153.656 | AW13: 154.036 | AX13: 0 | AY13: 0 | AZ13: 0 | BA13: 0 | BB13: 0 | BC13: 0 | BD13: 0 | BE13: 0 | BF13: 0 | BG13: 0 | BH13: 0 | BI13: 0 | BJ13: 0 | BK13: 0 | BL13: 0 | BM13: 0 | BN13: 4.206 | BO13: 4.586 | BP13: 0 | BQ13: 0 | BR13: 0 | BS13: 0 | BT13: 0 | BU13: 0 | BV13: 0 | BW13: 0 | BX13: 0 | BY13: 0 | BZ13: 3 | CA13: 3 | CB13: 3 | CC13: 3 | CD13: 3 | CE13: 3 | CF13: 3 | CG13: 3 | CH13: 3 | CI13: =+CH13 -> 3 | CJ13: 3 | CK13: 3 | CL13: 3 | CM13: 3 | CN13: 3 | CO13: 3 | CP13: 3 | CQ13: 3 | CR13: 0 | CS13: 0 | CT13: 0 | CU13: 1 | CV13: 9 | CW13: 9 | CX13: 9 | CY13: 9 | CZ13: 10 | DA13: =+CZ13 -> 10 | DB13: 10 | DC13: 10 | DD13: 10 | DE13: 10 | DF13: 10 | DG13: 10 | DH13: 10 | DI13: 10 | DJ13: STR | DK13: STR | DL13: STR | DM13: STR | DN13: STR | DO13: STR | DP13: STR | DQ13: STR | DR13: STR | DS13: =+DR13 -> STR | DT13: STR | DU13: STR | DV13: STR | DW13: STR | DX13: STR | DY13: STR | DZ13: STR | EA13: STR | EB13: 0 | EC13: 0 | ED13: 0 | EE13: 0 | EF13: 0 | EG13: 0 | EH13: 0 | EI13: 0 | EJ13: 0 | EK13: 0 | EL13: 0 | EM13: 0 | EN13: 0 | EO13: 0 | EP13: 0 | EQ13: 0 | ER13: 0 | ES13: 0 | ET13: 0 | EU13: 0 | EV13: 0 | EW13: 0 | EX13: 0 | EY13: 0 | EZ13: 0 | FA13: 0 | FB13: 1 | FC13: 0 | FD13: 0 | FE13: 1 | FF13: 0.9999976626 | FG13: 0.9999980361 | FH13: 0.9999981824 | FI13: 0.9999979411 | FJ13: 0.9999983935 | FK13: 0.972628249 | FL13: 0.9702288181 | FM13: 0 | FN13: 0 | FO13: 0 | FP13: 0 | FQ13: 0 | FR13: 0 | FS13: 0 | FT13: 0 | FU13: 0 | FV13: 0
B14: RHWM Lock | C14: No | E14: 2015_10 | F14: 2015-07-01 | G14: 416 | H14: 328 | I14: 744 | J14: 0.5591397849 | K14: 0.4408602151 | M14: 2018 | N14: 365 | O14: 8760 | Q14: 10055 | R14: Albion, City of | S14: 0 | T14: 0 | U14: 0.404 | V14: 0 | W14: 0 | X14: 0 | Y14: 0 | Z14: 0 | AA14: 0 | AB14: 0 | AC14: 0 | AD14: 0 | AE14: 0 | AF14: 0 | AG14: 0.394 | AH14: 0.392 | AI14: 0.396 | AJ14: 0.38 | AK14: 0 | AL14: 0 | AM14: 0 | AN14: 0 | AO14: 0 | AP14: 0.402 | AQ14: 0.405 | AR14: 0.391 | AS14: 0.392 | AT14: 0.385 | AU14: 0.385 | AV14: 0.386 | AW14: 0.386 | AX14: 0 | AY14: 0 | AZ14: 0 | BA14: 0 | BB14: 0 | BC14: 0 | BD14: 0 | BE14: 0 | BF14: 0 | BG14: 0 | BH14: 0.008 | BI14: 0.011 | BJ14: 0 | BK14: 0 | BL14: 0 | BM14: 0 | BN14: 0.006 | BO14: 0.006 | BP14: 0 | BQ14: 0 | BR14: 0 | BS14: 0 | BT14: 0 | BU14: 0 | BV14: 0 | BW14: 0 | BX14: 0 | BY14: 0 | BZ14: 1 | CA14: 1 | CB14: 1 | CC14: 1 | CD14: 1 | CE14: 1 | CF14: 1 | CG14: 1 | CH14: 1 | CI14: =+CH14 -> 1 | CJ14: 1 | CK14: 1 | CL14: 1 | CM14: 1 | CN14: 1 | CO14: 1 | CP14: 1 | CQ14: 1 | CR14: 0 | CS14: 0 | CT14: 0 | CU14: 0 | CV14: 0 | CW14: 0 | CX14: 0 | CY14: 0 | CZ14: 0 | DA14: =+CZ14 -> 0 | DB14: 0 | DC14: 0 | DD14: 0 | DE14: 0 | DF14: 0 | DG14: 0 | DH14: 0 | DI14: 0 | DJ14: LGR | DK14: LGR | DL14: LGR | DM14: LGR | DN14: LGR | DO14: LGR | DP14: LGR | DQ14: LGR | DR14: LGR | DS14: =+DR14 -> LGR | DT14: LGR | DU14: LGR | DV14: LGR | DW14: LGR | DX14: LGR | DY14: LGR | DZ14: LGR | EA14: LGR | EB14: 0 | EC14: 0 | ED14: 0 | EE14: 0 | EF14: 0 | EG14: 0 | EH14: 0 | EI14: 0 | EJ14: 0 | EK14: 0 | EL14: 0 | EM14: 0 | EN14: 0 | EO14: 0 | EP14: 0 | EQ14: 0 | ER14: 0 | ES14: 0 | ET14: 0 | EU14: 0 | EV14: 0 | EW14: 0 | EX14: 0 | EY14: 0 | EZ14: 0 | FA14: 0 | FB14: 0 | FC14: 0 | FD14: 0 | FE14: 0.9807334733 | FF14: 0.9734030706 | FG14: 0.999986777 | FH14: 0.9992074347 | FI14: 0.9998526171 | FJ14: 0.9998526171 | FK14: 0.9842762891 | FL14: 0.9842762891 | FM14: 0 | FN14: 0 | FO14: 0 | FP14: 0 | FQ14: 0 | FR14: 0 | FS14: 0 | FT14: 0 | FU14: 0 | FV14: 0
B15: VBARS Study ID | C15: 220 | E15: 2015_11 | F15: 2015-08-01 | G15: 416 | H15: 328 | I15: 744 | J15: 0.5591397849 | K15: 0.4408602151 | M15: 2019 | N15: 365 | O15: 8760 | Q15: 10057 | R15: Ashland, City of | S15: 0 | T15: 0 | U15: 21.383 | V15: 0 | W15: 0 | X15: 0 | Y15: 0 | Z15: 0 | AA15: 0 | AB15: 0 | AC15: 0 | AD15: 0 | AE15: 0 | AF15: 0 | AG15: 20.863 | AH15: 20.731 | AI15: 20.957 | AJ15: 20.097 | AK15: 0 | AL15: 0 | AM15: 0 | AN15: 0 | AO15: 0 | AP15: 20.876 | AQ15: 20.984 | AR15: 20.832 | AS15: 20.878 | AT15: 19.991 | AU15: 19.984 | AV15: 19.976 | AW15: 19.976 | AX15: 0 | AY15: 0 | AZ15: 0 | BA15: 0 | BB15: 0 | BC15: 0 | BD15: 0 | BE15: 0 | BF15: 0 | BG15: 0 | BH15: 0.013 | BI15: 0.121 | BJ15: 0.101 | BK15: 0.147 | BL15: 0 | BM15: 0 | BN15: 0 | BO15: 0 | BP15: 0 | BQ15: 0 | BR15: 0 | BS15: 0 | BT15: 0 | BU15: 0 | BV15: 0 | BW15: 0 | BX15: 0 | BY15: 0 | BZ15: 1 | CA15: 1 | CB15: 1 | CC15: 1 | CD15: 1 | CE15: 1 | CF15: 1 | CG15: 1 | CH15: 1 | CI15: =+CH15 -> 1 | CJ15: 1 | CK15: 1 | CL15: 1 | CM15: 1 | CN15: 1 | CO15: 1 | CP15: 1 | CQ15: 1 | CR15: 0 | CS15: 0 | CT15: 0 | CU15: 0 | CV15: 0 | CW15: 0 | CX15: 0 | CY15: 0 | CZ15: 0 | DA15: =+CZ15 -> 0 | DB15: 0 | DC15: 0 | DD15: 0 | DE15: 0 | DF15: 0 | DG15: 0 | DH15: 0 | DI15: 0 | DJ15: STR | DK15: STR | DL15: STR | DM15: STR | DN15: STR | DO15: STR | DP15: STR | DQ15: STR | DR15: STR | DS15: =+DR15 -> STR | DT15: STR | DU15: STR | DV15: STR | DW15: STR | DX15: STR | DY15: STR | DZ15: STR | EA15: STR | EB15: 0 | EC15: 0 | ED15: 0 | EE15: 0 | EF15: 0 | EG15: 0 | EH15: 0 | EI15: 0 | EJ15: 0 | EK15: 0 | EL15: 0 | EM15: 0 | EN15: 0 | EO15: 0 | EP15: 0 | EQ15: 0 | ER15: 0 | ES15: 0 | ET15: 0 | EU15: 0 | EV15: 0 | EW15: 0 | EX15: 0 | EY15: 0 | EZ15: 0 | FA15: 0 | FB15: 0 | FC15: 0 | FD15: 0 | FE15: 0.9993446014 | FF15: 0.9942772973 | FG15: 0.9951910336 | FH15: 0.993014822 | FI15: 1 | FJ15: 1 | FK15: 0.9999999493 | FL15: 0.9999999493 | FM15: 0 | FN15: 0 | FO15: 0 | FP15: 0 | FQ15: 0 | FR15: 0 | FS15: 0 | FT15: 0 | FU15: 0 | FV15: 0
... 18 more rows

Sheet EE
B1: Energy Efficiency Inputs | F1: USBR Loads | G1: *This percentage represents the USBR loads that showed up in the BOOM EE report but are not preference customers. This factor is used as an adjustment in the VBA script.
B2: Percent of Non-PNGC Reported EE Savings (Last 3 Years Average) | F2: =1-SUM($D$5:$D$200) -> 0.04597817485
B4: BESID | C4: AccountName | D4: Percent
B5: 10005 | C5: Alder Mutual | D5: 8.443792876e-06
B6: 10015 | C6: Asotin County PUD #1 | D6: 0
B7: 10024 | C7: Benton County PUD #1 | D7: 0.03655499999
B8: 10025 | C8: Benton REA | D8: 0.01243541461
B9: 10027 | C9: Big Bend Elec Coop | D9: 0.008130006523
B10: 10029 | C10: Blachly Lane Elec Coop | D10: 6.754420735e-06
B11: 10044 | C11: Canby, City of | D11: 0.001572403117
B12: 10046 | C12: Central Electric Coop | D12: 0
B13: 10047 | C13: Central Lincoln PUD | D13: 0.01596400583
B14: 10055 | C14: Albion, City of | D14: 2.185402188e-05
B15: 10057 | C15: Ashland, City of | D15: 0.001223760666
... 18 more rows

Sheet SlicePercent
B1: Slice-Block Inputs
A2: TOC | D2: Monthly Block Shaping Factors
B3: BESID | C3: AccountName | D3: 10 | E3: 11 | F3: 12 | G3: 1 | H3: 2 | I3: 3 | J3: 4 | K3: 5 | L3: 6 | M3: 7 | N3: 8 | O3: 9
B4: 10170 | C4: Eugene Water & Electric Board | D4: 0.081 | E4: 0.077 | F4: 0.099 | G4: 0.105 | H4: 0.093 | I4: 0.092 | J4: 0.081 | K4: 0.066 | L4: 0.066 | M4: 0.081 | N4: 0.083 | O4: 0.076
B5: 10204 | C5: Idaho Falls Power | D5: 0.074 | E5: 0.085 | F5: 0.105 | G5: 0.108 | H5: 0.089 | I5: 0.083 | J5: 0.072 | K5: 0.079 | L5: 0.074 | M5: 0.083 | N5: 0.081 | O5: 0.067
B6: 10349 | C6: Seattle City Light | D6: 0.08 | E6: 0.127 | F6: 0.129 | G6: 0.14 | H6: 0.119 | I6: 0.126 | J6: 0.061 | K6: 0.02 | L6: 0 | M6: 0.048 | N6: 0.057 | O6: 0.093
B7: 10370 | C7: Tacoma Public Utilities | D7: 0.068 | E7: 0.088 | F7: 0.109 | G7: 0.103 | H7: 0.088 | I7: 0.101 | J7: 0.085 | K7: 0.076 | L7: 0.068 | M7: 0.073 | N7: 0.069 | O7: 0.072
B8: 10024 | C8: Benton County PUD #1 | D8: 0.065 | E8: 0.069 | F8: 0.081 | G8: 0.088 | H8: 0.066 | I8: 0.065 | J8: 0.07 | K8: 0.088 | L8: 0.103 | M8: 0.125 | N8: 0.108 | O8: 0.072
B9: 10103 | C9: Clark County PUD #1 | D9: 0.071 | E9: 0.095 | F9: 0.118 | G9: 0.12 | H9: 0.087 | I9: 0.081 | J9: 0.067 | K9: 0.094 | L9: 0.065 | M9: 0.071 | N9: 0.072 | O9: 0.059
B10: 10105 | C10: Clatskanie PUD | D10: 0.083 | E10: 0.083 | F10: 0.092 | G10: 0.09 | H10: 0.083 | I10: 0.091 | J10: 0.086 | K10: 0.067 | L10: 0.084 | M10: 0.08 | N10: 0.081 | O10: 0.08
B11: 10123 | C11: Cowlitz County PUD #1 | D11: 0.083 | E11: 0.086 | F11: 0.092 | G11: 0.091 | H11: 0.079 | I11: 0.084 | J11: 0.082 | K11: 0.081 | L11: 0.078 | M11: 0.082 | N11: 0.082 | O11: 0.08
B12: 10157 | C12: Emerald PUD | D12: 0.076 | E12: 0.093 | F12: 0.114 | G12: 0.105 | H12: 0.091 | I12: 0.087 | J12: 0.079 | K12: 0.071 | L12: 0.066 | M12: 0.076 | N12: 0.075 | O12: 0.067
B13: 10183 | C13: Franklin County PUD #1 | D13: 0.075 | E13: 0.071 | F13: 0.083 | G13: 0.089 | H13: 0.07 | I13: 0.069 | J13: 0.069 | K13: 0.079 | L13: 0.091 | M13: 0.112 | N13: 0.107 | O13: 0.085
B14: 10191 | C14: Grays Harbor PUD #1 | D14: 0.078 | E14: 0.093 | F14: 0.107 | G14: 0.107 | H14: 0.091 | I14: 0.09 | J14: 0.081 | K14: 0.075 | L14: 0.07 | M14: 0.07 | N14: 0.069 | O14: 0.069
B15: 10231 | C15: Klickitat County PUD #1 | D15: 0.08 | E15: 0.083 | F15: 0.104 | G15: 0.113 | H15: 0.087 | I15: 0.079 | J15: 0.074 | K15: 0.066 | L15: 0.062 | M15: 0.087 | N15: 0.088 | O15: 0.077
B16: 10237 | C16: Lewis County PUD #1 | D16: 0.08 | E16: 0.095 | F16: 0.115 | G16: 0.101 | H16: 0.089 | I16: 0.089 | J16: 0.084 | K16: 0.075 | L16: 0.068 | M16: 0.067 | N16: 0.068 | O16: 0.069
B17: 10286 | C17: Okanogan County PUD #1 | D17: 0.077 | E17: 0.086 | F17: 0.119 | G17: 0.131 | H17: 0.108 | I17: 0.107 | J17: 0.071 | K17: 0.055 | L17: 0.038 | M17: 0.08 | N17: 0.061 | O17: 0.067
B18: 10294 | C18: Pacific County PUD #2 | D18: 0.076 | E18: 0.098 | F18: 0.116 | G18: 0.117 | H18: 0.094 | I18: 0.094 | J18: 0.08 | K18: 0.071 | L18: 0.063 | M18: 0.063 | N18: 0.064 | O18: 0.064
B19: 10306 | C19: Pend Oreille County PUD #1 | D19: 0.034 | E19: 0.149 | F19: 0.135 | G19: 0.19 | H19: 0.168 | I19: 0.159 | J19: 0.01 | K19: 0 | L19: 0 | M19: 0.038 | N19: 0.039 | O19: 0.078
B20: 10354 | C20: Snohomish County PUD #1 | D20: 0.082 | E20: 0.092 | F20: 0.107 | G20: 0.105 | H20: 0.088 | I20: 0.089 | J20: 0.078 | K20: 0.074 | L20: 0.071 | M20: 0.071 | N20: 0.071 | O20: 0.072

Sheet I_TRL
B1: Total Retail Loads (MWh)
A2: TOC | D2: 2015-10-01 | E2: 2015-10-01 | F2: 2015-11-01 | G2: 2015-11-01 | H2: 2015-12-01 | I2: 2015-12-01 | J2: 2016-01-01 | K2: 2016-01-01 | L2: 2016-02-01 | M2: 2016-02-01 | N2: 2016-03-01 | O2: 2016-03-01 | P2: 2016-04-01 | Q2: 2016-04-01 | R2: 2016-05-01 | S2: 2016-05-01 | T2: 2016-06-01 | U2: 2016-06-01 | V2: 2016-07-01 | W2: 2016-07-01 | X2: 2016-08-01 | Y2: 2016-08-01 | Z2: 2016-09-01 | AA2: 2016-09-01 | AB2: 2016-10-01 | AC2: 2016-10-01 | AD2: 2016-11-01 | AE2: 2016-11-01 | AF2: 2016-12-01 | AG2: 2016-12-01 | AH2: 2017-01-01 | AI2: 2017-01-01 | AJ2: 2017-02-01 | AK2: 2017-02-01 | AL2: 2017-03-01 | AM2: 2017-03-01 | AN2: 2017-04-01 | AO2: 2017-04-01 | AP2: 2017-05-01 | AQ2: 2017-05-01 | AR2: 2017-06-01 | AS2: 2017-06-01 | AT2: 2017-07-01 | AU2: 2017-07-01 | AV2: 2017-08-01 | AW2: 2017-08-01 | AX2: 2017-09-01 | AY2: 2017-09-01 | AZ2: 2017-10-01 | BA2: 2017-10-01 | BB2: 2017-11-01 | BC2: 2017-11-01 | BD2: 2017-12-01 | BE2: 2017-12-01 | BF2: 2018-01-01 | BG2: 2018-01-01 | BH2: 2018-02-01 | BI2: 2018-02-01 | BJ2: 2018-03-01 | BK2: 2018-03-01 | BL2: 2018-04-01 | BM2: 2018-04-01 | BN2: 2018-05-01 | BO2: 2018-05-01 | BP2: 2018-06-01 | BQ2: 2018-06-01 | BR2: 2018-07-01 | BS2: 2018-07-01 | BT2: 2018-08-01 | BU2: 2018-08-01 | BV2: 2018-09-01 | BW2: 2018-09-01 | BX2: 2018-10-01 | BY2: 2018-10-01 | BZ2: 2018-11-01 | CA2: 2018-11-01 | CB2: 2018-12-01 | CC2: 2018-12-01 | CD2: 2019-01-01 | CE2: 2019-01-01 | CF2: 2019-02-01 | CG2: 2019-02-01 | CH2: 2019-03-01 | CI2: 2019-03-01 | CJ2: 2019-04-01 | CK2: 2019-04-01 | CL2: 2019-05-01 | CM2: 2019-05-01 | CN2: 2019-06-01 | CO2: 2019-06-01 | CP2: 2019-07-01 | CQ2: 2019-07-01 | CR2: 2019-08-01 | CS2: 2019-08-01 | CT2: 2019-09-01 | CU2: 2019-09-01 | CV2: 2019-10-01 | CW2: 2019-10-01 | CX2: 2019-11-01 | CY2: 2019-11-01 | CZ2: 2019-12-01 | DA2: 2019-12-01 | DB2: 2020-01-01 | DC2: 2020-01-01 | DD2: 2020-02-01 | DE2: 2020-02-01 | DF2: 2020-03-01 | DG2: 2020-03-01 | DH2: 2020-04-01 | DI2: 2020-04-01 | DJ2: 2020-05-01 | DK2: 2020-05-01 | DL2: 2020-06-01 | DM2: 2020-06-01 | DN2: 2020-07-01 | DO2: 2020-07-01 | DP2: 2020-08-01 | DQ2: 2020-08-01 | DR2: 2020-09-01 | DS2: 2020-09-01 | DT2: 2020-10-01 | DU2: 2020-10-01 | DV2: 2020-11-01 | DW2: 2020-11-01 | DX2: 2020-12-01 | DY2: 2020-12-01 | DZ2: 2021-01-01 | EA2: 2021-01-01 | EB2: 2021-02-01 | EC2: 2021-02-01 | ED2: 2021-03-01 | EE2: 2021-03-01 | EF2: 2021-04-01 | EG2: 2021-04-01 | EH2: 2021-05-01 | EI2: 2021-05-01 | EJ2: 2021-06-01 | EK2: 2021-06-01 | EL2: 2021-07-01 | EM2: 2021-07-01 | EN2: 2021-08-01 | EO2: 2021-08-01 | EP2: 2021-09-01 | EQ2: 2021-09-01 | ER2: 2021-10-01 | ES2: 2021-10-01 | ET2: 2021-11-01 | EU2: 2021-11-01 | EV2: 2021-12-01 | EW2: 2021-12-01 | EX2: 2022-01-01 | EY2: 2022-01-01 | EZ2: 2022-02-01 | FA2: 2022-02-01 | FB2: 2022-03-01 | FC2: 2022-03-01 | FD2: 2022-04-01 | FE2: 2022-04-01 | FF2: 2022-05-01 | FG2: 2022-05-01 | FH2: 2022-06-01 | FI2: 2022-06-01 | FJ2: 2022-07-01 | FK2: 2022-07-01 | FL2: 2022-08-01 | FM2: 2022-08-01 | FN2: 2022-09-01 | FO2: 2022-09-01 | FP2: 2022-10-01 | FQ2: 2022-10-01 | FR2: 2022-11-01 | FS2: 2022-11-01 | FT2: 2022-12-01 | FU2: 2022-12-01 | FV2: 2023-01-01 | FW2: 2023-01-01 | FX2: 2023-02-01 | FY2: 2023-02-01 | FZ2: 2023-03-01 | GA2: 2023-03-01 | GB2: 2023-04-01 | GC2: 2023-04-01 | GD2: 2023-05-01 | GE2: 2023-05-01 | GF2: 2023-06-01 | GG2: 2023-06-01 | GH2: 2023-07-01 | GI2: 2023-07-01 | GJ2: 2023-08-01 | GK2: 2023-08-01 | GL2: 2023-09-01 | GM2: 2023-09-01 | GN2: 2023-10-01 | GO2: 2023-10-01 | GP2: 2023-11-01 | GQ2: 2023-11-01 | GR2: 2023-12-01 | GS2: 2023-12-01 | GT2: 2024-01-01 | GU2: 2024-01-01 | GV2: 2024-02-01 | GW2: 2024-02-01 | GX2: 2024-03-01 | GY2: 2024-03-01 | GZ2: 2024-04-01 | HA2: 2024-04-01 | HB2: 2024-05-01 | HC2: 2024-05-01 | HD2: 2024-06-01 | HE2: 2024-06-01 | HF2: 2024-07-01 | HG2: 2024-07-01 | HH2: 2024-08-01 | HI2: 2024-08-01 | HJ2: 2024-09-01 | HK2: 2024-09-01 | HL2: 2024-10-01 | HM2: 2024-10-01 | HN2: 2024-11-01 | HO2: 2024-11-01 | HP2: 2024-12-01 | HQ2: 2024-12-01 | HR2: 2025-01-01 | HS2: 2025-01-01 | HT2: 2025-02-01 | HU2: 2025-02-01 | HV2: 2025-03-01 | HW2: 2025-03-01 | HX2: 2025-04-01 | HY2: 2025-04-01 | HZ2: 2025-05-01 | IA2: 2025-05-01 | IB2: 2025-06-01 | IC2: 2025-06-01 | ID2: 2025-07-01 | IE2: 2025-07-01 | IF2: 2025-08-01 | IG2: 2025-08-01 | IH2: 2025-09-01 | II2: 2025-09-01 | IJ2: 2025-10-01 | IK2: 2025-10-01 | IL2: 2025-11-01 | IM2: 2025-11-01 | IN2: 2025-12-01 | IO2: 2025-12-01 | IP2: 2026-01-01 | IQ2: 2026-01-01 | IR2: 2026-02-01 | IS2: 2026-02-01 | IT2: 2026-03-01 | IU2: 2026-03-01 | IV2: 2026-04-01 | IW2: 2026-04-01 | IX2: 2026-05-01 | IY2: 2026-05-01 | IZ2: 2026-06-01 | JA2: 2026-06-01 | JB2: 2026-07-01 | JC2: 2026-07-01 | JD2: 2026-08-01 | JE2: 2026-08-01 | JF2: 2026-09-01 | JG2: 2026-09-01 | JH2: 2026-10-01 | JI2: 2026-10-01 | JJ2: 2026-11-01 | JK2: 2026-11-01 | JL2: 2026-12-01 | JM2: 2026-12-01 | JN2: 2027-01-01 | JO2: 2027-01-01 | JP2: 2027-02-01 | JQ2: 2027-02-01 | JR2: 2027-03-01 | JS2: 2027-03-01 | JT2: 2027-04-01 | JU2: 2027-04-01 | JV2: 2027-05-01 | JW2: 2027-05-01 | JX2: 2027-06-01 | JY2: 2027-06-01 | JZ2: 2027-07-01 | KA2: 2027-07-01 | KB2: 2027-08-01 | KC2: 2027-08-01 | KD2: 2027-09-01 | KE2: 2027-09-01 | KF2: 2027-10-01 | KG2: 2027-10-01 | KH2: 2027-11-01 | KI2: 2027-11-01 | KJ2: 2027-12-01 | KK2: 2027-12-01 | KL2: 2028-01-01 | KM2: 2028-01-01 | KN2: 2028-02-01 | KO2: 2028-02-01 | KP2: 2028-03-01 | KQ2: 2028-03-01 | KR2: 2028-04-01 | KS2: 2028-04-01 | KT2: 2028-05-01 | KU2: 2028-05-01 | KV2: 2028-06-01 | KW2: 2028-06-01 | KX2: 2028-07-01 | KY2: 2028-07-01 | KZ2: 2028-08-01 | LA2: 2028-08-01 | LB2: 2028-09-01 | LC2: 2028-09-01 | LD2: 2028-10-01 | LE2: 2028-10-01 | LF2: 2028-11-01 | LG2: 2028-11-01 | LH2: 2028-12-01 | LI2: 2028-12-01 | LJ2: 2029-01-01 | LK2: 2029-01-01 | LL2: 2029-02-01 | LM2: 2029-02-01 | LN2: 2029-03-01 | LO2: 2029-03-01 | LP2: 2029-04-01 | LQ2: 2029-04-01 | LR2: 2029-05-01 | LS2: 2029-05-01 | LT2: 2029-06-01 | LU2: 2029-06-01 | LV2: 2029-07-01 | LW2: 2029-07-01 | LX2: 2029-08-01 | LY2: 2029-08-01 | LZ2: 2029-09-01 | MA2: 2029-09-01 | MB2: 2029-10-01 | MC2: 2029-10-01 | MD2: 2029-11-01 | ME2: 2029-11-01 | MF2: 2029-12-01 | MG2: 2029-12-01 | MH2: 2030-01-01 | MI2: 2030-01-01 | MJ2: 2030-02-01 | MK2: 2030-02-01 | ML2: 2030-03-01 | MM2: 2030-03-01 | MN2: 2030-04-01 | MO2: 2030-04-01 | MP2: 2030-05-01 | MQ2: 2030-05-01 | MR2: 2030-06-01 | MS2: 2030-06-01 | MT2: 2030-07-01 | MU2: 2030-07-01 | MV2: 2030-08-01 | MW2: 2030-08-01 | MX2: 2030-09-01 | MY2: 2030-09-01 | MZ2: 2030-10-01 | NA2: 2030-10-01 | NB2: 2030-11-01 | NC2: 2030-11-01 | ND2: 2030-12-01 | NE2: 2030-12-01 | NF2: 2031-01-01 | NG2: 2031-01-01 | NH2: 2031-02-01 | NI2: 2031-02-01 | NJ2: 2031-03-01 | NK2: 2031-03-01 | NL2: 2031-04-01 | NM2: 2031-04-01 | NN2: 2031-05-01 | NO2: 2031-05-01 | NP2: 2031-06-01 | NQ2: 2031-06-01 | NR2: 2031-07-01 | NS2: 2031-07-01 | NT2: 2031-08-01 | NU2: 2031-08-01 | NV2: 2031-09-01 | NW2: 2031-09-01 | NX2: =DATE(YEAR(NV2),MONTH(NV2)+1,1) -> 2031-10-01 | NY2: 2031-10-01 | NZ2: 2031-11-01 | OA2: 2031-11-01 | OB2: 2031-12-01 | OC2: 2031-12-01 | OD2: 2032-01-01 | OE2: 2032-01-01 | OF2: 2032-02-01 | OG2: 2032-02-01 | OH2: 2032-03-01 | OI2: 2032-03-01 | OJ2: 2032-04-01 | OK2: 2032-04-01 | OL2: 2032-05-01 | OM2: 2032-05-01 | ON2: 2032-06-01 | OO2: 2032-06-01 | OP2: 2032-07-01 | OQ2: 2032-07-01 | OR2: 2032-08-01 | OS2: 2032-08-01 | OT2: 2032-09-01 | OU2: 2032-09-01 | OV2: 2032-10-01 | OW2: 2032-10-01 | OX2: 2032-11-01 | OY2: 2032-11-01 | OZ2: 2032-12-01 | PA2: 2032-12-01 | PB2: 2033-01-01 | PC2: 2033-01-01 | PD2: 2033-02-01 | PE2: 2033-02-01 | PF2: 2033-03-01 | PG2: 2033-03-01 | PH2: 2033-04-01 | PI2: 2033-04-01 | PJ2: 2033-05-01 | PK2: 2033-05-01 | PL2: 2033-06-01 | PM2: 2033-06-01 | PN2: 2033-07-01 | PO2: 2033-07-01 | PP2: 2033-08-01 | PQ2: 2033-08-01 | PR2: 2033-09-01 | PS2: 2033-09-01 | PU2: 2016 | PV2: 2017 | PW2: 2018 | PX2: 2019 | PY2: 2020 | PZ2: 2021 | QA2: 2022 | QB2: 2023 | QC2: 2024 | QD2: 2025 | QE2: 2026 | QF2: 2027 | QG2: 2028 | QH2: 2029 | QI2: 2030 | QJ2: 2031 | QK2: =QJ2+1 -> 2032 | QL2: =QK2+1 -> 2033
B3: BESID | C3: AccountName | D3: HLH | E3: LLH | F3: HLH | G3: LLH | H3: HLH | I3: LLH | J3: HLH | K3: LLH | L3: HLH | M3: LLH | N3: HLH | O3: LLH | P3: HLH | Q3: LLH | R3: HLH | S3: LLH | T3: HLH | U3: LLH | V3: HLH | W3: LLH | X3: HLH | Y3: LLH | Z3: HLH | AA3: LLH | AB3: HLH | AC3: LLH | AD3: HLH | AE3: LLH | AF3: HLH | AG3: LLH | AH3: HLH | AI3: LLH | AJ3: HLH | AK3: LLH | AL3: HLH | AM3: LLH | AN3: HLH | AO3: LLH | AP3: HLH | AQ3: LLH | AR3: HLH | AS3: LLH | AT3: HLH | AU3: LLH | AV3: HLH | AW3: LLH | AX3: HLH | AY3: LLH | AZ3: HLH | BA3: LLH | BB3: HLH | BC3: LLH | BD3: HLH | BE3: LLH | BF3: HLH | BG3: LLH | BH3: HLH | BI3: LLH | BJ3: HLH | BK3: LLH | BL3: HLH | BM3: LLH | BN3: HLH | BO3: LLH | BP3: HLH | BQ3: LLH | BR3: HLH | BS3: LLH | BT3: HLH | BU3: LLH | BV3: HLH | BW3: LLH | BX3: HLH | BY3: LLH | BZ3: HLH | CA3: LLH | CB3: HLH | CC3: LLH | CD3: HLH | CE3: LLH | CF3: HLH | CG3: LLH | CH3: HLH | CI3: LLH | CJ3: HLH | CK3: LLH | CL3: HLH | CM3: LLH | CN3: HLH | CO3: LLH | CP3: HLH | CQ3: LLH | CR3: HLH | CS3: LLH | CT3: HLH | CU3: LLH | CV3: HLH | CW3: LLH | CX3: HLH | CY3: LLH | CZ3: HLH | DA3: LLH | DB3: HLH | DC3: LLH | DD3: HLH | DE3: LLH | DF3: HLH | DG3: LLH | DH3: HLH | DI3: LLH | DJ3: HLH | DK3: LLH | DL3: HLH | DM3: LLH | DN3: HLH | DO3: LLH | DP3: HLH | DQ3: LLH | DR3: HLH | DS3: LLH | DT3: HLH | DU3: LLH | DV3: HLH | DW3: LLH | DX3: HLH | DY3: LLH | DZ3: HLH | EA3: LLH | EB3: HLH | EC3: LLH | ED3: HLH | EE3: LLH | EF3: HLH | EG3: LLH | EH3: HLH | EI3: LLH | EJ3: HLH | EK3: LLH | EL3: HLH | EM3: LLH | EN3: HLH | EO3: LLH | EP3: HLH | EQ3: LLH | ER3: HLH | ES3: LLH | ET3: HLH | EU3: LLH | EV3: HLH | EW3: LLH | EX3: HLH | EY3: LLH | EZ3: HLH | FA3: LLH | FB3: HLH | FC3: LLH | FD3: HLH | FE3: LLH | FF3: HLH | FG3: LLH | FH3: HLH | FI3: LLH | FJ3: HLH | FK3: LLH | FL3: HLH | FM3: LLH | FN3: HLH | FO3: LLH | FP3: HLH | FQ3: LLH | FR3: HLH | FS3: LLH | FT3: HLH | FU3: LLH | FV3: HLH | FW3: LLH | FX3: HLH | FY3: LLH | FZ3: HLH | GA3: LLH | GB3: HLH | GC3: LLH | GD3: HLH | GE3: LLH | GF3: HLH | GG3: LLH | GH3: HLH | GI3: LLH | GJ3: HLH | GK3: LLH | GL3: HLH | GM3: LLH | GN3: HLH | GO3: LLH | GP3: HLH | GQ3: LLH | GR3: HLH | GS3: LLH | GT3: HLH | GU3: LLH | GV3: HLH | GW3: LLH | GX3: HLH | GY3: LLH | GZ3: HLH | HA3: LLH | HB3: HLH | HC3: LLH | HD3: HLH | HE3: LLH | HF3: HLH | HG3: LLH | HH3: HLH | HI3: LLH | HJ3: HLH | HK3: LLH | HL3: HLH | HM3: LLH | HN3: HLH | HO3: LLH | HP3: HLH | HQ3: LLH | HR3: HLH | HS3: LLH | HT3: HLH | HU3: LLH | HV3: HLH | HW3: LLH | HX3: HLH | HY3: LLH | HZ3: HLH | IA3: LLH | IB3: HLH | IC3: LLH | ID3: HLH | IE3: LLH | IF3: HLH | IG3: LLH | IH3: HLH | II3: LLH | IJ3: HLH | IK3: LLH | IL3: HLH | IM3: LLH | IN3: HLH | IO3: LLH | IP3: HLH | IQ3: LLH | IR3: HLH | IS3: LLH | IT3: HLH | IU3: LLH | IV3: HLH | IW3: LLH | IX3: HLH | IY3: LLH | IZ3: HLH | JA3: LLH | JB3: HLH | JC3: LLH | JD3: HLH | JE3: LLH | JF3: HLH | JG3: LLH | JH3: HLH | JI3: LLH | JJ3: HLH | JK3: LLH | JL3: HLH | JM3: LLH | JN3: HLH | JO3: LLH | JP3: HLH | JQ3: LLH | JR3: HLH | JS3: LLH | JT3: HLH | JU3: LLH | JV3: HLH | JW3: LLH | JX3: HLH | JY3: LLH | JZ3: HLH | KA3: LLH | KB3: HLH | KC3: LLH | KD3: HLH | KE3: LLH | KF3: HLH | KG3: LLH | KH3: HLH | KI3: LLH | KJ3: HLH | KK3: LLH | KL3: HLH | KM3: LLH | KN3: HLH | KO3: LLH | KP3: HLH | KQ3: LLH | KR3: HLH | KS3: LLH | KT3: HLH | KU3: LLH | KV3: HLH | KW3: LLH | KX3: HLH | KY3: LLH | KZ3: HLH | LA3: LLH | LB3: HLH | LC3: LLH | LD3: HLH | LE3: LLH | LF3: HLH | LG3: LLH | LH3: HLH | LI3: LLH | LJ3: HLH | LK3: LLH | LL3: HLH | LM3: LLH | LN3: HLH | LO3: LLH | LP3: HLH | LQ3: LLH | LR3: HLH | LS3: LLH | LT3: HLH | LU3: LLH | LV3: HLH | LW3: LLH | LX3: HLH | LY3: LLH | LZ3: HLH | MA3: LLH | MB3: HLH | MC3: LLH | MD3: HLH | ME3: LLH | MF3: HLH | MG3: LLH | MH3: HLH | MI3: LLH | MJ3: HLH | MK3: LLH | ML3: HLH | MM3: LLH | MN3: HLH | MO3: LLH | MP3: HLH | MQ3: LLH | MR3: HLH | MS3: LLH | MT3: HLH | MU3: LLH | MV3: HLH | MW3: LLH | MX3: HLH | MY3: LLH | MZ3: HLH | NA3: LLH | NB3: HLH | NC3: LLH | ND3: HLH | NE3: LLH | NF3: HLH | NG3: LLH | NH3: HLH | NI3: LLH | NJ3: HLH | NK3: LLH | NL3: HLH | NM3: LLH | NN3: HLH | NO3: LLH | NP3: HLH | NQ3: LLH | NR3: HLH | NS3: LLH | NT3: HLH | NU3: LLH | NV3: HLH | NW3: LLH | NX3: HLH | NY3: LLH | NZ3: HLH | OA3: LLH | OB3: HLH | OC3: LLH | OD3: HLH | OE3: LLH | OF3: HLH | OG3: LLH | OH3: HLH | OI3: LLH | OJ3: HLH | OK3: LLH | OL3: HLH | OM3: LLH | ON3: HLH | OO3: LLH | OP3: HLH | OQ3: LLH | OR3: HLH | OS3: LLH | OT3: HLH | OU3: LLH | OV3: HLH | OW3: LLH | OX3: HLH | OY3: LLH | OZ3: HLH | PA3: LLH | PB3: HLH | PC3: LLH | PD3: HLH | PE3: LLH | PF3: HLH | PG3: LLH | PH3: HLH | PI3: LLH | PJ3: HLH | PK3: LLH | PL3: HLH | PM3: LLH | PN3: HLH | PO3: LLH | PP3: HLH | PQ3: LLH | PR3: HLH | PS3: LLH
A4: 0 | B4: 10005 | C4: Alder Mutual | D4: 218.599 | E4: 143.32 | F4: 284.209 | G4: 203.687 | H4: 316.262 | I4: 229.611 | J4: 312.667 | K4: 227.64 | L4: 282.883 | M4: 187.373 | N4: 273.441 | O4: 180.796 | P4: 237.96 | Q4: 161.839 | R4: 190.142 | S4: 139.716 | T4: 179.102 | U4: 113.523 | V4: 165.07 | W4: 114.456 | X4: 171.397 | Y4: 106.963 | Z4: 172.807 | AA4: 119.204 | AB4: 212.737 | AC4: 139.477 | AD4: 276.252 | AE4: 197.984 | AF4: 306.301 | AG4: 222.379 | AH4: 302.01 | AI4: 219.881 | AJ4: 272.656 | AK4: 180.599 | AL4: 265.179 | AM4: 175.333 | AN4: 230.669 | AO4: 156.881 | AP4: 185.746 | AQ4: 136.485 | AR4: 176.278 | AS4: 111.733 | AT4: 162.814 | AU4: 112.892 | AV4: 169.096 | AW4: 105.527 | AX4: 170.545 | AY4: 117.643 | AZ4: 215.727 | BA4: 148.583 | BB4: 290.723 | BC4: 206.517 | BD4: 309.018 | BE4: 235.732 | BF4: 321.889 | BG4: 227.141 | BH4: 281.422 | BI4: 188.508 | BJ4: 270.583 | BK4: 176.027 | BL4: 225.899 | BM4: 166.421 | BN4: 189.486 | BO4: 135.034 | BP4: 178.353 | BQ4: 112.987 | BR4: 161.425 | BS4: 118.765 | BT4: 175.216 | BU4: 104.404 | BV4: 167.173 | BW4: 126.427 | BX4: 225.217 | BY4: 140.693 | BZ4: 291.641 | CA4: 207.169 | CB4: 309.948 | CC4: 236.442 | CD4: 322.851 | CE4: 227.819 | CF4: 282.308 | CG4: 189.102 | CH4: 261.104 | CI4: 187.156 | CJ4: 236.316 | CK4: 157.594 | CL4: 190.443 | CM4: 135.717 | CN4: 172.266 | CO4: 120.674 | CP4: 168.961 | CQ4: 112.889 | CR4: 176.268 | CS4: 105.032 | CT4: 168.106 | CU4: 127.134 | CV4: 239.121 | CW4: 154.149 | CX4: 329.074 | CY4: 240.526 | CZ4: 348.587 | DA4: 277.283 | DB4: 365.156 | DC4: 263.914 | DD4: 339.197 | DE4: 235.443 | DF4: 300.65 | DG4: 226.16 | DH4: 275.619 | DI4: 190.461 | DJ4: 192.775 | DK4: 156.675 | DL4: 188.588 | DM4: 124.082 | DN4: 179.334 | DO4: 120.266 | DP4: 180.446 | DQ4: 119.744 | DR4: 185.348 | DS4: 131.462 | DT4: 241.638 | DU4: 155.772 | DV4: 315.319 | DW4: 258.291 | DX4: 368.004 | DY4: 262.016 | DZ4: 350.367 | EA4: 282.843 | EB4: 328.116 | EC4: 231.684 | ED4: 317.448 | EE4: 213.502 | EF4: 277.996 | EG4: 192.104 | EH4: 195.059 | EI4: 158.531 | EJ4: 191.006 | EK4: 125.674 | EL4: 181.818 | EM4: 121.932 | EN4: 182.935 | EO4: 121.395 | EP4: 187.694 | EQ4: 133.126 | ER4: 269.978 | ES4: 200.492 | ET4: 303.825 | EU4: 222.835 | EV4: 390.756 | EW4: 281.724 | EX4: 385.006 | EY4: 307.894 | EZ4: 339.291 | FA4: 241.279 | FB4: 350.417 | FC4: 242.463 | FD4: 285.78 | FE4: 201.04 | FF4: 207.553 | FG4: 164.987 | FH4: 201.842 | FI4: 132.568 | FJ4: 184.331 | FK4: 134.609 | FL4: 199.228 | FM4: 117.172 | FN4: 200.178 | FO4: 143.472 | FP4: 271.98 | FQ4: 201.98 | FR4: 305.123 | FS4: 223.787 | FT4: 391.436 | FU4: 282.214 | FV4: 385.006 | FW4: 307.894 | FX4: 339.291 | FY4: 241.279 | FZ4: 350.417 | GA4: 242.463 | GB4: 273.851 | GC4: 212.969 | GD4: 216.388 | GE4: 156.152 | GF4: 201.842 | GG4: 132.568 | GH4: 184.331 | GI4: 134.609 | GJ4: 199.228 | GK4: 117.172 | GL4: 200.178 | GM4: 143.472 | GN4: 271.98 | GO4: 201.98 | GP4: 305.123 | GQ4: 223.787 | GR4: 375.461 | GS4: 298.189 | GT4: 401.438 | GU4: 291.462 | GV4: 346.333 | GW4: 242.637 | GX4: 336.339 | GY4: 256.541 | GZ4: 285.78 | HA4: 201.04 | HB4: 216.388 | HC4: 156.152 | HD4: 193.648 | HE4: 140.762 | HF4: 191.895 | HG4: 127.045 | HH4: 199.228 | HI4: 117.172 | HJ4: 191.757 | HK4: 151.893 | HL4: 283.22 | HM4: 190.74 | HN4: 305.123 | HO4: 223.787 | HP4: 375.461 | HQ4: 298.189 | HR4: 401.438 | HS4: 291.462 | HT4: 339.291 | HU4: 241.279 | HV4: 336.339 | HW4: 256.541 | HX4: 285.78 | HY4: 201.04 | HZ4: 216.388 | IA4: 156.152 | IB4: 193.648 | IC4: 140.762 | ID4: 191.895 | IE4: 127.045 | IF4: 191.725 | IG4: 124.675 | IH4: 200.178 | II4: 143.472 | IJ4: 283.22 | IK4: 190.74 | IL4: 292.18 | IM4: 236.73 | IN4: 391.436 | IO4: 282.214 | IP4: 401.438 | IQ4: 291.462 | IR4: 339.291 | IS4: 241.279 | IT4: 336.339 | IU4: 256.541 | IV4: 285.78 | IW4: 201.04 | IX4: 207.553 | IY4: 164.987 | IZ4: 201.842 | JA4: 132.568 | JB4: 191.895 | JC4: 127.045 | JD4: 191.725 | JE4: 124.675 | JF4: 200.178 | JG4: 143.472 | JH4: 283.22 | JI4: 190.74 | JJ4: 292.18 | JK4: 236.73 | JL4: 391.436 | JM4: 282.214 | JN4: 385.006 | JO4: 307.894 | JP4: 339.291 | JQ4: 241.279 | JR4: 350.417 | JS4: 242.463 | JT4: 285.78 | JU4: 201.04 | JV4: 207.553 | JW4: 164.987 | JX4: 201.842 | JY4: 132.568 | JZ4: 191.895 | KA4: 127.045 | KB4: 191.725 | KC4: 124.675 | KD4: 200.178 | KE4: 143.472 | KF4: 271.98 | KG4: 201.98 | KH4: 305.123 | KI4: 223.787 | KJ4: 391.436 | KK4: 282.214 | KL4: 385.006 | KM4: 307.894 | KN4: 346.333 | KO4: 242.637 | KP4: 350.417 | KQ4: 242.463 | KR4: 273.851 | KS4: 212.969 | KT4: 216.388 | KU4: 156.152 | KV4: 201.842 | KW4: 132.568 | KX4: 184.331 | KY4: 134.609 | KZ4: 199.228 | LA4: 117.172 | LB4: 200.178 | LC4: 143.472 | LD4: 271.98 | LE4: 201.98 | LF4: 305.123 | LG4: 223.787 | LH4: 375.461 | LI4: 298.189 | LJ4: 401.438 | LK4: 291.462 | LL4: 339.291 | LM4: 241.279 | LN4: 350.417 | LO4: 242.463 | LP4: 273.851 | LQ4: 212.969 | LR4: 216.388 | LS4: 156.152 | LT4: 201.842 | LU4: 132.568 | LV4: 184.331 | LW4: 134.609 | LX4: 199.228 | LY4: 117.172 | LZ4: 191.757 | MA4: 151.893 | MB4: 283.22 | MC4: 190.74 | MD4: 305.123 | ME4: 223.787 | MF4: 375.461 | MG4: 298.189 | MH4: 401.438 | MI4: 291.462 | MJ4: 339.291 | MK4: 241.279 | ML4: 336.339 | MM4: 256.541 | MN4: 285.78 | MO4: 201.04 | MP4: 216.388 | MQ4: 156.152 | MR4: 193.648 | MS4: 140.762 | MT4: 191.895 | MU4: 127.045 | MV4: 199.228 | MW4: 117.172 | MX4: 191.757 | MY4: 151.893 | MZ4: 283.22 | NA4: 190.74 | NB4: 305.123 | NC4: 223.787 | ND4: 375.461 | NE4: 298.189 | NF4: 401.438 | NG4: 291.462 | NH4: 339.291 | NI4: 241.279 | NJ4: 336.339 | NK4: 256.541 | NL4: 285.78 | NM4: 201.04 | NN4: 216.388 | NO4: 156.152 | NP4: 193.648 | NQ4: 140.762 | NR4: 191.895 | NS4: 127.045 | NT4: 191.725 | NU4: 124.675 | NV4: 200.178 | NW4: 143.472 | NX4: 283.22 | NY4: 190.74 | NZ4: 292.18 | OA4: 236.73 | OB4: 391.436 | OC4: 282.214 | OD4: 401.438 | OE4: 291.462 | OF4: 331.402 | OG4: 257.568 | OH4: 350.417 | OI4: 242.463 | OJ4: 285.78 | OK4: 201.04 | OL4: 207.553 | OM4: 164.987 | ON4: 201.842 | OO4: 132.568 | OP4: 191.895 | OQ4: 127.045 | OR4: 191.725 | OS4: 124.675 | OT4: 200.178 | OU4: 143.472 | OV4: 271.98 | OW4: 201.98 | OX4: 305.123 | OY4: 223.787 | OZ4: 391.436 | PA4: 282.214 | PB4: 385.006 | PC4: 307.894 | PD4: 339.291 | PE4: 241.279 | PF4: 350.417 | PG4: 242.463 | PH4: 285.78 | PI4: 201.04 | PJ4: 207.553 | PK4: 164.987 | PL4: 201.842 | PM4: 132.568 | PN4: 184.331 | PO4: 134.609 | PP4: 199.228 | PQ4: 117.172 | PR4: 200.178 | PS4: 143.472 | PU4: =+SUM(D4:AA4) -> 4732.667 | PV4: =+SUM(AB4:AY4) -> 4607.097 | PW4: =+SUM(AZ4:BW4) -> 4733.46 | PX4: =+SUM(BX4:CU4) -> 4752.85 | PY4: =+SUM(CV4:DS4) -> 5364.06 | PZ4: =+SUM(DT4:EQ4) -> 5394.27 | QA4: =+SUM(ER4:FO4) -> 5708.72 | QB4: =+SUM(FP4:GM4) -> 5715.63 | QC4: =+SUM(GN4:HK4) -> 5724.03 | QD4: =+SUM(HL4:II4) -> 5715.63 | QE4: =+SUM(IJ4:JG4) -> 5715.63 | QF4: =+SUM(JH4:KE4) -> 5715.63 | QG4: =+SUM(KF4:LC4) -> 5724.03 | QH4: =+SUM(LD4:MA4) -> 5715.63 | QI4: =+SUM(MB4:MY4) -> 5715.63 | QJ4: =+SUM(MZ4:NW4) -> 5715.63 | QK4: =+SUM(NX4:OU4) -> 5724.03 | QL4: =+SUM(OV4:PS4) -> 5715.63
A5: 0 | B5: 10015 | C5: Asotin County PUD #1 | D5: 158.885 | E5: 123.417 | F5: 100.217 | G5: 62.326 | H5: 89.961 | I5: 79.094 | J5: 103.249 | K5: 66.466 | L5: 99.565 | M5: 52.422 | N5: 113.772 | O5: 69.469 | P5: 154.892 | Q5: 99.356 | R5: 273.82 | S5: 232.806 | T5: 341.515 | U5: 284.089 | V5: 561.288 | W5: 486.719 | X5: 578.046 | Y5: 455.044 | Z5: 307.885 | AA5: 341.17 | AB5: 172.27 | AC5: 133.814 | AD5: 102.518 | AE5: 63.757 | AF5: 92.009 | AG5: 80.895 | AH5: 104.336 | AI5: 67.166 | AJ5: 100.624 | AK5: 52.979 | AL5: 110.394 | AM5: 67.407 | AN5: 148.752 | AO5: 95.417 | AP5: 285.888 | AQ5: 243.066 | AR5: 373.447 | AS5: 310.651 | AT5: 564.223 | AU5: 489.264 | AV5: 572.096 | AW5: 450.361 | AX5: 336.64 | AY5: 373.033 | AZ5: 183.658 | BA5: 149.874 | BB5: 91.794 | BC5: 69.553 | BD5: 93.705 | BE5: 75.12 | BF5: 114.116 | BG5: 65.23 | BH5: 98.208 | BI5: 53.588 | BJ5: 117.713 | BK5: 66.923 | BL5: 193.528 | BM5: 116.367 | BN5: 333.53 | BO5: 301.659 | BP5: 419.482 | BQ5: 375.444 | BR5: 593.344 | BS5: 508.135 | BT5: 546.458 | BU5: 459.45 | BV5: 312.637 | BW5: 338.989 | BX5: 186.781 | BY5: 152.423 | BZ5: 93.366 | CA5: 70.745 | CB5: 95.313 | CC5: 76.409 | CD5: 116.037 | CE5: 66.328 | CF5: 99.886 | CG5: 54.504 | CH5: 119.718 | CI5: 68.062 | CJ5: 196.796 | CK5: 118.332 | CL5: 339.196 | CM5: 306.783 | CN5: 426.622 | CO5: 381.834 | CP5: 603.42 | CQ5: 516.764 | CR5: 555.748 | CS5: 467.261 | CT5: 317.892 | CU5: 344.687 | CV5: 178.256 | CW5: 144.568 | CX5: 86.028 | CY5: 70.26 | CZ5: 90.56 | DA5: 72.869 | DB5: 106.746 | DC5: 66.779 | DD5: 91.007 | DE5: 54.8 | DF5: 111.991 | DG5: 65.138 | DH5: 182.541 | DI5: 114.543 | DJ5: 308.813 | DK5: 297.993 | DL5: 402.135 | DM5: 357.263 | DN5: 559.144 | DO5: 494.955 | DP5: 520.757 | DQ5: 441.094 | DR5: 300.222 | DS5: 326.646 | DT5: 179.433 | DU5: 145.522 | DV5: 86.587 | DW5: 70.717 | DX5: 91.14 | DY5: 73.336 | DZ5: 107.564 | EA5: 67.291 | EB5: 91.622 | EC5: 55.171 | ED5: 112.743 | EE5: 65.575 | EF5: 183.786 | EG5: 115.324 | EH5: 310.788 | EI5: 299.899 | EJ5: 404.693 | EK5: 359.535 | EL5: 562.809 | EM5: 498.199 | EN5: 524.122 | EO5: 443.944 | EP5: 302.386 | EQ5: 329 | ER5: 153.537 | ES5: 126.395 | ET5: 88.894 | EU5: 64.995 | EV5: 91.014 | EW5: 70.412 | EX5: 102.65 | EY5: 63.261 | EZ5: 79.611 | FA5: 60.773 | FB5: 105.019 | FC5: 62.116 | FD5: 159.479 | FE5: 101.58 | FF5: 262.877 | FG5: 247.764 | FH5: 388.938 | FI5: 337.909 | FJ5: 533.1 | FK5: 479.193 | FL5: 510.388 | FM5: 430.571 | FN5: 283.02 | FO5: 306.63 | FP5: 153.537 | FQ5: 126.395 | FR5: 88.894 | FS5: 64.995 | FT5: 91.014 | FU5: 70.412 | FV5: 102.65 | FW5: 63.261 | FX5: 79.611 | FY5: 60.773 | FZ5: 105.019 | GA5: 62.116 | GB5: 159.479 | GC5: 101.58 | GD5: 262.877 | GE5: 247.764 | GF5: 388.938 | GG5: 337.909 | GH5: 533.1 | GI5: 479.193 | GJ5: 510.388 | GK5: 430.571 | GL5: 283.02 | GM5: 306.63 | GN5: 153.537 | GO5: 126.395 | GP5: 88.894 | GQ5: 64.995 | GR5: 91.014 | GS5: 70.412 | GT5: 102.65 | GU5: 63.261 | GV5: 82.455 | GW5: 62.944 | GX5: 105.019 | GY5: 62.116 | GZ5: 159.479 | HA5: 101.58 | HB5: 262.877 | HC5: 247.764 | HD5: 388.938 | HE5: 337.909 | HF5: 533.1 | HG5: 479.193 | HH5: 510.388 | HI5: 430.571 | HJ5: 283.02 | HK5: 306.63 | HL5: 153.537 | HM5: 126.395 | HN5: 88.894 | HO5: 64.995 | HP5: 91.014 | HQ5: 70.412 | HR5: 102.65 | HS5: 63.261 | HT5: 79.611 | HU5: 60.773 | HV5: 105.019 | HW5: 62.116 | HX5: 159.479 | HY5: 101.58 | HZ5: 262.877 | IA5: 247.764 | IB5: 388.938 | IC5: 337.909 | ID5: 533.1 | IE5: 479.193 | IF5: 510.388 | IG5: 430.571 | IH5: 283.02 | II5: 306.63 | IJ5: 153.537 | IK5: 126.395 | IL5: 88.894 | IM5: 64.995 | IN5: 91.014 | IO5: 70.412 | IP5: 102.65 | IQ5: 63.261 | IR5: 79.611 | IS5: 60.773 | IT5: 105.019 | IU5: 62.116 | IV5: 159.479 | IW5: 101.58 | IX5: 262.877 | IY5: 247.764 | IZ5: 388.938 | JA5: 337.909 | JB5: 533.1 | JC5: 479.193 | JD5: 510.388 | JE5: 430.571 | JF5: 283.02 | JG5: 306.63 | JH5: 153.537 | JI5: 126.395 | JJ5: 88.894 | JK5: 64.995 | JL5: 91.014 | JM5: 70.412 | JN5: 102.65 | JO5: 63.261 | JP5: 79.611 | JQ5: 60.773 | JR5: 105.019 | JS5: 62.116 | JT5: 159.479 | JU5: 101.58 | JV5: 262.877 | JW5: 247.764 | JX5: 388.938 | JY5: 337.909 | JZ5: 533.1 | KA5: 479.193 | KB5: 510.388 | KC5: 430.571 | KD5: 283.02 | KE5: 306.63 | KF5: 153.537 | KG5: 126.395 | KH5: 88.894 | KI5: 64.995 | KJ5: 91.014 | KK5: 70.412 | KL5: 102.65 | KM5: 63.261 | KN5: 82.455 | KO5: 62.944 | KP5: 105.019 | KQ5: 62.116 | KR5: 159.479 | KS5: 101.58 | KT5: 262.877 | KU5: 247.764 | KV5: 388.938 | KW5: 337.909 | KX5: 533.1 | KY5: 479.193 | KZ5: 510.388 | LA5: 430.571 | LB5: 283.02 | LC5: 306.63 | LD5: 153.537 | LE5: 126.395 | LF5: 88.894 | LG5: 64.995 | LH5: 91.014 | LI5: 70.412 | LJ5: 102.65 | LK5: 63.261 | LL5: 79.611 | LM5: 60.773 | LN5: 105.019 | LO5: 62.116 | LP5: 159.479 | LQ5: 101.58 | LR5: 262.877 | LS5: 247.764 | LT5: 388.938 | LU5: 337.909 | LV5: 533.1 | LW5: 479.193 | LX5: 510.388 | LY5: 430.571 | LZ5: 283.02 | MA5: 306.63 | MB5: 153.537 | MC5: 126.395 | MD5: 88.894 | ME5: 64.995 | MF5: 91.014 | MG5: 70.412 | MH5: 102.65 | MI5: 63.261 | MJ5: 79.611 | MK5: 60.773 | ML5: 105.019 | MM5: 62.116 | MN5: 159.479 | MO5: 101.58 | MP5: 262.877 | MQ5: 247.764 | MR5: 388.938 | MS5: 337.909 | MT5: 533.1 | MU5: 479.193 | MV5: 510.388 | MW5: 430.571 | MX5: 283.02 | MY5: 306.63 | MZ5: 153.537 | NA5: 126.395 | NB5: 88.894 | NC5: 64.995 | ND5: 91.014 | NE5: 70.412 | NF5: 102.65 | NG5: 63.261 | NH5: 79.611 | NI5: 60.773 | NJ5: 105.019 | NK5: 62.116 | NL5: 159.479 | NM5: 101.58 | NN5: 262.877 | NO5: 247.764 | NP5: 388.938 | NQ5: 337.909 | NR5: 533.1 | NS5: 479.193 | NT5: 510.388 | NU5: 430.571 | NV5: 283.02 | NW5: 306.63 | NX5: 153.537 | NY5: 126.395 | NZ5: 88.894 | OA5: 64.995 | OB5: 91.014 | OC5: 70.412 | OD5: 102.65 | OE5: 63.261 | OF5: 82.455 | OG5: 62.944 | OH5: 105.019 | OI5: 62.116 | OJ5: 159.479 | OK5: 101.58 | OL5: 262.877 | OM5: 247.764 | ON5: 388.938 | OO5: 337.909 | OP5: 533.1 | OQ5: 479.193 | OR5: 510.388 | OS5: 430.571 | OT5: 283.02 | OU5: 306.63 | OV5: 153.537 | OW5: 126.395 | OX5: 88.894 | OY5: 64.995 | OZ5: 91.014 | PA5: 70.412 | PB5: 102.65 | PC5: 63.261 | PD5: 79.611 | PE5: 60.773 | PF5: 105.019 | PG5: 62.116 | PH5: 159.479 | PI5: 101.58 | PJ5: 262.877 | PK5: 247.764 | PL5: 388.938 | PM5: 337.909 | PN5: 533.1 | PO5: 479.193 | PP5: 510.388 | PQ5: 430.571 | PR5: 283.02 | PS5: 306.63 | PU5: =+SUM(D5:AA5) -> 5235.473 | PV5: =+SUM(AB5:AY5) -> 5391.007 | PW5: =+SUM(AZ5:BW5) -> 5678.505 | PX5: =+SUM(BX5:CU5) -> 5774.907 | PY5: =+SUM(CV5:DS5) -> 5445.108 | PZ5: =+SUM(DT5:EQ5) -> 5481.186 | QA5: =+SUM(ER5:FO5) -> 5110.126 | QB5: =+SUM(FP5:GM5) -> 5110.126 | QC5: =+SUM(GN5:HK5) -> 5115.141 | QD5: =+SUM(HL5:II5) -> 5110.126 | QE5: =+SUM(IJ5:JG5) -> 5110.126 | QF5: =+SUM(JH5:KE5) -> 5110.126 | QG5: =+SUM(KF5:LC5) -> 5115.141 | QH5: =+SUM(LD5:MA5) -> 5110.126 | QI5: =+SUM(MB5:MY5) -> 5110.126 | QJ5: =+SUM(MZ5:NW5) -> 5110.126 | QK5: =+SUM(NX5:OU5) -> 5115.141 | QL5: =+SUM(OV5:PS5) -> 5110.126
A6: 0 | B6: 10024 | C6: Benton County PUD #1 | D6: 72609.945 | E6: 43984.938 | F6: 71716.602 | G6: 51043.328 | H6: 91608.961 | I6: 65984.563 | J6: 86698.867 | K6: 62828.375 | L6: 70522.555 | M6: 47630.105 | N6: 73297.82 | O6: 47714.246 | P6: 77232.797 | Q6: 47207.531 | R6: 97686.75 | S6: 66967.156 | T6: 110656.219 | U6: 70497.375 | V6: 136540.297 | W6: 92112.398 | X6: 123164.805 | Y6: 74705.641 | Z6: 81168.203 | AA6: 52364.414 | AB6: 73736.148 | AC6: 44666.449 | AD6: 64744.391 | AE6: 46080.98 | AF6: 79217.398 | AG6: 57059.137 | AH6: 87501.523 | AI6: 63397.582 | AJ6: 78718.32 | AK6: 53165.301 | AL6: 74797.617 | AM6: 48690.629 | AN6: 83715.266 | AO6: 51169.625 | AP6: 95241.703 | AQ6: 65284.594 | AR6: 116283.359 | AS6: 74078.734 | AT6: 131957.203 | AU6: 88992.328 | AV6: 130424.359 | AW6: 79104.766 | AX6: 89995.047 | AY6: 58041.34 | AZ6: 73766.078 | BA6: 44684.578 | BB6: 64822.059 | BC6: 46136.273 | BD6: 79315.688 | BE6: 57125.789 | BF6: 87878.523 | BG6: 63659.508 | BH6: 79054.578 | BI6: 53388.039 | BJ6: 75136.789 | BK6: 48911.43 | BL6: 84013.328 | BM6: 51350.563 | BN6: 95499.422 | BO6: 65452.82 | BP6: 116513.086 | BQ6: 74225.063 | BR6: 132195 | BS6: 89140.539 | BT6: 130687.617 | BU6: 79264.422 | BV6: 90263.203 | BW6: 58214.238 | BX6: 74055.641 | BY6: 44859.988 | BZ6: 65125.246 | CA6: 46352.055 | CB6: 79670.859 | CC6: 57381.605 | CD6: 88283.281 | CE6: 63952.711 | CF6: 79419.828 | CG6: 53634.703 | CH6: 75512.336 | CI6: 49155.887 | CJ6: 84347.227 | CK6: 51554.637 | CL6: 95788.43 | CM6: 65650.898 | CN6: 116779.422 | CO6: 74394.734 | CP6: 132462.609 | CQ6: 89320.992 | CR6: 130988.883 | CS6: 79447.148 | CT6: 90567.758 | CU6: 58410.637 | CV6: 72397.75 | CW6: 43869.008 | CX6: 71024.617 | CY6: 50555.836 | CZ6: 91341.648 | DA6: 65792.102 | DB6: 87491.203 | DC6: 63390.156 | DD6: 72530.148 | DE6: 48985.914 | DF6: 70803.492 | DG6: 46091.695 | DH6: 76819.781 | DI6: 46954.922 | DJ6: 96111.844 | DK6: 65881.078 | DL6: 115202.148 | DM6: 73406.102 | DN6: 135540.453 | DO6: 91408.906 | DP6: 120963.148 | DQ6: 73385.898 | DR6: 76824.445 | DS6: 49567.563 | DT6: 72348.313 | DU6: 43839.047 | DV6: 70984.023 | DW6: 50526.93 | DX6: 91305.141 | DY6: 65765.797 | DZ6: 87527.641 | EA6: 63416.547 | EB6: 73278.977 | EC6: 49491.672 | ED6: 70809.469 | EE6: 46095.586 | EF6: 76831.102 | EG6: 46961.836 | EH6: 96237.117 | EI6: 65966.961 | EJ6: 115452.523 | EK6: 73565.633 | EL6: 136032.219 | EM6: 91740.547 | EN6: 121391.539 | EO6: 73645.805 | EP6: 76896.305 | EQ6: 49613.93 | ER6: 76456.023 | ES6: 46327.875 | ET6: 73041.203 | EU6: 51991.094 | EV6: 92563.891 | EW6: 66672.313 | EX6: 90704.43 | EY6: 65718.07 | EZ6: 73646.703 | FA6: 49739.898 | FB6: 71650.414 | FC6: 46642.883 | FD6: 80391.141 | FE6: 49137.656 | FF6: 97044.297 | FG6: 66520 | FH6: 118688.492 | FI6: 75627.414 | FJ6: 135120.375 | FK6: 91125.422 | FL6: 121308.047 | FM6: 73594.953 | FN6: 76343.367 | FO6: 49256.93 | FP6: 76542.578 | FQ6: 46380.32 | FR6: 72993.422 | FS6: 51957.078 | FT6: 92151.289 | FU6: 66375.117 | FV6: 90368.977 | FW6: 65475.023 | FX6: 73547.195 | FY6: 49672.703 | FZ6: 71760.719 | GA6: 46714.68 | GB6: 80558.344 | GC6: 49239.859 | GD6: 97199.391 | GE6: 66626.313 | GF6: 118827.008 | GG6: 75715.695 | GH6: 135205.422 | GI6: 91182.781 | GJ6: 121400.539 | GK6: 73651.055 | GL6: 76522.258 | GM6: 49372.344 | GN6: 76755.594 | GO6: 46509.406 | GP6: 73046.523 | GQ6: 51994.875 | GR6: 91786.813 | GS6: 66112.594 | GT6: 90115.922 | GU6: 65291.672 | GV6: 74138.164 | GW6: 50071.836 | GX6: 71963.328 | GY6: 46846.57 | GZ6: 80819.016 | HA6: 49399.188 | HB6: 97438.727 | HC6: 66790.367 | HD6: 119052.273 | HE6: 75859.227 | HF6: 135383.625 | HG6: 91302.969 | HH6: 121610.172 | HI6: 73778.234 | HJ6: 76805.258 | HK6: 49554.945 | HL6: 77071.742 | HM6: 46700.961 | HN6: 73207.289 | HO6: 52109.313 | HP6: 91565.852 | HQ6: 65953.445 | HR6: 90101.492 | HS6: 65281.211 | HT6: 73746.852 | HU6: 49807.547 | HV6: 72361.938 | HW6: 47106.063 | HX6: 81276.617 | HY6: 49678.883 | HZ6: 97894.813 | IA6: 67102.984 | IB6: 119551.18 | IC6: 76177.117 | ID6: 135948.734 | IE6: 91684.063 | IF6: 122195.156 | IG6: 74133.141 | IH6: 77299.781 | II6: 49874.016 | IJ6: 77575.742 | IK6: 47006.359 | IL6: 73556.398 | IM6: 52357.805 | IN6: 91579.75 | IO6: 65963.453 | IP6: 90307.922 | IQ6: 65430.781 | IR6: 74169.797 | IS6: 50093.203 | IT6: 72966.422 | IU6: 47499.578 | IV6: 81942.438 | IW6: 50085.859 | IX6: 98574.617 | IY6: 67568.977 | IZ6: 120318.828 | JA6: 76666.266 | JB6: 136857.656 | JC6: 92297.047 | JD6: 123092.922 | JE6: 74677.781 | JF6: 77972.711 | JG6: 50308.188 | JH6: 78231.367 | JI6: 47403.633 | JJ6: 74033.32 | JK6: 52697.281 | JL6: 91715.539 | JM6: 66061.258 | JN6: 90481.711 | JO6: 65556.695 | JP6: 74542.078 | JQ6: 50344.625 | JR6: 73503.617 | JS6: 47849.281 | JT6: 82524.781 | JU6: 50441.813 | JV6: 99162.359 | JW6: 67971.844 | JX6: 120972.078 | JY6: 77082.516 | JZ6: 137636.063 | KA6: 92822.031 | KB6: 123849.758 | KC6: 75136.945 | KD6: 78508.023 | KE6: 50653.578 | KF6: 78736.117 | KG6: 47709.484 | KH6: 74356.898 | KI6: 52927.602 | KJ6: 91680.719 | KK6: 66036.188 | KL6: 90416.07 | KM6: 65509.133 | KN6: 75210.094 | KO6: 50795.805 | KP6: 73735.844 | KQ6: 48000.453 | KR6: 82781.547 | KS6: 50598.75 | KT6: 99431.539 | KU6: 68156.367 | KV6: 121292.273 | KW6: 77286.523 | KX6: 138115.766 | KY6: 93145.531 | KZ6: 124312.758 | LA6: 75417.836 | LB6: 78759.18 | LC6: 50815.617 | LD6: 78964.273 | LE6: 47847.727 | LF6: 74451.469 | LG6: 52994.93 | LH6: 91476.859 | LI6: 65889.344 | LJ6: 90324.789 | LK6: 65443.008 | LL6: 74725.367 | LM6: 50468.43 | LN6: 73972.07 | LO6: 48154.227 | LP6: 83059.352 | LQ6: 50768.555 | LR6: 99741.898 | LS6: 68369.102 | LT6: 121678.539 | LU6: 77532.664 | LV6: 138691.5 | LW6: 93533.797 | LX6: 124880.641 | LY6: 75762.359 | LZ6: 79082.297 | MA6: 51024.102 | MB6: 79262.906 | MC6: 48028.695 | MD6: 74620.648 | ME6: 53115.352 | MF6: 91368.859 | MG6: 65811.547 | MH6: 90395.938 | MI6: 65494.563 | MJ6: 74971.703 | MK6: 50634.797 | ML6: 74362.328 | MM6: 48408.273 | MN6: 83495.977 | MO6: 51035.43 | MP6: 100221.172 | MQ6: 68697.625 | MR6: 122266.492 | MS6: 77907.305 | MT6: 139540.281 | MU6: 94106.219 | MV6: 125726.977 | MW6: 76275.82 | MX6: 79606.492 | MY6: 51362.305 | MZ6: 79764.297 | NA6: 48332.5 | NB6: 74998.203 | NC6: 53384.094 | ND6: 91506.438 | NE6: 65910.656 | NF6: 90677.93 | NG6: 65698.867 | NH6: 75406.594 | NI6: 50928.508 | NJ6: 74917.516 | NK6: 48769.688 | NL6: 84102.773 | NM6: 51406.32 | NN6: 100880.109 | NO6: 69149.297 | NP6: 123062.133 | NQ6: 78414.273 | NR6: 140627.359 | NS6: 94839.344 | NT6: 126796.344 | NU6: 76924.563 | NV6: 80271.633 | NW6: 51791.461 | NX6: 80383.688 | NY6: 48707.813 | NZ6: 75492.711 | OA6: 53736.086 | OB6: 91803.781 | OC6: 66124.813 | OD6: 90883.898 | OE6: 65848.102 | OF6: 76296.898 | OG6: 51529.805 | OH6: 75361.008 | OI6: 49058.391 | OJ6: 84577.688 | OK6: 51696.609 | OL6: 101409.047 | OM6: 69511.859 | ON6: 123726.797 | OO6: 78837.797 | OP6: 141640.375 | OQ6: 95522.531 | OR6: 127776.547 | OS6: 77519.25 | OT6: 80794.617 | OU6: 52128.883 | OV6: 80852.508 | OW6: 48991.891 | OX6: 75841.586 | OY6: 53984.414 | OZ6: 91938.406 | PA6: 66221.797 | PB6: 91307.727 | PC6: 66155.18 | PD6: 76273.078 | PE6: 51513.719 | PF6: 75956.953 | PG6: 49446.344 | PH6: 85204.656 | PI6: 52079.844 | PJ6: 102086.422 | PK6: 69976.172 | PL6: 124546.133 | PM6: 79359.867 | PN6: 142805.563 | PO6: 96308.344 | PP6: 128918.109 | PQ6: 78211.797 | PR6: 81486.445 | PS6: 52575.258 | PU6: 1815943.891 | PV6: 1836063.799 | PW6: 1840698.633 | PX6: 1847117.515 | PY6: 1806339.857 | PZ6: 1809724.66 | QA6: 1839312.891 | QB6: 1839440.11 | QC6: 1842427.298 | QD6: 1847830.19 | QE6: 1858870.5 | QF6: 1869182.194 | QG6: 1875228.094 | QH6: 1878837.299 | QI6: 1886717.704 | QJ6: 1898560.9 | QK6: 1910368.994 | QL6: 1922042.213
A7: 0 | B7: 10025 | C7: Benton REA | D7: 29712.207 | E7: 19697.816 | F7: 25326.461 | G7: 19050.641 | H7: 27593.699 | I7: 22459.621 | J7: 28448.922 | K7: 20720.895 | L7: 24088.52 | M7: 16569.59 | N7: 22644.83 | O7: 16486.225 | P7: 25723.578 | Q7: 17148.938 | R7: 30686.449 | S7: 20992.164 | T7: 34903.113 | U7: 24497.34 | V7: 44305.18 | W7: 29579.305 | X7: 44576.93 | Y7: 28399.867 | Z7: 34342.484 | AA7: 26538.629 | AB7: 28380.9 | AC7: 18316.451 | AD7: 24845.463 | AE7: 18684.955 | AF7: 29097.768 | AG7: 23683.826 | AH7: 29932.113 | AI7: 21859.631 | AJ7: 24309.641 | AK7: 16738.188 | AL7: 22344.219 | AM7: 16267.812 | AN7: 27637.609 | AO7: 18236.697 | AP7: 32181.133 | AQ7: 22172.824 | AR7: 34073.883 | AS7: 24066.369 | AT7: 43806.156 | AU7: 29556.441 | AV7: 42547.344 | AW7: 27330.166 | AX7: 29679.924 | AY7: 22774.41 | AZ7: 27290.064 | BA7: 17363.023 | BB7: 23320.867 | BC7: 17558.045 | BD7: 27795.92 | BE7: 22610.156 | BF7: 27819.793 | BG7: 20321.115 | BH7: 22377.855 | BI7: 15409.19 | BJ7: 20855.035 | BK7: 15183.343 | BL7: 26145.738 | BM7: 17253.311 | BN7: 29335.139 | BO7: 20224.916 | BP7: 30359.283 | BQ7: 21441.775 | BR7: 39133.492 | BS7: 26403.957 | BT7: 36996.52 | BU7: 23765.334 | BV7: 24831.375 | BW7: 19020.588 | BX7: 27714.283 | BY7: 17636.805 | BZ7: 23691.293 | CA7: 17836.619 | CB7: 28232.539 | CC7: 22965.537 | CD7: 28261.256 | CE7: 20642.652 | CF7: 22735.688 | CG7: 15655.358 | CH7: 21180.813 | CI7: 15420.565 | CJ7: 26554.391 | CK7: 17522.658 | CL7: 29802.365 | CM7: 20544.689 | CN7: 30869.084 | CO7: 21801.975 | CP7: 39790.918 | CQ7: 26847.531 | CR7: 37634.656 | CS7: 24175.197 | CT7: 25263.678 | CU7: 19355.285 | CV7: 27630.699 | CW7: 17788.223 | CX7: 23726.443 | CY7: 17858.426 | CZ7: 27870.803 | DA7: 22788.582 | DB7: 28405.098 | DC7: 20714.57 | DD7: 23653.412 | DE7: 16304.315 | DF7: 21019.861 | DG7: 15311.217 | DH7: 25581.619 | DI7: 16914.469 | DJ7: 30121.365 | DK7: 20679.881 | DL7: 32117.367 | DM7: 22698.57 | DN7: 41937.902 | DO7: 28364.674 | DP7: 41202.578 | DQ7: 26489.078 | DR7: 29122.943 | DS7: 22536.26 | DT7: 28323.652 | DU7: 18266.527 | DV7: 24365.146 | DW7: 18356.65 | DX7: 28466.068 | DY7: 23393.684 | DZ7: 29080.574 | EA7: 21231.674 | EB7: 23603.494 | EC7: 16296.041 | ED7: 21627.182 | EE7: 15757.426 | EF7: 26181.729 | EG7: 17346.643 | EH7: 30730.326 | EI7: 21121.42 | EJ7: 32713.637 | EK7: 23124.07 | EL7: 42560.949 | EM7: 28816.611 | EN7: 41820.512 | EO7: 26895.938 | EP7: 29621.256 | EQ7: 22934.66 | ER7: 27591.42 | ES7: 17806.939 | ET7: 23445.393 | EU7: 17632.041 | EV7: 27469.689 | EW7: 22358.666 | EX7: 28434.082 | EY7: 20706.141 | EZ7: 22175.17 | FA7: 15258.787 | FB7: 22737.133 | FC7: 16559.074 | FD7: 23259.805 | FE7: 15290.281 | FF7: 30025.232 | FG7: 20529.295 | FH7: 33954.594 | FI7: 23935.639 | FJ7: 39573.855 | FK7: 26682.043 | FL7: 37355.801 | FM7: 23970.895 | FN7: 28390.693 | FO7: 21913.799 | FP7: 28061.531 | FQ7: 18088.965 | FR7: 23832.1 | FS7: 17919.908 | FT7: 27781.33 | FU7: 22608.826 | FV7: 28659.814 | FW7: 20870.557 | FX7: 22447.623 | FY7: 15446.217 | FZ7: 23039.689 | GA7: 16779.393 | GB7: 23602.096 | GC7: 15515.893 | GD7: 30431.785 | GE7: 20807.547 | GF7: 34393.523 | GG7: 24245.764 | GH7: 40052.801 | GI7: 27005.191 | GJ7: 37814.371 | GK7: 24265.43 | GL7: 28783.879 | GM7: 22218.211 | GN7: 28473.357 | GO7: 18354.752 | GP7: 24173.125 | GQ7: 18176.375 | GR7: 28036.178 | GS7: 22816.256 | GT7: 28843.426 | GU7: 21004.293 | GV7: 22667.197 | GW7: 15597.4 | GX7: 23287.543 | GY7: 16959.871 | GZ7: 23877.113 | HA7: 15697.156 | HB7: 30762.699 | HC7: 21034.031 | HD7: 34757.531 | HE7: 24502.951 | HF7: 40466.711 | HG7: 27284.461 | HH7: 38217.734 | HI7: 24524.5 | HJ7: 29131.711 | HK7: 22487.508 | HL7: 28845.441 | HM7: 18594.883 | HN7: 24487.18 | HO7: 18412.559 | HP7: 28276.176 | HQ7: 23011.598 | HR7: 29010.539 | HS7: 21126.008 | HT7: 22870.789 | HU7: 15737.324 | HV7: 23526.064 | HW7: 17133.557 | HX7: 24151.166 | HY7: 15877.787 | HZ7: 31110.787 | IA7: 21272.271 | IB7: 35148.434 | IC7: 24779.143 | ID7: 40898.621 | IE7: 27575.871 | IF7: 38619.199 | IG7: 24782.355 | IH7: 29450.049 | II7: 22733.971 | IJ7: 29163.316 | IK7: 18800.035 | IL7: 24733.455 | IM7: 18597.768 | IN7: 28443.348 | IO7: 23147.668 | IP7: 29357.863 | IQ7: 21378.984 | IR7: 23241.982 | IS7: 15992.686 | IT7: 23910.473 | IU7: 17413.473 | IV7: 24557.648 | IW7: 16145.703 | IX7: 31573.146 | IY7: 21588.717 | IZ7: 35637.867 | JA7: 25124.955 | JB7: 41456.801 | JC7: 27952.48 | JD7: 39159.949 | JE7: 25129.68 | JF7: 29899.264 | JG7: 23081.76 | JH7: 29631.357 | JI7: 19102.1 | JJ7: 25132.373 | JK7: 18897.771 | JL7: 28772.795 | JM7: 23415.818 | JN7: 29644.383 | JO7: 21587.672 | JP7: 23555.139 | JQ7: 16208.115 | JR7: 24249.682 | JS7: 17660.479 | JT7: 24928.432 | JU7: 16390.088 | JV7: 32015.182 | JW7: 21891.256 | JX7: 36121.133 | JY7: 25466.4 | JZ7: 41981.078 | KA7: 28306.219 | KB7: 39630.746 | KC7: 25432.063 | KD7: 30243.193 | KE7: 23348.033 | KF7: 29949.83 | KG7: 19307.635 | KH7: 25358.615 | KI7: 19067.92 | KJ7: 28906.719 | KK7: 23524.82 | KL7: 29968.486 | KM7: 21823.732 | KN7: 23861.885 | KO7: 16419.268 | KP7: 24555.426 | KQ7: 17883.113 | KR7: 25229.479 | KS7: 16588.514 | KT7: 32359.629 | KU7: 22127 | KV7: 36476.867 | KW7: 25717.748 | KX7: 42426.766 | KY7: 28606.93 | KZ7: 40069.547 | LA7: 25713.902 | LB7: 30599.271 | LC7: 23623.717 | LD7: 30329.23 | LE7: 19552.492 | LF7: 25688.615 | LG7: 19316.096 | LH7: 29193.068 | LI7: 23757.893 | LJ7: 30105.053 | LK7: 21923.205 | LL7: 24038.33 | LM7: 16540.521 | LN7: 24769.418 | LO7: 18038.938 | LP7: 25484.379 | LQ7: 16756.52 | LR7: 32705.486 | LS7: 22363.713 | LT7: 36881.789 | LU7: 26003.842 | LV7: 42906.805 | LW7: 28930.82 | LX7: 40529.113 | LY7: 26009.074 | LZ7: 30960.129 | MA7: 23903.098 | MB7: 30700.229 | MC7: 19791.928 | MD7: 25994.648 | ME7: 19546.246 | MF7: 29435.633 | MG7: 23955.328 | MH7: 30423.686 | MI7: 22155.279 | MJ7: 24380.033 | MK7: 16775.592 | ML7: 25136.307 | MM7: 18306.1 | MN7: 25882.664 | MO7: 17019.031 | MP7: 33180.23 | MQ7: 22688.631 | MR7: 37401.586 | MS7: 26371.107 | MT7: 43503.406 | MU7: 29333.352 | MV7: 41101.914 | MW7: 26376.977 | MX7: 31410.854 | MY7: 24252.057 | MZ7: 31152.686 | NA7: 20083.936 | NB7: 26373.27 | NC7: 19830.988 | ND7: 29749.729 | NE7: 24210.982 | NF7: 30764.424 | NG7: 22403.459 | NH7: 24727.131 | NI7: 17014.373 | NJ7: 25499.662 | NK7: 18570.682 | NL7: 26268.17 | NM7: 17273.119 | NN7: 33635.891 | NO7: 23000.494 | NP7: 37895.656 | NQ7: 26720.189 | NR7: 44070.633 | NS7: 29716.07 | NT7: 41624.762 | NU7: 26712.801 | NV7: 31803.619 | NW7: 24556.139 | NX7: 31532.434 | NY7: 20329.016 | NZ7: 26668.811 | OA7: 20053.248 | OB7: 29982.75 | OC7: 24400.648 | OD7: 31130.006 | OE7: 22669.732 | OF7: 25077.545 | OG7: 17255.568 | OH7: 25867.029 | OI7: 18838.189 | OJ7: 26648.664 | OK7: 17523.906 | OL7: 34074.867 | OM7: 23300.936 | ON7: 38366.816 | OO7: 27053.088 | OP7: 44621.305 | OQ7: 30087.617 | OR7: 42147.984 | OS7: 27048.859 | OT7: 32196.287 | OU7: 24860.146 | OV7: 31924.191 | OW7: 20581.848 | OX7: 26986.303 | OY7: 20292.018 | OZ7: 30240.008 | PA7: 24610.039 | PB7: 31424.506 | PC7: 22884.232 | PD7: 25381.639 | PE7: 17464.631 | PF7: 26177.146 | PG7: 19064.01 | PH7: 26973.859 | PI7: 17738.246 | PJ7: 34475.797 | PK7: 23575.342 | PL7: 38804.895 | PM7: 27362.611 | PN7: 45149.5 | PO7: 30443.992 | PP7: 42644.426 | PQ7: 27367.715 | PR7: 32573.633 | PS7: 25152.297 | PU7: 634493.404 | PV7: 628523.923 | PW7: 572815.834 | PX7: 582135.835 | PY7: 600838.355 | PZ7: 612635.869 | QA7: 587056.467 | QB7: 594672.444 | QC7: 601133.879 | QD7: 607431.772 | QE7: 615489.021 | QF7: 623611.507 | QG7: 630166.819 | QH7: 636687.627 | QI7: 645122.818 | QJ7: 653658.865 | QK7: 661735.451 | QL7: 669292.884
A8: 0 | B8: 10027 | C8: Big Bend Elec Coop | D8: 21513.086 | E8: 14715.813 | F8: 13251.338 | G8: 9881.162 | H8: 15817.067 | I8: 11782.233 | J8: 15545.653 | K8: 11437.546 | L8: 12959.495 | M8: 9008.204 | N8: 12804.505 | O8: 8590.396 | P8: 22933.857 | Q8: 15721.443 | R8: 34279.961 | S8: 25465.738 | T8: 41382.516 | U8: 28182.281 | V8: 45614.664 | W8: 34317.938 | X8: 43359.336 | Y8: 29669.367 | Z8: 31536.848 | AA8: 23457.254 | AB8: 22829.391 | AC8: 15471.355 | AD8: 14325.249 | AE8: 10680.446 | AF8: 16843.117 | AG8: 12558.838 | AH8: 15295.813 | AI8: 11262.022 | AJ8: 13843.08 | AK8: 9639.91 | AL8: 14317.738 | AM8: 9469.305 | AN8: 24449.273 | AO8: 16639.887 | AP8: 37373.891 | AQ8: 27875.586 | AR8: 43250.137 | AS8: 29637.895 | AT8: 46985.773 | AU8: 35652.375 | AV8: 44403.324 | AW8: 30634.066 | AX8: 32947.977 | AY8: 24530.926 | AZ8: 22822.725 | BA8: 15467.501 | BB8: 14622.054 | BC8: 10901.735 | BD8: 17142.391 | BE8: 12777.66 | BF8: 15594.213 | BG8: 11481.727 | BH8: 14148.497 | BI8: 9852.593 | BJ8: 14629.589 | BK8: 9675.552 | BL8: 24353.107 | BM8: 16586.008 | BN8: 36964.844 | BO8: 27539.742 | BP8: 42581.688 | BQ8: 29201.025 | BR8: 46205.684 | BS8: 35037.563 | BT8: 43711.047 | BU8: 30185.223 | BV8: 32598.051 | BW8: 24294.336 | BX8: 23131.541 | BY8: 15676.786 | BZ8: 14918.863 | CA8: 11123.027 | CB8: 17439.23 | CC8: 12998.92 | CD8: 15892.603 | CE8: 11701.427 | CF8: 14453.914 | CG8: 10065.275 | CH8: 14941.44 | CI8: 9881.8 | CJ8: 24661.391 | CK8: 16795.822 | CL8: 37261.602 | CM8: 27761.086 | CN8: 42889.109 | CO8: 29411.697 | CP8: 46500.258 | CQ8: 35261.09 | CR8: 44017.641 | CS8: 30396.746 | CT8: 32895.035 | CU8: 24515.453 | CV8: 23787.539 | CW8: 16121.354 | CX8: 15625.582 | CY8: 11649.934 | CZ8: 18256.492 | DA8: 13608.094 | DB8: 17752.979 | DC8: 13071.188 | DD8: 15233.338 | DE8: 10608.043 | DF8: 15686.213 | DG8: 10374.371 | DH8: 25796 | DI8: 17568.025 | DJ8: 35417.461 | DK8: 26385.617 | DL8: 44227.086 | DM8: 30328.564 | DN8: 45728.102 | DO8: 34675.184 | DP8: 43835.719 | DQ8: 30271.238 | DR8: 32485.93 | DS8: 24210.859 | DT8: 23981.061 | DU8: 16252.505 | DV8: 15811.938 | DW8: 11788.874 | DX8: 18442.943 | DY8: 13747.072 | DZ8: 17940.973 | EA8: 13209.604 | EB8: 15158.565 | EC8: 10555.974 | ED8: 15882.019 | EE8: 10503.87 | EF8: 25989.258 | EG8: 17699.553 | EH8: 35603.215 | EI8: 26524.164 | EJ8: 44419.59 | EK8: 30460.482 | EL8: 45912.543 | EM8: 34815.133 | EN8: 44027.652 | EO8: 30403.648 | EP8: 32671.855 | EQ8: 24349.285 | ER8: 23616.064 | ES8: 16018.583 | ET8: 15556.135 | EU8: 11521.268 | EV8: 18588.633 | EW8: 13756.594 | EX8: 18472.557 | EY8: 13597.803 | EZ8: 15475.735 | FA8: 10807.876 | FB8: 14530.353 | FC8: 9735.968 | FD8: 19890.738 | FE8: 13263.612 | FF8: 37430.484 | FG8: 28198.912 | FH8: 49519.953 | FI8: 34259.688 | FJ8: 48666.66 | FK8: 36655.766 | FL8: 44233.012 | FM8: 29921.9 | FN8: 32366.777 | FO8: 24443.57 | FP8: 23753.238 | FQ8: 16111.62 | FR8: 15688.392 | FS8: 11619.22 | FT8: 18720.936 | FU8: 13854.504 | FV8: 18605.158 | FW8: 13695.412 | FX8: 15611.282 | FY8: 10902.538 | FZ8: 14668.199 | GA8: 9828.33 | GB8: 20028.867 | GC8: 13355.694 | GD8: 37561.746 | GE8: 28297.854 | GF8: 49656.047 | GG8: 34353.805 | GH8: 48797.945 | GI8: 36754.691 | GJ8: 44370.348 | GK8: 30014.768 | GL8: 32497.98 | GM8: 24542.578 | GN8: 23890.408 | GO8: 16204.657 | GP8: 15820.648 | GQ8: 11717.172 | GR8: 18853.234 | GS8: 13952.414 | GT8: 18737.758 | GU8: 13793.021 | GV8: 16139.378 | GW8: 11271.347 | GX8: 14806.045 | GY8: 9920.693 | GZ8: 20166.992 | HA8: 13447.776 | HB8: 37693.012 | HC8: 28396.799 | HD8: 49792.148 | HE8: 34447.914 | HF8: 48929.223 | HG8: 36853.625 | HH8: 44507.684 | HI8: 30107.643 | HJ8: 32629.18 | HK8: 24641.586 | HL8: 24027.578 | HM8: 16297.698 | HN8: 15952.905 | HO8: 11815.124 | HP8: 18985.533 | HQ8: 14050.322 | HR8: 18870.359 | HS8: 13890.629 | HT8: 15882.375 | HU8: 11091.863 | HV8: 14943.892 | HW8: 10013.056 | HX8: 20305.121 | HY8: 13539.858 | HZ8: 37824.277 | IA8: 28495.744 | IB8: 49928.242 | IC8: 34542.023 | ID8: 49060.504 | IE8: 36952.547 | IF8: 44645.02 | IG8: 30200.518 | IH8: 32760.379 | II8: 24740.598 | IJ8: 24164.75 | IK8: 16390.738 | IL8: 16085.161 | IM8: 11913.077 | IN8: 19117.836 | IO8: 14148.23 | IP8: 19002.961 | IQ8: 13988.238 | IR8: 16017.921 | IS8: 11186.526 | IT8: 15081.738 | IU8: 10105.42 | IV8: 20443.248 | IW8: 13631.942 | IX8: 37955.543 | IY8: 28594.689 | IZ8: 50064.336 | JA8: 34636.141 | JB8: 49191.789 | JC8: 37051.473 | JD8: 44782.355 | JE8: 30293.393 | JF8: 32891.582 | JG8: 24839.609 | JH8: 24301.924 | JI8: 16483.775 | JJ8: 16217.418 | JK8: 12011.029 | JL8: 19250.137 | JM8: 14246.141 | JN8: 19135.561 | JO8: 14085.846 | JP8: 16153.469 | JQ8: 11281.188 | JR8: 15219.584 | JS8: 10197.783 | JT8: 20581.377 | JU8: 13724.024 | JV8: 38086.813 | JW8: 28693.631 | JX8: 50200.438 | JY8: 34730.25 | JZ8: 49323.074 | KA8: 37150.406 | KB8: 44919.695 | KC8: 30386.264 | KD8: 33022.781 | KE8: 24938.617 | KF8: 24439.094 | KG8: 16576.816 | KH8: 16349.674 | KI8: 12108.982 | KJ8: 19382.438 | KK8: 14344.051 | KL8: 19268.162 | KM8: 14183.455 | KN8: 16681.564 | KO8: 11649.998 | KP8: 15357.43 | KQ8: 10290.146 | KR8: 20719.504 | KS8: 13816.104 | KT8: 38218.07 | KU8: 28792.576 | KV8: 50336.539 | KW8: 34824.359 | KX8: 49454.355 | KY8: 37249.328 | KZ8: 45057.023 | LA8: 30479.139 | LB8: 33153.984 | LC8: 25037.625 | LD8: 24576.264 | LE8: 16669.854 | LF8: 16481.93 | LG8: 12206.936 | LH8: 19514.736 | LI8: 14441.959 | LJ8: 19400.762 | LK8: 14281.063 | LL8: 16424.561 | LM8: 11470.514 | LN8: 15495.276 | LO8: 10382.509 | LP8: 20857.633 | LQ8: 13908.187 | LR8: 38349.34 | LS8: 28891.518 | LT8: 50472.629 | LU8: 34918.473 | LV8: 49585.641 | LW8: 37348.262 | LX8: 45194.359 | LY8: 30572.014 | LZ8: 33285.184 | MA8: 25136.633 | MB8: 24713.434 | MC8: 16762.895 | MD8: 16614.189 | ME8: 12304.887 | MF8: 19647.037 | MG8: 14539.869 | MH8: 19533.363 | MI8: 14378.672 | MJ8: 16560.109 | MK8: 11565.176 | ML8: 15633.124 | MM8: 10474.872 | MN8: 20995.758 | MO8: 14000.269 | MP8: 38480.602 | MQ8: 28990.467 | MR8: 50608.727 | MS8: 35012.586 | MT8: 49716.914 | MU8: 37447.184 | MV8: 45331.699 | MW8: 30664.885 | MX8: 33416.383 | MY8: 25235.645 | MZ8: 24850.604 | NA8: 16855.932 | NB8: 16746.445 | NC8: 12402.842 | ND8: 19779.336 | NE8: 14637.777 | NF8: 19665.965 | NG8: 14476.281 | NH8: 16695.658 | NI8: 11659.838 | NJ8: 15770.97 | NK8: 10567.235 | NL8: 21133.887 | NM8: 14092.351 | NN8: 38611.871 | NO8: 29089.408 | NP8: 50744.828 | NQ8: 35106.695 | NR8: 49848.199 | NS8: 37546.117 | NT8: 45469.035 | NU8: 30757.76 | NV8: 33547.582 | NW8: 25334.652 | NX8: 24987.775 | NY8: 16948.971 | NZ8: 16878.703 | OA8: 12500.793 | OB8: 19911.637 | OC8: 14735.688 | OD8: 19798.564 | OE8: 14573.889 | OF8: 17223.752 | OG8: 12028.648 | OH8: 15908.816 | OI8: 10659.598 | OJ8: 21272.016 | OK8: 14184.433 | OL8: 38743.129 | OM8: 29188.354 | ON8: 50880.922 | OO8: 35200.813 | OP8: 49979.484 | OQ8: 37645.043 | OR8: 45606.363 | OS8: 30850.635 | OT8: 33678.785 | OU8: 25433.66 | OV8: 25124.943 | OW8: 17042.01 | OX8: 17010.959 | OY8: 12598.746 | OZ8: 20043.936 | PA8: 14833.596 | PB8: 19931.166 | PC8: 14671.498 | PD8: 16966.75 | PE8: 11849.164 | PF8: 16046.662 | PG8: 10751.961 | PH8: 21410.141 | PI8: 14276.515 | PJ8: 38874.398 | PK8: 29287.295 | PL8: 51017.023 | PM8: 35294.922 | PN8: 50110.766 | PO8: 37743.973 | PP8: 45743.703 | PQ8: 30943.506 | PR8: 33809.984 | PS8: 25532.668 | PU8: 533227.701 | PV8: 560917.374 | PW8: 558374.555 | PX8: 564591.756 | PY8: 572704.912 | PZ8: 576151.776 | QA8: 580528.641 | QB8: 583291.152 | QC8: 586720.357 | QD8: 588816.165 | QE8: 591578.696 | QF8: 594341.225 | QG8: 597770.416 | QH8: 599866.237 | QI8: 602628.746 | QJ8: 605391.268 | QK8: 608820.471 | QL8: 610916.285
A9: 1 | B9: 10029 | C9: Blachly Lane Elec Coop | D9: 8987.786 | E9: 4688.754 | F9: 9182.613 | G9: 5859.493 | H9: 10370.279 | I9: 6218.675 | J9: 10454.674 | K9: 6597.378 | L9: 9908.985 | M9: 5558.084 | N9: 9793.305 | O9: 5360.581 | P9: 9412.046 | Q9: 5154.786 | R9: 8243.752 | S9: 5013.926 | T9: 8700.613 | U9: 4557.468 | V9: 8227.113 | W9: 4861.131 | X9: 8870.017 | Y9: 4531.24 | Z9: 8177.497 | AA9: 4535.59 | AB9: 8912.844 | AC9: 5004.375 | AD9: 9779.031 | AE9: 5799.013 | AF9: 10480.322 | AG9: 6284.665 | AH9: 10425.88 | AI9: 6579.209 | AJ9: 9927.284 | AK9: 5630.463 | AL9: 9935.862 | AM9: 5438.612 | AN9: 9353.297 | AO9: 5521.052 | AP9: 8540.456 | AQ9: 4834.116 | AR9: 8687.688 | AS9: 4550.698 | AT9: 8351.894 | AU9: 4934.858 | AV9: 9029.969 | AW9: 4612.952 | AX9: 8228.624 | AY9: 4563.948 | AZ9: 8732.387 | BA9: 4908.583 | BB9: 9382.453 | BC9: 5556.914 | BD9: 9934.25 | BE9: 6396.465 | BF9: 10369.415 | BG9: 6094.255 | BH9: 9571.111 | BI9: 5429.097 | BJ9: 9952.958 | BK9: 5450.867 | BL9: 9097.54 | BM9: 5377.306 | BN9: 8306.649 | BO9: 4720.977 | BP9: 8460.266 | BQ9: 4452.161 | BR9: 8121.61 | BS9: 4804.461 | BT9: 9061.939 | BU9: 4646.96 | BV9: 7986.202 | BW9: 4783.687 | BX9: 8962.799 | BY9: 4678.17 | BZ9: 9382.453 | CA9: 5556.914 | CB9: 9934.25 | CC9: 6396.465 | CD9: 10369.415 | CE9: 6094.255 | CF9: 9571.111 | CG9: 5429.097 | CH9: 9692.42 | CI9: 5711.404 | CJ9: 9350.188 | CK9: 5124.659 | CL9: 8306.649 | CM9: 4720.977 | CN9: 8234.89 | CO9: 4677.537 | CP9: 8339.946 | CQ9: 4586.125 | CR9: 9061.939 | CS9: 4646.96 | CT9: 7986.202 | CU9: 4783.687 | CV9: 9836.74 | CW9: 5167.726 | CX9: 10091.908 | CY9: 6033.387 | CZ9: 11120.971 | DA9: 7186.165 | DB9: 11245.355 | DC9: 6675.118 | DD9: 10856.315 | DE9: 6126.806 | DF9: 10376.212 | DG9: 6147.777 | DH9: 10062.282 | DI9: 5561.245 | DJ9: 8812.032 | DK9: 5423.962 | DL9: 9464.813 | DM9: 5029.785 | DN9: 9314.549 | DO9: 5177.946 | DP9: 9553.773 | DQ9: 5296.109 | DR9: 8874.253 | DS9: 5002.121 | DT9: 9926.176 | DU9: 5221.073 | DV9: 9861.519 | DW9: 6329.415 | DX9: 11415.077 | DY9: 6892.059 | DZ9: 10956.24 | EA9: 6964.233 | EB9: 10451.225 | EC9: 5961.325 | ED9: 10641.45 | EE9: 5882.539 | EF9: 10062.282 | EG9: 5561.245 | EH9: 8812.032 | EI9: 5423.962 | EJ9: 9464.813 | EK9: 5029.785 | EL9: 9314.549 | EM9: 5177.946 | EN9: 9553.773 | EO9: 5296.109 | EP9: 8874.253 | EQ9: 5002.121 | ER9: 9364.296 | ES9: 5360.448 | ET9: 8900.123 | EU9: 5364.712 | EV9: 10530.587 | EW9: 6422.161 | EX9: 10911.128 | EY9: 6948.458 | EZ9: 9710.449 | FA9: 5578.943 | FB9: 10638.438 | FC9: 5824.798 | FD9: 9677.58 | FE9: 5251.539 | FF9: 8315.484 | FG9: 5128.628 | FH9: 8813.744 | FI9: 4704.797 | FJ9: 8614.854 | FK9: 5156.623 | FL9: 9207.836 | FM9: 4873.14 | FN9: 8297.97 | FO9: 4670.208 | FP9: 9364.296 | FQ9: 5360.448 | FR9: 8900.123 | FS9: 5364.712 | FT9: 10530.587 | FU9: 6422.161 | FV9: 10911.128 | FW9: 6948.458 | FX9: 9710.449 | FY9: 5578.943 | FZ9: 10638.438 | GA9: 5824.798 | GB9: 9396.667 | GC9: 5532.452 | GD9: 8560.294 | GE9: 4883.818 | GF9: 8813.744 | GG9: 4704.797 | GH9: 8614.854 | GI9: 5156.623 | GJ9: 9207.836 | GK9: 4873.14 | GL9: 8297.97 | GM9: 4670.208 | GN9: 9364.296 | GO9: 5360.448 | GP9: 8900.123 | GQ9: 5364.712 | GR9: 10221.887 | GS9: 6730.861 | GT9: 11236.342 | GU9: 6623.245 | GV9: 10089.544 | GW9: 5727.494 | GX9: 10338.248 | GY9: 6124.988 | GZ9: 9677.58 | HA9: 5251.539 | HB9: 8560.294 | HC9: 4883.818 | HD9: 8559.373 | HE9: 4959.168 | HF9: 8865.625 | HG9: 4905.852 | HH9: 9207.836 | HI9: 4873.14 | HJ9: 8053.955 | HK9: 4914.223 | HL9: 9632.426 | HM9: 5092.318 | HN9: 8900.123 | HO9: 5364.712 | HP9: 10221.887 | HQ9: 6730.861 | HR9: 11236.342 | HS9: 6623.245 | HT9: 9710.449 | HU9: 5578.943 | HV9: 10338.248 | HW9: 6124.988 | HX9: 9677.58 | HY9: 5251.539 | HZ9: 8560.294 | IA9: 4883.818 | IB9: 8559.373 | IC9: 4959.168 | ID9: 8865.625 | IE9: 4905.852 | IF9: 8951.428 | IG9: 5129.548 | IH9: 8297.97 | II9: 4670.208 | IJ9: 9632.426 | IK9: 5092.318 | IL9: 8632.082 | IM9: 5632.753 | IN9: 10530.587 | IO9: 6422.161 | IP9: 11236.342 | IQ9: 6623.245 | IR9: 9710.449 | IS9: 5578.943 | IT9: 10338.248 | IU9: 6124.988 | IV9: 9677.58 | IW9: 5251.539 | IX9: 8315.484 | IY9: 5128.628 | IZ9: 8813.744 | JA9: 4704.797 | JB9: 8865.625 | JC9: 4905.852 | JD9: 8951.428 | JE9: 5129.548 | JF9: 8297.97 | JG9: 4670.208 | JH9: 9632.426 | JI9: 5092.318 | JJ9: 8632.082 | JK9: 5632.753 | JL9: 10530.587 | JM9: 6422.161 | JN9: 10911.128 | JO9: 6948.458 | JP9: 9710.449 | JQ9: 5578.943 | JR9: 10638.438 | JS9: 5824.798 | JT9: 9677.58 | JU9: 5251.539 | JV9: 8315.484 | JW9: 5128.628 | JX9: 8813.744 | JY9: 4704.797 | JZ9: 8865.625 | KA9: 4905.852 | KB9: 8951.428 | KC9: 5129.548 | KD9: 8297.97 | KE9: 4670.208 | KF9: 9364.296 | KG9: 5360.448 | KH9: 8900.123 | KI9: 5364.712 | KJ9: 10530.587 | KK9: 6422.161 | KL9: 10911.128 | KM9: 6948.458 | KN9: 10089.544 | KO9: 5727.494 | KP9: 10638.438 | KQ9: 5824.798 | KR9: 9396.667 | KS9: 5532.452 | KT9: 8560.294 | KU9: 4883.818 | KV9: 8813.744 | KW9: 4704.797 | KX9: 8614.854 | KY9: 5156.623 | KZ9: 9207.836 | LA9: 4873.14 | LB9: 8297.97 | LC9: 4670.208 | LD9: 9364.296 | LE9: 5360.448 | LF9: 8900.123 | LG9: 5364.712 | LH9: 10221.887 | LI9: 6730.861 | LJ9: 11236.342 | LK9: 6623.245 | LL9: 9710.449 | LM9: 5578.943 | LN9: 10638.438 | LO9: 5824.798 | LP9: 9396.667 | LQ9: 5532.452 | LR9: 8560.294 | LS9: 4883.818 | LT9: 8813.744 | LU9: 4704.797 | LV9: 8614.854 | LW9: 5156.623 | LX9: 9207.836 | LY9: 4873.14 | LZ9: 8053.955 | MA9: 4914.223 | MB9: 9632.426 | MC9: 5092.318 | MD9: 8900.123 | ME9: 5364.712 | MF9: 10221.887 | MG9: 6730.861 | MH9: 11236.342 | MI9: 6623.245 | MJ9: 9710.449 | MK9: 5578.943 | ML9: 10338.248 | MM9: 6124.988 | MN9: 9677.58 | MO9: 5251.539 | MP9: 8560.294 | MQ9: 4883.818 | MR9: 8559.373 | MS9: 4959.168 | MT9: 8865.625 | MU9: 4905.852 | MV9: 9207.836 | MW9: 4873.14 | MX9: 8053.955 | MY9: 4914.223 | MZ9: 9632.426 | NA9: 5092.318 | NB9: 8900.123 | NC9: 5364.712 | ND9: 10221.887 | NE9: 6730.861 | NF9: 11236.342 | NG9: 6623.245 | NH9: 9710.449 | NI9: 5578.943 | NJ9: 10338.248 | NK9: 6124.988 | NL9: 9677.58 | NM9: 5251.539 | NN9: 8560.294 | NO9: 4883.818 | NP9: 8559.373 | NQ9: 4959.168 | NR9: 8865.625 | NS9: 4905.852 | NT9: 8951.428 | NU9: 5129.548 | NV9: 8297.97 | NW9: 4670.208 | NX9: 9632.426 | NY9: 5092.318 | NZ9: 8632.082 | OA9: 5632.753 | OB9: 10530.587 | OC9: 6422.161 | OD9: 11236.342 | OE9: 6623.245 | OF9: 9781.661 | OG9: 6035.376 | OH9: 10638.438 | OI9: 5824.798 | OJ9: 9677.58 | OK9: 5251.539 | OL9: 8315.484 | OM9: 5128.628 | ON9: 8813.744 | OO9: 4704.797 | OP9: 8865.625 | OQ9: 4905.852 | OR9: 8951.428 | OS9: 5129.548 | OT9: 8297.97 | OU9: 4670.208 | OV9: 9364.296 | OW9: 5360.448 | OX9: 8900.123 | OY9: 5364.712 | OZ9: 10530.587 | PA9: 6422.161 | PB9: 10911.128 | PC9: 6948.458 | PD9: 9710.449 | PE9: 5578.943 | PF9: 10638.438 | PG9: 5824.798 | PH9: 9677.58 | PI9: 5251.539 | PJ9: 8315.484 | PK9: 5128.628 | PL9: 8813.744 | PM9: 4704.797 | PN9: 8614.854 | PO9: 5156.623 | PP9: 9207.836 | PQ9: 4873.14 | PR9: 8297.97 | PS9: 4670.208 | PU9: 173265.786 | PV9: 175407.112 | PW9: 171598.513 | PX9: 171598.512 | PY9: 188437.35 | PZ9: 188075.201 | QA9: 178266.944 | QB9: 178266.944 | QC9: 178794.591 | QD9: 178266.945 | QE9: 178266.945 | QF9: 178266.944 | QG9: 178794.59 | QH9: 178266.945 | QI9: 178266.945 | QJ9: 178266.945 | QK9: 178794.59 | QL9: 178266.944
A10: 0 | B10: 10044 | C10: Canby, City of | D10: 9530.083 | E10: 4919.665 | F10: 10323.782 | G10: 6602.677 | H10: 12154.946 | I10: 7105.22 | J10: 11332.89 | K10: 7166.81 | L10: 10521.146 | M10: 5682.753 | N10: 10158.859 | O10: 5328.671 | P10: 9463.064 | Q10: 5021.92 | R10: 8811.851 | S10: 5278.779 | T10: 9201.647 | U10: 4714.934 | V10: 9833.667 | W10: 5792.103 | X10: 10499.475 | Y10: 5216.49 | Z10: 8935.397 | AA10: 4954.072 | AB10: 8759.803 | AC10: 4973.744 | AD10: 10207.023 | AE10: 6042.545 | AF10: 11659.224 | AG10: 6869.756 | AH10: 10833.36 | AI10: 6951.744 | AJ10: 9816.252 | AK10: 5438.438 | AL10: 9701.263 | AM10: 5105.008 | AN10: 8712.765 | AO10: 5084.697 | AP10: 8598.546 | AQ10: 4776.362 | AR10: 8701.468 | AS10: 4524.643 | AT10: 9281.74 | AU10: 5638.121 | AV10: 9950.019 | AW10: 5058.24 | AX10: 8484.952 | AY10: 4717.734 | AZ10: 8756.853 | BA10: 4971.372 | BB10: 10209.616 | BC10: 6043.601 | BD10: 11274.307 | BE10: 7263.707 | BF10: 11218.042 | BG10: 6580.543 | BH10: 9830.698 | BI10: 5446.762 | BJ10: 9717.832 | BK10: 5113.482 | BL10: 8723.088 | BM10: 5092.771 | BN10: 8611.672 | BO10: 4782.032 | BP10: 8719.151 | BQ10: 4533.158 | BR10: 9296.766 | BS10: 5647.207 | BT10: 9965.48 | BU10: 5065.953 | BV10: 8211.381 | BW10: 5013.967 | BX10: 9107.053 | BY10: 4712.61 | BZ10: 10263.229 | CA10: 6075.375 | CB10: 11323.146 | CC10: 7294.989 | CD10: 11265.211 | CE10: 6608.471 | CF10: 9878.479 | CG10: 5473.211 | CH10: 9451.373 | CI10: 5453.802 | CJ10: 9072.976 | CK10: 4817.053 | CL10: 8659.143 | CM10: 4808.521 | CN10: 8476.777 | CO10: 4848.786 | CP10: 9659.086 | CQ10: 5358.114 | CR10: 10013.939 | CS10: 5090.615 | CT10: 8256.729 | CU10: 5041.577 | CV10: 9130.538 | CW10: 4725.213 | CX10: 10304.729 | CY10: 6100.029 | CZ10: 11357.404 | DA10: 7316.489 | DB10: 11300.285 | DC10: 6630.604 | DD10: 10163.474 | DE10: 5552.413 | DF10: 9486.163 | DG10: 5472.721 | DH10: 9118.656 | DI10: 4840.874 | DJ10: 8373.217 | DK10: 5092.556 | DL10: 8808.957 | DM10: 4580.14 | DN10: 9698.535 | DO10: 5380.829 | DP10: 9737.303 | DQ10: 5431.3 | DR10: 8588.777 | DS10: 4775.014 | DT10: 9192.267 | DU10: 4758.159 | DV10: 10001.327 | DW10: 6490.657 | DX10: 11801.466 | DY10: 6953.262 | DZ10: 10968.218 | EA10: 7037.662 | EB10: 9960.949 | EC10: 5518.688 | ED10: 9842.485 | EE10: 5179.19 | EF10: 9155.944 | EG10: 4860.785 | EH10: 8413.177 | EI10: 5116.864 | EJ10: 8851.048 | EK10: 4602.078 | EL10: 9739.605 | EM10: 5403.688 | EN10: 9778.262 | EO10: 5454.162 | EP10: 8629.624 | EQ10: 4797.787 | ER10: 9632.176 | ES10: 5640.131 | ET10: 10354.18 | EU10: 6341.374 | EV10: 11913.128 | EW10: 7174.902 | EX10: 11523.938 | EY10: 7579.709 | EZ10: 9915.72 | FA10: 5615.697 | FB10: 10530.874 | FC10: 5692.655 | FD10: 9658.257 | FE10: 5218.625 | FF10: 8460.366 | FG10: 5258.597 | FH10: 9385.653 | FI10: 5031.239 | FJ10: 9961.146 | FK10: 6178.536 | FL10: 10717.621 | FM10: 5609.156 | FN10: 8907.49 | FO10: 5170.499 | FP10: 9665.138 | FQ10: 5659.441 | FR10: 10416.269 | FS10: 6379.401 | FT10: 11984.6 | FU10: 7217.947 | FV10: 11593.067 | FW10: 7625.182 | FX10: 9975.184 | FY10: 5649.369 | FZ10: 10594.032 | GA10: 5726.793 | GB10: 9380.252 | GC10: 5585.838 | GD10: 8810.891 | GE10: 4990.316 | GF10: 9441.929 | GG10: 5061.407 | GH10: 10020.884 | GI10: 6215.587 | GJ10: 10781.903 | GK10: 5642.795 | GL10: 8960.898 | GM10: 5201.498 | GN10: 9721.565 | GO10: 5692.481 | GP10: 10477.09 | GQ10: 6416.646 | GR10: 11635.124 | GS10: 7679.584 | GT10: 12080.592 | GU10: 7249.903 | GV10: 10446.295 | GW10: 5831.614 | GX10: 10298.919 | GY10: 6117.212 | GZ10: 9772.904 | HA10: 5280.564 | HB10: 8862.319 | HC10: 5019.45 | HD10: 9169.64 | HE10: 5418.361 | HF10: 10434.085 | HG10: 5897.19 | HH10: 10844.857 | HI10: 5675.74 | HJ10: 8693.467 | HK10: 5551.592 | HL10: 10118.309 | HM10: 5390.621 | HN10: 10541.596 | HO10: 6456.15 | HP10: 11706.783 | HQ10: 7726.874 | HR10: 12154.98 | HS10: 7294.563 | HT10: 10095.198 | HU10: 5717.331 | HV10: 10362.33 | HW10: 6154.866 | HX10: 9833.067 | HY10: 5313.069 | HZ10: 8916.86 | IA10: 5050.348 | IB10: 9226.087 | IC10: 5451.707 | ID10: 10498.322 | IE10: 5933.502 | IF10: 10550.626 | IG10: 6071.695 | IH10: 9068.68 | II10: 5264.057 | IJ10: 10178.988 | IK10: 5422.96 | IL10: 10221.584 | IM10: 6878.111 | IN10: 12201.611 | IO10: 7348.655 | IP10: 12227.899 | IQ10: 7338.342 | IR10: 10155.754 | IS10: 5751.62 | IT10: 10424.498 | IU10: 6191.778 | IV10: 9892.044 | IW10: 5344.936 | IX10: 8665.115 | IY10: 5385.846 | IZ10: 9612.81 | JA10: 5153.02 | JB10: 10561.284 | JC10: 5969.111 | JD10: 10613.919 | JE10: 6108.111 | JF10: 9123.056 | JG10: 5295.635 | JH10: 10240.012 | JI10: 5455.521 | JJ10: 10282.913 | JK10: 6919.361 | JL10: 12274.813 | JM10: 7392.758 | JN10: 11873.792 | JO10: 7809.86 | JP10: 10216.677 | JQ10: 5786.115 | JR10: 10850.517 | JS10: 5865.442 | JT10: 9951.374 | JU10: 5377.002 | JV10: 8717.089 | JW10: 5418.145 | JX10: 9670.449 | JY10: 5183.938 | JZ10: 10624.616 | KA10: 6004.94 | KB10: 10677.598 | KC10: 6144.752 | KD10: 9177.762 | KE10: 5327.408 | KF10: 9956.88 | KG10: 5830.316 | KH10: 10730.729 | KI10: 6572.008 | KJ10: 12346.522 | KK10: 7435.962 | KL10: 11943.144 | KM10: 7855.497 | KN10: 10699.206 | KO10: 5972.785 | KP10: 10913.886 | KQ10: 5899.705 | KR10: 9663.48 | KS10: 5754.407 | KT10: 9076.784 | KU10: 5140.986 | KV10: 9726.909 | KW10: 5214.225 | KX10: 10323.425 | KY10: 6403.258 | KZ10: 11107.407 | LA10: 5813.202 | LB10: 9231.345 | LC10: 5358.531 | LD10: 10018.173 | LE10: 5866.235 | LF10: 10796.807 | LG10: 6612.489 | LH10: 11990.357 | LI10: 7913.985 | LJ10: 12449.26 | LK10: 7471.336 | LL10: 10339.64 | LM10: 5855.735 | LN10: 10981.093 | LO10: 5936.041 | LP10: 9722.999 | LQ10: 5789.829 | LR10: 9132.654 | LS10: 5172.653 | LT10: 9786.787 | LU10: 5246.342 | LV10: 10386.999 | LW10: 6442.697 | LX10: 11175.796 | LY10: 5849.016 | LZ10: 8958.753 | MA10: 5720.95 | MB10: 10425.297 | MC10: 5554.407 | MD10: 10861.571 | ME10: 6652.168 | MF10: 12062.324 | MG10: 7961.469 | MH10: 12523.943 | MI10: 7516.207 | MJ10: 10401.677 | MK10: 5890.859 | ML10: 10676.974 | MM10: 6341.67 | MN10: 10131.529 | MO10: 5474.368 | MP10: 9187.423 | MQ10: 5203.697 | MR10: 9506.147 | MS10: 5617.163 | MT10: 10816.935 | MU10: 6113.742 | MV10: 11242.841 | MW10: 5884.126 | MX10: 9012.499 | MY10: 5755.263 | MZ10: 10487.811 | NA10: 5587.77 | NB10: 10926.736 | NC10: 6692.089 | ND10: 12134.729 | NE10: 8009.241 | NF10: 12599.076 | NG10: 7561.342 | NH10: 10464.096 | NI10: 5926.202 | NJ10: 10741.045 | NK10: 6379.71 | NL10: 10192.309 | NM10: 5507.213 | NN10: 9242.521 | NO10: 5234.919 | NP10: 9563.186 | NQ10: 5650.858 | NR10: 10881.822 | NS10: 6150.436 | NT10: 10936.188 | NU10: 6293.538 | NV10: 9399.922 | NW10: 5456.428 | NX10: 10549.06 | NY10: 5620.419 | NZ10: 10593.491 | OA10: 7128.257 | OB10: 12645.56 | OC10: 7616.113 | OD10: 12672.683 | OE10: 7605.532 | OF10: 10561.989 | OG10: 6513.731 | OH10: 11178.183 | OI10: 6042.59 | OJ10: 10251.848 | OK10: 5539.38 | OL10: 8980.285 | OM10: 5581.713 | ON10: 9962.396 | OO10: 5340.509 | OP10: 10945.394 | OQ10: 6186.371 | OR10: 11000.087 | OS10: 6330.297 | OT10: 9454.824 | OU10: 5488.293 | OV10: 10260.738 | OW10: 6008.328 | OX10: 11058.256 | OY10: 6772.636 | OZ10: 12723.463 | PA10: 7663.033 | PB10: 12307.761 | PC10: 8095.383 | PD10: 10590.048 | PE10: 5997.525 | PF10: 11247.027 | PG10: 6079.804 | PH10: 10314.981 | PI10: 5573.489 | PJ10: 9035.588 | PK10: 5616.083 | PL10: 10023.742 | PM10: 5373.396 | PN10: 10638.547 | PO10: 6598.73 | PP10: 11446.449 | PQ10: 5990.685 | PR10: 9513.055 | PS10: 5522.092 | PU10: 188550.901 | PV10: 179887.447 | PW10: 180089.441 | PX10: 181010.265 | PY10: 181966.22 | PZ10: 182507.354 | QA10: 191471.669 | QB10: 192580.621 | QC10: 194267.194 | QD10: 194897.621 | QE10: 196066.687 | QF10: 197242.854 | QG10: 198970.599 | QH10: 199616.626 | QI10: 200814.299 | QJ10: 202019.187 | QK10: 203789.005 | QL10: 204450.839
A11: 1 | B11: 10046 | C11: Central Electric Coop | D11: 29899.125 | E11: 18322.51 | F11: 37306.445 | G11: 26737.055 | H11: 47900.324 | I11: 33370.129 | J11: 42722.449 | K11: 31289.334 | L11: 37632.191 | M11: 25122.1 | N11: 34444.773 | O11: 22839.076 | P11: 31666.473 | Q11: 20331.674 | R11: 32630.199 | S11: 22901.002 | T11: 33622.547 | U11: 20905.438 | V11: 36966.012 | W11: 24541.545 | X11: 36670.406 | Y11: 22231.984 | Z11: 31710.783 | AA11: 21138.813 | AB11: 29944.375 | AC11: 18350.234 | AD11: 37279.078 | AE11: 26717.441 | AF11: 48188.047 | AG11: 33570.57 | AH11: 42363.648 | AI11: 31026.049 | AJ11: 36719.797 | AK11: 24513.008 | AL11: 34331.391 | AM11: 22763.957 | AN11: 31699.629 | AO11: 20275.137 | AP11: 32719.756 | AQ11: 22963.16 | AR11: 33598.109 | AS11: 20889.887 | AT11: 36884.895 | AU11: 24486.486 | AV11: 36377.383 | AW11: 22190.699 | AX11: 31574.275 | AY11: 21047.816 | AZ11: 30931.77 | BA11: 18955.326 | BB11: 38043.559 | BC11: 27265.566 | BD11: 49212.723 | BE11: 34284.422 | BF11: 43476.094 | BG11: 31841.299 | BH11: 37701.66 | BI11: 25168.469 | BJ11: 35367.816 | BK11: 23451.111 | BL11: 32823.176 | BM11: 20994.547 | BN11: 33682.273 | BO11: 23639.385 | BP11: 34869.328 | BQ11: 21680.646 | BR11: 37816.59 | BS11: 25106.098 | BT11: 37440.008 | BU11: 22839.316 | BV11: 32450.74 | BW11: 21632.074 | BX11: 31192.656 | BY11: 19115.199 | BZ11: 38288.676 | CA11: 27441.242 | CB11: 49460.738 | CC11: 34457.195 | CD11: 43718.992 | CE11: 32019.189 | CF11: 37953.969 | CG11: 25336.908 | CH11: 35620.813 | CI11: 23618.863 | CJ11: 33079.793 | CK11: 21158.686 | CL11: 33929.508 | CM11: 23812.906 | CN11: 35128.777 | CO11: 21841.967 | CP11: 38069.477 | CQ11: 25273.986 | CR11: 37701.352 | CS11: 22998.74 | CT11: 32703.209 | CU11: 21800.375 | CV11: 34054.18 | CW11: 20868.771 | CX11: 41200.273 | CY11: 29527.969 | CZ11: 52575.516 | DA11: 36627.129 | DB11: 47122.965 | DC11: 34512.219 | DD11: 42192.742 | DE11: 28166.586 | DF11: 38998.375 | DG11: 25858.4 | DH11: 36561.871 | DI11: 23385.908 | DJ11: 36918.641 | DK11: 25910.777 | DL11: 38777.141 | DM11: 24110.398 | DN11: 41155.543 | DO11: 27322.801 | DP11: 41739.012 | DQ11: 25461.807 | DR11: 35849.699 | DS11: 23897.867 | DT11: 34774.367 | DU11: 21310.107 | DV11: 41876.93 | DW11: 30012.922 | DX11: 53260.148 | DY11: 37104.094 | DZ11: 47793.496 | EA11: 35003.297 | EB11: 42180.902 | EC11: 28158.676 | ED11: 39696.781 | EE11: 26321.484 | EF11: 37270.27 | EG11: 23839.018 | EH11: 37601.152 | EI11: 26389.787 | EJ11: 39493.359 | EK11: 24555.719 | EL11: 41853.645 | EM11: 27786.262 | EN11: 42460.453 | EO11: 25901.908 | EP11: 36546.652 | EQ11: 24362.461 | ER11: 35607.613 | ES11: 21638.387 | ET11: 43213.512 | EU11: 29837.953 | EV11: 54220.992 | EW11: 37304.852 | EX11: 49551.91 | EY11: 34406.488 | EZ11: 43278.914 | FA11: 28222.156 | FB11: 40921.766 | FC11: 26258.006 | FD11: 38136.313 | FE11: 24134.484 | FF11: 38569.375 | FG11: 26583.084 | FH11: 40375.039 | FI11: 24835.592 | FJ11: 42681.855 | FK11: 28119.615 | FL11: 43556.707 | FM11: 25967.201 | FN11: 37223.574 | FO11: 24847.096 | FP11: 36330.09 | FQ11: 22077.434 | FR11: 43900.66 | FS11: 30312.412 | FT11: 54909.141 | FU11: 37778.313 | FV11: 50237.484 | FW11: 34882.523 | FX11: 43981.957 | FY11: 28680.609 | FZ11: 41629.277 | GA11: 26711.99 | GB11: 38847.648 | GC11: 24584.656 | GD11: 39256.98 | GE11: 27056.998 | GF11: 41094.207 | GG11: 25277.971 | GH11: 43382.098 | GI11: 28580.938 | GJ11: 44284.414 | GK11: 26401.037 | GL11: 37920.152 | GM11: 25312.066 | GN11: 37052.578 | GO11: 22516.473 | GP11: 44587.809 | GQ11: 30786.875 | GR11: 55597.289 | GS11: 38251.766 | GT11: 50923.063 | GU11: 35358.551 | GV11: 45399.992 | GW11: 29605.316 | GX11: 42336.785 | GY11: 27165.979 | GZ11: 39558.992 | HA11: 25034.824 | HB11: 39944.586 | HC11: 27530.912 | HD11: 41813.375 | HE11: 25720.346 | HF11: 44082.332 | HG11: 29042.266 | HH11: 45012.121 | HI11: 26834.875 | HJ11: 38616.73 | HK11: 25777.039 | HL11: 37775.055 | HM11: 22955.52 | HN11: 45274.957 | HO11: 31261.338 | HP11: 56285.438 | HQ11: 38725.219 | HR11: 51608.637 | HS11: 35834.582 | HT11: 45388.039 | HU11: 29597.518 | HV11: 43044.301 | HW11: 27619.963 | HX11: 40270.332 | HY11: 25484.996 | HZ11: 40632.188 | IA11: 28004.832 | IB11: 42532.543 | IC11: 26162.721 | ID11: 44782.57 | IE11: 29503.602 | IF11: 45739.832 | IG11: 27268.711 | IH11: 39313.305 | II11: 26242.01 | IJ11: 38497.535 | IK11: 23394.566 | IL11: 45962.109 | IM11: 31735.799 | IN11: 56973.574 | IO11: 39198.68 | IP11: 52294.223 | IQ11: 36310.613 | IR11: 46091.078 | IS11: 30055.971 | IT11: 43751.813 | IU11: 28073.947 | IV11: 40981.672 | IW11: 25935.168 | IX11: 41319.793 | IY11: 28478.746 | IZ11: 43251.711 | JA11: 26605.096 | JB11: 45482.805 | JC11: 29964.93 | JD11: 46467.539 | JE11: 27702.549 | JF11: 40009.883 | JG11: 26706.98 | JH11: 39220.02 | JI11: 23833.609 | JJ11: 46649.254 | JK11: 32210.262 | JL11: 57661.723 | JM11: 39672.129 | JN11: 52979.797 | JO11: 36786.648 | JP11: 46794.117 | JQ11: 30514.426 | JR11: 44459.328 | JS11: 28527.932 | JT11: 41693.012 | JU11: 26385.336 | JV11: 42007.402 | JW11: 28952.66 | JX11: 43970.875 | JY11: 27047.475 | JZ11: 46183.043 | KA11: 30426.254 | KB11: 47195.246 | KC11: 28136.389 | KD11: 40706.461 | KE11: 27171.953 | KF11: 39942.5 | KG11: 24272.652 | KH11: 47336.406 | KI11: 32684.721 | KJ11: 58349.867 | KK11: 40145.586 | KL11: 53665.371 | KM11: 37262.68 | KN11: 48212.16 | KO11: 31439.125 | KP11: 45166.84 | KQ11: 28981.916 | KR11: 42404.348 | KS11: 26835.508 | KT11: 42695.004 | KU11: 29426.578 | KV11: 44690.043 | KW11: 27489.85 | KX11: 46883.277 | KY11: 30887.586 | KZ11: 47922.953 | LA11: 28570.223 | LB11: 41403.035 | LC11: 27636.928 | LD11: 40664.977 | LE11: 24711.699 | LF11: 48023.555 | LG11: 33159.184 | LH11: 59038.016 | LI11: 40619.039 | LJ11: 54350.949 | LK11: 37738.707 | LL11: 48200.207 | LM11: 31431.328 | LN11: 45874.355 | LO11: 29435.9 | LP11: 43115.691 | LQ11: 27285.676 | LR11: 43382.609 | LS11: 29900.492 | LT11: 45409.211 | LU11: 27932.225 | LV11: 47583.512 | LW11: 31348.914 | LX11: 48650.66 | LY11: 29004.061 | LZ11: 42099.613 | MA11: 28101.898 | MB11: 41387.461 | MC11: 25150.74 | MD11: 48710.707 | ME11: 33633.641 | MF11: 59726.16 | MG11: 41092.492 | MH11: 55036.523 | MI11: 38214.742 | MJ11: 48903.246 | MK11: 31889.783 | ML11: 46581.867 | MM11: 29889.891 | MN11: 43827.031 | MO11: 27735.844 | MP11: 44070.211 | MQ11: 30374.412 | MR11: 46128.379 | MS11: 28374.604 | MT11: 48283.746 | MU11: 31810.242 | MV11: 49378.367 | MW11: 29437.9 | MX11: 42796.199 | MY11: 28566.871 | MZ11: 42109.938 | NA11: 25589.787 | NB11: 49397.855 | NC11: 34108.105 | ND11: 60414.313 | NE11: 41565.949 | NF11: 55722.098 | NG11: 38690.773 | NH11: 49606.285 | NI11: 32348.236 | NJ11: 47289.383 | NK11: 30343.875 | NL11: 44538.371 | NM11: 28186.016 | NN11: 44757.813 | NO11: 30848.33 | NP11: 46847.547 | NQ11: 28816.979 | NR11: 48983.984 | NS11: 32271.57 | NT11: 50106.078 | NU11: 29871.734 | NV11: 43492.773 | NW11: 29031.846 | NX11: 42832.418 | NY11: 26028.83 | NZ11: 50085.004 | OA11: 34582.563 | OB11: 61102.457 | OC11: 42039.402 | OD11: 56407.676 | OE11: 39166.805 | OF11: 51024.324 | OG11: 33272.938 | OH11: 47996.895 | OI11: 30797.859 | OJ11: 45249.711 | OK11: 28636.184 | OL11: 45445.418 | OM11: 31322.244 | ON11: 47566.715 | OO11: 29259.352 | OP11: 49684.219 | OQ11: 32732.898 | OR11: 50833.781 | OS11: 30305.574 | OT11: 44189.352 | OU11: 29496.816 | OV11: 43554.902 | OW11: 26467.873 | OX11: 50772.152 | OY11: 35057.027 | OZ11: 61790.605 | PA11: 42512.855 | PB11: 57093.254 | PC11: 39642.832 | PD11: 51012.367 | PE11: 33265.145 | PF11: 48704.41 | PG11: 31251.844 | PH11: 45961.051 | PI11: 29086.352 | PJ11: 46133.023 | PK11: 31796.162 | PL11: 48285.879 | PM11: 29701.73 | PN11: 50384.457 | PO11: 33194.23 | PP11: 51561.488 | PQ11: 30739.412 | PR11: 44885.93 | PS11: 29961.789 | PU11: 722902.387 | PV11: 720474.827 | PW11: 740673.996 | PX11: 745723.216 | PY11: 812796.59 | PZ11: 825553.89 | QA11: 839492.484 | QB11: 853431.055 | QC11: 868550.874 | QD11: 881308.209 | QE11: 895246.78 | QF11: 909185.351 | QG11: 924305.157 | QH11: 937062.478 | QI11: 951001.059 | QJ11: 964939.638 | QK11: 980059.435 | QL11: 992816.769
A12: 0 | B12: 10047 | C12: Central Lincoln PUD | D12: 67564.672 | E12: 42982.121 | F12: 68227.125 | G12: 53843.613 | H12: 78400.234 | I12: 53990.848 | J12: 76012.609 | K12: 58311.453 | L12: 70249.016 | M12: 46089.398 | N12: 72723.164 | O12: 46270.559 | P12: 64208.27 | Q12: 41973.508 | R12: 57868.273 | S12: 44872.426 | T12: 59238.773 | U12: 38906.59 | V12: 56734.945 | W12: 44253.605 | X12: 61178.293 | Y12: 39509.242 | Z12: 59213.953 | AA12: 42562.496 | AB12: 65509.203 | AC12: 45823.559 | AD12: 71679.711 | AE12: 51453.688 | AF12: 78463.281 | AG12: 54049.152 | AH12: 76263.43 | AI12: 58480.852 | AJ12: 66952.18 | AK12: 44518.594 | AL12: 72276.047 | AM12: 45993.426 | AN12: 59964.215 | AO12: 43161.66 | AP12: 59016.109 | AQ12: 41771.469 | AR12: 58852.164 | AS12: 38656.883 | AT12: 56042.566 | AU12: 43711.574 | AV12: 61276.109 | AW12: 39549.66 | AX12: 59546.172 | AY12: 42803.781 | AZ12: 65905.75 | BA12: 46101.008 | BB12: 72089 | BC12: 51747.641 | BD12: 75891.547 | BE12: 57347.461 | BF12: 79730.008 | BG12: 55746.238 | BH12: 67357.234 | BI12: 44787.781 | BJ12: 72698.5 | BK12: 46262.035 | BL12: 60344.191 | BM12: 43435.113 | BN12: 59395.559 | BO12: 42039.535 | BP12: 59238.078 | BQ12: 38910.27 | BR12: 56404.816 | BS12: 43994.184 | BT12: 61669.73 | BU12: 39803.52 | BV12: 57526.758 | BW12: 45474.281 | BX12: 68596.391 | BY12: 43683.758 | BZ12: 72265.133 | CA12: 51874.082 | CB12: 76077.094 | CC12: 57487.664 | CD12: 79924.922 | CE12: 55882.523 | CF12: 67521.508 | CG12: 44897.016 | CH12: 70185.445 | CI12: 49065.367 | CJ12: 62913.215 | CK12: 41118.828 | CL12: 59540.141 | CM12: 42141.863 | CN12: 57091.586 | CO12: 41295.602 | CP12: 58809.625 | CQ12: 41833.633 | CR12: 61819.754 | CS12: 39900.352 | CT12: 57666.703 | CU12: 45584.91 | CV12: 67900.281 | CW12: 43534.563 | CX12: 72108.844 | CY12: 52332.602 | CZ12: 75132.484 | DA12: 57653.418 | DB12: 77592.945 | DC12: 55390.742 | DD12: 68596.445 | DE12: 45336.281 | DF12: 68709.359 | DG12: 48479.484 | DH12: 62768.461 | DI12: 41544.996 | DJ12: 56743.348 | DK12: 44539.648 | DL12: 59019.992 | DM12: 39047.582 | DN12: 58569.016 | DO12: 41866.711 | DP12: 59113.59 | DQ12: 41997.148 | DR12: 59695.09 | DS12: 43233.48 | DT12: 68067.242 | DU12: 43641.625 | DV12: 69417.383 | DW12: 55330.395 | DX12: 78284.328 | DY12: 54828.762 | DZ12: 74812.891 | EA12: 58498.27 | EB12: 66049.797 | EC12: 44272.922 | ED12: 71499.984 | EE12: 45976.895 | EF12: 62922.473 | EG12: 41646.934 | EH12: 56882.496 | EI12: 44648.871 | EJ12: 59164.625 | EK12: 39143.273 | EL12: 58712.563 | EM12: 41969.324 | EN12: 59258.453 | EO12: 42100.07 | EP12: 59841.387 | EQ12: 43339.434 | ER12: 64525.313 | ES12: 45569.957 | ET12: 65538.305 | EU12: 47388.289 | EV12: 81221.016 | EW12: 57153.258 | EX12: 73935.281 | EY12: 57516.68 | EZ12: 64989.105 | FA12: 43667.758 | FB12: 72686.648 | FC12: 47009.176 | FD12: 67098.141 | FE12: 44533.004 | FF12: 53650.715 | FG12: 41884.594 | FH12: 56417.73 | FI12: 37281.777 | FJ12: 55050.125 | FK12: 43118.41 | FL12: 60581.262 | FM12: 39203.25 | FN12: 54512.363 | FO12: 39490.27 | FP12: 64629.445 | FQ12: 45643.496 | FR12: 65644.102 | FS12: 47464.777 | FT12: 81352.148 | FU12: 57245.52 | FV12: 74054.617 | FW12: 57609.508 | FX12: 65094.012 | FY12: 43738.246 | FZ12: 72803.977 | GA12: 47085.063 | GB12: 64629.789 | GC12: 47181.609 | GD12: 55871.355 | GE12: 39818.184 | GF12: 56508.773 | GG12: 37341.941 | GH12: 55138.957 | GI12: 43187.988 | GJ12: 60679.016 | GK12: 39266.508 | GL12: 54600.34 | GM12: 39554 | GN12: 64719.918 | GO12: 45707.391 | GP12: 65735.945 | GQ12: 47531.199 | GR12: 78370.773 | GS12: 60420.957 | GT12: 77098.75 | GU12: 54749.746 | GV12: 67888.477 | GW12: 44988.496 | GX12: 70224.875 | GY12: 49832.043 | GZ12: 67300.508 | HA12: 44667.324 | HB12: 55949.582 | HC12: 39873.93 | HD12: 54422.023 | HE12: 39560.012 | HF12: 57412.027 | HG12: 41052.5 | HH12: 60763.918 | HI12: 39321.449 | HJ12: 52503.93 | HK12: 41782.172 | HL12: 67305.383 | HM12: 43323.715 | HN12: 65856.148 | HO12: 47618.113 | HP12: 78514.117 | HQ12: 60531.461 | HR12: 77239.711 | HS12: 54849.844 | HT12: 65304.309 | HU12: 43879.547 | HV12: 70353.258 | HW12: 49923.148 | HX12: 67423.539 | HY12: 44748.973 | HZ12: 56051.898 | IA12: 39946.848 | IB12: 54521.504 | IC12: 39632.324 | ID12: 57516.953 | IE12: 41127.527 | IF12: 58638.836 | IG12: 41629.461 | IH12: 54776.688 | II12: 39681.762 | IJ12: 67413.984 | IK12: 43393.602 | IL12: 63346.824 | IM12: 50310.547 | IN12: 81746.836 | IO12: 57523.262 | IP12: 77364.422 | IQ12: 54938.414 | IR12: 65409.758 | IS12: 43950.406 | IT12: 70466.805 | IU12: 50003.73 | IV12: 67532.375 | IW12: 44821.203 | IX12: 53998.004 | IY12: 42155.715 | IZ12: 56782.758 | JA12: 37523 | JB12: 57609.75 | JC12: 41193.883 | JD12: 58733.441 | JE12: 41696.625 | JF12: 54865.09 | JG12: 39745.793 | JH12: 67522.758 | JI12: 43463.621 | JJ12: 63449.043 | JK12: 50391.734 | JL12: 81878.797 | JM12: 57616.121 | JN12: 74533.93 | JO12: 57982.383 | JP12: 65515.332 | JQ12: 44021.348 | JR12: 73275.242 | JS12: 47389.836 | JT12: 67641.391 | JU12: 44893.563 | JV12: 54085.184 | JW12: 42223.777 | JX12: 56874.379 | JY12: 37583.547 | JZ12: 57702.703 | KA12: 41260.355 | KB12: 58828.211 | KC12: 41763.902 | KD12: 54953.625 | KE12: 39809.938 | KF12: 65138.594 | KG12: 46003.074 | KH12: 66161.367 | KI12: 47838.801 | KJ12: 81993.422 | KK12: 57696.777 | KL12: 74638.313 | KM12: 58063.594 | KN12: 68327.82 | KO12: 45279.637 | KP12: 73377.805 | KQ12: 47456.164 | KR12: 65139.031 | KS12: 47553.371 | KT12: 56311.746 | KU12: 40132.035 | KV12: 56953.969 | KW12: 37636.137 | KX12: 55573.313 | KY12: 43528.195 | KZ12: 61157.02 | LA12: 39575.828 | LB12: 55030.516 | LC12: 39865.633 | LD12: 65257.695 | LE12: 46087.184 | LF12: 66282.273 | LG12: 47926.23 | LH12: 79022.367 | LI12: 60923.313 | LJ12: 77739.641 | LK12: 55204.859 | LL12: 65726.969 | LM12: 44163.539 | LN12: 73511.945 | LO12: 47542.934 | LP12: 65258.105 | LQ12: 47640.297 | LR12: 56414.719 | LS12: 40205.426 | LT12: 57058.07 | LU12: 37704.926 | LV12: 55674.887 | LW12: 43607.758 | LX12: 61268.793 | LY12: 39648.16 | LZ12: 52940.234 | MA12: 42129.391 | MB12: 67850.133 | MC12: 43674.352 | MD12: 66389.25 | ME12: 48003.57 | MF12: 79149.945 | MG12: 61021.676 | MH12: 77865.125 | MI12: 55293.977 | MJ12: 65833.031 | MK12: 44234.813 | ML12: 70922.945 | MM12: 50327.402 | MN12: 67969.359 | MO12: 45111.227 | MP12: 56505.789 | MQ12: 40270.328 | MR12: 54962.789 | MS12: 39953.098 | MT12: 57982.445 | MU12: 41460.375 | MV12: 61367.641 | MW12: 39712.125 | MX12: 53025.656 | MY12: 42197.367 | MZ12: 67959.586 | NA12: 43744.809 | NB12: 66496.406 | NC12: 48081.055 | ND12: 79277.766 | NE12: 61120.211 | NF12: 77990.797 | NG12: 55383.219 | NH12: 65939.336 | NI12: 44306.242 | NJ12: 71037.391 | NK12: 50408.617 | NL12: 68079.047 | NM12: 45184.039 | NN12: 56597.012 | NO12: 40335.332 | NP12: 55051.473 | NQ12: 40017.563 | NR12: 58075.984 | NS12: 41527.258 | NT12: 59208.766 | NU12: 42034.074 | NV12: 55309.176 | NW12: 40067.504 | NX12: 68054.68 | NY12: 43806.02 | NZ12: 63948.98 | OA12: 50788.781 | OB12: 82524.203 | OC12: 58070.273 | OD12: 78099.977 | OE12: 55460.742 | OF12: 66044.156 | OG12: 48298.57 | OH12: 73852.703 | OI12: 47763.313 | OJ12: 68174.297 | OK12: 45247.246 | OL12: 54511.465 | OM12: 42556.57 | ON12: 57322.438 | OO12: 37879.629 | OP12: 58157.23 | OQ12: 41585.355 | OR12: 59291.605 | OS12: 42092.883 | OT12: 55386.574 | OU12: 40123.57 | OV12: 65679.828 | OW12: 46385.309 | OX12: 66711.172 | OY12: 48236.352 | OZ12: 82675.109 | PA12: 58176.473 | PB12: 75258.719 | PC12: 58546.219 | PD12: 66152.313 | PE12: 44449.344 | PF12: 73987.727 | PG12: 47850.625 | PH12: 68298.977 | PI12: 45330.004 | PJ12: 54611.152 | PK12: 42634.398 | PL12: 57427.203 | PM12: 37948.852 | PN12: 56035.039 | PO12: 43889.844 | PP12: 61665.129 | PQ12: 39904.637 | PR12: 55487.805 | PS12: 40196.914 | PU12: 1345185.186 | PV12: 1335815.485 | PW12: 1343900.238 | PX12: 1347177.115 | PY12: 1340906.51 | PZ12: 1340310.397 | QA12: 1314022.427 | QB12: 1316143.371 | QC12: 1321877.945 | QD12: 1320395.067 | QE12: 1322526.227 | QF12: 1324660.72 | QG12: 1330432.162 | QH12: 1328939.715 | QI12: 1331084.418 | QJ12: 1333232.663 | QK12: 1339041.26 | QL12: 1337539.144
A13: 0 | B13: 10055 | C13: Albion, City of | D13: 147.375 | E13: 94.445 | F13: 172.27 | G13: 144.254 | H13: 254.517 | I13: 188.465 | J13: 234.413 | K13: 197.44 | L13: 215.435 | M13: 153.795 | N13: 179.367 | O13: 123.916 | P13: 153.147 | Q13: 104.671 | R13: 127.728 | S13: 97.231 | T13: 130.618 | U13: 74.566 | V13: 143.087 | W13: 91.797 | X13: 142.385 | Y13: 74.614 | Z13: 122.074 | AA13: 77.466 | AB13: 140.766 | AC13: 98.826 | AD13: 179.94 | AE13: 137.538 | AF13: 254.113 | AG13: 189.091 | AH13: 234.262 | AI13: 197.57 | AJ13: 203.351 | AK13: 148.441 | AL13: 178.599 | AM13: 123.6 | AN13: 146.267 | AO13: 110.23 | AP13: 131.769 | AQ13: 91.439 | AR13: 129.745 | AS13: 73.818 | AT13: 140.873 | AU13: 90.661 | AV13: 142.533 | AW13: 74.883 | AX13: 122.859 | AY13: 78.26 | AZ13: 132.197 | BA13: 92.436 | BB13: 172.571 | BC13: 132.082 | BD13: 237.562 | BE13: 194.268 | BF13: 237.007 | BG13: 183.161 | BH13: 195.852 | BI13: 143.187 | BJ13: 170.621 | BK13: 117.917 | BL13: 138.23 | BM13: 104.257 | BN13: 123.073 | BO13: 85.575 | BP13: 121.277 | BQ13: 68.668 | BR13: 132.822 | BS13: 85.765 | BT13: 132.7 | BU13: 69.944 | BV13: 110.105 | BW13: 77.366 | BX13: 137.781 | BY13: 87.693 | BZ13: 173.047 | CA13: 132.447 | CB13: 238.025 | CC13: 194.647 | CD13: 237.482 | CE13: 183.527 | CF13: 196.337 | CG13: 143.542 | CH13: 164.579 | CI13: 124.8 | CJ13: 144.384 | CK13: 98.944 | CL13: 123.569 | CM13: 85.92 | CN13: 117.364 | CO13: 73.421 | CP13: 138.285 | CQ13: 81.143 | CR13: 133.251 | CS13: 70.234 | CT13: 110.598 | CU13: 77.713 | CV13: 142.06 | CW13: 90.913 | CX13: 179.221 | CY13: 137.338 | CZ13: 243.266 | DA13: 200.893 | DB13: 247.634 | DC13: 193.284 | DD13: 213.749 | DE13: 154.54 | DF13: 171.807 | DG13: 131.539 | DH13: 150.638 | DI13: 103.572 | DJ13: 121.062 | DK13: 93.282 | DL13: 125.508 | DM13: 71.429 | DN13: 141.099 | DO13: 82.776 | DP13: 130.282 | DQ13: 76.229 | DR13: 115.664 | DS13: 74.176 | DT13: 142.06 | DU13: 90.913 | DV13: 171.828 | DW13: 144.731 | DX13: 253.318 | DY13: 190.841 | DZ13: 237.656 | EA13: 203.262 | EB13: 205.15 | EC13: 150.44 | ED13: 178.681 | EE13: 124.665 | EF13: 150.638 | EG13: 103.572 | EH13: 121.062 | EI13: 93.282 | EJ13: 125.508 | EK13: 71.429 | EL13: 141.099 | EM13: 82.776 | EN13: 130.282 | EO13: 76.229 | EP13: 115.664 | EQ13: 74.176 | ER13: 150.502 | ES13: 106.838 | ET13: 164.839 | EU13: 127.281 | EV13: 258.32 | EW13: 195.017 | EX13: 236.124 | EY13: 201.777 | EZ13: 195.049 | FA13: 143.282 | FB13: 183.611 | FC13: 128.798 | FD13: 150.476 | FE13: 103.59 | FF13: 118.421 | FG13: 90.916 | FH13: 123.561 | FI13: 70.846 | FJ13: 134.754 | FK13: 87.22 | FL13: 134.981 | FM13: 71.929 | FN13: 113.804 | FO13: 73.567 | FP13: 150.502 | FQ13: 106.838 | FR13: 164.839 | FS13: 127.281 | FT13: 258.32 | FU13: 195.017 | FV13: 236.124 | FW13: 201.777 | FX13: 195.049 | FY13: 143.282 | FZ13: 183.611 | GA13: 128.798 | GB13: 144.623 | GC13: 109.443 | GD13: 123.088 | GE13: 86.249 | GF13: 123.561 | GG13: 70.846 | GH13: 134.754 | GI13: 87.22 | GJ13: 134.981 | GK13: 71.929 | GL13: 113.804 | GM13: 73.567 | GN13: 150.502 | GO13: 106.838 | GP13: 164.839 | GQ13: 127.281 | GR13: 248.213 | GS13: 205.124 | GT13: 245.887 | GU13: 192.014 | GV13: 203.208 | GW13: 147.206 | GX13: 176.637 | GY13: 135.773 | GZ13: 150.476 | HA13: 103.59 | HB13: 123.088 | HC13: 86.249 | HD13: 119.083 | HE13: 75.325 | HF13: 139.703 | HG13: 82.272 | HH13: 134.981 | HI13: 71.929 | HJ13: 109.488 | HK13: 77.884 | HL13: 156.239 | HM13: 101.101 | HN13: 164.839 | HO13: 127.281 | HP13: 248.213 | HQ13: 205.124 | HR13: 245.887 | HS13: 192.014 | HT13: 195.049 | HU13: 143.282 | HV13: 176.637 | HW13: 135.773 | HX13: 150.476 | HY13: 103.59 | HZ13: 123.088 | IA13: 86.249 | IB13: 119.083 | IC13: 75.325 | ID13: 139.703 | IE13: 82.272 | IF13: 130.368 | IG13: 76.542 | IH13: 113.804 | II13: 73.567 | IJ13: 156.239 | IK13: 101.101 | IL13: 158.119 | IM13: 134.001 | IN13: 258.32 | IO13: 195.017 | IP13: 245.887 | IQ13: 192.014 | IR13: 195.049 | IS13: 143.282 | IT13: 176.637 | IU13: 135.773 | IV13: 150.476 | IW13: 103.59 | IX13: 118.421 | IY13: 90.916 | IZ13: 123.561 | JA13: 70.846 | JB13: 139.703 | JC13: 82.272 | JD13: 130.368 | JE13: 76.542 | JF13: 113.804 | JG13: 73.567 | JH13: 156.239 | JI13: 101.101 | JJ13: 158.119 | JK13: 134.001 | JL13: 258.32 | JM13: 195.017 | JN13: 236.124 | JO13: 201.777 | JP13: 195.049 | JQ13: 143.282 | JR13: 183.611 | JS13: 128.798 | JT13: 150.476 | JU13: 103.59 | JV13: 118.421 | JW13: 90.916 | JX13: 123.561 | JY13: 70.846 | JZ13: 139.703 | KA13: 82.272 | KB13: 130.368 | KC13: 76.542 | KD13: 113.804 | KE13: 73.567 | KF13: 150.502 | KG13: 106.838 | KH13: 164.839 | KI13: 127.281 | KJ13: 258.32 | KK13: 195.017 | KL13: 236.124 | KM13: 201.777 | KN13: 203.208 | KO13: 147.206 | KP13: 183.611 | KQ13: 128.798 | KR13: 144.623 | KS13: 109.443 | KT13: 123.088 | KU13: 86.249 | KV13: 123.561 | KW13: 70.846 | KX13: 134.754 | KY13: 87.22 | KZ13: 134.981 | LA13: 71.929 | LB13: 113.804 | LC13: 73.567 | LD13: 150.502 | LE13: 106.838 | LF13: 164.839 | LG13: 127.281 | LH13: 248.213 | LI13: 205.124 | LJ13: 245.887 | LK13: 192.014 | LL13: 195.049 | LM13: 143.282 | LN13: 183.611 | LO13: 128.798 | LP13: 144.623 | LQ13: 109.443 | LR13: 123.088 | LS13: 86.249 | LT13: 123.561 | LU13: 70.846 | LV13: 134.754 | LW13: 87.22 | LX13: 134.981 | LY13: 71.929 | LZ13: 109.488 | MA13: 77.884 | MB13: 156.239 | MC13: 101.101 | MD13: 164.839 | ME13: 127.281 | MF13: 248.213 | MG13: 205.124 | MH13: 245.887 | MI13: 192.014 | MJ13: 195.049 | MK13: 143.282 | ML13: 176.637 | MM13: 135.773 | MN13: 150.476 | MO13: 103.59 | MP13: 123.088 | MQ13: 86.249 | MR13: 119.083 | MS13: 75.325 | MT13: 139.703 | MU13: 82.272 | MV13: 134.981 | MW13: 71.929 | MX13: 109.488 | MY13: 77.884 | MZ13: 156.239 | NA13: 101.101 | NB13: 164.839 | NC13: 127.281 | ND13: 248.213 | NE13: 205.124 | NF13: 245.887 | NG13: 192.014 | NH13: 195.049 | NI13: 143.282 | NJ13: 176.637 | NK13: 135.773 | NL13: 150.476 | NM13: 103.59 | NN13: 123.088 | NO13: 86.249 | NP13: 119.083 | NQ13: 75.325 | NR13: 139.703 | NS13: 82.272 | NT13: 130.368 | NU13: 76.542 | NV13: 113.804 | NW13: 73.567 | NX13: 156.239 | NY13: 101.101 | NZ13: 158.119 | OA13: 134.001 | OB13: 258.32 | OC13: 195.017 | OD13: 245.887 | OE13: 192.014 | OF13: 194.857 | OG13: 155.557 | OH13: 183.611 | OI13: 128.798 | OJ13: 150.476 | OK13: 103.59 | OL13: 118.421 | OM13: 90.916 | ON13: 123.561 | OO13: 70.846 | OP13: 139.703 | OQ13: 82.272 | OR13: 130.368 | OS13: 76.542 | OT13: 113.804 | OU13: 73.567 | OV13: 150.502 | OW13: 106.838 | OX13: 164.839 | OY13: 127.281 | OZ13: 258.32 | PA13: 195.017 | PB13: 236.124 | PC13: 201.777 | PD13: 195.049 | PE13: 143.282 | PF13: 183.611 | PG13: 128.798 | PH13: 150.476 | PI13: 103.59 | PJ13: 118.421 | PK13: 90.916 | PL13: 123.561 | PM13: 70.846 | PN13: 134.754 | PO13: 87.22 | PP13: 134.981 | PQ13: 71.929 | PR13: 113.804 | PS13: 73.567 | PU13: 3445.076 | PV13: 3419.434 | PW13: 3258.643 | PX13: 3268.733 | PY13: 3391.961 | PZ13: 3379.262 | QA13: 3365.503 | QB13: 3365.503 | QC13: 3377.59 | QD13: 3365.506 | QE13: 3365.505 | QF13: 3365.504 | QG13: 3377.586 | QH13: 3365.504 | QI13: 3365.507 | QJ13: 3365.506 | QK13: 3377.587 | QL13: 3365.503
A14: 0 | B14: 10057 | C14: Ashland, City of | D14: 9275.919 | E14: 4835.144 | F14: 10026.972 | G14: 6746.062 | H14: 11502.778 | I14: 6930.567 | J14: 11288.175 | K14: 7518.079 | L14: 10300.496 | M14: 5821.833 | N14: 9863.293 | O14: 5376.762 | P14: 9263.47 | Q14: 5011.36 | R14: 8221.579 | S14: 5201.742 | T14: 8454.343 | U14: 4400.6 | V14: 9920.263 | W14: 5925.064 | X14: 10199.979 | Y14: 5050.73 | Z14: 7891.823 | AA14: 4459.587 | AB14: 8987.99 | AC14: 5192.559 | AD14: 10457.183 | AE14: 6352.214 | AF14: 11528.401 | AG14: 6942.749 | AH14: 11305.262 | AI14: 7535.154 | AJ14: 9927.731 | AK14: 5698.396 | AL14: 9884.841 | AM14: 5389.758 | AN14: 8933.663 | AO14: 5376.108 | AP14: 8552.345 | AQ14: 4920.277 | AR14: 8484.262 | AS14: 4413.106 | AT14: 9921.165 | AU14: 5930.956 | AV14: 10209.14 | AW14: 5049.664 | AX14: 7937.084 | AY14: 4486.918 | AZ14: 8616.324 | BA14: 4977.749 | BB14: 10111.185 | BC14: 6142.031 | BD14: 10712.182 | BE14: 7130.701 | BF14: 11379.161 | BG14: 6861.796 | BH14: 9667.987 | BI14: 5548.163 | BJ14: 9579.046 | BK14: 5222.771 | BL14: 8573.955 | BM14: 5159.592 | BN14: 8137.574 | BO14: 4680.977 | BP14: 8004.426 | BQ14: 4162.341 | BR14: 9565.919 | BS14: 5717.732 | BT14: 9811.252 | BU14: 4853.319 | BV14: 7265.506 | BW14: 4562.389 | BX14: 8939.39 | BY14: 4654.684 | BZ14: 10111.185 | CA14: 6142.031 | CB14: 10712.182 | CC14: 7130.701 | CD14: 11379.161 | CE14: 6861.796 | CF14: 9667.987 | CG14: 5548.163 | CH14: 9226.805 | CI14: 5575.012 | CJ14: 8911.215 | CK14: 4822.332 | CL14: 8137.574 | CM14: 4680.977 | CN14: 7705.642 | CO14: 4461.125 | CP14: 9929.138 | CQ14: 5354.514 | CR14: 9811.252 | CS14: 4853.319 | CT14: 7265.506 | CU14: 4562.389 | CV14: 8757.063 | CW14: 4559.748 | CX14: 10098.551 | CY14: 6134.359 | CZ14: 10750.429 | DA14: 7156.161 | DB14: 11374.332 | DC14: 6858.877 | DD14: 9924.726 | DE14: 5606.778 | DF14: 9234.012 | DG14: 5579.363 | DH14: 8846.936 | DI14: 4787.541 | DJ14: 7733.906 | DK14: 4922.57 | DL14: 8024.084 | DM14: 4172.559 | DN14: 9923.991 | DO14: 5351.732 | DP14: 9751.764 | DQ14: 5360.688 | DR14: 7639.472 | DS14: 4319.129 | DT14: 8757.063 | DU14: 4559.748 | DV14: 9700.468 | DW14: 6532.442 | DX14: 11175.981 | DY14: 6730.608 | DZ14: 10941.018 | EA14: 7292.191 | EB14: 9534.645 | EC14: 5471.636 | ED14: 9586.526 | EE14: 5226.849 | EF14: 8846.936 | EG14: 4787.541 | EH14: 7733.906 | EI14: 4922.57 | EJ14: 8024.084 | EK14: 4172.559 | EL14: 9923.991 | EM14: 5351.732 | EN14: 9751.764 | EO14: 5360.688 | EP14: 7639.472 | EQ14: 4319.129 | ER14: 8440.66 | ES14: 4876.266 | ET14: 10098.481 | EU14: 6134.316 | EV14: 11175.98 | EW14: 6730.607 | EX14: 10940.983 | EY14: 7292.169 | EZ14: 9534.637 | FA14: 5471.63 | FB14: 9586.534 | FC14: 5226.854 | FD14: 8847.056 | FE14: 4787.606 | FF14: 7734.449 | FG14: 4922.917 | FH14: 8028.38 | FI14: 4174.793 | FJ14: 9562.445 | FK14: 5715.648 | FL14: 10112.3 | FM14: 5002.225 | FN14: 7650.12 | FO14: 4325.148 | FP14: 8440.66 | FQ14: 4876.266 | FR14: 10098.481 | FS14: 6134.316 | FT14: 11175.98 | FU14: 6730.607 | FV14: 10940.983 | FW14: 7292.169 | FX14: 9534.637 | FY14: 5471.63 | FZ14: 9586.534 | GA14: 5226.854 | GB14: 8512.226 | GC14: 5122.437 | GD14: 8035.252 | GE14: 4622.113 | GF14: 8028.38 | GG14: 4174.793 | GH14: 9562.445 | GI14: 5715.648 | GJ14: 10112.3 | GK14: 5002.225 | GL14: 7650.12 | GM14: 4325.148 | GN14: 8440.66 | GO14: 4876.266 | GP14: 10098.481 | GQ14: 6134.316 | GR14: 10750.428 | GS14: 7156.16 | GT14: 11374.298 | GU14: 6858.854 | GV14: 9924.717 | GW14: 5606.773 | GX14: 9234.02 | GY14: 5579.368 | GZ14: 8847.056 | HA14: 4787.606 | HB14: 8035.252 | HC14: 4622.113 | HD14: 7728.704 | HE14: 4474.469 | HF14: 9925.53 | HG14: 5352.563 | HH14: 10112.3 | HI14: 5002.225 | HJ14: 7356.04 | HK14: 4619.229 | HL14: 8757.139 | HM14: 4559.787 | HN14: 10098.481 | HO14: 6134.316 | HP14: 10750.428 | HQ14: 7156.16 | HR14: 11374.298 | HS14: 6858.854 | HT14: 9534.637 | HU14: 5471.63 | HV14: 9234.02 | HW14: 5579.368 | HX14: 8847.056 | HY14: 4787.606 | HZ14: 8035.252 | IA14: 4622.113 | IB14: 7728.704 | IC14: 4474.469 | ID14: 9925.53 | IE14: 5352.563 | IF14: 9753.102 | IG14: 5361.423 | IH14: 7650.12 | II14: 4325.148 | IJ14: 8757.139 | IK14: 4559.787 | IL14: 9700.4 | IM14: 6532.397 | IN14: 11175.98 | IO14: 6730.607 | IP14: 11374.298 | IQ14: 6858.854 | IR14: 9534.637 | IS14: 5471.63 | IT14: 9234.02 | IU14: 5579.368 | IV14: 8847.056 | IW14: 4787.606 | IX14: 7734.449 | IY14: 4922.917 | IZ14: 8028.38 | JA14: 4174.793 | JB14: 9925.53 | JC14: 5352.563 | JD14: 9753.102 | JE14: 5361.423 | JF14: 7650.12 | JG14: 4325.148 | JH14: 8757.139 | JI14: 4559.787 | JJ14: 9700.4 | JK14: 6532.397 | JL14: 11175.98 | JM14: 6730.607 | JN14: 10940.983 | JO14: 7292.169 | JP14: 9534.637 | JQ14: 5471.63 | JR14: 9586.534 | JS14: 5226.854 | JT14: 8847.056 | JU14: 4787.606 | JV14: 7734.449 | JW14: 4922.917 | JX14: 8028.38 | JY14: 4174.793 | JZ14: 9925.53 | KA14: 5352.563 | KB14: 9753.102 | KC14: 5361.423 | KD14: 7650.12 | KE14: 4325.148 | KF14: 8440.66 | KG14: 4876.266 | KH14: 10098.481 | KI14: 6134.316 | KJ14: 11175.98 | KK14: 6730.607 | KL14: 10940.983 | KM14: 7292.169 | KN14: 9924.717 | KO14: 5606.773 | KP14: 9586.534 | KQ14: 5226.854 | KR14: 8512.226 | KS14: 5122.437 | KT14: 8035.252 | KU14: 4622.113 | KV14: 8028.38 | KW14: 4174.793 | KX14: 9562.445 | KY14: 5715.648 | KZ14: 10112.3 | LA14: 5002.225 | LB14: 7650.12 | LC14: 4325.148 | LD14: 8440.66 | LE14: 4876.266 | LF14: 10098.481 | LG14: 6134.316 | LH14: 10750.428 | LI14: 7156.16 | LJ14: 11374.298 | LK14: 6858.854 | LL14: 9534.637 | LM14: 5471.63 | LN14: 9586.534 | LO14: 5226.854 | LP14: 8512.226 | LQ14: 5122.437 | LR14: 8035.252 | LS14: 4622.113 | LT14: 8028.38 | LU14: 4174.793 | LV14: 9562.445 | LW14: 5715.648 | LX14: 10112.3 | LY14: 5002.225 | LZ14: 7356.04 | MA14: 4619.229 | MB14: 8757.139 | MC14: 4559.787 | MD14: 10098.481 | ME14: 6134.316 | MF14: 10750.428 | MG14: 7156.16 | MH14: 11374.298 | MI14: 6858.854 | MJ14: 9534.637 | MK14: 5471.63 | ML14: 9234.02 | MM14: 5579.368 | MN14: 8847.056 | MO14: 4787.606 | MP14: 8035.252 | MQ14: 4622.113 | MR14: 7728.704 | MS14: 4474.469 | MT14: 9925.53 | MU14: 5352.563 | MV14: 10112.3 | MW14: 5002.225 | MX14: 7356.04 | MY14: 4619.229 | MZ14: 8757.139 | NA14: 4559.787 | NB14: 10098.481 | NC14: 6134.316 | ND14: 10750.428 | NE14: 7156.16 | NF14: 11374.298 | NG14: 6858.854 | NH14: 9534.637 | NI14: 5471.63 | NJ14: 9234.02 | NK14: 5579.368 | NL14: 8847.056 | NM14: 4787.606 | NN14: 8035.252 | NO14: 4622.113 | NP14: 7728.704 | NQ14: 4474.469 | NR14: 9925.53 | NS14: 5352.563 | NT14: 9753.102 | NU14: 5361.423 | NV14: 7650.12 | NW14: 4325.148 | NX14: 8757.139 | NY14: 4559.787 | NZ14: 9700.4 | OA14: 6532.397 | OB14: 11175.98 | OC14: 6730.607 | OD14: 11374.298 | OE14: 6858.854 | OF14: 9530.153 | OG14: 6001.337 | OH14: 9586.534 | OI14: 5226.854 | OJ14: 8847.056 | OK14: 4787.606 | OL14: 7734.449 | OM14: 4922.917 | ON14: 8028.38 | OO14: 4174.793 | OP14: 9925.53 | OQ14: 5352.563 | OR14: 9753.102 | OS14: 5361.423 | OT14: 7650.12 | OU14: 4325.148 | OV14: 8440.66 | OW14: 4876.266 | OX14: 10098.481 | OY14: 6134.316 | OZ14: 11175.98 | PA14: 6730.607 | PB14: 10940.983 | PC14: 7292.169 | PD14: 9534.637 | PE14: 5471.63 | PF14: 9586.534 | PG14: 5226.854 | PH14: 8847.056 | PI14: 4787.606 | PJ14: 7734.449 | PK14: 4922.917 | PL14: 8028.38 | PM14: 4174.793 | PN14: 9562.445 | PO14: 5715.648 | PP14: 10112.3 | PQ14: 5002.225 | PR14: 7650.12 | PS14: 4325.148 | PU14: 183486.62 | PV14: 183416.926 | PW14: 176444.078 | PX14: 176444.08 | PY14: 176868.771 | PZ14: 176343.547 | QA14: 176372.204 | QB14: 176372.204 | QC14: 176897.428 | QD14: 176372.204 | QE14: 176372.204 | QF14: 176372.204 | QG14: 176897.427 | QH14: 176372.206 | QI14: 176372.205 | QJ14: 176372.204 | QK14: 176897.427 | QL14: 176372.204
A15: 0 | B15: 10059 | C15: Bandon, City of | D15: 3291.089 | E15: 1769.144 | F15: 3699.018 | G15: 2550.542 | H15: 4153.158 | I15: 2611.47 | J15: 4236.726 | K15: 2977.043 | L15: 3854.986 | M15: 2249.686 | N15: 3733.568 | O15: 2149.633 | P15: 3468.747 | Q15: 2047.263 | R15: 2762.619 | S15: 1883.515 | T15: 2829.275 | U15: 1578.71 | V15: 2663.381 | W15: 1752.987 | X15: 2924.745 | Y15: 1563.969 | Z15: 2839.539 | AA15: 1698.706 | AB15: 3185.497 | AC15: 1887.311 | AD15: 3853.201 | AE15: 2411.886 | AF15: 4163.47 | AG15: 2617.954 | AH15: 4247.244 | AI15: 2984.434 | AJ15: 3711.058 | AK15: 2197.739 | AL15: 3742.833 | AM15: 2154.967 | AN15: 3349.202 | AO15: 2180.493 | AP15: 2873.931 | AQ15: 1783.728 | AR15: 2836.292 | AS15: 1582.625 | AT15: 2669.985 | AU15: 1757.334 | AV15: 2931.996 | AW15: 1567.846 | AX15: 2846.58 | AY15: 1702.918 | AZ15: 3152.335 | BA15: 1868.601 | BB15: 3836.129 | BC15: 2400.591 | BD15: 3991.674 | BE15: 2747.801 | BF15: 4398.943 | BG15: 2822.024 | BH15: 3712.697 | BI15: 2204.018 | BJ15: 3823.497 | BK15: 2199.82 | BL15: 3294.9 | BM15: 2153.792 | BN15: 2875.888 | BO15: 1784.271 | BP15: 2830.277 | BQ15: 1578.848 | BR15: 2637.94 | BS15: 1741.427 | BT15: 2889.683 | BU15: 1547.548 | BV15: 2732.367 | BW15: 1803.483 | BX15: 3274.146 | BY15: 1759.342 | BZ15: 3845.719 | CA15: 2406.593 | CB15: 4001.653 | CC15: 2754.671 | CD15: 4409.94 | CE15: 2829.08 | CF15: 3721.979 | CG15: 2209.528 | CH15: 3696.196 | CI15: 2342.18 | CJ15: 3430.896 | CK15: 2031.418 | CL15: 2883.077 | CM15: 1788.732 | CN15: 2733.969 | CO15: 1686.179 | CP15: 2743.907 | CQ15: 1646.406 | CR15: 2896.907 | CS15: 1551.417 | CT15: 2739.198 | CU15: 1807.991 | CV15: 3333.658 | CW15: 1797.231 | CX15: 3902.055 | CY15: 2510.581 | CZ15: 4066.327 | DA15: 2865.106 | DB15: 4494.553 | DC15: 2909.882 | DD15: 3935.166 | DE15: 2342.848 | DF15: 3713.923 | DG15: 2400.046 | DH15: 3527.276 | DI15: 2105.387 | DJ15: 2777.008 | DK15: 1929.075 | DL15: 2880.15 | DM15: 1630.281 | DN15: 2797.952 | DO15: 1699.7 | DP15: 2823.946 | DQ15: 1703.475 | DR15: 2871.328 | DS15: 1739.221 | DT15: 3341.96 | DU15: 1801.707 | DV15: 3749.353 | DW15: 2679.249 | DX15: 4246.584 | DY15: 2702.11 | DZ15: 4323.999 | EA15: 3098.864 | EB15: 3867.758 | EC15: 2339.743 | ED15: 3873.429 | EE15: 2255.75 | EF15: 3536.049 | EG15: 2110.624 | EH15: 2783.913 | EI15: 1933.872 | EJ15: 2887.31 | EK15: 1634.335 | EL15: 2804.906 | EM15: 1703.925 | EN15: 2830.964 | EO15: 1707.708 | EP15: 2878.462 | EQ15: 1743.542 | ER15: 3253.465 | ES15: 1950.085 | ET15: 3543.9 | EU15: 2280.144 | EV15: 4390.303 | EW15: 2793.559 | EX15: 4357.65 | EY15: 3122.98 | EZ15: 4068.082 | FA15: 2460.926 | FB15: 3942.326 | FC15: 2295.873 | FD15: 3578.705 | FE15: 2136.085 | FF15: 2846.426 | FG15: 1977.297 | FH15: 2823.997 | FI15: 1598.497 | FJ15: 2641.081 | FK15: 1778.34 | FL15: 2851.256 | FM15: 1547.292 | FN15: 2693.605 | FO15: 1631.57 | FP15: 3253.465 | FQ15: 1950.085 | FR15: 3543.9 | FS15: 2280.144 | FT15: 4390.303 | FU15: 2793.559 | FV15: 4357.65 | FW15: 3122.98 | FX15: 4068.082 | FY15: 2460.926 | FZ15: 3942.326 | GA15: 2295.873 | GB15: 3434.121 | GC15: 2280.669 | GD15: 2964.529 | GE15: 1859.194 | GF15: 2823.997 | GG15: 1598.497 | GH15: 2641.081 | GI15: 1778.34 | GJ15: 2851.256 | GK15: 1547.292 | GL15: 2693.605 | GM15: 1631.57 | GN15: 3253.465 | GO15: 1950.085 | GP15: 3543.9 | GQ15: 2280.144 | GR15: 4214.415 | GS15: 2969.447 | GT15: 4540.804 | GU15: 2939.826 | GV15: 4238.654 | GW15: 2523.533 | GX15: 3789.386 | GY15: 2448.812 | GZ15: 3578.705 | HA15: 2136.085 | HB15: 2964.529 | HC15: 1859.194 | HD15: 2712.108 | HE15: 1710.385 | HF15: 2749.285 | HG15: 1670.136 | HH15: 2851.256 | HI15: 1547.292 | HJ15: 2584.178 | HK15: 1740.997 | HL15: 3380.868 | HM15: 1822.683 | HN15: 3543.9 | HO15: 2280.144 | HP15: 4214.415 | HQ15: 2969.447 | HR15: 4540.804 | HS15: 2939.826 | HT15: 4068.082 | HU15: 2460.926 | HV15: 3789.386 | HW15: 2448.812 | HX15: 3578.705 | HY15: 2136.085 | HZ15: 2964.529 | IA15: 1859.194 | IB15: 2712.108 | IC15: 1710.385 | ID15: 2749.285 | IE15: 1670.136 | IF15: 2743.563 | IG15: 1654.986 | IH15: 2693.605 | II15: 1631.57 | IJ15: 3380.868 | IK15: 1822.683 | IL15: 3396.756 | IM15: 2427.287 | IN15: 4390.303 | IO15: 2793.559 | IP15: 4540.804 | IQ15: 2939.826 | IR15: 4068.082 | IS15: 2460.926 | IT15: 3789.386 | IU15: 2448.812 | IV15: 3578.705 | IW15: 2136.085 | IX15: 2846.426 | IY15: 1977.297 | IZ15: 2823.997 | JA15: 1598.497 | JB15: 2749.285 | JC15: 1670.136 | JD15: 2743.563 | JE15: 1654.986 | JF15: 2693.605 | JG15: 1631.57 | JH15: 3380.868 | JI15: 1822.683 | JJ15: 3396.756 | JK15: 2427.287 | JL15: 4390.303 | JM15: 2793.559 | JN15: 4357.65 | JO15: 3122.98 | JP15: 4068.082 | JQ15: 2460.926 | JR15: 3942.326 | JS15: 2295.873 | JT15: 3578.705 | JU15: 2136.085 | JV15: 2846.426 | JW15: 1977.297 | JX15: 2823.997 | JY15: 1598.497 | JZ15: 2749.285 | KA15: 1670.136 | KB15: 2743.563 | KC15: 1654.986 | KD15: 2693.605 | KE15: 1631.57 | KF15: 3253.465 | KG15: 1950.085 | KH15: 3543.9 | KI15: 2280.144 | KJ15: 4390.303 | KK15: 2793.559 | KL15: 4357.65 | KM15: 3122.98 | KN15: 4238.654 | KO15: 2523.533 | KP15: 3942.326 | KQ15: 2295.873 | KR15: 3434.121 | KS15: 2280.669 | KT15: 2964.529 | KU15: 1859.194 | KV15: 2823.997 | KW15: 1598.497 | KX15: 2641.081 | KY15: 1778.34 | KZ15: 2851.256 | LA15: 1547.292 | LB15: 2693.605 | LC15: 1631.57 | LD15: 3253.465 | LE15: 1950.085 | LF15: 3543.9 | LG15: 2280.144 | LH15: 4214.415 | LI15: 2969.447 | LJ15: 4540.804 | LK15: 2939.826 | LL15: 4068.082 | LM15: 2460.926 | LN15: 3942.326 | LO15: 2295.873 | LP15: 3434.121 | LQ15: 2280.669 | LR15: 2964.529 | LS15: 1859.194 | LT15: 2823.997 | LU15: 1598.497 | LV15: 2641.081 | LW15: 1778.34 | LX15: 2851.256 | LY15: 1547.292 | LZ15: 2584.178 | MA15: 1740.997 | MB15: 3380.868 | MC15: 1822.683 | MD15: 3543.9 | ME15: 2280.144 | MF15: 4214.415 | MG15: 2969.447 | MH15: 4540.804 | MI15: 2939.826 | MJ15: 4068.082 | MK15: 2460.926 | ML15: 3789.386 | MM15: 2448.812 | MN15: 3578.705 | MO15: 2136.085 | MP15: 2964.529 | MQ15: 1859.194 | MR15: 2712.108 | MS15: 1710.385 | MT15: 2749.285 | MU15: 1670.136 | MV15: 2851.256 | MW15: 1547.292 | MX15: 2584.178 | MY15: 1740.997 | MZ15: 3380.868 | NA15: 1822.683 | NB15: 3543.9 | NC15: 2280.144 | ND15: 4214.415 | NE15: 2969.447 | NF15: 4540.804 | NG15: 2939.826 | NH15: 4068.082 | NI15: 2460.926 | NJ15: 3789.386 | NK15: 2448.812 | NL15: 3578.705 | NM15: 2136.085 | NN15: 2964.529 | NO15: 1859.194 | NP15: 2712.108 | NQ15: 1710.385 | NR15: 2749.285 | NS15: 1670.136 | NT15: 2743.563 | NU15: 1654.986 | NV15: 2693.605 | NW15: 1631.57 | NX15: 3380.868 | NY15: 1822.683 | NZ15: 3396.756 | OA15: 2427.287 | OB15: 4390.303 | OC15: 2793.559 | OD15: 4540.804 | OE15: 2939.826 | OF15: 4061.671 | OG15: 2700.516 | OH15: 3942.326 | OI15: 2295.873 | OJ15: 3578.705 | OK15: 2136.085 | OL15: 2846.426 | OM15: 1977.297 | ON15: 2823.997 | OO15: 1598.497 | OP15: 2749.285 | OQ15: 1670.136 | OR15: 2743.563 | OS15: 1654.986 | OT15: 2693.605 | OU15: 1631.57 | OV15: 3253.465 | OW15: 1950.085 | OX15: 3543.9 | OY15: 2280.144 | OZ15: 4390.303 | PA15: 2793.559 | PB15: 4357.65 | PC15: 3122.98 | PD15: 4068.082 | PE15: 2460.926 | PF15: 3942.326 | PG15: 2295.873 | PH15: 3578.705 | PI15: 2136.085 | PJ15: 2846.426 | PK15: 1977.297 | PL15: 2823.997 | PM15: 1598.497 | PN15: 2641.081 | PO15: 1778.34 | PP15: 2851.256 | PQ15: 1547.292 | PR15: 2693.605 | PS15: 1631.57 | PU15: 65289.519 | PV15: 65240.524 | PW15: 65028.554 | PX15: 65191.124 | PY15: 66756.175 | PZ15: 66836.116 | QA15: 66563.444 | QB15: 66563.444 | QC15: 66796.621 | QD15: 66563.444 | QE15: 66563.444 | QF15: 66563.445 | QG15: 66796.623 | QH15: 66563.444 | QI15: 66563.443 | QJ15: 66563.444 | QK15: 66796.624 | QL15: 66563.444
... 16 more rows

Sheet I_CSP
B1: Customer System Peak (MW)
A2: TOC
B3: BESID | C3: AccountName | D3: JOE | E3: 2015-10-01 | F3: 2015-11-01 | G3: 2015-12-01 | H3: 2016-01-01 | I3: 2016-02-01 | J3: 2016-03-01 | K3: 2016-04-01 | L3: 2016-05-01 | M3: 2016-06-01 | N3: 2016-07-01 | O3: 2016-08-01 | P3: 2016-09-01 | Q3: 2016-10-01 | R3: 2016-11-01 | S3: 2016-12-01 | T3: 2017-01-01 | U3: 2017-02-01 | V3: 2017-03-01 | W3: 2017-04-01 | X3: 2017-05-01 | Y3: 2017-06-01 | Z3: 2017-07-01 | AA3: 2017-08-01 | AB3: 2017-09-01 | AC3: 2017-10-01 | AD3: 2017-11-01 | AE3: 2017-12-01 | AF3: 2018-01-01 | AG3: 2018-02-01 | AH3: 2018-03-01 | AI3: 2018-04-01 | AJ3: 2018-05-01 | AK3: 2018-06-01 | AL3: 2018-07-01 | AM3: 2018-08-01 | AN3: 2018-09-01 | AO3: 2018-10-01 | AP3: 2018-11-01 | AQ3: 2018-12-01 | AR3: 2019-01-01 | AS3: 2019-02-01 | AT3: 2019-03-01 | AU3: 2019-04-01 | AV3: 2019-05-01 | AW3: 2019-06-01 | AX3: 2019-07-01 | AY3: 2019-08-01 | AZ3: 2019-09-01 | BA3: 2019-10-01 | BB3: 2019-11-01 | BC3: 2019-12-01 | BD3: 2020-01-01 | BE3: 2020-02-01 | BF3: 2020-03-01 | BG3: 2020-04-01 | BH3: 2020-05-01 | BI3: 2020-06-01 | BJ3: 2020-07-01 | BK3: 2020-08-01 | BL3: 2020-09-01 | BM3: 2020-10-01 | BN3: 2020-11-01 | BO3: 2020-12-01 | BP3: 2021-01-01 | BQ3: 2021-02-01 | BR3: 2021-03-01 | BS3: 2021-04-01 | BT3: 2021-05-01 | BU3: 2021-06-01 | BV3: 2021-07-01 | BW3: 2021-08-01 | BX3: 2021-09-01 | BY3: 2021-10-01 | BZ3: 2021-11-01 | CA3: 2021-12-01 | CB3: 2022-01-01 | CC3: 2022-02-01 | CD3: 2022-03-01 | CE3: 2022-04-01 | CF3: 2022-05-01 | CG3: 2022-06-01 | CH3: 2022-07-01 | CI3: 2022-08-01 | CJ3: 2022-09-01 | CK3: 2022-10-01 | CL3: 2022-11-01 | CM3: 2022-12-01 | CN3: 2023-01-01 | CO3: 2023-02-01 | CP3: 2023-03-01 | CQ3: 2023-04-01 | CR3: 2023-05-01 | CS3: 2023-06-01 | CT3: 2023-07-01 | CU3: 2023-08-01 | CV3: 2023-09-01 | CW3: 2023-10-01 | CX3: 2023-11-01 | CY3: 2023-12-01 | CZ3: 2024-01-01 | DA3: 2024-02-01 | DB3: 2024-03-01 | DC3: 2024-04-01 | DD3: 2024-05-01 | DE3: 2024-06-01 | DF3: 2024-07-01 | DG3: 2024-08-01 | DH3: 2024-09-01 | DI3: 2024-10-01 | DJ3: 2024-11-01 | DK3: 2024-12-01 | DL3: 2025-01-01 | DM3: 2025-02-01 | DN3: 2025-03-01 | DO3: 2025-04-01 | DP3: 2025-05-01 | DQ3: 2025-06-01 | DR3: 2025-07-01 | DS3: 2025-08-01 | DT3: 2025-09-01 | DU3: 2025-10-01 | DV3: 2025-11-01 | DW3: 2025-12-01 | DX3: 2026-01-01 | DY3: 2026-02-01 | DZ3: 2026-03-01 | EA3: 2026-04-01 | EB3: 2026-05-01 | EC3: 2026-06-01 | ED3: 2026-07-01 | EE3: 2026-08-01 | EF3: 2026-09-01 | EG3: 2026-10-01 | EH3: 2026-11-01 | EI3: 2026-12-01 | EJ3: 2027-01-01 | EK3: 2027-02-01 | EL3: 2027-03-01 | EM3: 2027-04-01 | EN3: 2027-05-01 | EO3: 2027-06-01 | EP3: 2027-07-01 | EQ3: 2027-08-01 | ER3: 2027-09-01 | ES3: 2027-10-01 | ET3: 2027-11-01 | EU3: 2027-12-01 | EV3: 2028-01-01 | EW3: 2028-02-01 | EX3: 2028-03-01 | EY3: 2028-04-01 | EZ3: 2028-05-01 | FA3: 2028-06-01 | FB3: 2028-07-01 | FC3: 2028-08-01 | FD3: 2028-09-01 | FE3: 2028-10-01 | FF3: =+EOMONTH(FE3,0)+1 -> 2028-11-01 | FG3: =+EOMONTH(FF3,0)+1 -> 2028-12-01 | FH3: 2029-01-01 | FI3: 2029-02-01 | FJ3: 2029-03-01 | FK3: 2029-04-01 | FL3: 2029-05-01 | FM3: 2029-06-01 | FN3: 2029-07-01 | FO3: 2029-08-01 | FP3: 2029-09-01 | FQ3: 2029-10-01 | FR3: =+EOMONTH(FQ3,0)+1 -> 2029-11-01 | FS3: =+EOMONTH(FR3,0)+1 -> 2029-12-01 | FT3: 2030-01-01 | FU3: 2030-02-01 | FV3: 2030-03-01 | FW3: 2030-04-01 | FX3: 2030-05-01 | FY3: 2030-06-01 | FZ3: 2030-07-01 | GA3: 2030-08-01 | GB3: 2030-09-01 | GC3: 2030-10-01 | GD3: =+EOMONTH(GC3,0)+1 -> 2030-11-01 | GE3: =+EOMONTH(GD3,0)+1 -> 2030-12-01 | GF3: 2031-01-01 | GG3: 2031-02-01 | GH3: 2031-03-01 | GI3: 2031-04-01 | GJ3: 2031-05-01 | GK3: 2031-06-01 | GL3: 2031-07-01 | GM3: 2031-08-01 | GN3: 2031-09-01 | GO3: =DATE(YEAR(GN3),MONTH(GN3)+1,1) -> 2031-10-01 | GP3: =DATE(YEAR(GO3),MONTH(GO3)+1,1) -> 2031-11-01 | GQ3: 2031-12-01 | GR3: 2032-01-01 | GS3: 2032-02-01 | GT3: 2032-03-01 | GU3: 2032-04-01 | GV3: 2032-05-01 | GW3: 2032-06-01 | GX3: 2032-07-01 | GY3: 2032-08-01 | GZ3: 2032-09-01 | HA3: 2032-10-01 | HB3: 2032-11-01 | HC3: =DATE(YEAR(HB3),MONTH(HB3)+1,1) -> 2032-12-01 | HD3: 2033-01-01 | HE3: 2033-02-01 | HF3: 2033-03-01 | HG3: 2033-04-01 | HH3: 2033-05-01 | HI3: 2033-06-01 | HJ3: 2033-07-01 | HK3: 2033-08-01 | HL3: =DATE(YEAR(HK3),MONTH(HK3)+1,1) -> 2033-09-01
B4: 10005 | C4: Alder Mutual | D4: =VLOOKUP(B4,TOCA!$B$3:$E$138,4,FALSE) -> 0 | E4: 0.961 | F4: 1.173 | G4: 1.336 | H4: 1.331 | I4: 1.245 | J4: 1.125 | K4: 0.911 | L4: 0.738 | M4: 0.602 | N4: 0.568 | O4: 0.55 | P4: 0.62 | Q4: 1.316 | R4: 1.225 | S4: 1.095 | T4: 0.881 | U4: 0.729 | V4: 0.598 | W4: 0.566 | X4: 0.549 | Y4: 0.615 | Z4: 0.937 | AA4: 1.138 | AB4: 1.309 | AC4: 0.86 | AD4: 1.16 | AE4: 1.23 | AF4: 1.29 | AG4: 1.15 | AH4: 1 | AI4: 0.89 | AJ4: 0.74 | AK4: 0.61 | AL4: 0.53 | AM4: 0.53 | AN4: 0.65 | AO4: 0.86 | AP4: 1.16 | AQ4: 1.23 | AR4: 1.29 | AS4: 1.15 | AT4: 1 | AU4: 0.89 | AV4: 0.74 | AW4: 0.61 | AX4: 0.54 | AY4: 0.54 | AZ4: 0.66 | BA4: 0.84 | BB4: 1.22 | BC4: 1.24 | BD4: 1.36 | BE4: 1.24 | BF4: 1.11 | BG4: 1.04 | BH4: 0.74 | BI4: 0.61 | BJ4: 0.57 | BK4: 0.59 | BL4: 0.65 | BM4: 0.84 | BN4: 1.23 | BO4: 1.25 | BP4: 1.37 | BQ4: 1.23 | BR4: 1.12 | BS4: 1.05 | BT4: 0.75 | BU4: 0.62 | BV4: 0.58 | BW4: 0.6 | BX4: 0.65 | BY4: 1.047 | BZ4: 1.146 | CA4: 1.354 | CB4: 1.399 | CC4: 1.26 | CD4: 1.225 | CE4: 1.12 | CF4: 0.817 | CG4: 0.701 | CH4: 0.646 | CI4: 0.668 | CJ4: 0.785 | CK4: 1.055 | CL4: 1.151 | CM4: 1.356 | CN4: 1.399 | CO4: 1.26 | CP4: 1.225 | CQ4: 1.12 | CR4: 0.817 | CS4: 0.701 | CT4: 0.646 | CU4: 0.668 | CV4: 0.785 | CW4: 1.055 | CX4: 1.151 | CY4: 1.356 | CZ4: 1.399 | DA4: 1.231 | DB4: 1.225 | DC4: 1.12 | DD4: 0.817 | DE4: 0.701 | DF4: 0.646 | DG4: 0.668 | DH4: 0.785 | DI4: 1.055 | DJ4: 1.151 | DK4: 1.356 | DL4: 1.399 | DM4: 1.26 | DN4: 1.225 | DO4: 1.12 | DP4: 0.817 | DQ4: 0.701 | DR4: 0.646 | DS4: 0.668 | DT4: 0.785 | DU4: 1.055 | DV4: 1.151 | DW4: 1.356 | DX4: 1.399 | DY4: 1.26 | DZ4: 1.225 | EA4: 1.12 | EB4: 0.817 | EC4: 0.701 | ED4: 0.646 | EE4: 0.668 | EF4: 0.785 | EG4: 1.055 | EH4: 1.151 | EI4: 1.356 | EJ4: 1.399 | EK4: 1.26 | EL4: 1.225 | EM4: 1.12 | EN4: 0.817 | EO4: 0.701 | EP4: 0.646 | EQ4: 0.668 | ER4: 0.785 | ES4: 1.055 | ET4: 1.151 | EU4: 1.356 | EV4: 1.399 | EW4: 1.231 | EX4: 1.225 | EY4: 1.12 | EZ4: 0.817 | FA4: 0.701 | FB4: 0.646 | FC4: 0.668 | FD4: 0.785 | FE4: 1.055 | FF4: 1.151 | FG4: 1.356 | FH4: 1.399 | FI4: 1.26 | FJ4: 1.225 | FK4: 1.12 | FL4: 0.817 | FM4: 0.701 | FN4: 0.646 | FO4: 0.668 | FP4: 0.785 | FQ4: 1.055 | FR4: 1.151 | FS4: 1.356 | FT4: 1.399 | FU4: 1.26 | FV4: 1.225 | FW4: 1.12 | FX4: 0.817 | FY4: 0.701 | FZ4: 0.646 | GA4: 0.668 | GB4: 0.785 | GC4: 1.055 | GD4: 1.151 | GE4: 1.356 | GF4: 1.399 | GG4: 1.26 | GH4: 1.225 | GI4: 1.12 | GJ4: 0.817 | GK4: 0.701 | GL4: 0.646 | GM4: 0.668 | GN4: 0.785 | GO4: 1.055 | GP4: 1.151 | GQ4: 1.356 | GR4: 1.399 | GS4: 1.231 | GT4: 1.225 | GU4: 1.12 | GV4: 0.817 | GW4: 0.701 | GX4: 0.646 | GY4: 0.668 | GZ4: 0.785 | HA4: 1.055 | HB4: 1.151 | HC4: 1.356 | HD4: 1.399 | HE4: 1.26 | HF4: 1.225 | HG4: 1.12 | HH4: 0.817 | HI4: 0.701 | HJ4: 0.646 | HK4: 0.668 | HL4: 0.785
B5: 10015 | C5: Asotin County PUD #1 | D5: =VLOOKUP(B5,TOCA!$B$3:$E$138,4,FALSE) -> 0 | E5: 1.433 | F5: 1.005 | G5: 0.871 | H5: 1.014 | I5: 0.907 | J5: 0.964 | K5: 1.012 | L5: 1.742 | M5: 1.92 | N5: 2.719 | O5: 3.036 | P5: 2.243 | Q5: 1.06 | R5: 0.919 | S5: 0.965 | T5: 0.991 | U5: 1.769 | V5: 2.107 | W5: 2.715 | X5: 3.144 | Y5: 2.449 | Z5: 1.548 | AA5: 1.114 | AB5: 0.877 | AC5: 1.899 | AD5: 1.116 | AE5: 1.16 | AF5: 1.397 | AG5: 1.252 | AH5: 1.289 | AI5: 1.808 | AJ5: 2.327 | AK5: 2.829 | AL5: 3.113 | AM5: 3.023 | AN5: 2.395 | AO5: 1.93 | AP5: 1.135 | AQ5: 1.18 | AR5: 1.42 | AS5: 1.318 | AT5: 1.31 | AU5: 1.838 | AV5: 2.366 | AW5: 2.877 | AX5: 3.165 | AY5: 3.074 | AZ5: 2.435 | BA5: 1.874 | BB5: 1.095 | BC5: 1.139 | BD5: 1.379 | BE5: 1.244 | BF5: 1.244 | BG5: 1.756 | BH5: 2.273 | BI5: 2.739 | BJ5: 3.012 | BK5: 2.915 | BL5: 2.327 | BM5: 1.891 | BN5: 1.105 | BO5: 1.149 | BP5: 1.392 | BQ5: 1.303 | BR5: 1.253 | BS5: 1.771 | BT5: 2.293 | BU5: 2.76 | BV5: 3.035 | BW5: 2.937 | BX5: 2.346 | BY5: 1.526 | BZ5: 1.095 | CA5: 1.16 | CB5: 1.224 | CC5: 1.234 | CD5: 1.18 | CE5: 1.51 | CF5: 1.959 | CG5: 2.639 | CH5: 2.888 | CI5: 2.904 | CJ5: 2.215 | CK5: 1.526 | CL5: 1.095 | CM5: 1.16 | CN5: 1.224 | CO5: 1.234 | CP5: 1.18 | CQ5: 1.51 | CR5: 1.959 | CS5: 2.639 | CT5: 2.888 | CU5: 2.904 | CV5: 2.215 | CW5: 1.526 | CX5: 1.095 | CY5: 1.16 | CZ5: 1.224 | DA5: 1.234 | DB5: 1.18 | DC5: 1.51 | DD5: 1.959 | DE5: 2.639 | DF5: 2.888 | DG5: 2.904 | DH5: 2.215 | DI5: 1.526 | DJ5: 1.095 | DK5: 1.16 | DL5: 1.224 | DM5: 1.234 | DN5: 1.18 | DO5: 1.51 | DP5: 1.959 | DQ5: 2.639 | DR5: 2.888 | DS5: 2.904 | DT5: 2.215 | DU5: 1.526 | DV5: 1.095 | DW5: 1.16 | DX5: 1.224 | DY5: 1.234 | DZ5: 1.18 | EA5: 1.51 | EB5: 1.959 | EC5: 2.639 | ED5: 2.888 | EE5: 2.904 | EF5: 2.215 | EG5: 1.526 | EH5: 1.095 | EI5: 1.16 | EJ5: 1.224 | EK5: 1.234 | EL5: 1.18 | EM5: 1.51 | EN5: 1.959 | EO5: 2.639 | EP5: 2.888 | EQ5: 2.904 | ER5: 2.215 | ES5: 1.526 | ET5: 1.095 | EU5: 1.16 | EV5: 1.224 | EW5: 1.234 | EX5: 1.18 | EY5: 1.51 | EZ5: 1.959 | FA5: 2.639 | FB5: 2.888 | FC5: 2.904 | FD5: 2.215 | FE5: 1.526 | FF5: 1.095 | FG5: 1.16 | FH5: 1.224 | FI5: 1.234 | FJ5: 1.18 | FK5: 1.51 | FL5: 1.959 | FM5: 2.639 | FN5: 2.888 | FO5: 2.904 | FP5: 2.215 | FQ5: 1.526 | FR5: 1.095 | FS5: 1.16 | FT5: 1.224 | FU5: 1.234 | FV5: 1.18 | FW5: 1.51 | FX5: 1.959 | FY5: 2.639 | FZ5: 2.888 | GA5: 2.904 | GB5: 2.215 | GC5: 1.526 | GD5: 1.095 | GE5: 1.16 | GF5: 1.224 | GG5: 1.234 | GH5: 1.18 | GI5: 1.51 | GJ5: 1.959 | GK5: 2.639 | GL5: 2.888 | GM5: 2.904 | GN5: 2.215 | GO5: 1.526 | GP5: 1.095 | GQ5: 1.16 | GR5: 1.224 | GS5: 1.234 | GT5: 1.18 | GU5: 1.51 | GV5: 1.959 | GW5: 2.639 | GX5: 2.888 | GY5: 2.904 | GZ5: 2.215 | HA5: 1.526 | HB5: 1.095 | HC5: 1.16 | HD5: 1.224 | HE5: 1.234 | HF5: 1.18 | HG5: 1.51 | HH5: 1.959 | HI5: 2.639 | HJ5: 2.888 | HK5: 2.904 | HL5: 2.215
B6: 10024 | C6: Benton County PUD #1 | D6: =VLOOKUP(B6,TOCA!$B$3:$E$138,4,FALSE) -> 0 | E6: 223.501 | F6: 262.465 | G6: 295.813 | H6: 294.47 | I6: 270.489 | J6: 241.716 | K6: 235.285 | L6: 297.237 | M6: 399.998 | N6: 429.067 | O6: 386.093 | P6: 297.35 | Q6: 301.09 | R6: 281.731 | S6: 232.325 | T6: 275.546 | U6: 323.644 | V6: 407.383 | W6: 441.883 | X6: 410.283 | Y6: 302.983 | Z6: 249.554 | AA6: 249.212 | AB6: 292.58 | AC6: 249.653 | AD6: 249.513 | AE6: 292.93 | AF6: 302.371 | AG6: 282.931 | AH6: 233.375 | AI6: 276.526 | AJ6: 324.505 | AK6: 408.183 | AL6: 442.653 | AM6: 411.113 | AN6: 303.884 | AO6: 250.633 | AP6: 250.682 | AQ6: 294.241 | AR6: 303.76 | AS6: 284.231 | AT6: 234.545 | AU6: 277.626 | AV6: 325.485 | AW6: 409.123 | AX6: 443.553 | AY6: 412.053 | AZ6: 304.913 | BA6: 238.872 | BB6: 256.3 | BC6: 299.931 | BD6: 303.872 | BE6: 286.395 | BF6: 244.323 | BG6: 255.688 | BH6: 360.895 | BI6: 400.004 | BJ6: 428.66 | BK6: 403.99 | BL6: 299.168 | BM6: 239.811 | BN6: 257.31 | BO6: 301.115 | BP6: 305.072 | BQ6: 287.525 | BR6: 245.285 | BS6: 256.695 | BT6: 362.323 | BU6: 401.588 | BV6: 430.358 | BW6: 405.589 | BX6: 300.349 | BY6: 236.467 | BZ6: 253.685 | CA6: 296.827 | CB6: 300.689 | CC6: 283.362 | CD6: 241.712 | CE6: 252.922 | CF6: 356.928 | CG6: 395.553 | CH6: 423.833 | CI6: 399.393 | CJ6: 295.74 | CK6: 237.043 | CL6: 254.304 | CM6: 297.552 | CN6: 301.424 | CO6: 284.054 | CP6: 242.3 | CQ6: 253.538 | CR6: 357.801 | CS6: 396.521 | CT6: 424.872 | CU6: 400.371 | CV6: 296.461 | CW6: 237.619 | CX6: 254.922 | CY6: 298.277 | CZ6: 302.159 | DA6: 284.746 | DB6: 242.889 | DC6: 254.154 | DD6: 358.675 | DE6: 397.49 | DF6: 425.91 | DG6: 401.349 | DH6: 297.182 | DI6: 238.195 | DJ6: 255.541 | DK6: 299.002 | DL6: 302.893 | DM6: 285.437 | DN6: 243.477 | DO6: 254.77 | DP6: 359.548 | DQ6: 398.459 | DR6: 426.948 | DS6: 402.327 | DT6: 297.904 | DU6: 238.771 | DV6: 256.16 | DW6: 299.728 | DX6: 303.628 | DY6: 286.129 | DZ6: 244.066 | EA6: 255.386 | EB6: 360.422 | EC6: 399.427 | ED6: 427.987 | EE6: 403.304 | EF6: 298.625 | EG6: 239.347 | EH6: 256.778 | EI6: 300.453 | EJ6: 304.363 | EK6: 286.821 | EL6: 244.654 | EM6: 256.002 | EN6: 361.295 | EO6: 400.396 | EP6: 429.025 | EQ6: 404.282 | ER6: 299.346 | ES6: 239.923 | ET6: 257.397 | EU6: 301.179 | EV6: 305.098 | EW6: 287.513 | EX6: 245.243 | EY6: 256.619 | EZ6: 362.168 | FA6: 401.365 | FB6: 430.063 | FC6: 405.26 | FD6: 300.067 | FE6: 240.499 | FF6: 258.015 | FG6: 301.904 | FH6: 305.832 | FI6: 288.204 | FJ6: 245.831 | FK6: 257.235 | FL6: 363.041 | FM6: 402.333 | FN6: 431.102 | FO6: 406.238 | FP6: 300.789 | FQ6: 241.075 | FR6: 258.634 | FS6: 302.629 | FT6: 306.567 | FU6: 288.896 | FV6: 246.42 | FW6: 257.851 | FX6: 363.915 | FY6: 403.302 | FZ6: 432.14 | GA6: 407.216 | GB6: 301.51 | GC6: 241.651 | GD6: 259.253 | GE6: 303.355 | GF6: 307.302 | GG6: 289.588 | GH6: 247.008 | GI6: 258.467 | GJ6: 364.788 | GK6: 404.271 | GL6: 433.179 | GM6: 408.193 | GN6: 302.232 | GO6: 242.227 | GP6: 259.871 | GQ6: 304.08 | GR6: 308.037 | GS6: 290.279 | GT6: 247.596 | GU6: 259.083 | GV6: 365.662 | GW6: 405.24 | GX6: 434.217 | GY6: 409.171 | GZ6: 302.953 | HA6: 242.803 | HB6: 260.49 | HC6: 304.805 | HD6: 308.771 | HE6: 290.971 | HF6: 248.185 | HG6: 259.699 | HH6: 366.535 | HI6: 406.208 | HJ6: 435.256 | HK6: 410.149 | HL6: 303.674
B7: 10025 | C7: Benton REA | D7: =VLOOKUP(B7,TOCA!$B$3:$E$138,4,FALSE) -> 0 | E7: 88.278 | F7: 96.661 | G7: 95.101 | H7: 98.483 | I7: 93.882 | J7: 82.053 | K7: 91.517 | L7: 96.816 | M7: 120.441 | N7: 130.583 | O7: 128.492 | P7: 117.882 | Q7: 104.394 | R7: 97.055 | S7: 80.68 | T7: 90.179 | U7: 102.645 | V7: 113.348 | W7: 130.186 | X7: 124.419 | Y7: 110.05 | Z7: 85.127 | AA7: 85.577 | AB7: 99.02 | AC7: 78.985 | AD7: 77.415 | AE7: 94.23 | AF7: 96.668 | AG7: 89.349 | AH7: 74.115 | AI7: 81.122 | AJ7: 92.519 | AK7: 99.42 | AL7: 114.48 | AM7: 105.454 | AN7: 90.146 | AO7: 80.255 | AP7: 78.685 | AQ7: 95.7 | AR7: 98.208 | AS7: 90.769 | AT7: 75.285 | AU7: 82.442 | AV7: 93.999 | AW7: 101.11 | AX7: 116.43 | AY7: 107.314 | AZ7: 91.756 | BA7: 81.95 | BB7: 81.004 | BC7: 95.02 | BD7: 94.354 | BE7: 88.867 | BF7: 75.428 | BG7: 84.355 | BH7: 96.408 | BI7: 109.85 | BJ7: 123.921 | BK7: 120.948 | BL7: 100.843 | BM7: 84.342 | BN7: 83.415 | BO7: 97.447 | BP7: 96.739 | BQ7: 91.246 | BR7: 77.69 | BS7: 86.588 | BT7: 98.66 | BU7: 112.105 | BV7: 126.16 | BW7: 123.117 | BX7: 102.866 | BY7: 75.679 | BZ7: 77.752 | CA7: 101.164 | CB7: 97.249 | CC7: 82.614 | CD7: 78.659 | CE7: 76.755 | CF7: 94.081 | CG7: 110.904 | CH7: 121.033 | CI7: 118.319 | CJ7: 94.761 | CK7: 77.436 | CL7: 79.529 | CM7: 103.174 | CN7: 98.209 | CO7: 83.435 | CP7: 79.432 | CQ7: 77.516 | CR7: 95.015 | CS7: 111.996 | CT7: 122.235 | CU7: 119.493 | CV7: 95.699 | CW7: 78.2 | CX7: 80.313 | CY7: 104.203 | CZ7: 99.178 | DA7: 84.256 | DB7: 80.22 | DC7: 78.284 | DD7: 95.949 | DE7: 113.108 | DF7: 123.45 | DG7: 120.679 | DH7: 96.646 | DI7: 78.971 | DJ7: 81.105 | DK7: 105.232 | DL7: 100.166 | DM7: 85.085 | DN7: 81.008 | DO7: 79.053 | DP7: 96.902 | DQ7: 114.231 | DR7: 124.675 | DS7: 121.876 | DT7: 97.602 | DU7: 79.75 | DV7: 81.904 | DW7: 106.271 | DX7: 101.154 | DY7: 85.93 | DZ7: 81.811 | EA7: 79.835 | EB7: 97.863 | EC7: 115.365 | ED7: 125.913 | EE7: 123.084 | EF7: 98.576 | EG7: 80.543 | EH7: 82.718 | EI7: 107.33 | EJ7: 102.16 | EK7: 86.783 | EL7: 82.622 | EM7: 80.626 | EN7: 98.833 | EO7: 116.51 | EP7: 127.162 | EQ7: 124.304 | ER7: 99.55 | ES7: 81.336 | ET7: 83.533 | EU7: 108.389 | EV7: 103.167 | EW7: 87.635 | EX7: 83.433 | EY7: 81.416 | EZ7: 99.812 | FA7: 117.664 | FB7: 128.422 | FC7: 125.535 | FD7: 100.533 | FE7: 82.137 | FF7: 84.354 | FG7: 109.467 | FH7: 104.192 | FI7: 88.504 | FJ7: 84.258 | FK7: 82.221 | FL7: 100.8 | FM7: 118.83 | FN7: 129.694 | FO7: 126.777 | FP7: 101.525 | FQ7: 82.952 | FR7: 85.191 | FS7: 110.545 | FT7: 105.217 | FU7: 89.38 | FV7: 85.092 | FW7: 83.033 | FX7: 101.797 | FY7: 120.006 | FZ7: 130.978 | GA7: 128.042 | GB7: 102.535 | GC7: 83.768 | GD7: 86.036 | GE7: 111.643 | GF7: 106.26 | GG7: 90.265 | GH7: 85.932 | GI7: 83.852 | GJ7: 102.803 | GK7: 121.193 | GL7: 132.284 | GM7: 129.307 | GN7: 103.554 | GO7: 84.598 | GP7: 86.88 | GQ7: 112.751 | GR7: 107.313 | GS7: 91.157 | GT7: 86.781 | GU7: 84.686 | GV7: 103.818 | GW7: 122.401 | GX7: 133.591 | GY7: 130.594 | GZ7: 104.573 | HA7: 85.435 | HB7: 87.74 | HC7: 113.868 | HD7: 108.376 | HE7: 92.057 | HF7: 87.644 | HG7: 85.52 | HH7: 104.851 | HI7: 123.609 | HJ7: 134.921 | HK7: 131.881 | HL7: 105.61
B8: 10027 | C8: Big Bend Elec Coop | D8: =VLOOKUP(B8,TOCA!$B$3:$E$138,4,FALSE) -> 0 | E8: 71.7 | F8: 46 | G8: 51.5 | H8: 51.2 | I8: 46.2 | J8: 42.8 | K8: 78.8 | L8: 111.5 | M8: 128.6 | N8: 131.1 | O8: 121.7 | P8: 105.9 | Q8: 53.178 | R8: 49.483 | S8: 47.529 | T8: 82.703 | U8: 115.435 | V8: 132.241 | W8: 135.062 | X8: 125.324 | Y8: 108.328 | Z8: 74.193 | AA8: 48.731 | AB8: 54.745 | AC8: 73.882 | AD8: 49.47 | AE8: 55.472 | AF8: 53.89 | AG8: 50.236 | AH8: 48.282 | AI8: 82.019 | AJ8: 113.798 | AK8: 130.201 | AL8: 132.631 | AM8: 123.367 | AN8: 107.057 | AO8: 74.691 | AP8: 50.279 | AQ8: 56.282 | AR8: 54.7 | AS8: 51.045 | AT8: 49.091 | AU8: 82.828 | AV8: 114.608 | AW8: 131.01 | AX8: 133.44 | AY8: 124.176 | AZ8: 107.866 | BA8: 80.942 | BB8: 56.193 | BC8: 62.265 | BD8: 61.78 | BE8: 55.899 | BF8: 56.741 | BG8: 90.161 | BH8: 120.134 | BI8: 137.036 | BJ8: 136.268 | BK8: 128.725 | BL8: 111.741 | BM8: 81.885 | BN8: 57.136 | BO8: 63.208 | BP8: 62.724 | BQ8: 56.842 | BR8: 57.684 | BS8: 91.104 | BT8: 121.078 | BU8: 137.979 | BV8: 137.211 | BW8: 129.668 | BX8: 112.684 | BY8: 79.995 | BZ8: 52.888 | CA8: 61.719 | CB8: 58.185 | CC8: 54.871 | CD8: 53.083 | CE8: 90.97 | CF8: 127.443 | CG8: 141.189 | CH8: 138.382 | CI8: 130.772 | CJ8: 109.596 | CK8: 80.79 | CL8: 53.684 | CM8: 62.515 | CN8: 58.981 | CO8: 55.666 | CP8: 53.878 | CQ8: 91.765 | CR8: 128.238 | CS8: 141.984 | CT8: 139.177 | CU8: 131.567 | CV8: 110.391 | CW8: 81.585 | CX8: 54.479 | CY8: 63.31 | CZ8: 59.776 | DA8: 56.461 | DB8: 54.673 | DC8: 92.561 | DD8: 129.034 | DE8: 142.779 | DF8: 139.972 | DG8: 132.362 | DH8: 111.187 | DI8: 82.38 | DJ8: 55.274 | DK8: 64.105 | DL8: 60.571 | DM8: 57.257 | DN8: 55.468 | DO8: 93.356 | DP8: 129.829 | DQ8: 143.574 | DR8: 140.767 | DS8: 133.157 | DT8: 111.982 | DU8: 83.176 | DV8: 56.069 | DW8: 64.9 | DX8: 61.366 | DY8: 58.052 | DZ8: 56.263 | EA8: 94.151 | EB8: 130.624 | EC8: 144.369 | ED8: 141.562 | EE8: 133.952 | EF8: 112.777 | EG8: 83.971 | EH8: 56.864 | EI8: 65.695 | EJ8: 62.161 | EK8: 58.847 | EL8: 57.058 | EM8: 94.946 | EN8: 131.419 | EO8: 145.165 | EP8: 142.357 | EQ8: 134.747 | ER8: 113.572 | ES8: 84.766 | ET8: 57.659 | EU8: 66.49 | EV8: 62.957 | EW8: 59.642 | EX8: 57.854 | EY8: 95.741 | EZ8: 132.214 | FA8: 145.96 | FB8: 143.153 | FC8: 135.543 | FD8: 114.367 | FE8: 85.561 | FF8: 58.455 | FG8: 67.286 | FH8: 63.752 | FI8: 60.437 | FJ8: 58.649 | FK8: 96.536 | FL8: 133.009 | FM8: 146.755 | FN8: 143.948 | FO8: 136.338 | FP8: 115.162 | FQ8: 86.356 | FR8: 59.25 | FS8: 68.081 | FT8: 64.547 | FU8: 61.232 | FV8: 59.444 | FW8: 97.332 | FX8: 133.805 | FY8: 147.55 | FZ8: 144.743 | GA8: 137.133 | GB8: 115.958 | GC8: 87.151 | GD8: 60.045 | GE8: 68.876 | GF8: 65.342 | GG8: 62.028 | GH8: 60.239 | GI8: 98.127 | GJ8: 134.6 | GK8: 148.345 | GL8: 145.538 | GM8: 137.928 | GN8: 116.753 | GO8: 87.947 | GP8: 60.84 | GQ8: 69.671 | GR8: 66.137 | GS8: 62.823 | GT8: 61.034 | GU8: 98.922 | GV8: 135.395 | GW8: 149.14 | GX8: 146.333 | GY8: 138.723 | GZ8: 117.548 | HA8: 88.742 | HB8: 61.635 | HC8: 70.466 | HD8: 66.932 | HE8: 63.618 | HF8: 61.829 | HG8: 99.717 | HH8: 136.19 | HI8: 149.936 | HJ8: 147.128 | HK8: 139.518 | HL8: 118.343
B9: 10029 | C9: Blachly Lane Elec Coop | D9: =VLOOKUP(B9,TOCA!$B$3:$E$138,4,FALSE) -> 1 | E9: 29.787 | F9: 32.231 | G9: 34.956 | H9: 34.924 | I9: 33.493 | J9: 32.735 | K9: 31.131 | L9: 26.612 | M9: 25.6 | N9: 25.333 | O9: 24.92 | P9: 25.173 | Q9: 34.924 | R9: 33.493 | S9: 32.735 | T9: 31.131 | U9: 26.612 | V9: 25.6 | W9: 25.333 | X9: 24.92 | Y9: 25.173 | Z9: 29.787 | AA9: 32.231 | AB9: 34.956 | AC9: 29.229 | AD9: 31.757 | AE9: 34.481 | AF9: 34.422 | AG9: 32.989 | AH9: 32.232 | AI9: 30.86 | AJ9: 25.923 | AK9: 25.068 | AL9: 24.843 | AM9: 24.154 | AN9: 24.666 | AO9: 29.229 | AP9: 31.757 | AQ9: 34.481 | AR9: 34.422 | AS9: 32.989 | AT9: 32.232 | AU9: 30.86 | AV9: 25.923 | AW9: 25.068 | AX9: 24.843 | AY9: 24.154 | AZ9: 24.666 | BA9: 31.764 | BB9: 34.371 | BC9: 36.927 | BD9: 37.157 | BE9: 36.62 | BF9: 35.32 | BG9: 33.983 | BH9: 29.155 | BI9: 28.044 | BJ9: 27.827 | BK9: 28.006 | BL9: 27.881 | BM9: 32.094 | BN9: 34.537 | BO9: 36.927 | BP9: 37.157 | BQ9: 36.62 | BR9: 35.32 | BS9: 33.983 | BT9: 29.155 | BU9: 28.044 | BV9: 27.827 | BW9: 28.006 | BX9: 27.881 | BY9: 29.546 | BZ9: 31.293 | CA9: 35.105 | CB9: 34.592 | CC9: 33.484 | CD9: 33.425 | CE9: 31.107 | CF9: 27.723 | CG9: 26.268 | CH9: 26.176 | CI9: 26.455 | CJ9: 26.156 | CK9: 29.546 | CL9: 31.293 | CM9: 35.105 | CN9: 34.592 | CO9: 33.484 | CP9: 33.425 | CQ9: 31.107 | CR9: 27.723 | CS9: 26.268 | CT9: 26.176 | CU9: 26.455 | CV9: 26.156 | CW9: 29.546 | CX9: 31.293 | CY9: 35.105 | CZ9: 34.592 | DA9: 33.484 | DB9: 33.425 | DC9: 31.107 | DD9: 27.723 | DE9: 26.268 | DF9: 26.176 | DG9: 26.455 | DH9: 26.156 | DI9: 29.546 | DJ9: 31.293 | DK9: 35.105 | DL9: 34.592 | DM9: 33.484 | DN9: 33.425 | DO9: 31.107 | DP9: 27.723 | DQ9: 26.268 | DR9: 26.176 | DS9: 26.455 | DT9: 26.156 | DU9: 29.546 | DV9: 31.293 | DW9: 35.105 | DX9: 34.592 | DY9: 33.484 | DZ9: 33.425 | EA9: 31.107 | EB9: 27.723 | EC9: 26.268 | ED9: 26.176 | EE9: 26.455 | EF9: 26.156 | EG9: 29.546 | EH9: 31.293 | EI9: 35.105 | EJ9: 34.592 | EK9: 33.484 | EL9: 33.425 | EM9: 31.107 | EN9: 27.723 | EO9: 26.268 | EP9: 26.176 | EQ9: 26.455 | ER9: 26.156 | ES9: 29.546 | ET9: 31.293 | EU9: 35.105 | EV9: 34.592 | EW9: 33.484 | EX9: 33.425 | EY9: 31.107 | EZ9: 27.723 | FA9: 26.268 | FB9: 26.176 | FC9: 26.455 | FD9: 26.156 | FE9: 29.546 | FF9: 31.293 | FG9: 35.105 | FH9: 34.592 | FI9: 33.484 | FJ9: 33.425 | FK9: 31.107 | FL9: 27.723 | FM9: 26.268 | FN9: 26.176 | FO9: 26.455 | FP9: 26.156 | FQ9: 29.546 | FR9: 31.293 | FS9: 35.105 | FT9: 34.592 | FU9: 33.484 | FV9: 33.425 | FW9: 31.107 | FX9: 27.723 | FY9: 26.268 | FZ9: 26.176 | GA9: 26.455 | GB9: 26.156 | GC9: 29.546 | GD9: 31.293 | GE9: 35.105 | GF9: 34.592 | GG9: 33.484 | GH9: 33.425 | GI9: 31.107 | GJ9: 27.723 | GK9: 26.268 | GL9: 26.176 | GM9: 26.455 | GN9: 26.156 | GO9: 29.546 | GP9: 31.293 | GQ9: 35.105 | GR9: 34.592 | GS9: 33.484 | GT9: 33.425 | GU9: 31.107 | GV9: 27.723 | GW9: 26.268 | GX9: 26.176 | GY9: 26.455 | GZ9: 26.156 | HA9: 29.546 | HB9: 31.293 | HC9: 35.105 | HD9: 34.592 | HE9: 33.484 | HF9: 33.425 | HG9: 31.107 | HH9: 27.723 | HI9: 26.268 | HJ9: 26.176 | HK9: 26.455 | HL9: 26.156
B10: 10044 | C10: Canby, City of | D10: =VLOOKUP(B10,TOCA!$B$3:$E$138,4,FALSE) -> 0 | E10: 29.246 | F10: 34.326 | G10: 37.248 | H10: 37.988 | I10: 36.033 | J10: 32.982 | K10: 30.902 | L10: 28.241 | M10: 29.529 | N10: 33.079 | O10: 33.637 | P10: 30.809 | Q10: 36.024 | R10: 33.577 | S10: 30.499 | T10: 28.42 | U10: 25.716 | V10: 27.034 | W10: 30.558 | X10: 31.14 | Y10: 28.317 | Z10: 26.752 | AA10: 31.848 | AB10: 34.791 | AC10: 26.742 | AD10: 31.849 | AE10: 34.801 | AF10: 36.044 | AG10: 33.598 | AH10: 30.519 | AI10: 28.441 | AJ10: 25.738 | AK10: 27.056 | AL10: 30.58 | AM10: 31.162 | AN10: 28.34 | AO10: 26.909 | AP10: 32.005 | AQ10: 34.948 | AR10: 36.18 | AS10: 33.734 | AT10: 30.655 | AU10: 28.577 | AV10: 25.873 | AW10: 27.191 | AX10: 30.714 | AY10: 31.296 | AZ10: 28.474 | BA10: 27.05 | BB10: 32.158 | BC10: 35.111 | BD10: 36.354 | BE10: 33.918 | BF10: 30.848 | BG10: 28.78 | BH10: 26.062 | BI10: 27.378 | BJ10: 30.902 | BK10: 31.484 | BL10: 28.66 | BM10: 27.227 | BN10: 32.323 | BO10: 35.264 | BP10: 36.496 | BQ10: 34.049 | BR10: 30.967 | BS10: 28.887 | BT10: 26.184 | BU10: 27.5 | BV10: 31.023 | BW10: 31.604 | BX10: 28.781 | BY10: 27.17 | BZ10: 35.036 | CA10: 35.71 | CB10: 36.376 | CC10: 34.332 | CD10: 32.423 | CE10: 28.21 | CF10: 27.597 | CG10: 34.063 | CH10: 33.459 | CI10: 35.5 | CJ10: 29.63 | CK10: 27.169 | CL10: 35.035 | CM10: 35.709 | CN10: 36.376 | CO10: 34.332 | CP10: 32.423 | CQ10: 28.21 | CR10: 27.597 | CS10: 34.114 | CT10: 33.509 | CU10: 35.552 | CV10: 29.673 | CW10: 27.17 | CX10: 35.036 | CY10: 35.709 | CZ10: 36.375 | DA10: 34.332 | DB10: 32.423 | DC10: 28.21 | DD10: 27.596 | DE10: 34.165 | DF10: 33.558 | DG10: 35.604 | DH10: 29.717 | DI10: 27.169 | DJ10: 35.035 | DK10: 35.709 | DL10: 36.375 | DM10: 34.331 | DN10: 32.423 | DO10: 28.21 | DP10: 27.595 | DQ10: 34.216 | DR10: 33.608 | DS10: 35.658 | DT10: 29.761 | DU10: 27.169 | DV10: 35.035 | DW10: 35.709 | DX10: 36.375 | DY10: 34.331 | DZ10: 32.423 | EA10: 28.21 | EB10: 27.595 | EC10: 34.267 | ED10: 33.658 | EE10: 35.71 | EF10: 29.805 | EG10: 27.168 | EH10: 35.035 | EI10: 35.708 | EJ10: 36.375 | EK10: 34.331 | EL10: 32.422 | EM10: 28.21 | EN10: 27.594 | EO10: 34.317 | EP10: 33.709 | EQ10: 35.764 | ER10: 29.849 | ES10: 27.169 | ET10: 35.035 | EU10: 35.708 | EV10: 36.374 | EW10: 34.33 | EX10: 32.422 | EY10: 28.21 | EZ10: 27.594 | FA10: 34.369 | FB10: 33.758 | FC10: 35.817 | FD10: 29.894 | FE10: 27.168 | FF10: 35.034 | FG10: 35.708 | FH10: 36.374 | FI10: 34.331 | FJ10: 32.422 | FK10: 28.209 | FL10: 27.593 | FM10: 34.419 | FN10: 33.808 | FO10: 35.87 | FP10: 29.938 | FQ10: 27.168 | FR10: 35.034 | FS10: 35.708 | FT10: 36.375 | FU10: 34.33 | FV10: 32.422 | FW10: 28.209 | FX10: 27.593 | FY10: 34.471 | FZ10: 33.859 | GA10: 35.924 | GB10: 29.983 | GC10: 27.168 | GD10: 35.035 | GE10: 35.708 | GF10: 36.375 | GG10: 34.33 | GH10: 32.422 | GI10: 28.208 | GJ10: 27.592 | GK10: 34.523 | GL10: 33.91 | GM10: 35.977 | GN10: 30.027 | GO10: 27.167 | GP10: 35.034 | GQ10: 35.707 | GR10: 36.374 | GS10: 34.33 | GT10: 32.422 | GU10: 28.208 | GV10: 27.592 | GW10: 34.573 | GX10: 33.96 | GY10: 36.031 | GZ10: 30.073 | HA10: 27.168 | HB10: 35.033 | HC10: 35.707 | HD10: 36.374 | HE10: 34.329 | HF10: 32.421 | HG10: 28.208 | HH10: 27.591 | HI10: 34.625 | HJ10: 34.01 | HK10: 36.085 | HL10: 30.117
B11: 10046 | C11: Central Electric Coop | D11: =VLOOKUP(B11,TOCA!$B$3:$E$138,4,FALSE) -> 1 | E11: 114.708 | F11: 167.647 | G11: 198.859 | H11: 172.355 | I11: 164.605 | J11: 132.072 | K11: 129.429 | L11: 117.401 | M11: 106.792 | N11: 110.438 | O11: 106.771 | P11: 109.034 | Q11: 182.394 | R11: 174.439 | S11: 145.144 | T11: 137.208 | U11: 124.915 | V11: 113.076 | W11: 118.066 | X11: 114.14 | Y11: 114.689 | Z11: 121.655 | AA11: 177.299 | AB11: 215.369 | AC11: 125.672 | AD11: 183.557 | AE11: 219.99 | AF11: 189.586 | AG11: 178.92 | AH11: 148.647 | AI11: 141.057 | AJ11: 129.889 | AK11: 119.832 | AL11: 123.81 | AM11: 119.463 | AN11: 118.546 | AO11: 127.145 | AP11: 185.03 | AQ11: 221.463 | AR11: 191.059 | AS11: 180.393 | AT11: 150.12 | AU11: 142.53 | AV11: 131.362 | AW11: 121.305 | AX11: 125.283 | AY11: 120.936 | AZ11: 120.019 | BA11: 135.141 | BB11: 192.878 | BC11: 223.059 | BD11: 196.793 | BE11: 191.969 | BF11: 160.718 | BG11: 152.557 | BH11: 136.228 | BI11: 129.926 | BJ11: 134.47 | BK11: 131.473 | BL11: 123.639 | BM11: 137.873 | BN11: 195.61 | BO11: 225.792 | BP11: 199.525 | BQ11: 194.701 | BR11: 163.45 | BS11: 155.289 | BT11: 138.96 | BU11: 132.658 | BV11: 137.202 | BW11: 134.205 | BX11: 126.371 | BY11: 140.605 | BZ11: 198.343 | CA11: 228.523 | CB11: 202.257 | CC11: 197.433 | CD11: 166.182 | CE11: 158.021 | CF11: 141.692 | CG11: 135.39 | CH11: 139.934 | CI11: 136.937 | CJ11: 129.102 | CK11: 143.336 | CL11: 201.075 | CM11: 231.256 | CN11: 204.989 | CO11: 200.165 | CP11: 168.914 | CQ11: 160.753 | CR11: 144.424 | CS11: 138.122 | CT11: 142.666 | CU11: 139.669 | CV11: 131.835 | CW11: 146.068 | CX11: 203.806 | CY11: 233.988 | CZ11: 207.721 | DA11: 202.897 | DB11: 171.646 | DC11: 163.485 | DD11: 147.156 | DE11: 140.854 | DF11: 145.398 | DG11: 142.401 | DH11: 134.567 | DI11: 148.801 | DJ11: 206.539 | DK11: 236.72 | DL11: 210.453 | DM11: 205.629 | DN11: 174.378 | DO11: 166.217 | DP11: 149.889 | DQ11: 143.586 | DR11: 148.131 | DS11: 145.133 | DT11: 137.299 | DU11: 151.533 | DV11: 209.271 | DW11: 239.452 | DX11: 213.185 | DY11: 208.362 | DZ11: 177.11 | EA11: 168.949 | EB11: 152.62 | EC11: 146.318 | ED11: 150.862 | EE11: 147.866 | EF11: 140.03 | EG11: 154.265 | EH11: 212.003 | EI11: 242.184 | EJ11: 215.918 | EK11: 211.093 | EL11: 179.842 | EM11: 171.681 | EN11: 155.352 | EO11: 149.051 | EP11: 153.594 | EQ11: 150.598 | ER11: 142.762 | ES11: 156.996 | ET11: 214.736 | EU11: 244.916 | EV11: 218.65 | EW11: 213.825 | EX11: 182.574 | EY11: 174.413 | EZ11: 158.084 | FA11: 151.783 | FB11: 156.327 | FC11: 153.329 | FD11: 145.495 | FE11: 159.729 | FF11: 217.467 | FG11: 247.648 | FH11: 221.381 | FI11: 216.557 | FJ11: 185.306 | FK11: 177.145 | FL11: 160.816 | FM11: 154.514 | FN11: 159.059 | FO11: 156.061 | FP11: 148.227 | FQ11: 162.461 | FR11: 220.199 | FS11: 250.381 | FT11: 224.113 | FU11: 219.289 | FV11: 188.038 | FW11: 179.877 | FX11: 163.549 | FY11: 157.246 | FZ11: 161.791 | GA11: 158.794 | GB11: 150.959 | GC11: 165.193 | GD11: 222.931 | GE11: 253.112 | GF11: 226.846 | GG11: 222.022 | GH11: 190.77 | GI11: 182.609 | GJ11: 166.28 | GK11: 159.979 | GL11: 164.523 | GM11: 161.526 | GN11: 153.69 | GO11: 167.925 | GP11: 225.664 | GQ11: 255.844 | GR11: 229.578 | GS11: 224.753 | GT11: 193.502 | GU11: 185.341 | GV11: 169.012 | GW11: 162.711 | GX11: 167.255 | GY11: 164.258 | GZ11: 156.423 | HA11: 170.657 | HB11: 228.395 | HC11: 258.577 | HD11: 232.31 | HE11: 227.485 | HF11: 196.234 | HG11: 188.073 | HH11: 171.744 | HI11: 165.443 | HJ11: 169.987 | HK11: 166.989 | HL11: 159.155
B12: 10047 | C12: Central Lincoln PUD | D12: =VLOOKUP(B12,TOCA!$B$3:$E$138,4,FALSE) -> 0 | E12: 203.76 | F12: 225.786 | G12: 248.217 | H12: 245.278 | I12: 241.202 | J12: 228.565 | K12: 214.371 | L12: 172.124 | M12: 160.158 | N12: 154.243 | O12: 153.321 | P12: 163.369 | Q12: 245.175 | R12: 238.594 | S12: 228.477 | T12: 213.009 | U12: 170.219 | V12: 157.522 | W12: 153.047 | X12: 154.132 | Y12: 160.348 | Z12: 201.301 | AA12: 227.105 | AB12: 247.56 | AC12: 201.8 | AD12: 227.668 | AE12: 250.251 | AF12: 247.86 | AG12: 241.263 | AH12: 229.043 | AI12: 213.536 | AJ12: 170.641 | AK12: 157.912 | AL12: 153.426 | AM12: 154.513 | AN12: 160.744 | AO12: 202.299 | AP12: 228.23 | AQ12: 250.869 | AR12: 248.473 | AS12: 241.859 | AT12: 229.608 | AU12: 214.063 | AV12: 171.062 | AW12: 158.302 | AX12: 153.805 | AY12: 154.894 | AZ12: 161.14 | BA12: 198.047 | BB12: 227.583 | BC12: 250.365 | BD12: 245.995 | BE12: 233.073 | BF12: 221.222 | BG12: 211.593 | BH12: 164.786 | BI12: 153.123 | BJ12: 153.073 | BK12: 154.774 | BL12: 157.504 | BM12: 198.53 | BN12: 228.14 | BO12: 250.978 | BP12: 246.597 | BQ12: 233.643 | BR12: 221.763 | BS12: 212.109 | BT12: 165.186 | BU12: 153.493 | BV12: 153.444 | BW12: 155.149 | BX12: 157.886 | BY12: 186.986 | BZ12: 206.165 | CA12: 241.362 | CB12: 232.996 | CC12: 206.878 | CD12: 223.55 | CE12: 219.641 | CF12: 175.652 | CG12: 148.581 | CH12: 148.721 | CI12: 152.108 | CJ12: 162.252 | CK12: 186.986 | CL12: 206.165 | CM12: 241.362 | CN12: 232.996 | CO12: 206.878 | CP12: 223.55 | CQ12: 219.641 | CR12: 175.652 | CS12: 148.581 | CT12: 148.721 | CU12: 152.108 | CV12: 162.252 | CW12: 186.986 | CX12: 206.165 | CY12: 241.362 | CZ12: 232.996 | DA12: 206.878 | DB12: 223.55 | DC12: 219.641 | DD12: 175.652 | DE12: 148.581 | DF12: 148.721 | DG12: 152.108 | DH12: 162.252 | DI12: 186.986 | DJ12: 206.165 | DK12: 241.362 | DL12: 232.996 | DM12: 206.878 | DN12: 223.55 | DO12: 219.641 | DP12: 175.652 | DQ12: 148.581 | DR12: 148.721 | DS12: 152.108 | DT12: 162.252 | DU12: 186.986 | DV12: 206.165 | DW12: 241.362 | DX12: 232.996 | DY12: 206.878 | DZ12: 223.55 | EA12: 219.641 | EB12: 175.652 | EC12: 148.581 | ED12: 148.721 | EE12: 152.108 | EF12: 162.252 | EG12: 186.986 | EH12: 206.165 | EI12: 241.362 | EJ12: 232.996 | EK12: 206.878 | EL12: 223.55 | EM12: 219.641 | EN12: 175.652 | EO12: 148.581 | EP12: 148.721 | EQ12: 152.108 | ER12: 162.252 | ES12: 186.986 | ET12: 206.165 | EU12: 241.362 | EV12: 232.996 | EW12: 206.878 | EX12: 223.55 | EY12: 219.641 | EZ12: 175.652 | FA12: 148.581 | FB12: 148.721 | FC12: 152.108 | FD12: 162.252 | FE12: 186.986 | FF12: 206.165 | FG12: 241.362 | FH12: 232.996 | FI12: 206.878 | FJ12: 223.55 | FK12: 219.641 | FL12: 175.652 | FM12: 148.581 | FN12: 148.721 | FO12: 152.108 | FP12: 162.252 | FQ12: 186.986 | FR12: 206.165 | FS12: 241.362 | FT12: 232.996 | FU12: 206.878 | FV12: 223.55 | FW12: 219.641 | FX12: 175.652 | FY12: 148.581 | FZ12: 148.721 | GA12: 152.108 | GB12: 162.252 | GC12: 186.986 | GD12: 206.165 | GE12: 241.362 | GF12: 232.996 | GG12: 206.878 | GH12: 223.55 | GI12: 219.641 | GJ12: 175.652 | GK12: 148.581 | GL12: 148.721 | GM12: 152.108 | GN12: 162.252 | GO12: 186.986 | GP12: 206.165 | GQ12: 241.362 | GR12: 232.996 | GS12: 206.878 | GT12: 223.55 | GU12: 219.641 | GV12: 175.652 | GW12: 148.581 | GX12: 148.721 | GY12: 152.108 | GZ12: 162.252 | HA12: 186.986 | HB12: 206.165 | HC12: 241.362 | HD12: 232.996 | HE12: 206.878 | HF12: 223.55 | HG12: 219.641 | HH12: 175.652 | HI12: 148.581 | HJ12: 148.721 | HK12: 152.108 | HL12: 162.252
B13: 10055 | C13: Albion, City of | D13: =VLOOKUP(B13,TOCA!$B$3:$E$138,4,FALSE) -> 0 | E13: 0.62 | F13: 0.788 | G13: 0.914 | H13: 1.002 | I13: 0.835 | J13: 0.775 | K13: 0.648 | L13: 0.525 | M13: 0.437 | N13: 0.473 | O13: 0.459 | P13: 0.419 | Q13: 1.01 | R13: 0.843 | S13: 0.787 | T13: 0.678 | U13: 0.525 | V13: 0.441 | W13: 0.474 | X13: 0.462 | Y13: 0.424 | Z13: 0.625 | AA13: 0.802 | AB13: 1.031 | AC13: 0.616 | AD13: 0.799 | AE13: 1.039 | AF13: 1.013 | AG13: 0.839 | AH13: 0.753 | AI13: 0.668 | AJ13: 0.513 | AK13: 0.43 | AL13: 0.463 | AM13: 0.444 | AN13: 0.41 | AO13: 0.617 | AP13: 0.801 | AQ13: 1.04 | AR13: 1.014 | AS13: 0.841 | AT13: 0.755 | AU13: 0.669 | AV13: 0.515 | AW13: 0.431 | AX13: 0.464 | AY13: 0.446 | AZ13: 0.412 | BA13: 0.614 | BB13: 0.793 | BC13: 1.062 | BD13: 1.006 | BE13: 0.844 | BF13: 0.766 | BG13: 0.647 | BH13: 0.508 | BI13: 0.418 | BJ13: 0.45 | BK13: 0.439 | BL13: 0.398 | BM13: 0.614 | BN13: 0.793 | BO13: 1.062 | BP13: 1.006 | BQ13: 0.844 | BR13: 0.766 | BS13: 0.647 | BT13: 0.508 | BU13: 0.418 | BV13: 0.45 | BW13: 0.439 | BX13: 0.398 | BY13: 0.655 | BZ13: 0.692 | CA13: 1.043 | CB13: 0.976 | CC13: 0.804 | CD13: 0.711 | CE13: 0.628 | CF13: 0.503 | CG13: 0.421 | CH13: 0.45 | CI13: 0.442 | CJ13: 0.403 | CK13: 0.655 | CL13: 0.692 | CM13: 1.043 | CN13: 0.976 | CO13: 0.804 | CP13: 0.711 | CQ13: 0.628 | CR13: 0.503 | CS13: 0.421 | CT13: 0.45 | CU13: 0.442 | CV13: 0.403 | CW13: 0.655 | CX13: 0.692 | CY13: 1.043 | CZ13: 0.976 | DA13: 0.804 | DB13: 0.711 | DC13: 0.628 | DD13: 0.503 | DE13: 0.421 | DF13: 0.45 | DG13: 0.442 | DH13: 0.403 | DI13: 0.655 | DJ13: 0.692 | DK13: 1.043 | DL13: 0.976 | DM13: 0.804 | DN13: 0.711 | DO13: 0.628 | DP13: 0.503 | DQ13: 0.421 | DR13: 0.45 | DS13: 0.442 | DT13: 0.403 | DU13: 0.655 | DV13: 0.692 | DW13: 1.043 | DX13: 0.976 | DY13: 0.804 | DZ13: 0.711 | EA13: 0.628 | EB13: 0.503 | EC13: 0.421 | ED13: 0.45 | EE13: 0.442 | EF13: 0.403 | EG13: 0.655 | EH13: 0.692 | EI13: 1.043 | EJ13: 0.976 | EK13: 0.804 | EL13: 0.711 | EM13: 0.628 | EN13: 0.503 | EO13: 0.421 | EP13: 0.45 | EQ13: 0.442 | ER13: 0.403 | ES13: 0.655 | ET13: 0.692 | EU13: 1.043 | EV13: 0.976 | EW13: 0.804 | EX13: 0.711 | EY13: 0.628 | EZ13: 0.503 | FA13: 0.421 | FB13: 0.45 | FC13: 0.442 | FD13: 0.403 | FE13: 0.655 | FF13: 0.692 | FG13: 1.043 | FH13: 0.976 | FI13: 0.804 | FJ13: 0.711 | FK13: 0.628 | FL13: 0.503 | FM13: 0.421 | FN13: 0.45 | FO13: 0.442 | FP13: 0.403 | FQ13: 0.655 | FR13: 0.692 | FS13: 1.043 | FT13: 0.976 | FU13: 0.804 | FV13: 0.711 | FW13: 0.628 | FX13: 0.503 | FY13: 0.421 | FZ13: 0.45 | GA13: 0.442 | GB13: 0.403 | GC13: 0.655 | GD13: 0.692 | GE13: 1.043 | GF13: 0.976 | GG13: 0.804 | GH13: 0.711 | GI13: 0.628 | GJ13: 0.503 | GK13: 0.421 | GL13: 0.45 | GM13: 0.442 | GN13: 0.403 | GO13: 0.655 | GP13: 0.692 | GQ13: 1.043 | GR13: 0.976 | GS13: 0.804 | GT13: 0.711 | GU13: 0.628 | GV13: 0.503 | GW13: 0.421 | GX13: 0.45 | GY13: 0.442 | GZ13: 0.403 | HA13: 0.655 | HB13: 0.692 | HC13: 1.043 | HD13: 0.976 | HE13: 0.804 | HF13: 0.711 | HG13: 0.628 | HH13: 0.503 | HI13: 0.421 | HJ13: 0.45 | HK13: 0.442 | HL13: 0.403
B14: 10057 | C14: Ashland, City of | D14: =VLOOKUP(B14,TOCA!$B$3:$E$138,4,FALSE) -> 0 | E14: 28.48 | F14: 33.025 | G14: 37.048 | H14: 35.993 | I14: 33.685 | J14: 32.344 | K14: 30.743 | L14: 26.515 | M14: 30.072 | N14: 37.834 | O14: 36.142 | P14: 30.665 | Q14: 36.137 | R14: 33.827 | S14: 32.486 | T14: 30.884 | U14: 26.597 | V14: 30.158 | W14: 37.929 | X14: 36.223 | Y14: 30.743 | Z14: 28.631 | AA14: 33.209 | AB14: 37.21 | AC14: 27.409 | AD14: 32.573 | AE14: 36.765 | AF14: 36.455 | AG14: 33.384 | AH14: 32.669 | AI14: 29.754 | AJ14: 24.873 | AK14: 28.858 | AL14: 36.967 | AM14: 35.195 | AN14: 29.612 | AO14: 27.409 | AP14: 32.573 | AQ14: 36.765 | AR14: 36.455 | AS14: 33.384 | AT14: 32.669 | AU14: 29.754 | AV14: 24.873 | AW14: 28.858 | AX14: 36.967 | AY14: 35.195 | AZ14: 29.612 | BA14: 26.712 | BB14: 31.206 | BC14: 35.554 | BD14: 34.107 | BE14: 33.048 | BF14: 31.542 | BG14: 28.511 | BH14: 24.151 | BI14: 31.249 | BJ14: 37.73 | BK14: 35.667 | BL14: 29.939 | BM14: 26.712 | BN14: 31.206 | BO14: 35.554 | BP14: 34.107 | BQ14: 33.048 | BR14: 31.542 | BS14: 28.511 | BT14: 24.151 | BU14: 31.249 | BV14: 37.73 | BW14: 35.667 | BX14: 29.939 | BY14: 26.712 | BZ14: 31.206 | CA14: 35.554 | CB14: 34.107 | CC14: 33.048 | CD14: 31.542 | CE14: 28.511 | CF14: 24.147 | CG14: 31.243 | CH14: 37.727 | CI14: 35.664 | CJ14: 29.915 | CK14: 26.712 | CL14: 31.206 | CM14: 35.554 | CN14: 34.107 | CO14: 33.048 | CP14: 31.542 | CQ14: 28.511 | CR14: 24.147 | CS14: 31.243 | CT14: 37.727 | CU14: 35.664 | CV14: 29.915 | CW14: 26.712 | CX14: 31.206 | CY14: 35.554 | CZ14: 34.107 | DA14: 33.048 | DB14: 31.542 | DC14: 28.511 | DD14: 24.147 | DE14: 31.243 | DF14: 37.727 | DG14: 35.664 | DH14: 29.915 | DI14: 26.712 | DJ14: 31.206 | DK14: 35.554 | DL14: 34.107 | DM14: 33.048 | DN14: 31.542 | DO14: 28.511 | DP14: 24.147 | DQ14: 31.243 | DR14: 37.727 | DS14: 35.664 | DT14: 29.915 | DU14: 26.712 | DV14: 31.206 | DW14: 35.554 | DX14: 34.107 | DY14: 33.048 | DZ14: 31.542 | EA14: 28.511 | EB14: 24.147 | EC14: 31.243 | ED14: 37.727 | EE14: 35.664 | EF14: 29.915 | EG14: 26.712 | EH14: 31.206 | EI14: 35.554 | EJ14: 34.107 | EK14: 33.048 | EL14: 31.542 | EM14: 28.511 | EN14: 24.147 | EO14: 31.243 | EP14: 37.727 | EQ14: 35.664 | ER14: 29.915 | ES14: 26.712 | ET14: 31.206 | EU14: 35.554 | EV14: 34.107 | EW14: 33.048 | EX14: 31.542 | EY14: 28.511 | EZ14: 24.147 | FA14: 31.243 | FB14: 37.727 | FC14: 35.664 | FD14: 29.915 | FE14: 26.712 | FF14: 31.206 | FG14: 35.554 | FH14: 34.107 | FI14: 33.048 | FJ14: 31.542 | FK14: 28.511 | FL14: 24.147 | FM14: 31.243 | FN14: 37.727 | FO14: 35.664 | FP14: 29.915 | FQ14: 26.712 | FR14: 31.206 | FS14: 35.554 | FT14: 34.107 | FU14: 33.048 | FV14: 31.542 | FW14: 28.511 | FX14: 24.147 | FY14: 31.243 | FZ14: 37.727 | GA14: 35.664 | GB14: 29.915 | GC14: 26.712 | GD14: 31.206 | GE14: 35.554 | GF14: 34.107 | GG14: 33.048 | GH14: 31.542 | GI14: 28.511 | GJ14: 24.147 | GK14: 31.243 | GL14: 37.727 | GM14: 35.664 | GN14: 29.915 | GO14: 26.712 | GP14: 31.206 | GQ14: 35.554 | GR14: 34.107 | GS14: 33.048 | GT14: 31.542 | GU14: 28.511 | GV14: 24.147 | GW14: 31.243 | GX14: 37.727 | GY14: 35.664 | GZ14: 29.915 | HA14: 26.712 | HB14: 31.206 | HC14: 35.554 | HD14: 34.107 | HE14: 33.048 | HF14: 31.542 | HG14: 28.511 | HH14: 24.147 | HI14: 31.243 | HJ14: 37.727 | HK14: 35.664 | HL14: 29.915
B15: 10059 | C15: Bandon, City of | D15: =VLOOKUP(B15,TOCA!$B$3:$E$138,4,FALSE) -> 0 | E15: 11.802 | F15: 13.669 | G15: 14.776 | H15: 16.508 | I15: 14.857 | J15: 15.587 | K15: 13.567 | L15: 8.69 | M15: 8.089 | N15: 7.96 | O15: 8.114 | P15: 8.388 | Q15: 16.549 | R15: 14.894 | S15: 15.625 | T15: 13.601 | U15: 8.712 | V15: 8.109 | W15: 7.98 | X15: 8.134 | Y15: 8.409 | Z15: 11.831 | AA15: 13.703 | AB15: 14.812 | AC15: 11.814 | AD15: 13.684 | AE15: 14.791 | AF15: 16.525 | AG15: 14.873 | AH15: 15.603 | AI15: 13.581 | AJ15: 8.7 | AK15: 8.098 | AL15: 7.969 | AM15: 8.123 | AN15: 8.397 | AO15: 11.844 | AP15: 13.718 | AQ15: 14.828 | AR15: 16.567 | AS15: 14.91 | AT15: 15.642 | AU15: 13.615 | AV15: 8.721 | AW15: 8.118 | AX15: 7.988 | AY15: 8.143 | AZ15: 8.418 | BA15: 11.26 | BB15: 14.274 | BC15: 15.679 | BD15: 16.968 | BE15: 15.873 | BF15: 14.989 | BG15: 13.493 | BH15: 8.554 | BI15: 8.174 | BJ15: 7.887 | BK15: 8.073 | BL15: 8.684 | BM15: 11.288 | BN15: 14.309 | BO15: 15.718 | BP15: 17.01 | BQ15: 15.912 | BR15: 15.026 | BS15: 13.527 | BT15: 8.575 | BU15: 8.195 | BV15: 7.907 | BW15: 8.093 | BX15: 8.705 | BY15: 11.32 | BZ15: 12.482 | CA15: 15.578 | CB15: 17.021 | CC15: 15.674 | CD15: 14.415 | CE15: 13.533 | CF15: 9.523 | CG15: 8.759 | CH15: 7.923 | CI15: 8.101 | CJ15: 9.15 | CK15: 11.348 | CL15: 12.513 | CM15: 15.617 | CN15: 17.063 | CO15: 15.712 | CP15: 14.45 | CQ15: 13.567 | CR15: 9.547 | CS15: 8.781 | CT15: 7.943 | CU15: 8.122 | CV15: 9.172 | CW15: 11.376 | CX15: 12.544 | CY15: 15.656 | CZ15: 17.105 | DA15: 15.751 | DB15: 14.486 | DC15: 13.6 | DD15: 9.571 | DE15: 8.803 | DF15: 7.963 | DG15: 8.142 | DH15: 9.195 | DI15: 11.404 | DJ15: 12.575 | DK15: 15.694 | DL15: 17.147 | DM15: 15.79 | DN15: 14.522 | DO15: 13.634 | DP15: 9.594 | DQ15: 8.824 | DR15: 7.982 | DS15: 8.162 | DT15: 9.218 | DU15: 11.432 | DV15: 12.606 | DW15: 15.733 | DX15: 17.189 | DY15: 15.829 | DZ15: 14.557 | EA15: 13.667 | EB15: 9.618 | EC15: 8.846 | ED15: 8.002 | EE15: 8.182 | EF15: 9.24 | EG15: 11.46 | EH15: 12.637 | EI15: 15.771 | EJ15: 17.232 | EK15: 15.868 | EL15: 14.593 | EM15: 13.701 | EN15: 9.641 | EO15: 8.868 | EP15: 8.021 | EQ15: 8.202 | ER15: 9.263 | ES15: 11.488 | ET15: 12.668 | EU15: 15.81 | EV15: 17.274 | EW15: 15.906 | EX15: 14.629 | EY15: 13.734 | EZ15: 9.665 | FA15: 8.889 | FB15: 8.041 | FC15: 8.222 | FD15: 9.286 | FE15: 11.516 | FF15: 12.699 | FG15: 15.849 | FH15: 17.316 | FI15: 15.945 | FJ15: 14.664 | FK15: 13.768 | FL15: 9.688 | FM15: 8.911 | FN15: 8.061 | FO15: 8.242 | FP15: 9.308 | FQ15: 11.544 | FR15: 12.73 | FS15: 15.887 | FT15: 17.358 | FU15: 15.984 | FV15: 14.7 | FW15: 13.801 | FX15: 9.712 | FY15: 8.933 | FZ15: 8.08 | GA15: 8.262 | GB15: 9.331 | GC15: 11.572 | GD15: 12.76 | GE15: 15.926 | GF15: 17.4 | GG15: 16.023 | GH15: 14.736 | GI15: 13.835 | GJ15: 9.736 | GK15: 8.954 | GL15: 8.1 | GM15: 8.282 | GN15: 9.353 | GO15: 11.6 | GP15: 12.791 | GQ15: 15.964 | GR15: 17.442 | GS15: 16.062 | GT15: 14.771 | GU15: 13.868 | GV15: 9.759 | GW15: 8.976 | GX15: 8.119 | GY15: 8.302 | GZ15: 9.376 | HA15: 11.628 | HB15: 12.822 | HC15: 16.003 | HD15: 17.484 | HE15: 16.101 | HF15: 14.807 | HG15: 13.902 | HH15: 9.783 | HI15: 8.998 | HJ15: 8.139 | HK15: 8.322 | HL15: 9.399
... 16 more rows

Sheet I_CDQ
B1: Customer Demand Quantity (MW)
A2: TOC
B3: BESID | C3: AccountName | D3: 10 | E3: 11 | F3: 12 | G3: 1 | H3: =+G3+1 -> 2 | I3: =+H3+1 -> 3 | J3: 4 | K3: 5 | L3: 6 | M3: 7 | N3: 8 | O3: 9
B4: 10005 | C4: Alder Mutual | D4: 0.244 | E4: 0.294 | F4: 0.339 | G4: 0.355 | H4: 0.271 | I4: 0.252 | J4: 0.315 | K4: 0.237 | L4: 0.114 | M4: 0.087 | N4: 0.067 | O4: 0.189
B5: 10015 | C5: Asotin County PUD #1 | D5: 0.914 | E5: 1.084 | F5: 0.942 | G5: 0.875 | H5: 0.846 | I5: 0.763 | J5: 0.617 | K5: 0.897 | L5: 1.271 | M5: 1.015 | N5: 1.404 | O5: 1.037
B6: 10024 | C6: Benton County PUD #1 | D6: 39.766 | E6: 57.361 | F6: 45.338 | G6: 64.421 | H6: 77.727 | I6: 45.723 | J6: 38.283 | K6: 92.854 | L6: 76.384 | M6: 43.433 | N6: 67.005 | O6: 56.736
B7: 10025 | C7: Benton REA | D7: 10.082 | E7: 18.416 | F7: 14.592 | G7: 19.351 | H7: 24.799 | I7: 20.215 | J7: 21.046 | K7: 18.058 | L7: 15.269 | M7: 8.356 | N7: 10.485 | O7: 12.275
B8: 10027 | C8: Big Bend Elec Coop | D8: 11.759 | E8: 8.462 | F8: 6.63 | G8: 7.721 | H8: 11.915 | I8: 10.442 | J8: 15.145 | K8: 25.016 | L8: 15.09 | M8: 6.424 | N8: 4.755 | O8: 14.824
B9: 10029 | C9: Blachly Lane Elec Coop | D9: 5.878 | E9: 5.732 | F9: 7.035 | G9: 5.437 | H9: 6.304 | I9: 5.271 | J9: 6.477 | K9: 4.737 | L9: 2.885 | M9: 2.942 | N9: 1.878 | O9: 3.934
B10: 10044 | C10: Canby, City of | D10: 3.812 | E10: 5.687 | F10: 4.877 | G10: 5.156 | H10: 6.482 | I10: 4.714 | J10: 4.762 | K10: 3.73 | L10: 4.392 | M10: 5.959 | N10: 5.072 | O10: 3.931
B11: 10046 | C11: Central Electric Coop | D11: 49.109 | E11: 60.539 | F11: 52.265 | G11: 52.541 | H11: 65.196 | I11: 45.64 | J11: 44.617 | K11: 29.254 | L11: 14.999 | M11: 14.798 | N11: 11.539 | O11: 21.505
B12: 10047 | C12: Central Lincoln PUD | D12: 30.509 | E12: 41.689 | F12: 33.81 | G12: 36.45 | H12: 47.572 | I12: 33.5 | J12: 34.112 | K12: 26.236 | L12: 8.049 | M12: 2.439 | N12: 0 | O12: 16.614
B13: 10055 | C13: Albion, City of | D13: 0.176 | E13: 0.253 | F13: 0.171 | G13: 0.182 | H13: 0.204 | I13: 0.186 | J13: 0.312 | K13: 0.175 | L13: 0.093 | M13: 0.055 | N13: 0.061 | O13: 0.135
B14: 10057 | C14: Ashland, City of | D14: 5.166 | E14: 6.451 | F14: 5.869 | G14: 5.094 | H14: 5.616 | I14: 5.264 | J14: 4.651 | K14: 5.988 | L14: 8.027 | M14: 9.546 | N14: 8.644 | O14: 5.741
B15: 10059 | C15: Bandon, City of | D15: 3.428 | E15: 3.42 | F15: 3.326 | G15: 3.245 | H15: 4.088 | I15: 3.106 | J15: 3.656 | K15: 2.382 | L15: 1.213 | M15: 0.801 | N15: 0.935 | O15: 2.052
... 18 more rows

Sheet I_NLSL
B1: New Large Single Loads (self-supplied) (MWh)
A2: TOC | D2: 2015-10-01 | E2: 2015-10-01 | F2: 2015-11-01 | G2: 2015-11-01 | H2: 2015-12-01 | I2: 2015-12-01 | J2: 2016-01-01 | K2: 2016-01-01 | L2: 2016-02-01 | M2: 2016-02-01 | N2: 2016-03-01 | O2: 2016-03-01 | P2: 2016-04-01 | Q2: 2016-04-01 | R2: 2016-05-01 | S2: 2016-05-01 | T2: 2016-06-01 | U2: 2016-06-01 | V2: 2016-07-01 | W2: 2016-07-01 | X2: 2016-08-01 | Y2: 2016-08-01 | Z2: 2016-09-01 | AA2: 2016-09-01 | AB2: 2016-10-01 | AC2: 2016-10-01 | AD2: 2016-11-01 | AE2: 2016-11-01 | AF2: 2016-12-01 | AG2: 2016-12-01 | AH2: 2017-01-01 | AI2: 2017-01-01 | AJ2: 2017-02-01 | AK2: 2017-02-01 | AL2: 2017-03-01 | AM2: 2017-03-01 | AN2: 2017-04-01 | AO2: 2017-04-01 | AP2: 2017-05-01 | AQ2: 2017-05-01 | AR2: 2017-06-01 | AS2: 2017-06-01 | AT2: 2017-07-01 | AU2: 2017-07-01 | AV2: 2017-08-01 | AW2: 2017-08-01 | AX2: 2017-09-01 | AY2: 2017-09-01 | AZ2: 2017-10-01 | BA2: 2017-10-01 | BB2: 2017-11-01 | BC2: 2017-11-01 | BD2: 2017-12-01 | BE2: 2017-12-01 | BF2: 2018-01-01 | BG2: 2018-01-01 | BH2: 2018-02-01 | BI2: 2018-02-01 | BJ2: 2018-03-01 | BK2: 2018-03-01 | BL2: 2018-04-01 | BM2: 2018-04-01 | BN2: 2018-05-01 | BO2: 2018-05-01 | BP2: 2018-06-01 | BQ2: 2018-06-01 | BR2: 2018-07-01 | BS2: 2018-07-01 | BT2: 2018-08-01 | BU2: 2018-08-01 | BV2: 2018-09-01 | BW2: 2018-09-01 | BX2: 2018-10-01 | BY2: 2018-10-01 | BZ2: 2018-11-01 | CA2: 2018-11-01 | CB2: 2018-12-01 | CC2: 2018-12-01 | CD2: 2019-01-01 | CE2: 2019-01-01 | CF2: 2019-02-01 | CG2: 2019-02-01 | CH2: 2019-03-01 | CI2: 2019-03-01 | CJ2: 2019-04-01 | CK2: 2019-04-01 | CL2: 2019-05-01 | CM2: 2019-05-01 | CN2: 2019-06-01 | CO2: 2019-06-01 | CP2: 2019-07-01 | CQ2: 2019-07-01 | CR2: 2019-08-01 | CS2: 2019-08-01 | CT2: 2019-09-01 | CU2: 2019-09-01 | CV2: 2019-10-01 | CW2: 2019-10-01 | CX2: 2019-11-01 | CY2: 2019-11-01 | CZ2: 2019-12-01 | DA2: 2019-12-01 | DB2: 2020-01-01 | DC2: 2020-01-01 | DD2: 2020-02-01 | DE2: 2020-02-01 | DF2: 2020-03-01 | DG2: 2020-03-01 | DH2: 2020-04-01 | DI2: 2020-04-01 | DJ2: 2020-05-01 | DK2: 2020-05-01 | DL2: 2020-06-01 | DM2: 2020-06-01 | DN2: 2020-07-01 | DO2: 2020-07-01 | DP2: 2020-08-01 | DQ2: 2020-08-01 | DR2: 2020-09-01 | DS2: 2020-09-01 | DT2: 2020-10-01 | DU2: 2020-10-01 | DV2: 2020-11-01 | DW2: 2020-11-01 | DX2: 2020-12-01 | DY2: 2020-12-01 | DZ2: 2021-01-01 | EA2: 2021-01-01 | EB2: 2021-02-01 | EC2: 2021-02-01 | ED2: 2021-03-01 | EE2: 2021-03-01 | EF2: 2021-04-01 | EG2: 2021-04-01 | EH2: 2021-05-01 | EI2: 2021-05-01 | EJ2: 2021-06-01 | EK2: 2021-06-01 | EL2: 2021-07-01 | EM2: 2021-07-01 | EN2: 2021-08-01 | EO2: 2021-08-01 | EP2: 2021-09-01 | EQ2: 2021-09-01 | ER2: 2021-10-01 | ES2: 2021-10-01 | ET2: 2021-11-01 | EU2: 2021-11-01 | EV2: 2021-12-01 | EW2: 2021-12-01 | EX2: 2022-01-01 | EY2: 2022-01-01 | EZ2: 2022-02-01 | FA2: 2022-02-01 | FB2: 2022-03-01 | FC2: 2022-03-01 | FD2: 2022-04-01 | FE2: 2022-04-01 | FF2: 2022-05-01 | FG2: 2022-05-01 | FH2: 2022-06-01 | FI2: 2022-06-01 | FJ2: 2022-07-01 | FK2: 2022-07-01 | FL2: 2022-08-01 | FM2: 2022-08-01 | FN2: 2022-09-01 | FO2: 2022-09-01 | FP2: 2022-10-01 | FQ2: 2022-10-01 | FR2: 2022-11-01 | FS2: 2022-11-01 | FT2: 2022-12-01 | FU2: 2022-12-01 | FV2: 2023-01-01 | FW2: 2023-01-01 | FX2: 2023-02-01 | FY2: 2023-02-01 | FZ2: 2023-03-01 | GA2: 2023-03-01 | GB2: 2023-04-01 | GC2: 2023-04-01 | GD2: 2023-05-01 | GE2: 2023-05-01 | GF2: 2023-06-01 | GG2: 2023-06-01 | GH2: 2023-07-01 | GI2: 2023-07-01 | GJ2: 2023-08-01 | GK2: 2023-08-01 | GL2: 2023-09-01 | GM2: 2023-09-01 | GN2: 2023-10-01 | GO2: 2023-10-01 | GP2: 2023-11-01 | GQ2: 2023-11-01 | GR2: 2023-12-01 | GS2: 2023-12-01 | GT2: 2024-01-01 | GU2: 2024-01-01 | GV2: 2024-02-01 | GW2: 2024-02-01 | GX2: 2024-03-01 | GY2: 2024-03-01 | GZ2: 2024-04-01 | HA2: 2024-04-01 | HB2: 2024-05-01 | HC2: 2024-05-01 | HD2: 2024-06-01 | HE2: 2024-06-01 | HF2: 2024-07-01 | HG2: 2024-07-01 | HH2: 2024-08-01 | HI2: 2024-08-01 | HJ2: 2024-09-01 | HK2: 2024-09-01 | HL2: 2024-10-01 | HM2: 2024-10-01 | HN2: 2024-11-01 | HO2: 2024-11-01 | HP2: 2024-12-01 | HQ2: 2024-12-01 | HR2: 2025-01-01 | HS2: 2025-01-01 | HT2: 2025-02-01 | HU2: 2025-02-01 | HV2: 2025-03-01 | HW2: 2025-03-01 | HX2: 2025-04-01 | HY2: 2025-04-01 | HZ2: 2025-05-01 | IA2: 2025-05-01 | IB2: 2025-06-01 | IC2: 2025-06-01 | ID2: 2025-07-01 | IE2: 2025-07-01 | IF2: 2025-08-01 | IG2: 2025-08-01 | IH2: 2025-09-01 | II2: 2025-09-01 | IJ2: 2025-10-01 | IK2: 2025-10-01 | IL2: 2025-11-01 | IM2: 2025-11-01 | IN2: 2025-12-01 | IO2: 2025-12-01 | IP2: 2026-01-01 | IQ2: 2026-01-01 | IR2: 2026-02-01 | IS2: 2026-02-01 | IT2: 2026-03-01 | IU2: 2026-03-01 | IV2: 2026-04-01 | IW2: 2026-04-01 | IX2: 2026-05-01 | IY2: 2026-05-01 | IZ2: 2026-06-01 | JA2: 2026-06-01 | JB2: 2026-07-01 | JC2: 2026-07-01 | JD2: 2026-08-01 | JE2: 2026-08-01 | JF2: 2026-09-01 | JG2: 2026-09-01 | JH2: 2026-10-01 | JI2: 2026-10-01 | JJ2: 2026-11-01 | JK2: 2026-11-01 | JL2: 2026-12-01 | JM2: 2026-12-01 | JN2: 2027-01-01 | JO2: 2027-01-01 | JP2: 2027-02-01 | JQ2: 2027-02-01 | JR2: 2027-03-01 | JS2: 2027-03-01 | JT2: 2027-04-01 | JU2: 2027-04-01 | JV2: 2027-05-01 | JW2: 2027-05-01 | JX2: 2027-06-01 | JY2: 2027-06-01 | JZ2: 2027-07-01 | KA2: 2027-07-01 | KB2: 2027-08-01 | KC2: 2027-08-01 | KD2: 2027-09-01 | KE2: 2027-09-01 | KF2: 2027-10-01 | KG2: 2027-10-01 | KH2: 2027-11-01 | KI2: 2027-11-01 | KJ2: 2027-12-01 | KK2: 2027-12-01 | KL2: 2028-01-01 | KM2: 2028-01-01 | KN2: 2028-02-01 | KO2: 2028-02-01 | KP2: 2028-03-01 | KQ2: 2028-03-01 | KR2: 2028-04-01 | KS2: 2028-04-01 | KT2: 2028-05-01 | KU2: 2028-05-01 | KV2: 2028-06-01 | KW2: 2028-06-01 | KX2: 2028-07-01 | KY2: 2028-07-01 | KZ2: 2028-08-01 | LA2: 2028-08-01 | LB2: 2028-09-01 | LC2: 2028-09-01 | LD2: 2028-10-01 | LE2: 2028-10-01 | LF2: 2028-11-01 | LG2: 2028-11-01 | LH2: 2028-12-01 | LI2: 2028-12-01 | LJ2: 2029-01-01 | LK2: 2029-01-01 | LL2: 2029-02-01 | LM2: 2029-02-01 | LN2: 2029-03-01 | LO2: 2029-03-01 | LP2: 2029-04-01 | LQ2: 2029-04-01 | LR2: 2029-05-01 | LS2: 2029-05-01 | LT2: 2029-06-01 | LU2: 2029-06-01 | LV2: 2029-07-01 | LW2: 2029-07-01 | LX2: 2029-08-01 | LY2: 2029-08-01 | LZ2: 2029-09-01 | MA2: 2029-09-01 | MB2: 2029-10-01 | MC2: 2029-10-01 | MD2: 2029-11-01 | ME2: 2029-11-01 | MF2: 2029-12-01 | MG2: 2029-12-01 | MH2: 2030-01-01 | MI2: 2030-01-01 | MJ2: 2030-02-01 | MK2: 2030-02-01 | ML2: 2030-03-01 | MM2: 2030-03-01 | MN2: 2030-04-01 | MO2: 2030-04-01 | MP2: 2030-05-01 | MQ2: 2030-05-01 | MR2: 2030-06-01 | MS2: 2030-06-01 | MT2: 2030-07-01 | MU2: 2030-07-01 | MV2: 2030-08-01 | MW2: 2030-08-01 | MX2: 2030-09-01 | MY2: 2030-09-01 | MZ2: 2030-10-01 | NA2: 2030-10-01 | NB2: 2030-11-01 | NC2: 2030-11-01 | ND2: 2030-12-01 | NE2: 2030-12-01 | NF2: 2031-01-01 | NG2: 2031-01-01 | NH2: 2031-02-01 | NI2: 2031-02-01 | NJ2: 2031-03-01 | NK2: 2031-03-01 | NL2: 2031-04-01 | NM2: 2031-04-01 | NN2: 2031-05-01 | NO2: 2031-05-01 | NP2: 2031-06-01 | NQ2: 2031-06-01 | NR2: 2031-07-01 | NS2: 2031-07-01 | NT2: 2031-08-01 | NU2: 2031-08-01 | NV2: 2031-09-01 | NW2: 2031-09-01 | NX2: =DATE(YEAR(NV2),MONTH(NV2)+1,1) -> 2031-10-01 | NY2: 2031-10-01 | NZ2: 2031-11-01 | OA2: 2031-11-01 | OB2: 2031-12-01 | OC2: 2031-12-01 | OD2: 2032-01-01 | OE2: 2032-01-01 | OF2: 2032-02-01 | OG2: 2032-02-01 | OH2: 2032-03-01 | OI2: 2032-03-01 | OJ2: 2032-04-01 | OK2: 2032-04-01 | OL2: 2032-05-01 | OM2: 2032-05-01 | ON2: 2032-06-01 | OO2: 2032-06-01 | OP2: 2032-07-01 | OQ2: 2032-07-01 | OR2: 2032-08-01 | OS2: 2032-08-01 | OT2: 2032-09-01 | OU2: 2032-09-01 | OV2: 2032-10-01 | OW2: 2032-10-01 | OX2: 2032-11-01 | OY2: 2032-11-01 | OZ2: 2032-12-01 | PA2: 2032-12-01 | PB2: 2033-01-01 | PC2: 2033-01-01 | PD2: 2033-02-01 | PE2: 2033-02-01 | PF2: 2033-03-01 | PG2: 2033-03-01 | PH2: 2033-04-01 | PI2: 2033-04-01 | PJ2: 2033-05-01 | PK2: 2033-05-01 | PL2: 2033-06-01 | PM2: 2033-06-01 | PN2: 2033-07-01 | PO2: 2033-07-01 | PP2: 2033-08-01 | PQ2: 2033-08-01 | PR2: 2033-09-01 | PS2: 2033-09-01 | PU2: 2016 | PV2: 2017 | PW2: 2018 | PX2: 2019 | PY2: 2020 | PZ2: 2021 | QA2: 2022 | QB2: 2023 | QC2: 2024 | QD2: 2025 | QE2: 2026 | QF2: 2027 | QG2: 2028 | QH2: 2029 | QI2: 2030 | QJ2: 2031 | QK2: 2032 | QL2: 2033
B3: BESID | C3: AccountName | D3: HLH | E3: LLH | F3: HLH | G3: LLH | H3: HLH | I3: LLH | J3: HLH | K3: LLH | L3: HLH | M3: LLH | N3: HLH | O3: LLH | P3: HLH | Q3: LLH | R3: HLH | S3: LLH | T3: HLH | U3: LLH | V3: HLH | W3: LLH | X3: HLH | Y3: LLH | Z3: HLH | AA3: LLH | AB3: HLH | AC3: LLH | AD3: HLH | AE3: LLH | AF3: HLH | AG3: LLH | AH3: HLH | AI3: LLH | AJ3: HLH | AK3: LLH | AL3: HLH | AM3: LLH | AN3: HLH | AO3: LLH | AP3: HLH | AQ3: LLH | AR3: HLH | AS3: LLH | AT3: HLH | AU3: LLH | AV3: HLH | AW3: LLH | AX3: HLH | AY3: LLH | AZ3: HLH | BA3: LLH | BB3: HLH | BC3: LLH | BD3: HLH | BE3: LLH | BF3: HLH | BG3: LLH | BH3: HLH | BI3: LLH | BJ3: HLH | BK3: LLH | BL3: HLH | BM3: LLH | BN3: HLH | BO3: LLH | BP3: HLH | BQ3: LLH | BR3: HLH | BS3: LLH | BT3: HLH | BU3: LLH | BV3: HLH | BW3: LLH | BX3: HLH | BY3: LLH | BZ3: HLH | CA3: LLH | CB3: HLH | CC3: LLH | CD3: HLH | CE3: LLH | CF3: HLH | CG3: LLH | CH3: HLH | CI3: LLH | CJ3: HLH | CK3: LLH | CL3: HLH | CM3: LLH | CN3: HLH | CO3: LLH | CP3: HLH | CQ3: LLH | CR3: HLH | CS3: LLH | CT3: HLH | CU3: LLH | CV3: HLH | CW3: LLH | CX3: HLH | CY3: LLH | CZ3: HLH | DA3: LLH | DB3: HLH | DC3: LLH | DD3: HLH | DE3: LLH | DF3: HLH | DG3: LLH | DH3: HLH | DI3: LLH | DJ3: HLH | DK3: LLH | DL3: HLH | DM3: LLH | DN3: HLH | DO3: LLH | DP3: HLH | DQ3: LLH | DR3: HLH | DS3: LLH | DT3: HLH | DU3: LLH | DV3: HLH | DW3: LLH | DX3: HLH | DY3: LLH | DZ3: HLH | EA3: LLH | EB3: HLH | EC3: LLH | ED3: HLH | EE3: LLH | EF3: HLH | EG3: LLH | EH3: HLH | EI3: LLH | EJ3: HLH | EK3: LLH | EL3: HLH | EM3: LLH | EN3: HLH | EO3: LLH | EP3: HLH | EQ3: LLH | ER3: HLH | ES3: LLH | ET3: HLH | EU3: LLH | EV3: HLH | EW3: LLH | EX3: HLH | EY3: LLH | EZ3: HLH | FA3: LLH | FB3: HLH | FC3: LLH | FD3: HLH | FE3: LLH | FF3: HLH | FG3: LLH | FH3: HLH | FI3: LLH | FJ3: HLH | FK3: LLH | FL3: HLH | FM3: LLH | FN3: HLH | FO3: LLH | FP3: HLH | FQ3: LLH | FR3: HLH | FS3: LLH | FT3: HLH | FU3: LLH | FV3: HLH | FW3: LLH | FX3: HLH | FY3: LLH | FZ3: HLH | GA3: LLH | GB3: HLH | GC3: LLH | GD3: HLH | GE3: LLH | GF3: HLH | GG3: LLH | GH3: HLH | GI3: LLH | GJ3: HLH | GK3: LLH | GL3: HLH | GM3: LLH | GN3: HLH | GO3: LLH | GP3: HLH | GQ3: LLH | GR3: HLH | GS3: LLH | GT3: HLH | GU3: LLH | GV3: HLH | GW3: LLH | GX3: HLH | GY3: LLH | GZ3: HLH | HA3: LLH | HB3: HLH | HC3: LLH | HD3: HLH | HE3: LLH | HF3: HLH | HG3: LLH | HH3: HLH | HI3: LLH | HJ3: HLH | HK3: LLH | HL3: HLH | HM3: LLH | HN3: HLH | HO3: LLH | HP3: HLH | HQ3: LLH | HR3: HLH | HS3: LLH | HT3: HLH | HU3: LLH | HV3: HLH | HW3: LLH | HX3: HLH | HY3: LLH | HZ3: HLH | IA3: LLH | IB3: HLH | IC3: LLH | ID3: HLH | IE3: LLH | IF3: HLH | IG3: LLH | IH3: HLH | II3: LLH | IJ3: HLH | IK3: LLH | IL3: HLH | IM3: LLH | IN3: HLH | IO3: LLH | IP3: HLH | IQ3: LLH | IR3: HLH | IS3: LLH | IT3: HLH | IU3: LLH | IV3: HLH | IW3: LLH | IX3: HLH | IY3: LLH | IZ3: HLH | JA3: LLH | JB3: HLH | JC3: LLH | JD3: HLH | JE3: LLH | JF3: HLH | JG3: LLH | JH3: HLH | JI3: LLH | JJ3: HLH | JK3: LLH | JL3: HLH | JM3: LLH | JN3: HLH | JO3: LLH | JP3: HLH | JQ3: LLH | JR3: HLH | JS3: LLH | JT3: HLH | JU3: LLH | JV3: HLH | JW3: LLH | JX3: HLH | JY3: LLH | JZ3: HLH | KA3: LLH | KB3: HLH | KC3: LLH | KD3: HLH | KE3: LLH | KF3: HLH | KG3: LLH | KH3: HLH | KI3: LLH | KJ3: HLH | KK3: LLH | KL3: HLH | KM3: LLH | KN3: HLH | KO3: LLH | KP3: HLH | KQ3: LLH | KR3: HLH | KS3: LLH | KT3: HLH | KU3: LLH | KV3: HLH | KW3: LLH | KX3: HLH | KY3: LLH | KZ3: HLH | LA3: LLH | LB3: HLH | LC3: LLH | LD3: HLH | LE3: LLH | LF3: HLH | LG3: LLH | LH3: HLH | LI3: LLH | LJ3: HLH | LK3: LLH | LL3: HLH | LM3: LLH | LN3: HLH | LO3: LLH | LP3: HLH | LQ3: LLH | LR3: HLH | LS3: LLH | LT3: HLH | LU3: LLH | LV3: HLH | LW3: LLH | LX3: HLH | LY3: LLH | LZ3: HLH | MA3: LLH | MB3: HLH | MC3: LLH | MD3: HLH | ME3: LLH | MF3: HLH | MG3: LLH | MH3: HLH | MI3: LLH | MJ3: HLH | MK3: LLH | ML3: HLH | MM3: LLH | MN3: HLH | MO3: LLH | MP3: HLH | MQ3: LLH | MR3: HLH | MS3: LLH | MT3: HLH | MU3: LLH | MV3: HLH | MW3: LLH | MX3: HLH | MY3: LLH | MZ3: HLH | NA3: LLH | NB3: HLH | NC3: LLH | ND3: HLH | NE3: LLH | NF3: HLH | NG3: LLH | NH3: HLH | NI3: LLH | NJ3: HLH | NK3: LLH | NL3: HLH | NM3: LLH | NN3: HLH | NO3: LLH | NP3: HLH | NQ3: LLH | NR3: HLH | NS3: LLH | NT3: HLH | NU3: LLH | NV3: HLH | NW3: LLH | NX3: HLH | NY3: LLH | NZ3: HLH | OA3: LLH | OB3: HLH | OC3: LLH | OD3: HLH | OE3: LLH | OF3: HLH | OG3: LLH | OH3: HLH | OI3: LLH | OJ3: HLH | OK3: LLH | OL3: HLH | OM3: LLH | ON3: HLH | OO3: LLH | OP3: HLH | OQ3: LLH | OR3: HLH | OS3: LLH | OT3: HLH | OU3: LLH | OV3: HLH | OW3: LLH | OX3: HLH | OY3: LLH | OZ3: HLH | PA3: LLH | PB3: HLH | PC3: LLH | PD3: HLH | PE3: LLH | PF3: HLH | PG3: LLH | PH3: HLH | PI3: LLH | PJ3: HLH | PK3: LLH | PL3: HLH | PM3: LLH | PN3: HLH | PO3: LLH | PP3: HLH | PQ3: LLH | PR3: HLH | PS3: LLH
B4: 10005 | C4: Alder Mutual | D4: 0 | E4: 0 | F4: 0 | G4: 0 | H4: 0 | I4: 0 | J4: 0 | K4: 0 | L4: 0 | M4: 0 | N4: 0 | O4: 0 | P4: 0 | Q4: 0 | R4: 0 | S4: 0 | T4: 0 | U4: 0 | V4: 0 | W4: 0 | X4: 0 | Y4: 0 | Z4: 0 | AA4: 0 | AB4: 0 | AC4: 0 | AD4: 0 | AE4: 0 | AF4: 0 | AG4: 0 | AH4: 0 | AI4: 0 | AJ4: 0 | AK4: 0 | AL4: 0 | AM4: 0 | AN4: 0 | AO4: 0 | AP4: 0 | AQ4: 0 | AR4: 0 | AS4: 0 | AT4: 0 | AU4: 0 | AV4: 0 | AW4: 0 | AX4: 0 | AY4: 0 | AZ4: 0 | BA4: 0 | BB4: 0 | BC4: 0 | BD4: 0 | BE4: 0 | BF4: 0 | BG4: 0 | BH4: 0 | BI4: 0 | BJ4: 0 | BK4: 0 | BL4: 0 | BM4: 0 | BN4: 0 | BO4: 0 | BP4: 0 | BQ4: 0 | BR4: 0 | BS4: 0 | BT4: 0 | BU4: 0 | BV4: 0 | BW4: 0 | BX4: 0 | BY4: 0 | BZ4: 0 | CA4: 0 | CB4: 0 | CC4: 0 | CD4: 0 | CE4: 0 | CF4: 0 | CG4: 0 | CH4: 0 | CI4: 0 | CJ4: 0 | CK4: 0 | CL4: 0 | CM4: 0 | CN4: 0 | CO4: 0 | CP4: 0 | CQ4: 0 | CR4: 0 | CS4: 0 | CT4: 0 | CU4: 0 | CV4: 0 | CW4: 0 | CX4: 0 | CY4: 0 | CZ4: 0 | DA4: 0 | DB4: 0 | DC4: 0 | DD4: 0 | DE4: 0 | DF4: 0 | DG4: 0 | DH4: 0 | DI4: 0 | DJ4: 0 | DK4: 0 | DL4: 0 | DM4: 0 | DN4: 0 | DO4: 0 | DP4: 0 | DQ4: 0 | DR4: 0 | DS4: 0 | DT4: 0 | DU4: 0 | DV4: 0 | DW4: 0 | DX4: 0 | DY4: 0 | DZ4: 0 | EA4: 0 | EB4: 0 | EC4: 0 | ED4: 0 | EE4: 0 | EF4: 0 | EG4: 0 | EH4: 0 | EI4: 0 | EJ4: 0 | EK4: 0 | EL4: 0 | EM4: 0 | EN4: 0 | EO4: 0 | EP4: 0 | EQ4: 0 | ER4: 0 | ES4: 0 | ET4: 0 | EU4: 0 | EV4: 0 | EW4: 0 | EX4: 0 | EY4: 0 | EZ4: 0 | FA4: 0 | FB4: 0 | FC4: 0 | FD4: 0 | FE4: 0 | FF4: 0 | FG4: 0 | FH4: 0 | FI4: 0 | FJ4: 0 | FK4: 0 | FL4: 0 | FM4: 0 | FN4: 0 | FO4: 0 | FP4: 0 | FQ4: 0 | FR4: 0 | FS4: 0 | FT4: 0 | FU4: 0 | FV4: 0 | FW4: 0 | FX4: 0 | FY4: 0 | FZ4: 0 | GA4: 0 | GB4: 0 | GC4: 0 | GD4: 0 | GE4: 0 | GF4: 0 | GG4: 0 | GH4: 0 | GI4: 0 | GJ4: 0 | GK4: 0 | GL4: 0 | GM4: 0 | GN4: 0 | GO4: 0 | GP4: 0 | GQ4: 0 | GR4: 0 | GS4: 0 | GT4: 0 | GU4: 0 | GV4: 0 | GW4: 0 | GX4: 0 | GY4: 0 | GZ4: 0 | HA4: 0 | HB4: 0 | HC4: 0 | HD4: 0 | HE4: 0 | HF4: 0 | HG4: 0 | HH4: 0 | HI4: 0 | HJ4: 0 | HK4: 0 | HL4: 0 | HM4: 0 | HN4: 0 | HO4: 0 | HP4: 0 | HQ4: 0 | HR4: 0 | HS4: 0 | HT4: 0 | HU4: 0 | HV4: 0 | HW4: 0 | HX4: 0 | HY4: 0 | HZ4: 0 | IA4: 0 | IB4: 0 | IC4: 0 | ID4: 0 | IE4: 0 | IF4: 0 | IG4: 0 | IH4: 0 | II4: 0 | IJ4: 0 | IK4: 0 | IL4: 0 | IM4: 0 | IN4: 0 | IO4: 0 | IP4: 0 | IQ4: 0 | IR4: 0 | IS4: 0 | IT4: 0 | IU4: 0 | IV4: 0 | IW4: 0 | IX4: 0 | IY4: 0 | IZ4: 0 | JA4: 0 | JB4: 0 | JC4: 0 | JD4: 0 | JE4: 0 | JF4: 0 | JG4: 0 | JH4: 0 | JI4: 0 | JJ4: 0 | JK4: 0 | JL4: 0 | JM4: 0 | JN4: 0 | JO4: 0 | JP4: 0 | JQ4: 0 | JR4: 0 | JS4: 0 | JT4: 0 | JU4: 0 | JV4: 0 | JW4: 0 | JX4: 0 | JY4: 0 | JZ4: 0 | KA4: 0 | KB4: 0 | KC4: 0 | KD4: 0 | KE4: 0 | KF4: 0 | KG4: 0 | KH4: 0 | KI4: 0 | KJ4: 0 | KK4: 0 | KL4: 0 | KM4: 0 | KN4: 0 | KO4: 0 | KP4: 0 | KQ4: 0 | KR4: 0 | KS4: 0 | KT4: 0 | KU4: 0 | KV4: 0 | KW4: 0 | KX4: 0 | KY4: 0 | KZ4: 0 | LA4: 0 | LB4: 0 | LC4: 0 | LD4: 0 | LE4: 0 | LF4: 0 | LG4: 0 | LH4: 0 | LI4: 0 | LJ4: 0 | LK4: 0 | LL4: 0 | LM4: 0 | LN4: 0 | LO4: 0 | LP4: 0 | LQ4: 0 | LR4: 0 | LS4: 0 | LT4: 0 | LU4: 0 | LV4: 0 | LW4: 0 | LX4: 0 | LY4: 0 | LZ4: 0 | MA4: 0 | MB4: 0 | MC4: 0 | MD4: 0 | ME4: 0 | MF4: 0 | MG4: 0 | MH4: 0 | MI4: 0 | MJ4: 0 | MK4: 0 | ML4: 0 | MM4: 0 | MN4: 0 | MO4: 0 | MP4: 0 | MQ4: 0 | MR4: 0 | MS4: 0 | MT4: 0 | MU4: 0 | MV4: 0 | MW4: 0 | MX4: 0 | MY4: 0 | MZ4: 0 | NA4: 0 | NB4: 0 | NC4: 0 | ND4: 0 | NE4: 0 | NF4: 0 | NG4: 0 | NH4: 0 | NI4: 0 | NJ4: 0 | NK4: 0 | NL4: 0 | NM4: 0 | NN4: 0 | NO4: 0 | NP4: 0 | NQ4: 0 | NR4: 0 | NS4: 0 | NT4: 0 | NU4: 0 | NV4: 0 | NW4: 0 | NX4: 0 | NY4: 0 | NZ4: 0 | OA4: 0 | OB4: 0 | OC4: 0 | OD4: 0 | OE4: 0 | OF4: 0 | OG4: 0 | OH4: 0 | OI4: 0 | OJ4: 0 | OK4: 0 | OL4: 0 | OM4: 0 | ON4: 0 | OO4: 0 | OP4: 0 | OQ4: 0 | OR4: 0 | OS4: 0 | OT4: 0 | OU4: 0 | OV4: 0 | OW4: 0 | OX4: 0 | OY4: 0 | OZ4: 0 | PA4: 0 | PB4: 0 | PC4: 0 | PD4: 0 | PE4: 0 | PF4: 0 | PG4: 0 | PH4: 0 | PI4: 0 | PJ4: 0 | PK4: 0 | PL4: 0 | PM4: 0 | PN4: 0 | PO4: 0 | PP4: 0 | PQ4: 0 | PR4: 0 | PS4: 0 | PU4: =+SUM(D4:AA4) -> 0 | PV4: =+SUM(AB4:AY4) -> 0 | PW4: =+SUM(AZ4:BW4) -> 0 | PX4: =+SUM(BX4:CU4) -> 0 | PY4: =+SUM(CV4:DS4) -> 0 | PZ4: =+SUM(DT4:EQ4) -> 0 | QA4: =+SUM(ER4:FO4) -> 0 | QB4: =+SUM(FP4:GM4) -> 0 | QC4: =+SUM(GN4:HK4) -> 0 | QD4: =+SUM(HL4:II4) -> 0 | QE4: =+SUM(IJ4:JG4) -> 0 | QF4: =+SUM(JH4:KE4) -> 0 | QG4: =+SUM(KF4:LC4) -> 0 | QH4: =+SUM(LD4:MA4) -> 0 | QI4: =+SUM(MB4:MY4) -> 0 | QJ4: =+SUM(MZ4:NW4) -> 0 | QK4: =+SUM(NX4:OU4) -> 0 | QL4: =+SUM(OV4:PS4) -> 0
B5: 10015 | C5: Asotin County PUD #1 | D5: 0 | E5: 0 | F5: 0 | G5: 0 | H5: 0 | I5: 0 | J5: 0 | K5: 0 | L5: 0 | M5: 0 | N5: 0 | O5: 0 | P5: 0 | Q5: 0 | R5: 0 | S5: 0 | T5: 0 | U5: 0 | V5: 0 | W5: 0 | X5: 0 | Y5: 0 | Z5: 0 | AA5: 0 | AB5: 0 | AC5: 0 | AD5: 0 | AE5: 0 | AF5: 0 | AG5: 0 | AH5: 0 | AI5: 0 | AJ5: 0 | AK5: 0 | AL5: 0 | AM5: 0 | AN5: 0 | AO5: 0 | AP5: 0 | AQ5: 0 | AR5: 0 | AS5: 0 | AT5: 0 | AU5: 0 | AV5: 0 | AW5: 0 | AX5: 0 | AY5: 0 | AZ5: 0 | BA5: 0 | BB5: 0 | BC5: 0 | BD5: 0 | BE5: 0 | BF5: 0 | BG5: 0 | BH5: 0 | BI5: 0 | BJ5: 0 | BK5: 0 | BL5: 0 | BM5: 0 | BN5: 0 | BO5: 0 | BP5: 0 | BQ5: 0 | BR5: 0 | BS5: 0 | BT5: 0 | BU5: 0 | BV5: 0 | BW5: 0 | BX5: 0 | BY5: 0 | BZ5: 0 | CA5: 0 | CB5: 0 | CC5: 0 | CD5: 0 | CE5: 0 | CF5: 0 | CG5: 0 | CH5: 0 | CI5: 0 | CJ5: 0 | CK5: 0 | CL5: 0 | CM5: 0 | CN5: 0 | CO5: 0 | CP5: 0 | CQ5: 0 | CR5: 0 | CS5: 0 | CT5: 0 | CU5: 0 | CV5: 0 | CW5: 0 | CX5: 0 | CY5: 0 | CZ5: 0 | DA5: 0 | DB5: 0 | DC5: 0 | DD5: 0 | DE5: 0 | DF5: 0 | DG5: 0 | DH5: 0 | DI5: 0 | DJ5: 0 | DK5: 0 | DL5: 0 | DM5: 0 | DN5: 0 | DO5: 0 | DP5: 0 | DQ5: 0 | DR5: 0 | DS5: 0 | DT5: 0 | DU5: 0 | DV5: 0 | DW5: 0 | DX5: 0 | DY5: 0 | DZ5: 0 | EA5: 0 | EB5: 0 | EC5: 0 | ED5: 0 | EE5: 0 | EF5: 0 | EG5: 0 | EH5: 0 | EI5: 0 | EJ5: 0 | EK5: 0 | EL5: 0 | EM5: 0 | EN5: 0 | EO5: 0 | EP5: 0 | EQ5: 0 | ER5: 0 | ES5: 0 | ET5: 0 | EU5: 0 | EV5: 0 | EW5: 0 | EX5: 0 | EY5: 0 | EZ5: 0 | FA5: 0 | FB5: 0 | FC5: 0 | FD5: 0 | FE5: 0 | FF5: 0 | FG5: 0 | FH5: 0 | FI5: 0 | FJ5: 0 | FK5: 0 | FL5: 0 | FM5: 0 | FN5: 0 | FO5: 0 | FP5: 0 | FQ5: 0 | FR5: 0 | FS5: 0 | FT5: 0 | FU5: 0 | FV5: 0 | FW5: 0 | FX5: 0 | FY5: 0 | FZ5: 0 | GA5: 0 | GB5: 0 | GC5: 0 | GD5: 0 | GE5: 0 | GF5: 0 | GG5: 0 | GH5: 0 | GI5: 0 | GJ5: 0 | GK5: 0 | GL5: 0 | GM5: 0 | GN5: 0 | GO5: 0 | GP5: 0 | GQ5: 0 | GR5: 0 | GS5: 0 | GT5: 0 | GU5: 0 | GV5: 0 | GW5: 0 | GX5: 0 | GY5: 0 | GZ5: 0 | HA5: 0 | HB5: 0 | HC5: 0 | HD5: 0 | HE5: 0 | HF5: 0 | HG5: 0 | HH5: 0 | HI5: 0 | HJ5: 0 | HK5: 0 | HL5: 0 | HM5: 0 | HN5: 0 | HO5: 0 | HP5: 0 | HQ5: 0 | HR5: 0 | HS5: 0 | HT5: 0 | HU5: 0 | HV5: 0 | HW5: 0 | HX5: 0 | HY5: 0 | HZ5: 0 | IA5: 0 | IB5: 0 | IC5: 0 | ID5: 0 | IE5: 0 | IF5: 0 | IG5: 0 | IH5: 0 | II5: 0 | IJ5: 0 | IK5: 0 | IL5: 0 | IM5: 0 | IN5: 0 | IO5: 0 | IP5: 0 | IQ5: 0 | IR5: 0 | IS5: 0 | IT5: 0 | IU5: 0 | IV5: 0 | IW5: 0 | IX5: 0 | IY5: 0 | IZ5: 0 | JA5: 0 | JB5: 0 | JC5: 0 | JD5: 0 | JE5: 0 | JF5: 0 | JG5: 0 | JH5: 0 | JI5: 0 | JJ5: 0 | JK5: 0 | JL5: 0 | JM5: 0 | JN5: 0 | JO5: 0 | JP5: 0 | JQ5: 0 | JR5: 0 | JS5: 0 | JT5: 0 | JU5: 0 | JV5: 0 | JW5: 0 | JX5: 0 | JY5: 0 | JZ5: 0 | KA5: 0 | KB5: 0 | KC5: 0 | KD5: 0 | KE5: 0 | KF5: 0 | KG5: 0 | KH5: 0 | KI5: 0 | KJ5: 0 | KK5: 0 | KL5: 0 | KM5: 0 | KN5: 0 | KO5: 0 | KP5: 0 | KQ5: 0 | KR5: 0 | KS5: 0 | KT5: 0 | KU5: 0 | KV5: 0 | KW5: 0 | KX5: 0 | KY5: 0 | KZ5: 0 | LA5: 0 | LB5: 0 | LC5: 0 | LD5: 0 | LE5: 0 | LF5: 0 | LG5: 0 | LH5: 0 | LI5: 0 | LJ5: 0 | LK5: 0 | LL5: 0 | LM5: 0 | LN5: 0 | LO5: 0 | LP5: 0 | LQ5: 0 | LR5: 0 | LS5: 0 | LT5: 0 | LU5: 0 | LV5: 0 | LW5: 0 | LX5: 0 | LY5: 0 | LZ5: 0 | MA5: 0 | MB5: 0 | MC5: 0 | MD5: 0 | ME5: 0 | MF5: 0 | MG5: 0 | MH5: 0 | MI5: 0 | MJ5: 0 | MK5: 0 | ML5: 0 | MM5: 0 | MN5: 0 | MO5: 0 | MP5: 0 | MQ5: 0 | MR5: 0 | MS5: 0 | MT5: 0 | MU5: 0 | MV5: 0 | MW5: 0 | MX5: 0 | MY5: 0 | MZ5: 0 | NA5: 0 | NB5: 0 | NC5: 0 | ND5: 0 | NE5: 0 | NF5: 0 | NG5: 0 | NH5: 0 | NI5: 0 | NJ5: 0 | NK5: 0 | NL5: 0 | NM5: 0 | NN5: 0 | NO5: 0 | NP5: 0 | NQ5: 0 | NR5: 0 | NS5: 0 | NT5: 0 | NU5: 0 | NV5: 0 | NW5: 0 | NX5: 0 | NY5: 0 | NZ5: 0 | OA5: 0 | OB5: 0 | OC5: 0 | OD5: 0 | OE5: 0 | OF5: 0 | OG5: 0 | OH5: 0 | OI5: 0 | OJ5: 0 | OK5: 0 | OL5: 0 | OM5: 0 | ON5: 0 | OO5: 0 | OP5: 0 | OQ5: 0 | OR5: 0 | OS5: 0 | OT5: 0 | OU5: 0 | OV5: 0 | OW5: 0 | OX5: 0 | OY5: 0 | OZ5: 0 | PA5: 0 | PB5: 0 | PC5: 0 | PD5: 0 | PE5: 0 | PF5: 0 | PG5: 0 | PH5: 0 | PI5: 0 | PJ5: 0 | PK5: 0 | PL5: 0 | PM5: 0 | PN5: 0 | PO5: 0 | PP5: 0 | PQ5: 0 | PR5: 0 | PS5: 0 | PU5: =+SUM(D5:AA5) -> 0 | PV5: =+SUM(AB5:AY5) -> 0 | PW5: =+SUM(AZ5:BW5) -> 0 | PX5: =+SUM(BX5:CU5) -> 0 | PY5: =+SUM(CV5:DS5) -> 0 | PZ5: =+SUM(DT5:EQ5) -> 0 | QA5: =+SUM(ER5:FO5) -> 0 | QB5: =+SUM(FP5:GM5) -> 0 | QC5: =+SUM(GN5:HK5) -> 0 | QD5: =+SUM(HL5:II5) -> 0 | QE5: =+SUM(IJ5:JG5) -> 0 | QF5: =+SUM(JH5:KE5) -> 0 | QG5: =+SUM(KF5:LC5) -> 0 | QH5: =+SUM(LD5:MA5) -> 0 | QI5: =+SUM(MB5:MY5) -> 0 | QJ5: =+SUM(MZ5:NW5) -> 0 | QK5: =+SUM(NX5:OU5) -> 0 | QL5: =+SUM(OV5:PS5) -> 0
B6: 10024 | C6: Benton County PUD #1 | D6: 0 | E6: 0 | F6: 0 | G6: 0 | H6: 0 | I6: 0 | J6: 0 | K6: 0 | L6: 0 | M6: 0 | N6: 0 | O6: 0 | P6: 0 | Q6: 0 | R6: 0 | S6: 0 | T6: 0 | U6: 0 | V6: 0 | W6: 0 | X6: 0 | Y6: 0 | Z6: 0 | AA6: 0 | AB6: 0 | AC6: 0 | AD6: 0 | AE6: 0 | AF6: 0 | AG6: 0 | AH6: 0 | AI6: 0 | AJ6: 0 | AK6: 0 | AL6: 0 | AM6: 0 | AN6: 0 | AO6: 0 | AP6: 0 | AQ6: 0 | AR6: 0 | AS6: 0 | AT6: 0 | AU6: 0 | AV6: 0 | AW6: 0 | AX6: 0 | AY6: 0 | AZ6: 0 | BA6: 0 | BB6: 0 | BC6: 0 | BD6: 0 | BE6: 0 | BF6: 0 | BG6: 0 | BH6: 0 | BI6: 0 | BJ6: 0 | BK6: 0 | BL6: 0 | BM6: 0 | BN6: 0 | BO6: 0 | BP6: 0 | BQ6: 0 | BR6: 0 | BS6: 0 | BT6: 0 | BU6: 0 | BV6: 0 | BW6: 0 | BX6: 0 | BY6: 0 | BZ6: 0 | CA6: 0 | CB6: 0 | CC6: 0 | CD6: 0 | CE6: 0 | CF6: 0 | CG6: 0 | CH6: 0 | CI6: 0 | CJ6: 0 | CK6: 0 | CL6: 0 | CM6: 0 | CN6: 0 | CO6: 0 | CP6: 0 | CQ6: 0 | CR6: 0 | CS6: 0 | CT6: 0 | CU6: 0 | CV6: 0 | CW6: 0 | CX6: 0 | CY6: 0 | CZ6: 0 | DA6: 0 | DB6: 0 | DC6: 0 | DD6: 0 | DE6: 0 | DF6: 0 | DG6: 0 | DH6: 0 | DI6: 0 | DJ6: 0 | DK6: 0 | DL6: 0 | DM6: 0 | DN6: 0 | DO6: 0 | DP6: 0 | DQ6: 0 | DR6: 0 | DS6: 0 | DT6: 0 | DU6: 0 | DV6: 0 | DW6: 0 | DX6: 0 | DY6: 0 | DZ6: 0 | EA6: 0 | EB6: 0 | EC6: 0 | ED6: 0 | EE6: 0 | EF6: 0 | EG6: 0 | EH6: 0 | EI6: 0 | EJ6: 0 | EK6: 0 | EL6: 0 | EM6: 0 | EN6: 0 | EO6: 0 | EP6: 0 | EQ6: 0 | ER6: 0 | ES6: 0 | ET6: 0 | EU6: 0 | EV6: 0 | EW6: 0 | EX6: 0 | EY6: 0 | EZ6: 0 | FA6: 0 | FB6: 0 | FC6: 0 | FD6: 0 | FE6: 0 | FF6: 0 | FG6: 0 | FH6: 0 | FI6: 0 | FJ6: 0 | FK6: 0 | FL6: 0 | FM6: 0 | FN6: 0 | FO6: 0 | FP6: 0 | FQ6: 0 | FR6: 0 | FS6: 0 | FT6: 0 | FU6: 0 | FV6: 0 | FW6: 0 | FX6: 0 | FY6: 0 | FZ6: 0 | GA6: 0 | GB6: 0 | GC6: 0 | GD6: 0 | GE6: 0 | GF6: 0 | GG6: 0 | GH6: 0 | GI6: 0 | GJ6: 0 | GK6: 0 | GL6: 0 | GM6: 0 | GN6: 0 | GO6: 0 | GP6: 0 | GQ6: 0 | GR6: 0 | GS6: 0 | GT6: 0 | GU6: 0 | GV6: 0 | GW6: 0 | GX6: 0 | GY6: 0 | GZ6: 0 | HA6: 0 | HB6: 0 | HC6: 0 | HD6: 0 | HE6: 0 | HF6: 0 | HG6: 0 | HH6: 0 | HI6: 0 | HJ6: 0 | HK6: 0 | HL6: 0 | HM6: 0 | HN6: 0 | HO6: 0 | HP6: 0 | HQ6: 0 | HR6: 0 | HS6: 0 | HT6: 0 | HU6: 0 | HV6: 0 | HW6: 0 | HX6: 0 | HY6: 0 | HZ6: 0 | IA6: 0 | IB6: 0 | IC6: 0 | ID6: 0 | IE6: 0 | IF6: 0 | IG6: 0 | IH6: 0 | II6: 0 | IJ6: 0 | IK6: 0 | IL6: 0 | IM6: 0 | IN6: 0 | IO6: 0 | IP6: 0 | IQ6: 0 | IR6: 0 | IS6: 0 | IT6: 0 | IU6: 0 | IV6: 0 | IW6: 0 | IX6: 0 | IY6: 0 | IZ6: 0 | JA6: 0 | JB6: 0 | JC6: 0 | JD6: 0 | JE6: 0 | JF6: 0 | JG6: 0 | JH6: 0 | JI6: 0 | JJ6: 0 | JK6: 0 | JL6: 0 | JM6: 0 | JN6: 0 | JO6: 0 | JP6: 0 | JQ6: 0 | JR6: 0 | JS6: 0 | JT6: 0 | JU6: 0 | JV6: 0 | JW6: 0 | JX6: 0 | JY6: 0 | JZ6: 0 | KA6: 0 | KB6: 0 | KC6: 0 | KD6: 0 | KE6: 0 | KF6: 0 | KG6: 0 | KH6: 0 | KI6: 0 | KJ6: 0 | KK6: 0 | KL6: 0 | KM6: 0 | KN6: 0 | KO6: 0 | KP6: 0 | KQ6: 0 | KR6: 0 | KS6: 0 | KT6: 0 | KU6: 0 | KV6: 0 | KW6: 0 | KX6: 0 | KY6: 0 | KZ6: 0 | LA6: 0 | LB6: 0 | LC6: 0 | LD6: 0 | LE6: 0 | LF6: 0 | LG6: 0 | LH6: 0 | LI6: 0 | LJ6: 0 | LK6: 0 | LL6: 0 | LM6: 0 | LN6: 0 | LO6: 0 | LP6: 0 | LQ6: 0 | LR6: 0 | LS6: 0 | LT6: 0 | LU6: 0 | LV6: 0 | LW6: 0 | LX6: 0 | LY6: 0 | LZ6: 0 | MA6: 0 | MB6: 0 | MC6: 0 | MD6: 0 | ME6: 0 | MF6: 0 | MG6: 0 | MH6: 0 | MI6: 0 | MJ6: 0 | MK6: 0 | ML6: 0 | MM6: 0 | MN6: 0 | MO6: 0 | MP6: 0 | MQ6: 0 | MR6: 0 | MS6: 0 | MT6: 0 | MU6: 0 | MV6: 0 | MW6: 0 | MX6: 0 | MY6: 0 | MZ6: 0 | NA6: 0 | NB6: 0 | NC6: 0 | ND6: 0 | NE6: 0 | NF6: 0 | NG6: 0 | NH6: 0 | NI6: 0 | NJ6: 0 | NK6: 0 | NL6: 0 | NM6: 0 | NN6: 0 | NO6: 0 | NP6: 0 | NQ6: 0 | NR6: 0 | NS6: 0 | NT6: 0 | NU6: 0 | NV6: 0 | NW6: 0 | NX6: 0 | NY6: 0 | NZ6: 0 | OA6: 0 | OB6: 0 | OC6: 0 | OD6: 0 | OE6: 0 | OF6: 0 | OG6: 0 | OH6: 0 | OI6: 0 | OJ6: 0 | OK6: 0 | OL6: 0 | OM6: 0 | ON6: 0 | OO6: 0 | OP6: 0 | OQ6: 0 | OR6: 0 | OS6: 0 | OT6: 0 | OU6: 0 | OV6: 0 | OW6: 0 | OX6: 0 | OY6: 0 | OZ6: 0 | PA6: 0 | PB6: 0 | PC6: 0 | PD6: 0 | PE6: 0 | PF6: 0 | PG6: 0 | PH6: 0 | PI6: 0 | PJ6: 0 | PK6: 0 | PL6: 0 | PM6: 0 | PN6: 0 | PO6: 0 | PP6: 0 | PQ6: 0 | PR6: 0 | PS6: 0 | PU6: 0 | PV6: 0 | PW6: 0 | PX6: 0 | PY6: 0 | PZ6: 0 | QA6: 0 | QB6: 0 | QC6: 0 | QD6: 0 | QE6: 0 | QF6: 0 | QG6: 0 | QH6: 0 | QI6: 0 | QJ6: 0 | QK6: 0 | QL6: 0
B7: 10025 | C7: Benton REA | D7: 0 | E7: 0 | F7: 0 | G7: 0 | H7: 0 | I7: 0 | J7: 0 | K7: 0 | L7: 0 | M7: 0 | N7: 0 | O7: 0 | P7: 0 | Q7: 0 | R7: 0 | S7: 0 | T7: 0 | U7: 0 | V7: 0 | W7: 0 | X7: 0 | Y7: 0 | Z7: 0 | AA7: 0 | AB7: 0 | AC7: 0 | AD7: 0 | AE7: 0 | AF7: 0 | AG7: 0 | AH7: 0 | AI7: 0 | AJ7: 0 | AK7: 0 | AL7: 0 | AM7: 0 | AN7: 0 | AO7: 0 | AP7: 0 | AQ7: 0 | AR7: 0 | AS7: 0 | AT7: 0 | AU7: 0 | AV7: 0 | AW7: 0 | AX7: 0 | AY7: 0 | AZ7: 0 | BA7: 0 | BB7: 0 | BC7: 0 | BD7: 0 | BE7: 0 | BF7: 0 | BG7: 0 | BH7: 0 | BI7: 0 | BJ7: 0 | BK7: 0 | BL7: 0 | BM7: 0 | BN7: 0 | BO7: 0 | BP7: 0 | BQ7: 0 | BR7: 0 | BS7: 0 | BT7: 0 | BU7: 0 | BV7: 0 | BW7: 0 | BX7: 0 | BY7: 0 | BZ7: 0 | CA7: 0 | CB7: 0 | CC7: 0 | CD7: 0 | CE7: 0 | CF7: 0 | CG7: 0 | CH7: 0 | CI7: 0 | CJ7: 0 | CK7: 0 | CL7: 0 | CM7: 0 | CN7: 0 | CO7: 0 | CP7: 0 | CQ7: 0 | CR7: 0 | CS7: 0 | CT7: 0 | CU7: 0 | CV7: 0 | CW7: 0 | CX7: 0 | CY7: 0 | CZ7: 0 | DA7: 0 | DB7: 0 | DC7: 0 | DD7: 0 | DE7: 0 | DF7: 0 | DG7: 0 | DH7: 0 | DI7: 0 | DJ7: 0 | DK7: 0 | DL7: 0 | DM7: 0 | DN7: 0 | DO7: 0 | DP7: 0 | DQ7: 0 | DR7: 0 | DS7: 0 | DT7: 0 | DU7: 0 | DV7: 0 | DW7: 0 | DX7: 0 | DY7: 0 | DZ7: 0 | EA7: 0 | EB7: 0 | EC7: 0 | ED7: 0 | EE7: 0 | EF7: 0 | EG7: 0 | EH7: 0 | EI7: 0 | EJ7: 0 | EK7: 0 | EL7: 0 | EM7: 0 | EN7: 0 | EO7: 0 | EP7: 0 | EQ7: 0 | ER7: 0 | ES7: 0 | ET7: 0 | EU7: 0 | EV7: 0 | EW7: 0 | EX7: 0 | EY7: 0 | EZ7: 0 | FA7: 0 | FB7: 0 | FC7: 0 | FD7: 0 | FE7: 0 | FF7: 0 | FG7: 0 | FH7: 0 | FI7: 0 | FJ7: 0 | FK7: 0 | FL7: 0 | FM7: 0 | FN7: 0 | FO7: 0 | FP7: 0 | FQ7: 0 | FR7: 0 | FS7: 0 | FT7: 0 | FU7: 0 | FV7: 0 | FW7: 0 | FX7: 0 | FY7: 0 | FZ7: 0 | GA7: 0 | GB7: 0 | GC7: 0 | GD7: 0 | GE7: 0 | GF7: 0 | GG7: 0 | GH7: 0 | GI7: 0 | GJ7: 0 | GK7: 0 | GL7: 0 | GM7: 0 | GN7: 0 | GO7: 0 | GP7: 0 | GQ7: 0 | GR7: 0 | GS7: 0 | GT7: 0 | GU7: 0 | GV7: 0 | GW7: 0 | GX7: 0 | GY7: 0 | GZ7: 0 | HA7: 0 | HB7: 0 | HC7: 0 | HD7: 0 | HE7: 0 | HF7: 0 | HG7: 0 | HH7: 0 | HI7: 0 | HJ7: 0 | HK7: 0 | HL7: 0 | HM7: 0 | HN7: 0 | HO7: 0 | HP7: 0 | HQ7: 0 | HR7: 0 | HS7: 0 | HT7: 0 | HU7: 0 | HV7: 0 | HW7: 0 | HX7: 0 | HY7: 0 | HZ7: 0 | IA7: 0 | IB7: 0 | IC7: 0 | ID7: 0 | IE7: 0 | IF7: 0 | IG7: 0 | IH7: 0 | II7: 0 | IJ7: 0 | IK7: 0 | IL7: 0 | IM7: 0 | IN7: 0 | IO7: 0 | IP7: 0 | IQ7: 0 | IR7: 0 | IS7: 0 | IT7: 0 | IU7: 0 | IV7: 0 | IW7: 0 | IX7: 0 | IY7: 0 | IZ7: 0 | JA7: 0 | JB7: 0 | JC7: 0 | JD7: 0 | JE7: 0 | JF7: 0 | JG7: 0 | JH7: 0 | JI7: 0 | JJ7: 0 | JK7: 0 | JL7: 0 | JM7: 0 | JN7: 0 | JO7: 0 | JP7: 0 | JQ7: 0 | JR7: 0 | JS7: 0 | JT7: 0 | JU7: 0 | JV7: 0 | JW7: 0 | JX7: 0 | JY7: 0 | JZ7: 0 | KA7: 0 | KB7: 0 | KC7: 0 | KD7: 0 | KE7: 0 | KF7: 0 | KG7: 0 | KH7: 0 | KI7: 0 | KJ7: 0 | KK7: 0 | KL7: 0 | KM7: 0 | KN7: 0 | KO7: 0 | KP7: 0 | KQ7: 0 | KR7: 0 | KS7: 0 | KT7: 0 | KU7: 0 | KV7: 0 | KW7: 0 | KX7: 0 | KY7: 0 | KZ7: 0 | LA7: 0 | LB7: 0 | LC7: 0 | LD7: 0 | LE7: 0 | LF7: 0 | LG7: 0 | LH7: 0 | LI7: 0 | LJ7: 0 | LK7: 0 | LL7: 0 | LM7: 0 | LN7: 0 | LO7: 0 | LP7: 0 | LQ7: 0 | LR7: 0 | LS7: 0 | LT7: 0 | LU7: 0 | LV7: 0 | LW7: 0 | LX7: 0 | LY7: 0 | LZ7: 0 | MA7: 0 | MB7: 0 | MC7: 0 | MD7: 0 | ME7: 0 | MF7: 0 | MG7: 0 | MH7: 0 | MI7: 0 | MJ7: 0 | MK7: 0 | ML7: 0 | MM7: 0 | MN7: 0 | MO7: 0 | MP7: 0 | MQ7: 0 | MR7: 0 | MS7: 0 | MT7: 0 | MU7: 0 | MV7: 0 | MW7: 0 | MX7: 0 | MY7: 0 | MZ7: 0 | NA7: 0 | NB7: 0 | NC7: 0 | ND7: 0 | NE7: 0 | NF7: 0 | NG7: 0 | NH7: 0 | NI7: 0 | NJ7: 0 | NK7: 0 | NL7: 0 | NM7: 0 | NN7: 0 | NO7: 0 | NP7: 0 | NQ7: 0 | NR7: 0 | NS7: 0 | NT7: 0 | NU7: 0 | NV7: 0 | NW7: 0 | NX7: 0 | NY7: 0 | NZ7: 0 | OA7: 0 | OB7: 0 | OC7: 0 | OD7: 0 | OE7: 0 | OF7: 0 | OG7: 0 | OH7: 0 | OI7: 0 | OJ7: 0 | OK7: 0 | OL7: 0 | OM7: 0 | ON7: 0 | OO7: 0 | OP7: 0 | OQ7: 0 | OR7: 0 | OS7: 0 | OT7: 0 | OU7: 0 | OV7: 0 | OW7: 0 | OX7: 0 | OY7: 0 | OZ7: 0 | PA7: 0 | PB7: 0 | PC7: 0 | PD7: 0 | PE7: 0 | PF7: 0 | PG7: 0 | PH7: 0 | PI7: 0 | PJ7: 0 | PK7: 0 | PL7: 0 | PM7: 0 | PN7: 0 | PO7: 0 | PP7: 0 | PQ7: 0 | PR7: 0 | PS7: 0 | PU7: 0 | PV7: 0 | PW7: 0 | PX7: 0 | PY7: 0 | PZ7: 0 | QA7: 0 | QB7: 0 | QC7: 0 | QD7: 0 | QE7: 0 | QF7: 0 | QG7: 0 | QH7: 0 | QI7: 0 | QJ7: 0 | QK7: 0 | QL7: 0
B8: 10027 | C8: Big Bend Elec Coop | D8: 0 | E8: 0 | F8: 0 | G8: 0 | H8: 0 | I8: 0 | J8: 0 | K8: 0 | L8: 0 | M8: 0 | N8: 0 | O8: 0 | P8: 0 | Q8: 0 | R8: 0 | S8: 0 | T8: 0 | U8: 0 | V8: 0 | W8: 0 | X8: 0 | Y8: 0 | Z8: 0 | AA8: 0 | AB8: 0 | AC8: 0 | AD8: 0 | AE8: 0 | AF8: 0 | AG8: 0 | AH8: 0 | AI8: 0 | AJ8: 0 | AK8: 0 | AL8: 0 | AM8: 0 | AN8: 0 | AO8: 0 | AP8: 0 | AQ8: 0 | AR8: 0 | AS8: 0 | AT8: 0 | AU8: 0 | AV8: 0 | AW8: 0 | AX8: 0 | AY8: 0 | AZ8: 0 | BA8: 0 | BB8: 0 | BC8: 0 | BD8: 0 | BE8: 0 | BF8: 0 | BG8: 0 | BH8: 0 | BI8: 0 | BJ8: 0 | BK8: 0 | BL8: 0 | BM8: 0 | BN8: 0 | BO8: 0 | BP8: 0 | BQ8: 0 | BR8: 0 | BS8: 0 | BT8: 0 | BU8: 0 | BV8: 0 | BW8: 0 | BX8: 0 | BY8: 0 | BZ8: 0 | CA8: 0 | CB8: 0 | CC8: 0 | CD8: 0 | CE8: 0 | CF8: 0 | CG8: 0 | CH8: 0 | CI8: 0 | CJ8: 0 | CK8: 0 | CL8: 0 | CM8: 0 | CN8: 0 | CO8: 0 | CP8: 0 | CQ8: 0 | CR8: 0 | CS8: 0 | CT8: 0 | CU8: 0 | CV8: 0 | CW8: 0 | CX8: 0 | CY8: 0 | CZ8: 0 | DA8: 0 | DB8: 0 | DC8: 0 | DD8: 0 | DE8: 0 | DF8: 0 | DG8: 0 | DH8: 0 | DI8: 0 | DJ8: 0 | DK8: 0 | DL8: 0 | DM8: 0 | DN8: 0 | DO8: 0 | DP8: 0 | DQ8: 0 | DR8: 0 | DS8: 0 | DT8: 0 | DU8: 0 | DV8: 0 | DW8: 0 | DX8: 0 | DY8: 0 | DZ8: 0 | EA8: 0 | EB8: 0 | EC8: 0 | ED8: 0 | EE8: 0 | EF8: 0 | EG8: 0 | EH8: 0 | EI8: 0 | EJ8: 0 | EK8: 0 | EL8: 0 | EM8: 0 | EN8: 0 | EO8: 0 | EP8: 0 | EQ8: 0 | ER8: 0 | ES8: 0 | ET8: 0 | EU8: 0 | EV8: 0 | EW8: 0 | EX8: 0 | EY8: 0 | EZ8: 0 | FA8: 0 | FB8: 0 | FC8: 0 | FD8: 0 | FE8: 0 | FF8: 0 | FG8: 0 | FH8: 0 | FI8: 0 | FJ8: 0 | FK8: 0 | FL8: 0 | FM8: 0 | FN8: 0 | FO8: 0 | FP8: 0 | FQ8: 0 | FR8: 0 | FS8: 0 | FT8: 0 | FU8: 0 | FV8: 0 | FW8: 0 | FX8: 0 | FY8: 0 | FZ8: 0 | GA8: 0 | GB8: 0 | GC8: 0 | GD8: 0 | GE8: 0 | GF8: 0 | GG8: 0 | GH8: 0 | GI8: 0 | GJ8: 0 | GK8: 0 | GL8: 0 | GM8: 0 | GN8: 0 | GO8: 0 | GP8: 0 | GQ8: 0 | GR8: 0 | GS8: 0 | GT8: 0 | GU8: 0 | GV8: 0 | GW8: 0 | GX8: 0 | GY8: 0 | GZ8: 0 | HA8: 0 | HB8: 0 | HC8: 0 | HD8: 0 | HE8: 0 | HF8: 0 | HG8: 0 | HH8: 0 | HI8: 0 | HJ8: 0 | HK8: 0 | HL8: 0 | HM8: 0 | HN8: 0 | HO8: 0 | HP8: 0 | HQ8: 0 | HR8: 0 | HS8: 0 | HT8: 0 | HU8: 0 | HV8: 0 | HW8: 0 | HX8: 0 | HY8: 0 | HZ8: 0 | IA8: 0 | IB8: 0 | IC8: 0 | ID8: 0 | IE8: 0 | IF8: 0 | IG8: 0 | IH8: 0 | II8: 0 | IJ8: 0 | IK8: 0 | IL8: 0 | IM8: 0 | IN8: 0 | IO8: 0 | IP8: 0 | IQ8: 0 | IR8: 0 | IS8: 0 | IT8: 0 | IU8: 0 | IV8: 0 | IW8: 0 | IX8: 0 | IY8: 0 | IZ8: 0 | JA8: 0 | JB8: 0 | JC8: 0 | JD8: 0 | JE8: 0 | JF8: 0 | JG8: 0 | JH8: 0 | JI8: 0 | JJ8: 0 | JK8: 0 | JL8: 0 | JM8: 0 | JN8: 0 | JO8: 0 | JP8: 0 | JQ8: 0 | JR8: 0 | JS8: 0 | JT8: 0 | JU8: 0 | JV8: 0 | JW8: 0 | JX8: 0 | JY8: 0 | JZ8: 0 | KA8: 0 | KB8: 0 | KC8: 0 | KD8: 0 | KE8: 0 | KF8: 0 | KG8: 0 | KH8: 0 | KI8: 0 | KJ8: 0 | KK8: 0 | KL8: 0 | KM8: 0 | KN8: 0 | KO8: 0 | KP8: 0 | KQ8: 0 | KR8: 0 | KS8: 0 | KT8: 0 | KU8: 0 | KV8: 0 | KW8: 0 | KX8: 0 | KY8: 0 | KZ8: 0 | LA8: 0 | LB8: 0 | LC8: 0 | LD8: 0 | LE8: 0 | LF8: 0 | LG8: 0 | LH8: 0 | LI8: 0 | LJ8: 0 | LK8: 0 | LL8: 0 | LM8: 0 | LN8: 0 | LO8: 0 | LP8: 0 | LQ8: 0 | LR8: 0 | LS8: 0 | LT8: 0 | LU8: 0 | LV8: 0 | LW8: 0 | LX8: 0 | LY8: 0 | LZ8: 0 | MA8: 0 | MB8: 0 | MC8: 0 | MD8: 0 | ME8: 0 | MF8: 0 | MG8: 0 | MH8: 0 | MI8: 0 | MJ8: 0 | MK8: 0 | ML8: 0 | MM8: 0 | MN8: 0 | MO8: 0 | MP8: 0 | MQ8: 0 | MR8: 0 | MS8: 0 | MT8: 0 | MU8: 0 | MV8: 0 | MW8: 0 | MX8: 0 | MY8: 0 | MZ8: 0 | NA8: 0 | NB8: 0 | NC8: 0 | ND8: 0 | NE8: 0 | NF8: 0 | NG8: 0 | NH8: 0 | NI8: 0 | NJ8: 0 | NK8: 0 | NL8: 0 | NM8: 0 | NN8: 0 | NO8: 0 | NP8: 0 | NQ8: 0 | NR8: 0 | NS8: 0 | NT8: 0 | NU8: 0 | NV8: 0 | NW8: 0 | NX8: 0 | NY8: 0 | NZ8: 0 | OA8: 0 | OB8: 0 | OC8: 0 | OD8: 0 | OE8: 0 | OF8: 0 | OG8: 0 | OH8: 0 | OI8: 0 | OJ8: 0 | OK8: 0 | OL8: 0 | OM8: 0 | ON8: 0 | OO8: 0 | OP8: 0 | OQ8: 0 | OR8: 0 | OS8: 0 | OT8: 0 | OU8: 0 | OV8: 0 | OW8: 0 | OX8: 0 | OY8: 0 | OZ8: 0 | PA8: 0 | PB8: 0 | PC8: 0 | PD8: 0 | PE8: 0 | PF8: 0 | PG8: 0 | PH8: 0 | PI8: 0 | PJ8: 0 | PK8: 0 | PL8: 0 | PM8: 0 | PN8: 0 | PO8: 0 | PP8: 0 | PQ8: 0 | PR8: 0 | PS8: 0 | PU8: 0 | PV8: 0 | PW8: 0 | PX8: 0 | PY8: 0 | PZ8: 0 | QA8: 0 | QB8: 0 | QC8: 0 | QD8: 0 | QE8: 0 | QF8: 0 | QG8: 0 | QH8: 0 | QI8: 0 | QJ8: 0 | QK8: 0 | QL8: 0
B9: 10029 | C9: Blachly Lane Elec Coop | D9: 0 | E9: 0 | F9: 0 | G9: 0 | H9: 0 | I9: 0 | J9: 0 | K9: 0 | L9: 0 | M9: 0 | N9: 0 | O9: 0 | P9: 0 | Q9: 0 | R9: 0 | S9: 0 | T9: 0 | U9: 0 | V9: 0 | W9: 0 | X9: 0 | Y9: 0 | Z9: 0 | AA9: 0 | AB9: 0 | AC9: 0 | AD9: 0 | AE9: 0 | AF9: 0 | AG9: 0 | AH9: 0 | AI9: 0 | AJ9: 0 | AK9: 0 | AL9: 0 | AM9: 0 | AN9: 0 | AO9: 0 | AP9: 0 | AQ9: 0 | AR9: 0 | AS9: 0 | AT9: 0 | AU9: 0 | AV9: 0 | AW9: 0 | AX9: 0 | AY9: 0 | AZ9: 0 | BA9: 0 | BB9: 0 | BC9: 0 | BD9: 0 | BE9: 0 | BF9: 0 | BG9: 0 | BH9: 0 | BI9: 0 | BJ9: 0 | BK9: 0 | BL9: 0 | BM9: 0 | BN9: 0 | BO9: 0 | BP9: 0 | BQ9: 0 | BR9: 0 | BS9: 0 | BT9: 0 | BU9: 0 | BV9: 0 | BW9: 0 | BX9: 0 | BY9: 0 | BZ9: 0 | CA9: 0 | CB9: 0 | CC9: 0 | CD9: 0 | CE9: 0 | CF9: 0 | CG9: 0 | CH9: 0 | CI9: 0 | CJ9: 0 | CK9: 0 | CL9: 0 | CM9: 0 | CN9: 0 | CO9: 0 | CP9: 0 | CQ9: 0 | CR9: 0 | CS9: 0 | CT9: 0 | CU9: 0 | CV9: 0 | CW9: 0 | CX9: 0 | CY9: 0 | CZ9: 0 | DA9: 0 | DB9: 0 | DC9: 0 | DD9: 0 | DE9: 0 | DF9: 0 | DG9: 0 | DH9: 0 | DI9: 0 | DJ9: 0 | DK9: 0 | DL9: 0 | DM9: 0 | DN9: 0 | DO9: 0 | DP9: 0 | DQ9: 0 | DR9: 0 | DS9: 0 | DT9: 0 | DU9: 0 | DV9: 0 | DW9: 0 | DX9: 0 | DY9: 0 | DZ9: 0 | EA9: 0 | EB9: 0 | EC9: 0 | ED9: 0 | EE9: 0 | EF9: 0 | EG9: 0 | EH9: 0 | EI9: 0 | EJ9: 0 | EK9: 0 | EL9: 0 | EM9: 0 | EN9: 0 | EO9: 0 | EP9: 0 | EQ9: 0 | ER9: 0 | ES9: 0 | ET9: 0 | EU9: 0 | EV9: 0 | EW9: 0 | EX9: 0 | EY9: 0 | EZ9: 0 | FA9: 0 | FB9: 0 | FC9: 0 | FD9: 0 | FE9: 0 | FF9: 0 | FG9: 0 | FH9: 0 | FI9: 0 | FJ9: 0 | FK9: 0 | FL9: 0 | FM9: 0 | FN9: 0 | FO9: 0 | FP9: 0 | FQ9: 0 | FR9: 0 | FS9: 0 | FT9: 0 | FU9: 0 | FV9: 0 | FW9: 0 | FX9: 0 | FY9: 0 | FZ9: 0 | GA9: 0 | GB9: 0 | GC9: 0 | GD9: 0 | GE9: 0 | GF9: 0 | GG9: 0 | GH9: 0 | GI9: 0 | GJ9: 0 | GK9: 0 | GL9: 0 | GM9: 0 | GN9: 0 | GO9: 0 | GP9: 0 | GQ9: 0 | GR9: 0 | GS9: 0 | GT9: 0 | GU9: 0 | GV9: 0 | GW9: 0 | GX9: 0 | GY9: 0 | GZ9: 0 | HA9: 0 | HB9: 0 | HC9: 0 | HD9: 0 | HE9: 0 | HF9: 0 | HG9: 0 | HH9: 0 | HI9: 0 | HJ9: 0 | HK9: 0 | HL9: 0 | HM9: 0 | HN9: 0 | HO9: 0 | HP9: 0 | HQ9: 0 | HR9: 0 | HS9: 0 | HT9: 0 | HU9: 0 | HV9: 0 | HW9: 0 | HX9: 0 | HY9: 0 | HZ9: 0 | IA9: 0 | IB9: 0 | IC9: 0 | ID9: 0 | IE9: 0 | IF9: 0 | IG9: 0 | IH9: 0 | II9: 0 | IJ9: 0 | IK9: 0 | IL9: 0 | IM9: 0 | IN9: 0 | IO9: 0 | IP9: 0 | IQ9: 0 | IR9: 0 | IS9: 0 | IT9: 0 | IU9: 0 | IV9: 0 | IW9: 0 | IX9: 0 | IY9: 0 | IZ9: 0 | JA9: 0 | JB9: 0 | JC9: 0 | JD9: 0 | JE9: 0 | JF9: 0 | JG9: 0 | JH9: 0 | JI9: 0 | JJ9: 0 | JK9: 0 | JL9: 0 | JM9: 0 | JN9: 0 | JO9: 0 | JP9: 0 | JQ9: 0 | JR9: 0 | JS9: 0 | JT9: 0 | JU9: 0 | JV9: 0 | JW9: 0 | JX9: 0 | JY9: 0 | JZ9: 0 | KA9: 0 | KB9: 0 | KC9: 0 | KD9: 0 | KE9: 0 | KF9: 0 | KG9: 0 | KH9: 0 | KI9: 0 | KJ9: 0 | KK9: 0 | KL9: 0 | KM9: 0 | KN9: 0 | KO9: 0 | KP9: 0 | KQ9: 0 | KR9: 0 | KS9: 0 | KT9: 0 | KU9: 0 | KV9: 0 | KW9: 0 | KX9: 0 | KY9: 0 | KZ9: 0 | LA9: 0 | LB9: 0 | LC9: 0 | LD9: 0 | LE9: 0 | LF9: 0 | LG9: 0 | LH9: 0 | LI9: 0 | LJ9: 0 | LK9: 0 | LL9: 0 | LM9: 0 | LN9: 0 | LO9: 0 | LP9: 0 | LQ9: 0 | LR9: 0 | LS9: 0 | LT9: 0 | LU9: 0 | LV9: 0 | LW9: 0 | LX9: 0 | LY9: 0 | LZ9: 0 | MA9: 0 | MB9: 0 | MC9: 0 | MD9: 0 | ME9: 0 | MF9: 0 | MG9: 0 | MH9: 0 | MI9: 0 | MJ9: 0 | MK9: 0 | ML9: 0 | MM9: 0 | MN9: 0 | MO9: 0 | MP9: 0 | MQ9: 0 | MR9: 0 | MS9: 0 | MT9: 0 | MU9: 0 | MV9: 0 | MW9: 0 | MX9: 0 | MY9: 0 | MZ9: 0 | NA9: 0 | NB9: 0 | NC9: 0 | ND9: 0 | NE9: 0 | NF9: 0 | NG9: 0 | NH9: 0 | NI9: 0 | NJ9: 0 | NK9: 0 | NL9: 0 | NM9: 0 | NN9: 0 | NO9: 0 | NP9: 0 | NQ9: 0 | NR9: 0 | NS9: 0 | NT9: 0 | NU9: 0 | NV9: 0 | NW9: 0 | NX9: 0 | NY9: 0 | NZ9: 0 | OA9: 0 | OB9: 0 | OC9: 0 | OD9: 0 | OE9: 0 | OF9: 0 | OG9: 0 | OH9: 0 | OI9: 0 | OJ9: 0 | OK9: 0 | OL9: 0 | OM9: 0 | ON9: 0 | OO9: 0 | OP9: 0 | OQ9: 0 | OR9: 0 | OS9: 0 | OT9: 0 | OU9: 0 | OV9: 0 | OW9: 0 | OX9: 0 | OY9: 0 | OZ9: 0 | PA9: 0 | PB9: 0 | PC9: 0 | PD9: 0 | PE9: 0 | PF9: 0 | PG9: 0 | PH9: 0 | PI9: 0 | PJ9: 0 | PK9: 0 | PL9: 0 | PM9: 0 | PN9: 0 | PO9: 0 | PP9: 0 | PQ9: 0 | PR9: 0 | PS9: 0 | PU9: 0 | PV9: 0 | PW9: 0 | PX9: 0 | PY9: 0 | PZ9: 0 | QA9: 0 | QB9: 0 | QC9: 0 | QD9: 0 | QE9: 0 | QF9: 0 | QG9: 0 | QH9: 0 | QI9: 0 | QJ9: 0 | QK9: 0 | QL9: 0
B10: 10044 | C10: Canby, City of | D10: 0 | E10: 0 | F10: 0 | G10: 0 | H10: 0 | I10: 0 | J10: 0 | K10: 0 | L10: 0 | M10: 0 | N10: 0 | O10: 0 | P10: 0 | Q10: 0 | R10: 0 | S10: 0 | T10: 0 | U10: 0 | V10: 0 | W10: 0 | X10: 0 | Y10: 0 | Z10: 0 | AA10: 0 | AB10: 0 | AC10: 0 | AD10: 0 | AE10: 0 | AF10: 0 | AG10: 0 | AH10: 0 | AI10: 0 | AJ10: 0 | AK10: 0 | AL10: 0 | AM10: 0 | AN10: 0 | AO10: 0 | AP10: 0 | AQ10: 0 | AR10: 0 | AS10: 0 | AT10: 0 | AU10: 0 | AV10: 0 | AW10: 0 | AX10: 0 | AY10: 0 | AZ10: 0 | BA10: 0 | BB10: 0 | BC10: 0 | BD10: 0 | BE10: 0 | BF10: 0 | BG10: 0 | BH10: 0 | BI10: 0 | BJ10: 0 | BK10: 0 | BL10: 0 | BM10: 0 | BN10: 0 | BO10: 0 | BP10: 0 | BQ10: 0 | BR10: 0 | BS10: 0 | BT10: 0 | BU10: 0 | BV10: 0 | BW10: 0 | BX10: 0 | BY10: 0 | BZ10: 0 | CA10: 0 | CB10: 0 | CC10: 0 | CD10: 0 | CE10: 0 | CF10: 0 | CG10: 0 | CH10: 0 | CI10: 0 | CJ10: 0 | CK10: 0 | CL10: 0 | CM10: 0 | CN10: 0 | CO10: 0 | CP10: 0 | CQ10: 0 | CR10: 0 | CS10: 0 | CT10: 0 | CU10: 0 | CV10: 0 | CW10: 0 | CX10: 0 | CY10: 0 | CZ10: 0 | DA10: 0 | DB10: 0 | DC10: 0 | DD10: 0 | DE10: 0 | DF10: 0 | DG10: 0 | DH10: 0 | DI10: 0 | DJ10: 0 | DK10: 0 | DL10: 0 | DM10: 0 | DN10: 0 | DO10: 0 | DP10: 0 | DQ10: 0 | DR10: 0 | DS10: 0 | DT10: 0 | DU10: 0 | DV10: 0 | DW10: 0 | DX10: 0 | DY10: 0 | DZ10: 0 | EA10: 0 | EB10: 0 | EC10: 0 | ED10: 0 | EE10: 0 | EF10: 0 | EG10: 0 | EH10: 0 | EI10: 0 | EJ10: 0 | EK10: 0 | EL10: 0 | EM10: 0 | EN10: 0 | EO10: 0 | EP10: 0 | EQ10: 0 | ER10: 0 | ES10: 0 | ET10: 0 | EU10: 0 | EV10: 0 | EW10: 0 | EX10: 0 | EY10: 0 | EZ10: 0 | FA10: 0 | FB10: 0 | FC10: 0 | FD10: 0 | FE10: 0 | FF10: 0 | FG10: 0 | FH10: 0 | FI10: 0 | FJ10: 0 | FK10: 0 | FL10: 0 | FM10: 0 | FN10: 0 | FO10: 0 | FP10: 0 | FQ10: 0 | FR10: 0 | FS10: 0 | FT10: 0 | FU10: 0 | FV10: 0 | FW10: 0 | FX10: 0 | FY10: 0 | FZ10: 0 | GA10: 0 | GB10: 0 | GC10: 0 | GD10: 0 | GE10: 0 | GF10: 0 | GG10: 0 | GH10: 0 | GI10: 0 | GJ10: 0 | GK10: 0 | GL10: 0 | GM10: 0 | GN10: 0 | GO10: 0 | GP10: 0 | GQ10: 0 | GR10: 0 | GS10: 0 | GT10: 0 | GU10: 0 | GV10: 0 | GW10: 0 | GX10: 0 | GY10: 0 | GZ10: 0 | HA10: 0 | HB10: 0 | HC10: 0 | HD10: 0 | HE10: 0 | HF10: 0 | HG10: 0 | HH10: 0 | HI10: 0 | HJ10: 0 | HK10: 0 | HL10: 0 | HM10: 0 | HN10: 0 | HO10: 0 | HP10: 0 | HQ10: 0 | HR10: 0 | HS10: 0 | HT10: 0 | HU10: 0 | HV10: 0 | HW10: 0 | HX10: 0 | HY10: 0 | HZ10: 0 | IA10: 0 | IB10: 0 | IC10: 0 | ID10: 0 | IE10: 0 | IF10: 0 | IG10: 0 | IH10: 0 | II10: 0 | IJ10: 0 | IK10: 0 | IL10: 0 | IM10: 0 | IN10: 0 | IO10: 0 | IP10: 0 | IQ10: 0 | IR10: 0 | IS10: 0 | IT10: 0 | IU10: 0 | IV10: 0 | IW10: 0 | IX10: 0 | IY10: 0 | IZ10: 0 | JA10: 0 | JB10: 0 | JC10: 0 | JD10: 0 | JE10: 0 | JF10: 0 | JG10: 0 | JH10: 0 | JI10: 0 | JJ10: 0 | JK10: 0 | JL10: 0 | JM10: 0 | JN10: 0 | JO10: 0 | JP10: 0 | JQ10: 0 | JR10: 0 | JS10: 0 | JT10: 0 | JU10: 0 | JV10: 0 | JW10: 0 | JX10: 0 | JY10: 0 | JZ10: 0 | KA10: 0 | KB10: 0 | KC10: 0 | KD10: 0 | KE10: 0 | KF10: 0 | KG10: 0 | KH10: 0 | KI10: 0 | KJ10: 0 | KK10: 0 | KL10: 0 | KM10: 0 | KN10: 0 | KO10: 0 | KP10: 0 | KQ10: 0 | KR10: 0 | KS10: 0 | KT10: 0 | KU10: 0 | KV10: 0 | KW10: 0 | KX10: 0 | KY10: 0 | KZ10: 0 | LA10: 0 | LB10: 0 | LC10: 0 | LD10: 0 | LE10: 0 | LF10: 0 | LG10: 0 | LH10: 0 | LI10: 0 | LJ10: 0 | LK10: 0 | LL10: 0 | LM10: 0 | LN10: 0 | LO10: 0 | LP10: 0 | LQ10: 0 | LR10: 0 | LS10: 0 | LT10: 0 | LU10: 0 | LV10: 0 | LW10: 0 | LX10: 0 | LY10: 0 | LZ10: 0 | MA10: 0 | MB10: 0 | MC10: 0 | MD10: 0 | ME10: 0 | MF10: 0 | MG10: 0 | MH10: 0 | MI10: 0 | MJ10: 0 | MK10: 0 | ML10: 0 | MM10: 0 | MN10: 0 | MO10: 0 | MP10: 0 | MQ10: 0 | MR10: 0 | MS10: 0 | MT10: 0 | MU10: 0 | MV10: 0 | MW10: 0 | MX10: 0 | MY10: 0 | MZ10: 0 | NA10: 0 | NB10: 0 | NC10: 0 | ND10: 0 | NE10: 0 | NF10: 0 | NG10: 0 | NH10: 0 | NI10: 0 | NJ10: 0 | NK10: 0 | NL10: 0 | NM10: 0 | NN10: 0 | NO10: 0 | NP10: 0 | NQ10: 0 | NR10: 0 | NS10: 0 | NT10: 0 | NU10: 0 | NV10: 0 | NW10: 0 | NX10: 0 | NY10: 0 | NZ10: 0 | OA10: 0 | OB10: 0 | OC10: 0 | OD10: 0 | OE10: 0 | OF10: 0 | OG10: 0 | OH10: 0 | OI10: 0 | OJ10: 0 | OK10: 0 | OL10: 0 | OM10: 0 | ON10: 0 | OO10: 0 | OP10: 0 | OQ10: 0 | OR10: 0 | OS10: 0 | OT10: 0 | OU10: 0 | OV10: 0 | OW10: 0 | OX10: 0 | OY10: 0 | OZ10: 0 | PA10: 0 | PB10: 0 | PC10: 0 | PD10: 0 | PE10: 0 | PF10: 0 | PG10: 0 | PH10: 0 | PI10: 0 | PJ10: 0 | PK10: 0 | PL10: 0 | PM10: 0 | PN10: 0 | PO10: 0 | PP10: 0 | PQ10: 0 | PR10: 0 | PS10: 0 | PU10: 0 | PV10: 0 | PW10: 0 | PX10: 0 | PY10: 0 | PZ10: 0 | QA10: 0 | QB10: 0 | QC10: 0 | QD10: 0 | QE10: 0 | QF10: 0 | QG10: 0 | QH10: 0 | QI10: 0 | QJ10: 0 | QK10: 0 | QL10: 0
B11: 10046 | C11: Central Electric Coop | D11: 0 | E11: 0 | F11: 0 | G11: 0 | H11: 0 | I11: 0 | J11: 0 | K11: 0 | L11: 0 | M11: 0 | N11: 0 | O11: 0 | P11: 0 | Q11: 0 | R11: 0 | S11: 0 | T11: 0 | U11: 0 | V11: 0 | W11: 0 | X11: 0 | Y11: 0 | Z11: 0 | AA11: 0 | AB11: 0 | AC11: 0 | AD11: 0 | AE11: 0 | AF11: 0 | AG11: 0 | AH11: 0 | AI11: 0 | AJ11: 0 | AK11: 0 | AL11: 0 | AM11: 0 | AN11: 0 | AO11: 0 | AP11: 0 | AQ11: 0 | AR11: 0 | AS11: 0 | AT11: 0 | AU11: 0 | AV11: 0 | AW11: 0 | AX11: 0 | AY11: 0 | AZ11: 0 | BA11: 0 | BB11: 0 | BC11: 0 | BD11: 0 | BE11: 0 | BF11: 0 | BG11: 0 | BH11: 0 | BI11: 0 | BJ11: 0 | BK11: 0 | BL11: 0 | BM11: 0 | BN11: 0 | BO11: 0 | BP11: 0 | BQ11: 0 | BR11: 0 | BS11: 0 | BT11: 0 | BU11: 0 | BV11: 0 | BW11: 0 | BX11: 0 | BY11: 0 | BZ11: 0 | CA11: 0 | CB11: 0 | CC11: 0 | CD11: 0 | CE11: 0 | CF11: 0 | CG11: 0 | CH11: 0 | CI11: 0 | CJ11: 0 | CK11: 0 | CL11: 0 | CM11: 0 | CN11: 0 | CO11: 0 | CP11: 0 | CQ11: 0 | CR11: 0 | CS11: 0 | CT11: 0 | CU11: 0 | CV11: 0 | CW11: 0 | CX11: 0 | CY11: 0 | CZ11: 0 | DA11: 0 | DB11: 0 | DC11: 0 | DD11: 0 | DE11: 0 | DF11: 0 | DG11: 0 | DH11: 0 | DI11: 0 | DJ11: 0 | DK11: 0 | DL11: 0 | DM11: 0 | DN11: 0 | DO11: 0 | DP11: 0 | DQ11: 0 | DR11: 0 | DS11: 0 | DT11: 0 | DU11: 0 | DV11: 0 | DW11: 0 | DX11: 0 | DY11: 0 | DZ11: 0 | EA11: 0 | EB11: 0 | EC11: 0 | ED11: 0 | EE11: 0 | EF11: 0 | EG11: 0 | EH11: 0 | EI11: 0 | EJ11: 0 | EK11: 0 | EL11: 0 | EM11: 0 | EN11: 0 | EO11: 0 | EP11: 0 | EQ11: 0 | ER11: 0 | ES11: 0 | ET11: 0 | EU11: 0 | EV11: 0 | EW11: 0 | EX11: 0 | EY11: 0 | EZ11: 0 | FA11: 0 | FB11: 0 | FC11: 0 | FD11: 0 | FE11: 0 | FF11: 0 | FG11: 0 | FH11: 0 | FI11: 0 | FJ11: 0 | FK11: 0 | FL11: 0 | FM11: 0 | FN11: 0 | FO11: 0 | FP11: 0 | FQ11: 0 | FR11: 0 | FS11: 0 | FT11: 0 | FU11: 0 | FV11: 0 | FW11: 0 | FX11: 0 | FY11: 0 | FZ11: 0 | GA11: 0 | GB11: 0 | GC11: 0 | GD11: 0 | GE11: 0 | GF11: 0 | GG11: 0 | GH11: 0 | GI11: 0 | GJ11: 0 | GK11: 0 | GL11: 0 | GM11: 0 | GN11: 0 | GO11: 0 | GP11: 0 | GQ11: 0 | GR11: 0 | GS11: 0 | GT11: 0 | GU11: 0 | GV11: 0 | GW11: 0 | GX11: 0 | GY11: 0 | GZ11: 0 | HA11: 0 | HB11: 0 | HC11: 0 | HD11: 0 | HE11: 0 | HF11: 0 | HG11: 0 | HH11: 0 | HI11: 0 | HJ11: 0 | HK11: 0 | HL11: 0 | HM11: 0 | HN11: 0 | HO11: 0 | HP11: 0 | HQ11: 0 | HR11: 0 | HS11: 0 | HT11: 0 | HU11: 0 | HV11: 0 | HW11: 0 | HX11: 0 | HY11: 0 | HZ11: 0 | IA11: 0 | IB11: 0 | IC11: 0 | ID11: 0 | IE11: 0 | IF11: 0 | IG11: 0 | IH11: 0 | II11: 0 | IJ11: 0 | IK11: 0 | IL11: 0 | IM11: 0 | IN11: 0 | IO11: 0 | IP11: 0 | IQ11: 0 | IR11: 0 | IS11: 0 | IT11: 0 | IU11: 0 | IV11: 0 | IW11: 0 | IX11: 0 | IY11: 0 | IZ11: 0 | JA11: 0 | JB11: 0 | JC11: 0 | JD11: 0 | JE11: 0 | JF11: 0 | JG11: 0 | JH11: 0 | JI11: 0 | JJ11: 0 | JK11: 0 | JL11: 0 | JM11: 0 | JN11: 0 | JO11: 0 | JP11: 0 | JQ11: 0 | JR11: 0 | JS11: 0 | JT11: 0 | JU11: 0 | JV11: 0 | JW11: 0 | JX11: 0 | JY11: 0 | JZ11: 0 | KA11: 0 | KB11: 0 | KC11: 0 | KD11: 0 | KE11: 0 | KF11: 0 | KG11: 0 | KH11: 0 | KI11: 0 | KJ11: 0 | KK11: 0 | KL11: 0 | KM11: 0 | KN11: 0 | KO11: 0 | KP11: 0 | KQ11: 0 | KR11: 0 | KS11: 0 | KT11: 0 | KU11: 0 | KV11: 0 | KW11: 0 | KX11: 0 | KY11: 0 | KZ11: 0 | LA11: 0 | LB11: 0 | LC11: 0 | LD11: 0 | LE11: 0 | LF11: 0 | LG11: 0 | LH11: 0 | LI11: 0 | LJ11: 0 | LK11: 0 | LL11: 0 | LM11: 0 | LN11: 0 | LO11: 0 | LP11: 0 | LQ11: 0 | LR11: 0 | LS11: 0 | LT11: 0 | LU11: 0 | LV11: 0 | LW11: 0 | LX11: 0 | LY11: 0 | LZ11: 0 | MA11: 0 | MB11: 0 | MC11: 0 | MD11: 0 | ME11: 0 | MF11: 0 | MG11: 0 | MH11: 0 | MI11: 0 | MJ11: 0 | MK11: 0 | ML11: 0 | MM11: 0 | MN11: 0 | MO11: 0 | MP11: 0 | MQ11: 0 | MR11: 0 | MS11: 0 | MT11: 0 | MU11: 0 | MV11: 0 | MW11: 0 | MX11: 0 | MY11: 0 | MZ11: 0 | NA11: 0 | NB11: 0 | NC11: 0 | ND11: 0 | NE11: 0 | NF11: 0 | NG11: 0 | NH11: 0 | NI11: 0 | NJ11: 0 | NK11: 0 | NL11: 0 | NM11: 0 | NN11: 0 | NO11: 0 | NP11: 0 | NQ11: 0 | NR11: 0 | NS11: 0 | NT11: 0 | NU11: 0 | NV11: 0 | NW11: 0 | NX11: 0 | NY11: 0 | NZ11: 0 | OA11: 0 | OB11: 0 | OC11: 0 | OD11: 0 | OE11: 0 | OF11: 0 | OG11: 0 | OH11: 0 | OI11: 0 | OJ11: 0 | OK11: 0 | OL11: 0 | OM11: 0 | ON11: 0 | OO11: 0 | OP11: 0 | OQ11: 0 | OR11: 0 | OS11: 0 | OT11: 0 | OU11: 0 | OV11: 0 | OW11: 0 | OX11: 0 | OY11: 0 | OZ11: 0 | PA11: 0 | PB11: 0 | PC11: 0 | PD11: 0 | PE11: 0 | PF11: 0 | PG11: 0 | PH11: 0 | PI11: 0 | PJ11: 0 | PK11: 0 | PL11: 0 | PM11: 0 | PN11: 0 | PO11: 0 | PP11: 0 | PQ11: 0 | PR11: 0 | PS11: 0 | PU11: 0 | PV11: 0 | PW11: 0 | PX11: 0 | PY11: 0 | PZ11: 0 | QA11: 0 | QB11: 0 | QC11: 0 | QD11: 0 | QE11: 0 | QF11: 0 | QG11: 0 | QH11: 0 | QI11: 0 | QJ11: 0 | QK11: 0 | QL11: 0
B12: 10047 | C12: Central Lincoln PUD | D12: 0 | E12: 0 | F12: 0 | G12: 0 | H12: 0 | I12: 0 | J12: 0 | K12: 0 | L12: 0 | M12: 0 | N12: 0 | O12: 0 | P12: 0 | Q12: 0 | R12: 0 | S12: 0 | T12: 0 | U12: 0 | V12: 0 | W12: 0 | X12: 0 | Y12: 0 | Z12: 0 | AA12: 0 | AB12: 0 | AC12: 0 | AD12: 0 | AE12: 0 | AF12: 0 | AG12: 0 | AH12: 0 | AI12: 0 | AJ12: 0 | AK12: 0 | AL12: 0 | AM12: 0 | AN12: 0 | AO12: 0 | AP12: 0 | AQ12: 0 | AR12: 0 | AS12: 0 | AT12: 0 | AU12: 0 | AV12: 0 | AW12: 0 | AX12: 0 | AY12: 0 | AZ12: 0 | BA12: 0 | BB12: 0 | BC12: 0 | BD12: 0 | BE12: 0 | BF12: 0 | BG12: 0 | BH12: 0 | BI12: 0 | BJ12: 0 | BK12: 0 | BL12: 0 | BM12: 0 | BN12: 0 | BO12: 0 | BP12: 0 | BQ12: 0 | BR12: 0 | BS12: 0 | BT12: 0 | BU12: 0 | BV12: 0 | BW12: 0 | BX12: 0 | BY12: 0 | BZ12: 0 | CA12: 0 | CB12: 0 | CC12: 0 | CD12: 0 | CE12: 0 | CF12: 0 | CG12: 0 | CH12: 0 | CI12: 0 | CJ12: 0 | CK12: 0 | CL12: 0 | CM12: 0 | CN12: 0 | CO12: 0 | CP12: 0 | CQ12: 0 | CR12: 0 | CS12: 0 | CT12: 0 | CU12: 0 | CV12: 0 | CW12: 0 | CX12: 0 | CY12: 0 | CZ12: 0 | DA12: 0 | DB12: 0 | DC12: 0 | DD12: 0 | DE12: 0 | DF12: 0 | DG12: 0 | DH12: 0 | DI12: 0 | DJ12: 0 | DK12: 0 | DL12: 0 | DM12: 0 | DN12: 0 | DO12: 0 | DP12: 0 | DQ12: 0 | DR12: 0 | DS12: 0 | DT12: 0 | DU12: 0 | DV12: 0 | DW12: 0 | DX12: 0 | DY12: 0 | DZ12: 0 | EA12: 0 | EB12: 0 | EC12: 0 | ED12: 0 | EE12: 0 | EF12: 0 | EG12: 0 | EH12: 0 | EI12: 0 | EJ12: 0 | EK12: 0 | EL12: 0 | EM12: 0 | EN12: 0 | EO12: 0 | EP12: 0 | EQ12: 0 | ER12: 0 | ES12: 0 | ET12: 0 | EU12: 0 | EV12: 0 | EW12: 0 | EX12: 0 | EY12: 0 | EZ12: 0 | FA12: 0 | FB12: 0 | FC12: 0 | FD12: 0 | FE12: 0 | FF12: 0 | FG12: 0 | FH12: 0 | FI12: 0 | FJ12: 0 | FK12: 0 | FL12: 0 | FM12: 0 | FN12: 0 | FO12: 0 | FP12: 0 | FQ12: 0 | FR12: 0 | FS12: 0 | FT12: 0 | FU12: 0 | FV12: 0 | FW12: 0 | FX12: 0 | FY12: 0 | FZ12: 0 | GA12: 0 | GB12: 0 | GC12: 0 | GD12: 0 | GE12: 0 | GF12: 0 | GG12: 0 | GH12: 0 | GI12: 0 | GJ12: 0 | GK12: 0 | GL12: 0 | GM12: 0 | GN12: 0 | GO12: 0 | GP12: 0 | GQ12: 0 | GR12: 0 | GS12: 0 | GT12: 0 | GU12: 0 | GV12: 0 | GW12: 0 | GX12: 0 | GY12: 0 | GZ12: 0 | HA12: 0 | HB12: 0 | HC12: 0 | HD12: 0 | HE12: 0 | HF12: 0 | HG12: 0 | HH12: 0 | HI12: 0 | HJ12: 0 | HK12: 0 | HL12: 0 | HM12: 0 | HN12: 0 | HO12: 0 | HP12: 0 | HQ12: 0 | HR12: 0 | HS12: 0 | HT12: 0 | HU12: 0 | HV12: 0 | HW12: 0 | HX12: 0 | HY12: 0 | HZ12: 0 | IA12: 0 | IB12: 0 | IC12: 0 | ID12: 0 | IE12: 0 | IF12: 0 | IG12: 0 | IH12: 0 | II12: 0 | IJ12: 0 | IK12: 0 | IL12: 0 | IM12: 0 | IN12: 0 | IO12: 0 | IP12: 0 | IQ12: 0 | IR12: 0 | IS12: 0 | IT12: 0 | IU12: 0 | IV12: 0 | IW12: 0 | IX12: 0 | IY12: 0 | IZ12: 0 | JA12: 0 | JB12: 0 | JC12: 0 | JD12: 0 | JE12: 0 | JF12: 0 | JG12: 0 | JH12: 0 | JI12: 0 | JJ12: 0 | JK12: 0 | JL12: 0 | JM12: 0 | JN12: 0 | JO12: 0 | JP12: 0 | JQ12: 0 | JR12: 0 | JS12: 0 | JT12: 0 | JU12: 0 | JV12: 0 | JW12: 0 | JX12: 0 | JY12: 0 | JZ12: 0 | KA12: 0 | KB12: 0 | KC12: 0 | KD12: 0 | KE12: 0 | KF12: 0 | KG12: 0 | KH12: 0 | KI12: 0 | KJ12: 0 | KK12: 0 | KL12: 0 | KM12: 0 | KN12: 0 | KO12: 0 | KP12: 0 | KQ12: 0 | KR12: 0 | KS12: 0 | KT12: 0 | KU12: 0 | KV12: 0 | KW12: 0 | KX12: 0 | KY12: 0 | KZ12: 0 | LA12: 0 | LB12: 0 | LC12: 0 | LD12: 0 | LE12: 0 | LF12: 0 | LG12: 0 | LH12: 0 | LI12: 0 | LJ12: 0 | LK12: 0 | LL12: 0 | LM12: 0 | LN12: 0 | LO12: 0 | LP12: 0 | LQ12: 0 | LR12: 0 | LS12: 0 | LT12: 0 | LU12: 0 | LV12: 0 | LW12: 0 | LX12: 0 | LY12: 0 | LZ12: 0 | MA12: 0 | MB12: 0 | MC12: 0 | MD12: 0 | ME12: 0 | MF12: 0 | MG12: 0 | MH12: 0 | MI12: 0 | MJ12: 0 | MK12: 0 | ML12: 0 | MM12: 0 | MN12: 0 | MO12: 0 | MP12: 0 | MQ12: 0 | MR12: 0 | MS12: 0 | MT12: 0 | MU12: 0 | MV12: 0 | MW12: 0 | MX12: 0 | MY12: 0 | MZ12: 0 | NA12: 0 | NB12: 0 | NC12: 0 | ND12: 0 | NE12: 0 | NF12: 0 | NG12: 0 | NH12: 0 | NI12: 0 | NJ12: 0 | NK12: 0 | NL12: 0 | NM12: 0 | NN12: 0 | NO12: 0 | NP12: 0 | NQ12: 0 | NR12: 0 | NS12: 0 | NT12: 0 | NU12: 0 | NV12: 0 | NW12: 0 | NX12: 0 | NY12: 0 | NZ12: 0 | OA12: 0 | OB12: 0 | OC12: 0 | OD12: 0 | OE12: 0 | OF12: 0 | OG12: 0 | OH12: 0 | OI12: 0 | OJ12: 0 | OK12: 0 | OL12: 0 | OM12: 0 | ON12: 0 | OO12: 0 | OP12: 0 | OQ12: 0 | OR12: 0 | OS12: 0 | OT12: 0 | OU12: 0 | OV12: 0 | OW12: 0 | OX12: 0 | OY12: 0 | OZ12: 0 | PA12: 0 | PB12: 0 | PC12: 0 | PD12: 0 | PE12: 0 | PF12: 0 | PG12: 0 | PH12: 0 | PI12: 0 | PJ12: 0 | PK12: 0 | PL12: 0 | PM12: 0 | PN12: 0 | PO12: 0 | PP12: 0 | PQ12: 0 | PR12: 0 | PS12: 0 | PU12: 0 | PV12: 0 | PW12: 0 | PX12: 0 | PY12: 0 | PZ12: 0 | QA12: 0 | QB12: 0 | QC12: 0 | QD12: 0 | QE12: 0 | QF12: 0 | QG12: 0 | QH12: 0 | QI12: 0 | QJ12: 0 | QK12: 0 | QL12: 0
B13: 10055 | C13: Albion, City of | D13: 0 | E13: 0 | F13: 0 | G13: 0 | H13: 0 | I13: 0 | J13: 0 | K13: 0 | L13: 0 | M13: 0 | N13: 0 | O13: 0 | P13: 0 | Q13: 0 | R13: 0 | S13: 0 | T13: 0 | U13: 0 | V13: 0 | W13: 0 | X13: 0 | Y13: 0 | Z13: 0 | AA13: 0 | AB13: 0 | AC13: 0 | AD13: 0 | AE13: 0 | AF13: 0 | AG13: 0 | AH13: 0 | AI13: 0 | AJ13: 0 | AK13: 0 | AL13: 0 | AM13: 0 | AN13: 0 | AO13: 0 | AP13: 0 | AQ13: 0 | AR13: 0 | AS13: 0 | AT13: 0 | AU13: 0 | AV13: 0 | AW13: 0 | AX13: 0 | AY13: 0 | AZ13: 0 | BA13: 0 | BB13: 0 | BC13: 0 | BD13: 0 | BE13: 0 | BF13: 0 | BG13: 0 | BH13: 0 | BI13: 0 | BJ13: 0 | BK13: 0 | BL13: 0 | BM13: 0 | BN13: 0 | BO13: 0 | BP13: 0 | BQ13: 0 | BR13: 0 | BS13: 0 | BT13: 0 | BU13: 0 | BV13: 0 | BW13: 0 | BX13: 0 | BY13: 0 | BZ13: 0 | CA13: 0 | CB13: 0 | CC13: 0 | CD13: 0 | CE13: 0 | CF13: 0 | CG13: 0 | CH13: 0 | CI13: 0 | CJ13: 0 | CK13: 0 | CL13: 0 | CM13: 0 | CN13: 0 | CO13: 0 | CP13: 0 | CQ13: 0 | CR13: 0 | CS13: 0 | CT13: 0 | CU13: 0 | CV13: 0 | CW13: 0 | CX13: 0 | CY13: 0 | CZ13: 0 | DA13: 0 | DB13: 0 | DC13: 0 | DD13: 0 | DE13: 0 | DF13: 0 | DG13: 0 | DH13: 0 | DI13: 0 | DJ13: 0 | DK13: 0 | DL13: 0 | DM13: 0 | DN13: 0 | DO13: 0 | DP13: 0 | DQ13: 0 | DR13: 0 | DS13: 0 | DT13: 0 | DU13: 0 | DV13: 0 | DW13: 0 | DX13: 0 | DY13: 0 | DZ13: 0 | EA13: 0 | EB13: 0 | EC13: 0 | ED13: 0 | EE13: 0 | EF13: 0 | EG13: 0 | EH13: 0 | EI13: 0 | EJ13: 0 | EK13: 0 | EL13: 0 | EM13: 0 | EN13: 0 | EO13: 0 | EP13: 0 | EQ13: 0 | ER13: 0 | ES13: 0 | ET13: 0 | EU13: 0 | EV13: 0 | EW13: 0 | EX13: 0 | EY13: 0 | EZ13: 0 | FA13: 0 | FB13: 0 | FC13: 0 | FD13: 0 | FE13: 0 | FF13: 0 | FG13: 0 | FH13: 0 | FI13: 0 | FJ13: 0 | FK13: 0 | FL13: 0 | FM13: 0 | FN13: 0 | FO13: 0 | FP13: 0 | FQ13: 0 | FR13: 0 | FS13: 0 | FT13: 0 | FU13: 0 | FV13: 0 | FW13: 0 | FX13: 0 | FY13: 0 | FZ13: 0 | GA13: 0 | GB13: 0 | GC13: 0 | GD13: 0 | GE13: 0 | GF13: 0 | GG13: 0 | GH13: 0 | GI13: 0 | GJ13: 0 | GK13: 0 | GL13: 0 | GM13: 0 | GN13: 0 | GO13: 0 | GP13: 0 | GQ13: 0 | GR13: 0 | GS13: 0 | GT13: 0 | GU13: 0 | GV13: 0 | GW13: 0 | GX13: 0 | GY13: 0 | GZ13: 0 | HA13: 0 | HB13: 0 | HC13: 0 | HD13: 0 | HE13: 0 | HF13: 0 | HG13: 0 | HH13: 0 | HI13: 0 | HJ13: 0 | HK13: 0 | HL13: 0 | HM13: 0 | HN13: 0 | HO13: 0 | HP13: 0 | HQ13: 0 | HR13: 0 | HS13: 0 | HT13: 0 | HU13: 0 | HV13: 0 | HW13: 0 | HX13: 0 | HY13: 0 | HZ13: 0 | IA13: 0 | IB13: 0 | IC13: 0 | ID13: 0 | IE13: 0 | IF13: 0 | IG13: 0 | IH13: 0 | II13: 0 | IJ13: 0 | IK13: 0 | IL13: 0 | IM13: 0 | IN13: 0 | IO13: 0 | IP13: 0 | IQ13: 0 | IR13: 0 | IS13: 0 | IT13: 0 | IU13: 0 | IV13: 0 | IW13: 0 | IX13: 0 | IY13: 0 | IZ13: 0 | JA13: 0 | JB13: 0 | JC13: 0 | JD13: 0 | JE13: 0 | JF13: 0 | JG13: 0 | JH13: 0 | JI13: 0 | JJ13: 0 | JK13: 0 | JL13: 0 | JM13: 0 | JN13: 0 | JO13: 0 | JP13: 0 | JQ13: 0 | JR13: 0 | JS13: 0 | JT13: 0 | JU13: 0 | JV13: 0 | JW13: 0 | JX13: 0 | JY13: 0 | JZ13: 0 | KA13: 0 | KB13: 0 | KC13: 0 | KD13: 0 | KE13: 0 | KF13: 0 | KG13: 0 | KH13: 0 | KI13: 0 | KJ13: 0 | KK13: 0 | KL13: 0 | KM13: 0 | KN13: 0 | KO13: 0 | KP13: 0 | KQ13: 0 | KR13: 0 | KS13: 0 | KT13: 0 | KU13: 0 | KV13: 0 | KW13: 0 | KX13: 0 | KY13: 0 | KZ13: 0 | LA13: 0 | LB13: 0 | LC13: 0 | LD13: 0 | LE13: 0 | LF13: 0 | LG13: 0 | LH13: 0 | LI13: 0 | LJ13: 0 | LK13: 0 | LL13: 0 | LM13: 0 | LN13: 0 | LO13: 0 | LP13: 0 | LQ13: 0 | LR13: 0 | LS13: 0 | LT13: 0 | LU13: 0 | LV13: 0 | LW13: 0 | LX13: 0 | LY13: 0 | LZ13: 0 | MA13: 0 | MB13: 0 | MC13: 0 | MD13: 0 | ME13: 0 | MF13: 0 | MG13: 0 | MH13: 0 | MI13: 0 | MJ13: 0 | MK13: 0 | ML13: 0 | MM13: 0 | MN13: 0 | MO13: 0 | MP13: 0 | MQ13: 0 | MR13: 0 | MS13: 0 | MT13: 0 | MU13: 0 | MV13: 0 | MW13: 0 | MX13: 0 | MY13: 0 | MZ13: 0 | NA13: 0 | NB13: 0 | NC13: 0 | ND13: 0 | NE13: 0 | NF13: 0 | NG13: 0 | NH13: 0 | NI13: 0 | NJ13: 0 | NK13: 0 | NL13: 0 | NM13: 0 | NN13: 0 | NO13: 0 | NP13: 0 | NQ13: 0 | NR13: 0 | NS13: 0 | NT13: 0 | NU13: 0 | NV13: 0 | NW13: 0 | NX13: 0 | NY13: 0 | NZ13: 0 | OA13: 0 | OB13: 0 | OC13: 0 | OD13: 0 | OE13: 0 | OF13: 0 | OG13: 0 | OH13: 0 | OI13: 0 | OJ13: 0 | OK13: 0 | OL13: 0 | OM13: 0 | ON13: 0 | OO13: 0 | OP13: 0 | OQ13: 0 | OR13: 0 | OS13: 0 | OT13: 0 | OU13: 0 | OV13: 0 | OW13: 0 | OX13: 0 | OY13: 0 | OZ13: 0 | PA13: 0 | PB13: 0 | PC13: 0 | PD13: 0 | PE13: 0 | PF13: 0 | PG13: 0 | PH13: 0 | PI13: 0 | PJ13: 0 | PK13: 0 | PL13: 0 | PM13: 0 | PN13: 0 | PO13: 0 | PP13: 0 | PQ13: 0 | PR13: 0 | PS13: 0 | PU13: 0 | PV13: 0 | PW13: 0 | PX13: 0 | PY13: 0 | PZ13: 0 | QA13: 0 | QB13: 0 | QC13: 0 | QD13: 0 | QE13: 0 | QF13: 0 | QG13: 0 | QH13: 0 | QI13: 0 | QJ13: 0 | QK13: 0 | QL13: 0
B14: 10057 | C14: Ashland, City of | D14: 0 | E14: 0 | F14: 0 | G14: 0 | H14: 0 | I14: 0 | J14: 0 | K14: 0 | L14: 0 | M14: 0 | N14: 0 | O14: 0 | P14: 0 | Q14: 0 | R14: 0 | S14: 0 | T14: 0 | U14: 0 | V14: 0 | W14: 0 | X14: 0 | Y14: 0 | Z14: 0 | AA14: 0 | AB14: 0 | AC14: 0 | AD14: 0 | AE14: 0 | AF14: 0 | AG14: 0 | AH14: 0 | AI14: 0 | AJ14: 0 | AK14: 0 | AL14: 0 | AM14: 0 | AN14: 0 | AO14: 0 | AP14: 0 | AQ14: 0 | AR14: 0 | AS14: 0 | AT14: 0 | AU14: 0 | AV14: 0 | AW14: 0 | AX14: 0 | AY14: 0 | AZ14: 0 | BA14: 0 | BB14: 0 | BC14: 0 | BD14: 0 | BE14: 0 | BF14: 0 | BG14: 0 | BH14: 0 | BI14: 0 | BJ14: 0 | BK14: 0 | BL14: 0 | BM14: 0 | BN14: 0 | BO14: 0 | BP14: 0 | BQ14: 0 | BR14: 0 | BS14: 0 | BT14: 0 | BU14: 0 | BV14: 0 | BW14: 0 | BX14: 0 | BY14: 0 | BZ14: 0 | CA14: 0 | CB14: 0 | CC14: 0 | CD14: 0 | CE14: 0 | CF14: 0 | CG14: 0 | CH14: 0 | CI14: 0 | CJ14: 0 | CK14: 0 | CL14: 0 | CM14: 0 | CN14: 0 | CO14: 0 | CP14: 0 | CQ14: 0 | CR14: 0 | CS14: 0 | CT14: 0 | CU14: 0 | CV14: 0 | CW14: 0 | CX14: 0 | CY14: 0 | CZ14: 0 | DA14: 0 | DB14: 0 | DC14: 0 | DD14: 0 | DE14: 0 | DF14: 0 | DG14: 0 | DH14: 0 | DI14: 0 | DJ14: 0 | DK14: 0 | DL14: 0 | DM14: 0 | DN14: 0 | DO14: 0 | DP14: 0 | DQ14: 0 | DR14: 0 | DS14: 0 | DT14: 0 | DU14: 0 | DV14: 0 | DW14: 0 | DX14: 0 | DY14: 0 | DZ14: 0 | EA14: 0 | EB14: 0 | EC14: 0 | ED14: 0 | EE14: 0 | EF14: 0 | EG14: 0 | EH14: 0 | EI14: 0 | EJ14: 0 | EK14: 0 | EL14: 0 | EM14: 0 | EN14: 0 | EO14: 0 | EP14: 0 | EQ14: 0 | ER14: 0 | ES14: 0 | ET14: 0 | EU14: 0 | EV14: 0 | EW14: 0 | EX14: 0 | EY14: 0 | EZ14: 0 | FA14: 0 | FB14: 0 | FC14: 0 | FD14: 0 | FE14: 0 | FF14: 0 | FG14: 0 | FH14: 0 | FI14: 0 | FJ14: 0 | FK14: 0 | FL14: 0 | FM14: 0 | FN14: 0 | FO14: 0 | FP14: 0 | FQ14: 0 | FR14: 0 | FS14: 0 | FT14: 0 | FU14: 0 | FV14: 0 | FW14: 0 | FX14: 0 | FY14: 0 | FZ14: 0 | GA14: 0 | GB14: 0 | GC14: 0 | GD14: 0 | GE14: 0 | GF14: 0 | GG14: 0 | GH14: 0 | GI14: 0 | GJ14: 0 | GK14: 0 | GL14: 0 | GM14: 0 | GN14: 0 | GO14: 0 | GP14: 0 | GQ14: 0 | GR14: 0 | GS14: 0 | GT14: 0 | GU14: 0 | GV14: 0 | GW14: 0 | GX14: 0 | GY14: 0 | GZ14: 0 | HA14: 0 | HB14: 0 | HC14: 0 | HD14: 0 | HE14: 0 | HF14: 0 | HG14: 0 | HH14: 0 | HI14: 0 | HJ14: 0 | HK14: 0 | HL14: 0 | HM14: 0 | HN14: 0 | HO14: 0 | HP14: 0 | HQ14: 0 | HR14: 0 | HS14: 0 | HT14: 0 | HU14: 0 | HV14: 0 | HW14: 0 | HX14: 0 | HY14: 0 | HZ14: 0 | IA14: 0 | IB14: 0 | IC14: 0 | ID14: 0 | IE14: 0 | IF14: 0 | IG14: 0 | IH14: 0 | II14: 0 | IJ14: 0 | IK14: 0 | IL14: 0 | IM14: 0 | IN14: 0 | IO14: 0 | IP14: 0 | IQ14: 0 | IR14: 0 | IS14: 0 | IT14: 0 | IU14: 0 | IV14: 0 | IW14: 0 | IX14: 0 | IY14: 0 | IZ14: 0 | JA14: 0 | JB14: 0 | JC14: 0 | JD14: 0 | JE14: 0 | JF14: 0 | JG14: 0 | JH14: 0 | JI14: 0 | JJ14: 0 | JK14: 0 | JL14: 0 | JM14: 0 | JN14: 0 | JO14: 0 | JP14: 0 | JQ14: 0 | JR14: 0 | JS14: 0 | JT14: 0 | JU14: 0 | JV14: 0 | JW14: 0 | JX14: 0 | JY14: 0 | JZ14: 0 | KA14: 0 | KB14: 0 | KC14: 0 | KD14: 0 | KE14: 0 | KF14: 0 | KG14: 0 | KH14: 0 | KI14: 0 | KJ14: 0 | KK14: 0 | KL14: 0 | KM14: 0 | KN14: 0 | KO14: 0 | KP14: 0 | KQ14: 0 | KR14: 0 | KS14: 0 | KT14: 0 | KU14: 0 | KV14: 0 | KW14: 0 | KX14: 0 | KY14: 0 | KZ14: 0 | LA14: 0 | LB14: 0 | LC14: 0 | LD14: 0 | LE14: 0 | LF14: 0 | LG14: 0 | LH14: 0 | LI14: 0 | LJ14: 0 | LK14: 0 | LL14: 0 | LM14: 0 | LN14: 0 | LO14: 0 | LP14: 0 | LQ14: 0 | LR14: 0 | LS14: 0 | LT14: 0 | LU14: 0 | LV14: 0 | LW14: 0 | LX14: 0 | LY14: 0 | LZ14: 0 | MA14: 0 | MB14: 0 | MC14: 0 | MD14: 0 | ME14: 0 | MF14: 0 | MG14: 0 | MH14: 0 | MI14: 0 | MJ14: 0 | MK14: 0 | ML14: 0 | MM14: 0 | MN14: 0 | MO14: 0 | MP14: 0 | MQ14: 0 | MR14: 0 | MS14: 0 | MT14: 0 | MU14: 0 | MV14: 0 | MW14: 0 | MX14: 0 | MY14: 0 | MZ14: 0 | NA14: 0 | NB14: 0 | NC14: 0 | ND14: 0 | NE14: 0 | NF14: 0 | NG14: 0 | NH14: 0 | NI14: 0 | NJ14: 0 | NK14: 0 | NL14: 0 | NM14: 0 | NN14: 0 | NO14: 0 | NP14: 0 | NQ14: 0 | NR14: 0 | NS14: 0 | NT14: 0 | NU14: 0 | NV14: 0 | NW14: 0 | NX14: 0 | NY14: 0 | NZ14: 0 | OA14: 0 | OB14: 0 | OC14: 0 | OD14: 0 | OE14: 0 | OF14: 0 | OG14: 0 | OH14: 0 | OI14: 0 | OJ14: 0 | OK14: 0 | OL14: 0 | OM14: 0 | ON14: 0 | OO14: 0 | OP14: 0 | OQ14: 0 | OR14: 0 | OS14: 0 | OT14: 0 | OU14: 0 | OV14: 0 | OW14: 0 | OX14: 0 | OY14: 0 | OZ14: 0 | PA14: 0 | PB14: 0 | PC14: 0 | PD14: 0 | PE14: 0 | PF14: 0 | PG14: 0 | PH14: 0 | PI14: 0 | PJ14: 0 | PK14: 0 | PL14: 0 | PM14: 0 | PN14: 0 | PO14: 0 | PP14: 0 | PQ14: 0 | PR14: 0 | PS14: 0 | PU14: 0 | PV14: 0 | PW14: 0 | PX14: 0 | PY14: 0 | PZ14: 0 | QA14: 0 | QB14: 0 | QC14: 0 | QD14: 0 | QE14: 0 | QF14: 0 | QG14: 0 | QH14: 0 | QI14: 0 | QJ14: 0 | QK14: 0 | QL14: 0
B15: 10059 | C15: Bandon, City of | D15: 0 | E15: 0 | F15: 0 | G15: 0 | H15: 0 | I15: 0 | J15: 0 | K15: 0 | L15: 0 | M15: 0 | N15: 0 | O15: 0 | P15: 0 | Q15: 0 | R15: 0 | S15: 0 | T15: 0 | U15: 0 | V15: 0 | W15: 0 | X15: 0 | Y15: 0 | Z15: 0 | AA15: 0 | AB15: 0 | AC15: 0 | AD15: 0 | AE15: 0 | AF15: 0 | AG15: 0 | AH15: 0 | AI15: 0 | AJ15: 0 | AK15: 0 | AL15: 0 | AM15: 0 | AN15: 0 | AO15: 0 | AP15: 0 | AQ15: 0 | AR15: 0 | AS15: 0 | AT15: 0 | AU15: 0 | AV15: 0 | AW15: 0 | AX15: 0 | AY15: 0 | AZ15: 0 | BA15: 0 | BB15: 0 | BC15: 0 | BD15: 0 | BE15: 0 | BF15: 0 | BG15: 0 | BH15: 0 | BI15: 0 | BJ15: 0 | BK15: 0 | BL15: 0 | BM15: 0 | BN15: 0 | BO15: 0 | BP15: 0 | BQ15: 0 | BR15: 0 | BS15: 0 | BT15: 0 | BU15: 0 | BV15: 0 | BW15: 0 | BX15: 0 | BY15: 0 | BZ15: 0 | CA15: 0 | CB15: 0 | CC15: 0 | CD15: 0 | CE15: 0 | CF15: 0 | CG15: 0 | CH15: 0 | CI15: 0 | CJ15: 0 | CK15: 0 | CL15: 0 | CM15: 0 | CN15: 0 | CO15: 0 | CP15: 0 | CQ15: 0 | CR15: 0 | CS15: 0 | CT15: 0 | CU15: 0 | CV15: 0 | CW15: 0 | CX15: 0 | CY15: 0 | CZ15: 0 | DA15: 0 | DB15: 0 | DC15: 0 | DD15: 0 | DE15: 0 | DF15: 0 | DG15: 0 | DH15: 0 | DI15: 0 | DJ15: 0 | DK15: 0 | DL15: 0 | DM15: 0 | DN15: 0 | DO15: 0 | DP15: 0 | DQ15: 0 | DR15: 0 | DS15: 0 | DT15: 0 | DU15: 0 | DV15: 0 | DW15: 0 | DX15: 0 | DY15: 0 | DZ15: 0 | EA15: 0 | EB15: 0 | EC15: 0 | ED15: 0 | EE15: 0 | EF15: 0 | EG15: 0 | EH15: 0 | EI15: 0 | EJ15: 0 | EK15: 0 | EL15: 0 | EM15: 0 | EN15: 0 | EO15: 0 | EP15: 0 | EQ15: 0 | ER15: 0 | ES15: 0 | ET15: 0 | EU15: 0 | EV15: 0 | EW15: 0 | EX15: 0 | EY15: 0 | EZ15: 0 | FA15: 0 | FB15: 0 | FC15: 0 | FD15: 0 | FE15: 0 | FF15: 0 | FG15: 0 | FH15: 0 | FI15: 0 | FJ15: 0 | FK15: 0 | FL15: 0 | FM15: 0 | FN15: 0 | FO15: 0 | FP15: 0 | FQ15: 0 | FR15: 0 | FS15: 0 | FT15: 0 | FU15: 0 | FV15: 0 | FW15: 0 | FX15: 0 | FY15: 0 | FZ15: 0 | GA15: 0 | GB15: 0 | GC15: 0 | GD15: 0 | GE15: 0 | GF15: 0 | GG15: 0 | GH15: 0 | GI15: 0 | GJ15: 0 | GK15: 0 | GL15: 0 | GM15: 0 | GN15: 0 | GO15: 0 | GP15: 0 | GQ15: 0 | GR15: 0 | GS15: 0 | GT15: 0 | GU15: 0 | GV15: 0 | GW15: 0 | GX15: 0 | GY15: 0 | GZ15: 0 | HA15: 0 | HB15: 0 | HC15: 0 | HD15: 0 | HE15: 0 | HF15: 0 | HG15: 0 | HH15: 0 | HI15: 0 | HJ15: 0 | HK15: 0 | HL15: 0 | HM15: 0 | HN15: 0 | HO15: 0 | HP15: 0 | HQ15: 0 | HR15: 0 | HS15: 0 | HT15: 0 | HU15: 0 | HV15: 0 | HW15: 0 | HX15: 0 | HY15: 0 | HZ15: 0 | IA15: 0 | IB15: 0 | IC15: 0 | ID15: 0 | IE15: 0 | IF15: 0 | IG15: 0 | IH15: 0 | II15: 0 | IJ15: 0 | IK15: 0 | IL15: 0 | IM15: 0 | IN15: 0 | IO15: 0 | IP15: 0 | IQ15: 0 | IR15: 0 | IS15: 0 | IT15: 0 | IU15: 0 | IV15: 0 | IW15: 0 | IX15: 0 | IY15: 0 | IZ15: 0 | JA15: 0 | JB15: 0 | JC15: 0 | JD15: 0 | JE15: 0 | JF15: 0 | JG15: 0 | JH15: 0 | JI15: 0 | JJ15: 0 | JK15: 0 | JL15: 0 | JM15: 0 | JN15: 0 | JO15: 0 | JP15: 0 | JQ15: 0 | JR15: 0 | JS15: 0 | JT15: 0 | JU15: 0 | JV15: 0 | JW15: 0 | JX15: 0 | JY15: 0 | JZ15: 0 | KA15: 0 | KB15: 0 | KC15: 0 | KD15: 0 | KE15: 0 | KF15: 0 | KG15: 0 | KH15: 0 | KI15: 0 | KJ15: 0 | KK15: 0 | KL15: 0 | KM15: 0 | KN15: 0 | KO15: 0 | KP15: 0 | KQ15: 0 | KR15: 0 | KS15: 0 | KT15: 0 | KU15: 0 | KV15: 0 | KW15: 0 | KX15: 0 | KY15: 0 | KZ15: 0 | LA15: 0 | LB15: 0 | LC15: 0 | LD15: 0 | LE15: 0 | LF15: 0 | LG15: 0 | LH15: 0 | LI15: 0 | LJ15: 0 | LK15: 0 | LL15: 0 | LM15: 0 | LN15: 0 | LO15: 0 | LP15: 0 | LQ15: 0 | LR15: 0 | LS15: 0 | LT15: 0 | LU15: 0 | LV15: 0 | LW15: 0 | LX15: 0 | LY15: 0 | LZ15: 0 | MA15: 0 | MB15: 0 | MC15: 0 | MD15: 0 | ME15: 0 | MF15: 0 | MG15: 0 | MH15: 0 | MI15: 0 | MJ15: 0 | MK15: 0 | ML15: 0 | MM15: 0 | MN15: 0 | MO15: 0 | MP15: 0 | MQ15: 0 | MR15: 0 | MS15: 0 | MT15: 0 | MU15: 0 | MV15: 0 | MW15: 0 | MX15: 0 | MY15: 0 | MZ15: 0 | NA15: 0 | NB15: 0 | NC15: 0 | ND15: 0 | NE15: 0 | NF15: 0 | NG15: 0 | NH15: 0 | NI15: 0 | NJ15: 0 | NK15: 0 | NL15: 0 | NM15: 0 | NN15: 0 | NO15: 0 | NP15: 0 | NQ15: 0 | NR15: 0 | NS15: 0 | NT15: 0 | NU15: 0 | NV15: 0 | NW15: 0 | NX15: 0 | NY15: 0 | NZ15: 0 | OA15: 0 | OB15: 0 | OC15: 0 | OD15: 0 | OE15: 0 | OF15: 0 | OG15: 0 | OH15: 0 | OI15: 0 | OJ15: 0 | OK15: 0 | OL15: 0 | OM15: 0 | ON15: 0 | OO15: 0 | OP15: 0 | OQ15: 0 | OR15: 0 | OS15: 0 | OT15: 0 | OU15: 0 | OV15: 0 | OW15: 0 | OX15: 0 | OY15: 0 | OZ15: 0 | PA15: 0 | PB15: 0 | PC15: 0 | PD15: 0 | PE15: 0 | PF15: 0 | PG15: 0 | PH15: 0 | PI15: 0 | PJ15: 0 | PK15: 0 | PL15: 0 | PM15: 0 | PN15: 0 | PO15: 0 | PP15: 0 | PQ15: 0 | PR15: 0 | PS15: 0 | PU15: 0 | PV15: 0 | PW15: 0 | PX15: 0 | PY15: 0 | PZ15: 0 | QA15: 0 | QB15: 0 | QC15: 0 | QD15: 0 | QE15: 0 | QF15: 0 | QG15: 0 | QH15: 0 | QI15: 0 | QJ15: 0 | QK15: 0 | QL15: 0
... 18 more rows

Sheet I_ER
B1: Exhibit A Exisiting Resources (MWh)
A2: TOC | D2: 2015-10-01 | E2: 2015-10-01 | F2: 2015-11-01 | G2: 2015-11-01 | H2: 2015-12-01 | I2: 2015-12-01 | J2: 2016-01-01 | K2: 2016-01-01 | L2: 2016-02-01 | M2: 2016-02-01 | N2: 2016-03-01 | O2: 2016-03-01 | P2: 2016-04-01 | Q2: 2016-04-01 | R2: 2016-05-01 | S2: 2016-05-01 | T2: 2016-06-01 | U2: 2016-06-01 | V2: 2016-07-01 | W2: 2016-07-01 | X2: 2016-08-01 | Y2: 2016-08-01 | Z2: 2016-09-01 | AA2: 2016-09-01 | AB2: 2016-10-01 | AC2: 2016-10-01 | AD2: 2016-11-01 | AE2: 2016-11-01 | AF2: 2016-12-01 | AG2: 2016-12-01 | AH2: 2017-01-01 | AI2: 2017-01-01 | AJ2: 2017-02-01 | AK2: 2017-02-01 | AL2: 2017-03-01 | AM2: 2017-03-01 | AN2: 2017-04-01 | AO2: 2017-04-01 | AP2: 2017-05-01 | AQ2: 2017-05-01 | AR2: 2017-06-01 | AS2: 2017-06-01 | AT2: 2017-07-01 | AU2: 2017-07-01 | AV2: 2017-08-01 | AW2: 2017-08-01 | AX2: 2017-09-01 | AY2: 2017-09-01 | AZ2: 2017-10-01 | BA2: 2017-10-01 | BB2: 2017-11-01 | BC2: 2017-11-01 | BD2: 2017-12-01 | BE2: 2017-12-01 | BF2: 2018-01-01 | BG2: 2018-01-01 | BH2: 2018-02-01 | BI2: 2018-02-01 | BJ2: 2018-03-01 | BK2: 2018-03-01 | BL2: 2018-04-01 | BM2: 2018-04-01 | BN2: 2018-05-01 | BO2: 2018-05-01 | BP2: 2018-06-01 | BQ2: 2018-06-01 | BR2: 2018-07-01 | BS2: 2018-07-01 | BT2: 2018-08-01 | BU2: 2018-08-01 | BV2: 2018-09-01 | BW2: 2018-09-01 | BX2: 2018-10-01 | BY2: 2018-10-01 | BZ2: 2018-11-01 | CA2: 2018-11-01 | CB2: 2018-12-01 | CC2: 2018-12-01 | CD2: 2019-01-01 | CE2: 2019-01-01 | CF2: 2019-02-01 | CG2: 2019-02-01 | CH2: 2019-03-01 | CI2: 2019-03-01 | CJ2: 2019-04-01 | CK2: 2019-04-01 | CL2: 2019-05-01 | CM2: 2019-05-01 | CN2: 2019-06-01 | CO2: 2019-06-01 | CP2: 2019-07-01 | CQ2: 2019-07-01 | CR2: 2019-08-01 | CS2: 2019-08-01 | CT2: 2019-09-01 | CU2: 2019-09-01 | CV2: 2019-10-01 | CW2: 2019-10-01 | CX2: 2019-11-01 | CY2: 2019-11-01 | CZ2: 2019-12-01 | DA2: 2019-12-01 | DB2: 2020-01-01 | DC2: 2020-01-01 | DD2: 2020-02-01 | DE2: 2020-02-01 | DF2: 2020-03-01 | DG2: 2020-03-01 | DH2: 2020-04-01 | DI2: 2020-04-01 | DJ2: 2020-05-01 | DK2: 2020-05-01 | DL2: 2020-06-01 | DM2: 2020-06-01 | DN2: 2020-07-01 | DO2: 2020-07-01 | DP2: 2020-08-01 | DQ2: 2020-08-01 | DR2: 2020-09-01 | DS2: 2020-09-01 | DT2: 2020-10-01 | DU2: 2020-10-01 | DV2: 2020-11-01 | DW2: 2020-11-01 | DX2: 2020-12-01 | DY2: 2020-12-01 | DZ2: 2021-01-01 | EA2: 2021-01-01 | EB2: 2021-02-01 | EC2: 2021-02-01 | ED2: 2021-03-01 | EE2: 2021-03-01 | EF2: 2021-04-01 | EG2: 2021-04-01 | EH2: 2021-05-01 | EI2: 2021-05-01 | EJ2: 2021-06-01 | EK2: 2021-06-01 | EL2: 2021-07-01 | EM2: 2021-07-01 | EN2: 2021-08-01 | EO2: 2021-08-01 | EP2: 2021-09-01 | EQ2: 2021-09-01 | ER2: 2021-10-01 | ES2: 2021-10-01 | ET2: 2021-11-01 | EU2: 2021-11-01 | EV2: 2021-12-01 | EW2: 2021-12-01 | EX2: 2022-01-01 | EY2: 2022-01-01 | EZ2: 2022-02-01 | FA2: 2022-02-01 | FB2: 2022-03-01 | FC2: 2022-03-01 | FD2: 2022-04-01 | FE2: 2022-04-01 | FF2: 2022-05-01 | FG2: 2022-05-01 | FH2: 2022-06-01 | FI2: 2022-06-01 | FJ2: 2022-07-01 | FK2: 2022-07-01 | FL2: 2022-08-01 | FM2: 2022-08-01 | FN2: 2022-09-01 | FO2: 2022-09-01 | FP2: 2022-10-01 | FQ2: 2022-10-01 | FR2: 2022-11-01 | FS2: 2022-11-01 | FT2: 2022-12-01 | FU2: 2022-12-01 | FV2: 2023-01-01 | FW2: 2023-01-01 | FX2: 2023-02-01 | FY2: 2023-02-01 | FZ2: 2023-03-01 | GA2: 2023-03-01 | GB2: 2023-04-01 | GC2: 2023-04-01 | GD2: 2023-05-01 | GE2: 2023-05-01 | GF2: 2023-06-01 | GG2: 2023-06-01 | GH2: 2023-07-01 | GI2: 2023-07-01 | GJ2: 2023-08-01 | GK2: 2023-08-01 | GL2: 2023-09-01 | GM2: 2023-09-01 | GN2: 2023-10-01 | GO2: 2023-10-01 | GP2: 2023-11-01 | GQ2: 2023-11-01 | GR2: 2023-12-01 | GS2: 2023-12-01 | GT2: 2024-01-01 | GU2: 2024-01-01 | GV2: 2024-02-01 | GW2: 2024-02-01 | GX2: 2024-03-01 | GY2: 2024-03-01 | GZ2: 2024-04-01 | HA2: 2024-04-01 | HB2: 2024-05-01 | HC2: 2024-05-01 | HD2: 2024-06-01 | HE2: 2024-06-01 | HF2: 2024-07-01 | HG2: 2024-07-01 | HH2: 2024-08-01 | HI2: 2024-08-01 | HJ2: 2024-09-01 | HK2: 2024-09-01 | HL2: 2024-10-01 | HM2: 2024-10-01 | HN2: 2024-11-01 | HO2: 2024-11-01 | HP2: 2024-12-01 | HQ2: 2024-12-01 | HR2: 2025-01-01 | HS2: 2025-01-01 | HT2: 2025-02-01 | HU2: 2025-02-01 | HV2: 2025-03-01 | HW2: 2025-03-01 | HX2: 2025-04-01 | HY2: 2025-04-01 | HZ2: 2025-05-01 | IA2: 2025-05-01 | IB2: 2025-06-01 | IC2: 2025-06-01 | ID2: 2025-07-01 | IE2: 2025-07-01 | IF2: 2025-08-01 | IG2: 2025-08-01 | IH2: 2025-09-01 | II2: 2025-09-01 | IJ2: 2025-10-01 | IK2: 2025-10-01 | IL2: 2025-11-01 | IM2: 2025-11-01 | IN2: 2025-12-01 | IO2: 2025-12-01 | IP2: 2026-01-01 | IQ2: 2026-01-01 | IR2: 2026-02-01 | IS2: 2026-02-01 | IT2: 2026-03-01 | IU2: 2026-03-01 | IV2: 2026-04-01 | IW2: 2026-04-01 | IX2: 2026-05-01 | IY2: 2026-05-01 | IZ2: 2026-06-01 | JA2: 2026-06-01 | JB2: 2026-07-01 | JC2: 2026-07-01 | JD2: 2026-08-01 | JE2: 2026-08-01 | JF2: 2026-09-01 | JG2: 2026-09-01 | JH2: 2026-10-01 | JI2: 2026-10-01 | JJ2: 2026-11-01 | JK2: 2026-11-01 | JL2: 2026-12-01 | JM2: 2026-12-01 | JN2: 2027-01-01 | JO2: 2027-01-01 | JP2: 2027-02-01 | JQ2: 2027-02-01 | JR2: 2027-03-01 | JS2: 2027-03-01 | JT2: 2027-04-01 | JU2: 2027-04-01 | JV2: 2027-05-01 | JW2: 2027-05-01 | JX2: 2027-06-01 | JY2: 2027-06-01 | JZ2: 2027-07-01 | KA2: 2027-07-01 | KB2: 2027-08-01 | KC2: 2027-08-01 | KD2: 2027-09-01 | KE2: 2027-09-01 | KF2: 2027-10-01 | KG2: 2027-10-01 | KH2: 2027-11-01 | KI2: 2027-11-01 | KJ2: 2027-12-01 | KK2: 2027-12-01 | KL2: 2028-01-01 | KM2: 2028-01-01 | KN2: 2028-02-01 | KO2: 2028-02-01 | KP2: 2028-03-01 | KQ2: 2028-03-01 | KR2: 2028-04-01 | KS2: 2028-04-01 | KT2: 2028-05-01 | KU2: 2028-05-01 | KV2: 2028-06-01 | KW2: 2028-06-01 | KX2: 2028-07-01 | KY2: 2028-07-01 | KZ2: 2028-08-01 | LA2: 2028-08-01 | LB2: 2028-09-01 | LC2: 2028-09-01 | LD2: 2028-10-01 | LE2: 2028-10-01 | LF2: 2028-11-01 | LG2: 2028-11-01 | LH2: 2028-12-01 | LI2: 2028-12-01 | LJ2: 2029-01-01 | LK2: 2029-01-01 | LL2: 2029-02-01 | LM2: 2029-02-01 | LN2: 2029-03-01 | LO2: 2029-03-01 | LP2: 2029-04-01 | LQ2: 2029-04-01 | LR2: 2029-05-01 | LS2: 2029-05-01 | LT2: 2029-06-01 | LU2: 2029-06-01 | LV2: 2029-07-01 | LW2: 2029-07-01 | LX2: 2029-08-01 | LY2: 2029-08-01 | LZ2: 2029-09-01 | MA2: 2029-09-01 | MB2: 2029-10-01 | MC2: 2029-10-01 | MD2: 2029-11-01 | ME2: 2029-11-01 | MF2: 2029-12-01 | MG2: 2029-12-01 | MH2: 2030-01-01 | MI2: 2030-01-01 | MJ2: 2030-02-01 | MK2: 2030-02-01 | ML2: 2030-03-01 | MM2: 2030-03-01 | MN2: 2030-04-01 | MO2: 2030-04-01 | MP2: 2030-05-01 | MQ2: 2030-05-01 | MR2: 2030-06-01 | MS2: 2030-06-01 | MT2: 2030-07-01 | MU2: 2030-07-01 | MV2: 2030-08-01 | MW2: 2030-08-01 | MX2: 2030-09-01 | MY2: 2030-09-01 | MZ2: 2030-10-01 | NA2: 2030-10-01 | NB2: 2030-11-01 | NC2: 2030-11-01 | ND2: 2030-12-01 | NE2: 2030-12-01 | NF2: 2031-01-01 | NG2: 2031-01-01 | NH2: 2031-02-01 | NI2: 2031-02-01 | NJ2: 2031-03-01 | NK2: 2031-03-01 | NL2: 2031-04-01 | NM2: 2031-04-01 | NN2: 2031-05-01 | NO2: 2031-05-01 | NP2: 2031-06-01 | NQ2: 2031-06-01 | NR2: 2031-07-01 | NS2: 2031-07-01 | NT2: 2031-08-01 | NU2: 2031-08-01 | NV2: 2031-09-01 | NW2: 2031-09-01 | NX2: =DATE(YEAR(NV2),MONTH(NV2)+1,1) -> 2031-10-01 | NY2: 2031-10-01 | NZ2: 2031-11-01 | OA2: 2031-11-01 | OB2: 2031-12-01 | OC2: 2031-12-01 | OD2: 2032-01-01 | OE2: 2032-01-01 | OF2: 2032-02-01 | OG2: 2032-02-01 | OH2: 2032-03-01 | OI2: 2032-03-01 | OJ2: 2032-04-01 | OK2: 2032-04-01 | OL2: 2032-05-01 | OM2: 2032-05-01 | ON2: 2032-06-01 | OO2: 2032-06-01 | OP2: 2032-07-01 | OQ2: 2032-07-01 | OR2: 2032-08-01 | OS2: 2032-08-01 | OT2: 2032-09-01 | OU2: 2032-09-01 | OV2: 2032-10-01 | OW2: 2032-10-01 | OX2: 2032-11-01 | OY2: 2032-11-01 | OZ2: 2032-12-01 | PA2: 2032-12-01 | PB2: 2033-01-01 | PC2: 2033-01-01 | PD2: 2033-02-01 | PE2: 2033-02-01 | PF2: 2033-03-01 | PG2: 2033-03-01 | PH2: 2033-04-01 | PI2: 2033-04-01 | PJ2: 2033-05-01 | PK2: 2033-05-01 | PL2: 2033-06-01 | PM2: 2033-06-01 | PN2: 2033-07-01 | PO2: 2033-07-01 | PP2: 2033-08-01 | PQ2: 2033-08-01 | PR2: 2033-09-01 | PS2: 2033-09-01 | PU2: 2016 | PV2: 2017 | PW2: 2018 | PX2: 2019 | PY2: 2020 | PZ2: 2021 | QA2: 2022 | QB2: 2023 | QC2: 2024 | QD2: 2025 | QE2: 2026 | QF2: 2027 | QG2: 2028 | QH2: 2029 | QI2: 2030 | QJ2: 2031 | QK2: 2032 | QL2: 2033
B3: BESID | C3: AccountName | D3: HLH | E3: LLH | F3: HLH | G3: LLH | H3: HLH | I3: LLH | J3: HLH | K3: LLH | L3: HLH | M3: LLH | N3: HLH | O3: LLH | P3: HLH | Q3: LLH | R3: HLH | S3: LLH | T3: HLH | U3: LLH | V3: HLH | W3: LLH | X3: HLH | Y3: LLH | Z3: HLH | AA3: LLH | AB3: HLH | AC3: LLH | AD3: HLH | AE3: LLH | AF3: HLH | AG3: LLH | AH3: HLH | AI3: LLH | AJ3: HLH | AK3: LLH | AL3: HLH | AM3: LLH | AN3: HLH | AO3: LLH | AP3: HLH | AQ3: LLH | AR3: HLH | AS3: LLH | AT3: HLH | AU3: LLH | AV3: HLH | AW3: LLH | AX3: HLH | AY3: LLH | AZ3: HLH | BA3: LLH | BB3: HLH | BC3: LLH | BD3: HLH | BE3: LLH | BF3: HLH | BG3: LLH | BH3: HLH | BI3: LLH | BJ3: HLH | BK3: LLH | BL3: HLH | BM3: LLH | BN3: HLH | BO3: LLH | BP3: HLH | BQ3: LLH | BR3: HLH | BS3: LLH | BT3: HLH | BU3: LLH | BV3: HLH | BW3: LLH | BX3: HLH | BY3: LLH | BZ3: HLH | CA3: LLH | CB3: HLH | CC3: LLH | CD3: HLH | CE3: LLH | CF3: HLH | CG3: LLH | CH3: HLH | CI3: LLH | CJ3: HLH | CK3: LLH | CL3: HLH | CM3: LLH | CN3: HLH | CO3: LLH | CP3: HLH | CQ3: LLH | CR3: HLH | CS3: LLH | CT3: HLH | CU3: LLH | CV3: HLH | CW3: LLH | CX3: HLH | CY3: LLH | CZ3: HLH | DA3: LLH | DB3: HLH | DC3: LLH | DD3: HLH | DE3: LLH | DF3: HLH | DG3: LLH | DH3: HLH | DI3: LLH | DJ3: HLH | DK3: LLH | DL3: HLH | DM3: LLH | DN3: HLH | DO3: LLH | DP3: HLH | DQ3: LLH | DR3: HLH | DS3: LLH | DT3: HLH | DU3: LLH | DV3: HLH | DW3: LLH | DX3: HLH | DY3: LLH | DZ3: HLH | EA3: LLH | EB3: HLH | EC3: LLH | ED3: HLH | EE3: LLH | EF3: HLH | EG3: LLH | EH3: HLH | EI3: LLH | EJ3: HLH | EK3: LLH | EL3: HLH | EM3: LLH | EN3: HLH | EO3: LLH | EP3: HLH | EQ3: LLH | ER3: HLH | ES3: LLH | ET3: HLH | EU3: LLH | EV3: HLH | EW3: LLH | EX3: HLH | EY3: LLH | EZ3: HLH | FA3: LLH | FB3: HLH | FC3: LLH | FD3: HLH | FE3: LLH | FF3: HLH | FG3: LLH | FH3: HLH | FI3: LLH | FJ3: HLH | FK3: LLH | FL3: HLH | FM3: LLH | FN3: HLH | FO3: LLH | FP3: HLH | FQ3: LLH | FR3: HLH | FS3: LLH | FT3: HLH | FU3: LLH | FV3: HLH | FW3: LLH | FX3: HLH | FY3: LLH | FZ3: HLH | GA3: LLH | GB3: HLH | GC3: LLH | GD3: HLH | GE3: LLH | GF3: HLH | GG3: LLH | GH3: HLH | GI3: LLH | GJ3: HLH | GK3: LLH | GL3: HLH | GM3: LLH | GN3: HLH | GO3: LLH | GP3: HLH | GQ3: LLH | GR3: HLH | GS3: LLH | GT3: HLH | GU3: LLH | GV3: HLH | GW3: LLH | GX3: HLH | GY3: LLH | GZ3: HLH | HA3: LLH | HB3: HLH | HC3: LLH | HD3: HLH | HE3: LLH | HF3: HLH | HG3: LLH | HH3: HLH | HI3: LLH | HJ3: HLH | HK3: LLH | HL3: HLH | HM3: LLH | HN3: HLH | HO3: LLH | HP3: HLH | HQ3: LLH | HR3: HLH | HS3: LLH | HT3: HLH | HU3: LLH | HV3: HLH | HW3: LLH | HX3: HLH | HY3: LLH | HZ3: HLH | IA3: LLH | IB3: HLH | IC3: LLH | ID3: HLH | IE3: LLH | IF3: HLH | IG3: LLH | IH3: HLH | II3: LLH | IJ3: HLH | IK3: LLH | IL3: HLH | IM3: LLH | IN3: HLH | IO3: LLH | IP3: HLH | IQ3: LLH | IR3: HLH | IS3: LLH | IT3: HLH | IU3: LLH | IV3: HLH | IW3: LLH | IX3: HLH | IY3: LLH | IZ3: HLH | JA3: LLH | JB3: HLH | JC3: LLH | JD3: HLH | JE3: LLH | JF3: HLH | JG3: LLH | JH3: HLH | JI3: LLH | JJ3: HLH | JK3: LLH | JL3: HLH | JM3: LLH | JN3: HLH | JO3: LLH | JP3: HLH | JQ3: LLH | JR3: HLH | JS3: LLH | JT3: HLH | JU3: LLH | JV3: HLH | JW3: LLH | JX3: HLH | JY3: LLH | JZ3: HLH | KA3: LLH | KB3: HLH | KC3: LLH | KD3: HLH | KE3: LLH | KF3: HLH | KG3: LLH | KH3: HLH | KI3: LLH | KJ3: HLH | KK3: LLH | KL3: HLH | KM3: LLH | KN3: HLH | KO3: LLH | KP3: HLH | KQ3: LLH | KR3: HLH | KS3: LLH | KT3: HLH | KU3: LLH | KV3: HLH | KW3: LLH | KX3: HLH | KY3: LLH | KZ3: HLH | LA3: LLH | LB3: HLH | LC3: LLH | LD3: HLH | LE3: LLH | LF3: HLH | LG3: LLH | LH3: HLH | LI3: LLH | LJ3: HLH | LK3: LLH | LL3: HLH | LM3: LLH | LN3: HLH | LO3: LLH | LP3: HLH | LQ3: LLH | LR3: HLH | LS3: LLH | LT3: HLH | LU3: LLH | LV3: HLH | LW3: LLH | LX3: HLH | LY3: LLH | LZ3: HLH | MA3: LLH | MB3: HLH | MC3: LLH | MD3: HLH | ME3: LLH | MF3: HLH | MG3: LLH | MH3: HLH | MI3: LLH | MJ3: HLH | MK3: LLH | ML3: HLH | MM3: LLH | MN3: HLH | MO3: LLH | MP3: HLH | MQ3: LLH | MR3: HLH | MS3: LLH | MT3: HLH | MU3: LLH | MV3: HLH | MW3: LLH | MX3: HLH | MY3: LLH | MZ3: HLH | NA3: LLH | NB3: HLH | NC3: LLH | ND3: HLH | NE3: LLH | NF3: HLH | NG3: LLH | NH3: HLH | NI3: LLH | NJ3: HLH | NK3: LLH | NL3: HLH | NM3: LLH | NN3: HLH | NO3: LLH | NP3: HLH | NQ3: LLH | NR3: HLH | NS3: LLH | NT3: HLH | NU3: LLH | NV3: HLH | NW3: LLH | NX3: HLH | NY3: LLH | NZ3: HLH | OA3: LLH | OB3: HLH | OC3: LLH | OD3: HLH | OE3: LLH | OF3: HLH | OG3: LLH | OH3: HLH | OI3: LLH | OJ3: HLH | OK3: LLH | OL3: HLH | OM3: LLH | ON3: HLH | OO3: LLH | OP3: HLH | OQ3: LLH | OR3: HLH | OS3: LLH | OT3: HLH | OU3: LLH | OV3: HLH | OW3: LLH | OX3: HLH | OY3: LLH | OZ3: HLH | PA3: LLH | PB3: HLH | PC3: LLH | PD3: HLH | PE3: LLH | PF3: HLH | PG3: LLH | PH3: HLH | PI3: LLH | PJ3: HLH | PK3: LLH | PL3: HLH | PM3: LLH | PN3: HLH | PO3: LLH | PP3: HLH | PQ3: LLH | PR3: HLH | PS3: LLH
B4: 10005 | C4: Alder Mutual | D4: 0 | E4: 0 | F4: 0 | G4: 0 | H4: 0 | I4: 0 | J4: 0 | K4: 0 | L4: 0 | M4: 0 | N4: 0 | O4: 0 | P4: 0 | Q4: 0 | R4: 0 | S4: 0 | T4: 0 | U4: 0 | V4: 0 | W4: 0 | X4: 0 | Y4: 0 | Z4: 0 | AA4: 0 | AB4: 0 | AC4: 0 | AD4: 0 | AE4: 0 | AF4: 0 | AG4: 0 | AH4: 0 | AI4: 0 | AJ4: 0 | AK4: 0 | AL4: 0 | AM4: 0 | AN4: 0 | AO4: 0 | AP4: 0 | AQ4: 0 | AR4: 0 | AS4: 0 | AT4: 0 | AU4: 0 | AV4: 0 | AW4: 0 | AX4: 0 | AY4: 0 | AZ4: 0 | BA4: 0 | BB4: 0 | BC4: 0 | BD4: 0 | BE4: 0 | BF4: 0 | BG4: 0 | BH4: 0 | BI4: 0 | BJ4: 0 | BK4: 0 | BL4: 0 | BM4: 0 | BN4: 0 | BO4: 0 | BP4: 0 | BQ4: 0 | BR4: 0 | BS4: 0 | BT4: 0 | BU4: 0 | BV4: 0 | BW4: 0 | BX4: 0 | BY4: 0 | BZ4: 0 | CA4: 0 | CB4: 0 | CC4: 0 | CD4: 0 | CE4: 0 | CF4: 0 | CG4: 0 | CH4: 0 | CI4: 0 | CJ4: 0 | CK4: 0 | CL4: 0 | CM4: 0 | CN4: 0 | CO4: 0 | CP4: 0 | CQ4: 0 | CR4: 0 | CS4: 0 | CT4: 0 | CU4: 0 | CV4: 0 | CW4: 0 | CX4: 0 | CY4: 0 | CZ4: 0 | DA4: 0 | DB4: 0 | DC4: 0 | DD4: 0 | DE4: 0 | DF4: 0 | DG4: 0 | DH4: 0 | DI4: 0 | DJ4: 0 | DK4: 0 | DL4: 0 | DM4: 0 | DN4: 0 | DO4: 0 | DP4: 0 | DQ4: 0 | DR4: 0 | DS4: 0 | DT4: 0 | DU4: 0 | DV4: 0 | DW4: 0 | DX4: 0 | DY4: 0 | DZ4: 0 | EA4: 0 | EB4: 0 | EC4: 0 | ED4: 0 | EE4: 0 | EF4: 0 | EG4: 0 | EH4: 0 | EI4: 0 | EJ4: 0 | EK4: 0 | EL4: 0 | EM4: 0 | EN4: 0 | EO4: 0 | EP4: 0 | EQ4: 0 | ER4: 0 | ES4: 0 | ET4: 0 | EU4: 0 | EV4: 0 | EW4: 0 | EX4: 0 | EY4: 0 | EZ4: 0 | FA4: 0 | FB4: 0 | FC4: 0 | FD4: 0 | FE4: 0 | FF4: 0 | FG4: 0 | FH4: 0 | FI4: 0 | FJ4: 0 | FK4: 0 | FL4: 0 | FM4: 0 | FN4: 0 | FO4: 0 | FP4: 0 | FQ4: 0 | FR4: 0 | FS4: 0 | FT4: 0 | FU4: 0 | FV4: 0 | FW4: 0 | FX4: 0 | FY4: 0 | FZ4: 0 | GA4: 0 | GB4: 0 | GC4: 0 | GD4: 0 | GE4: 0 | GF4: 0 | GG4: 0 | GH4: 0 | GI4: 0 | GJ4: 0 | GK4: 0 | GL4: 0 | GM4: 0 | GN4: 0 | GO4: 0 | GP4: 0 | GQ4: 0 | GR4: 0 | GS4: 0 | GT4: 0 | GU4: 0 | GV4: 0 | GW4: 0 | GX4: 0 | GY4: 0 | GZ4: 0 | HA4: 0 | HB4: 0 | HC4: 0 | HD4: 0 | HE4: 0 | HF4: 0 | HG4: 0 | HH4: 0 | HI4: 0 | HJ4: 0 | HK4: 0 | HL4: 0 | HM4: 0 | HN4: 0 | HO4: 0 | HP4: 0 | HQ4: 0 | HR4: 0 | HS4: 0 | HT4: 0 | HU4: 0 | HV4: 0 | HW4: 0 | HX4: 0 | HY4: 0 | HZ4: 0 | IA4: 0 | IB4: 0 | IC4: 0 | ID4: 0 | IE4: 0 | IF4: 0 | IG4: 0 | IH4: 0 | II4: 0 | IJ4: 0 | IK4: 0 | IL4: 0 | IM4: 0 | IN4: 0 | IO4: 0 | IP4: 0 | IQ4: 0 | IR4: 0 | IS4: 0 | IT4: 0 | IU4: 0 | IV4: 0 | IW4: 0 | IX4: 0 | IY4: 0 | IZ4: 0 | JA4: 0 | JB4: 0 | JC4: 0 | JD4: 0 | JE4: 0 | JF4: 0 | JG4: 0 | JH4: 0 | JI4: 0 | JJ4: 0 | JK4: 0 | JL4: 0 | JM4: 0 | JN4: 0 | JO4: 0 | JP4: 0 | JQ4: 0 | JR4: 0 | JS4: 0 | JT4: 0 | JU4: 0 | JV4: 0 | JW4: 0 | JX4: 0 | JY4: 0 | JZ4: 0 | KA4: 0 | KB4: 0 | KC4: 0 | KD4: 0 | KE4: 0 | KF4: 0 | KG4: 0 | KH4: 0 | KI4: 0 | KJ4: 0 | KK4: 0 | KL4: 0 | KM4: 0 | KN4: 0 | KO4: 0 | KP4: 0 | KQ4: 0 | KR4: 0 | KS4: 0 | KT4: 0 | KU4: 0 | KV4: 0 | KW4: 0 | KX4: 0 | KY4: 0 | KZ4: 0 | LA4: 0 | LB4: 0 | LC4: 0 | LD4: 0 | LE4: 0 | LF4: 0 | LG4: 0 | LH4: 0 | LI4: 0 | LJ4: 0 | LK4: 0 | LL4: 0 | LM4: 0 | LN4: 0 | LO4: 0 | LP4: 0 | LQ4: 0 | LR4: 0 | LS4: 0 | LT4: 0 | LU4: 0 | LV4: 0 | LW4: 0 | LX4: 0 | LY4: 0 | LZ4: 0 | MA4: 0 | MB4: 0 | MC4: 0 | MD4: 0 | ME4: 0 | MF4: 0 | MG4: 0 | MH4: 0 | MI4: 0 | MJ4: 0 | MK4: 0 | ML4: 0 | MM4: 0 | MN4: 0 | MO4: 0 | MP4: 0 | MQ4: 0 | MR4: 0 | MS4: 0 | MT4: 0 | MU4: 0 | MV4: 0 | MW4: 0 | MX4: 0 | MY4: 0 | MZ4: 0 | NA4: 0 | NB4: 0 | NC4: 0 | ND4: 0 | NE4: 0 | NF4: 0 | NG4: 0 | NH4: 0 | NI4: 0 | NJ4: 0 | NK4: 0 | NL4: 0 | NM4: 0 | NN4: 0 | NO4: 0 | NP4: 0 | NQ4: 0 | NR4: 0 | NS4: 0 | NT4: 0 | NU4: 0 | NV4: 0 | NW4: 0 | NX4: 0 | NY4: 0 | NZ4: 0 | OA4: 0 | OB4: 0 | OC4: 0 | OD4: 0 | OE4: 0 | OF4: 0 | OG4: 0 | OH4: 0 | OI4: 0 | OJ4: 0 | OK4: 0 | OL4: 0 | OM4: 0 | ON4: 0 | OO4: 0 | OP4: 0 | OQ4: 0 | OR4: 0 | OS4: 0 | OT4: 0 | OU4: 0 | OV4: 0 | OW4: 0 | OX4: 0 | OY4: 0 | OZ4: 0 | PA4: 0 | PB4: 0 | PC4: 0 | PD4: 0 | PE4: 0 | PF4: 0 | PG4: 0 | PH4: 0 | PI4: 0 | PJ4: 0 | PK4: 0 | PL4: 0 | PM4: 0 | PN4: 0 | PO4: 0 | PP4: 0 | PQ4: 0 | PR4: 0 | PS4: 0 | PU4: =+SUM(D4:AA4) -> 0 | PV4: =+SUM(AB4:AY4) -> 0 | PW4: =+SUM(AZ4:BW4) -> 0 | PX4: =+SUM(BX4:CU4) -> 0 | PY4: =+SUM(CV4:DS4) -> 0 | PZ4: =+SUM(DT4:EQ4) -> 0 | QA4: =+SUM(ER4:FO4) -> 0 | QB4: =+SUM(FP4:GM4) -> 0 | QC4: =+SUM(GN4:HK4) -> 0 | QD4: =+SUM(HL4:II4) -> 0 | QE4: =+SUM(IJ4:JG4) -> 0 | QF4: =+SUM(JH4:KE4) -> 0 | QG4: =+SUM(KF4:LC4) -> 0 | QH4: =+SUM(LD4:MA4) -> 0 | QI4: =+SUM(MB4:MY4) -> 0 | QJ4: =+SUM(MZ4:NW4) -> 0 | QK4: =+SUM(NX4:OU4) -> 0 | QL4: =+SUM(OV4:PS4) -> 0
B5: 10015 | C5: Asotin County PUD #1 | D5: 0 | E5: 0 | F5: 0 | G5: 0 | H5: 0 | I5: 0 | J5: 0 | K5: 0 | L5: 0 | M5: 0 | N5: 0 | O5: 0 | P5: 0 | Q5: 0 | R5: 0 | S5: 0 | T5: 0 | U5: 0 | V5: 0 | W5: 0 | X5: 0 | Y5: 0 | Z5: 0 | AA5: 0 | AB5: 0 | AC5: 0 | AD5: 0 | AE5: 0 | AF5: 0 | AG5: 0 | AH5: 0 | AI5: 0 | AJ5: 0 | AK5: 0 | AL5: 0 | AM5: 0 | AN5: 0 | AO5: 0 | AP5: 0 | AQ5: 0 | AR5: 0 | AS5: 0 | AT5: 0 | AU5: 0 | AV5: 0 | AW5: 0 | AX5: 0 | AY5: 0 | AZ5: 0 | BA5: 0 | BB5: 0 | BC5: 0 | BD5: 0 | BE5: 0 | BF5: 0 | BG5: 0 | BH5: 0 | BI5: 0 | BJ5: 0 | BK5: 0 | BL5: 0 | BM5: 0 | BN5: 0 | BO5: 0 | BP5: 0 | BQ5: 0 | BR5: 0 | BS5: 0 | BT5: 0 | BU5: 0 | BV5: 0 | BW5: 0 | BX5: 0 | BY5: 0 | BZ5: 0 | CA5: 0 | CB5: 0 | CC5: 0 | CD5: 0 | CE5: 0 | CF5: 0 | CG5: 0 | CH5: 0 | CI5: 0 | CJ5: 0 | CK5: 0 | CL5: 0 | CM5: 0 | CN5: 0 | CO5: 0 | CP5: 0 | CQ5: 0 | CR5: 0 | CS5: 0 | CT5: 0 | CU5: 0 | CV5: 0 | CW5: 0 | CX5: 0 | CY5: 0 | CZ5: 0 | DA5: 0 | DB5: 0 | DC5: 0 | DD5: 0 | DE5: 0 | DF5: 0 | DG5: 0 | DH5: 0 | DI5: 0 | DJ5: 0 | DK5: 0 | DL5: 0 | DM5: 0 | DN5: 0 | DO5: 0 | DP5: 0 | DQ5: 0 | DR5: 0 | DS5: 0 | DT5: 0 | DU5: 0 | DV5: 0 | DW5: 0 | DX5: 0 | DY5: 0 | DZ5: 0 | EA5: 0 | EB5: 0 | EC5: 0 | ED5: 0 | EE5: 0 | EF5: 0 | EG5: 0 | EH5: 0 | EI5: 0 | EJ5: 0 | EK5: 0 | EL5: 0 | EM5: 0 | EN5: 0 | EO5: 0 | EP5: 0 | EQ5: 0 | ER5: 0 | ES5: 0 | ET5: 0 | EU5: 0 | EV5: 0 | EW5: 0 | EX5: 0 | EY5: 0 | EZ5: 0 | FA5: 0 | FB5: 0 | FC5: 0 | FD5: 0 | FE5: 0 | FF5: 0 | FG5: 0 | FH5: 0 | FI5: 0 | FJ5: 0 | FK5: 0 | FL5: 0 | FM5: 0 | FN5: 0 | FO5: 0 | FP5: 0 | FQ5: 0 | FR5: 0 | FS5: 0 | FT5: 0 | FU5: 0 | FV5: 0 | FW5: 0 | FX5: 0 | FY5: 0 | FZ5: 0 | GA5: 0 | GB5: 0 | GC5: 0 | GD5: 0 | GE5: 0 | GF5: 0 | GG5: 0 | GH5: 0 | GI5: 0 | GJ5: 0 | GK5: 0 | GL5: 0 | GM5: 0 | GN5: 0 | GO5: 0 | GP5: 0 | GQ5: 0 | GR5: 0 | GS5: 0 | GT5: 0 | GU5: 0 | GV5: 0 | GW5: 0 | GX5: 0 | GY5: 0 | GZ5: 0 | HA5: 0 | HB5: 0 | HC5: 0 | HD5: 0 | HE5: 0 | HF5: 0 | HG5: 0 | HH5: 0 | HI5: 0 | HJ5: 0 | HK5: 0 | HL5: 0 | HM5: 0 | HN5: 0 | HO5: 0 | HP5: 0 | HQ5: 0 | HR5: 0 | HS5: 0 | HT5: 0 | HU5: 0 | HV5: 0 | HW5: 0 | HX5: 0 | HY5: 0 | HZ5: 0 | IA5: 0 | IB5: 0 | IC5: 0 | ID5: 0 | IE5: 0 | IF5: 0 | IG5: 0 | IH5: 0 | II5: 0 | IJ5: 0 | IK5: 0 | IL5: 0 | IM5: 0 | IN5: 0 | IO5: 0 | IP5: 0 | IQ5: 0 | IR5: 0 | IS5: 0 | IT5: 0 | IU5: 0 | IV5: 0 | IW5: 0 | IX5: 0 | IY5: 0 | IZ5: 0 | JA5: 0 | JB5: 0 | JC5: 0 | JD5: 0 | JE5: 0 | JF5: 0 | JG5: 0 | JH5: 0 | JI5: 0 | JJ5: 0 | JK5: 0 | JL5: 0 | JM5: 0 | JN5: 0 | JO5: 0 | JP5: 0 | JQ5: 0 | JR5: 0 | JS5: 0 | JT5: 0 | JU5: 0 | JV5: 0 | JW5: 0 | JX5: 0 | JY5: 0 | JZ5: 0 | KA5: 0 | KB5: 0 | KC5: 0 | KD5: 0 | KE5: 0 | KF5: 0 | KG5: 0 | KH5: 0 | KI5: 0 | KJ5: 0 | KK5: 0 | KL5: 0 | KM5: 0 | KN5: 0 | KO5: 0 | KP5: 0 | KQ5: 0 | KR5: 0 | KS5: 0 | KT5: 0 | KU5: 0 | KV5: 0 | KW5: 0 | KX5: 0 | KY5: 0 | KZ5: 0 | LA5: 0 | LB5: 0 | LC5: 0 | LD5: 0 | LE5: 0 | LF5: 0 | LG5: 0 | LH5: 0 | LI5: 0 | LJ5: 0 | LK5: 0 | LL5: 0 | LM5: 0 | LN5: 0 | LO5: 0 | LP5: 0 | LQ5: 0 | LR5: 0 | LS5: 0 | LT5: 0 | LU5: 0 | LV5: 0 | LW5: 0 | LX5: 0 | LY5: 0 | LZ5: 0 | MA5: 0 | MB5: 0 | MC5: 0 | MD5: 0 | ME5: 0 | MF5: 0 | MG5: 0 | MH5: 0 | MI5: 0 | MJ5: 0 | MK5: 0 | ML5: 0 | MM5: 0 | MN5: 0 | MO5: 0 | MP5: 0 | MQ5: 0 | MR5: 0 | MS5: 0 | MT5: 0 | MU5: 0 | MV5: 0 | MW5: 0 | MX5: 0 | MY5: 0 | MZ5: 0 | NA5: 0 | NB5: 0 | NC5: 0 | ND5: 0 | NE5: 0 | NF5: 0 | NG5: 0 | NH5: 0 | NI5: 0 | NJ5: 0 | NK5: 0 | NL5: 0 | NM5: 0 | NN5: 0 | NO5: 0 | NP5: 0 | NQ5: 0 | NR5: 0 | NS5: 0 | NT5: 0 | NU5: 0 | NV5: 0 | NW5: 0 | NX5: 0 | NY5: 0 | NZ5: 0 | OA5: 0 | OB5: 0 | OC5: 0 | OD5: 0 | OE5: 0 | OF5: 0 | OG5: 0 | OH5: 0 | OI5: 0 | OJ5: 0 | OK5: 0 | OL5: 0 | OM5: 0 | ON5: 0 | OO5: 0 | OP5: 0 | OQ5: 0 | OR5: 0 | OS5: 0 | OT5: 0 | OU5: 0 | OV5: 0 | OW5: 0 | OX5: 0 | OY5: 0 | OZ5: 0 | PA5: 0 | PB5: 0 | PC5: 0 | PD5: 0 | PE5: 0 | PF5: 0 | PG5: 0 | PH5: 0 | PI5: 0 | PJ5: 0 | PK5: 0 | PL5: 0 | PM5: 0 | PN5: 0 | PO5: 0 | PP5: 0 | PQ5: 0 | PR5: 0 | PS5: 0 | PU5: =+SUM(D5:AA5) -> 0 | PV5: =+SUM(AB5:AY5) -> 0 | PW5: =+SUM(AZ5:BW5) -> 0 | PX5: =+SUM(BX5:CU5) -> 0 | PY5: =+SUM(CV5:DS5) -> 0 | PZ5: =+SUM(DT5:EQ5) -> 0 | QA5: =+SUM(ER5:FO5) -> 0 | QB5: =+SUM(FP5:GM5) -> 0 | QC5: =+SUM(GN5:HK5) -> 0 | QD5: =+SUM(HL5:II5) -> 0 | QE5: =+SUM(IJ5:JG5) -> 0 | QF5: =+SUM(JH5:KE5) -> 0 | QG5: =+SUM(KF5:LC5) -> 0 | QH5: =+SUM(LD5:MA5) -> 0 | QI5: =+SUM(MB5:MY5) -> 0 | QJ5: =+SUM(MZ5:NW5) -> 0 | QK5: =+SUM(NX5:OU5) -> 0 | QL5: =+SUM(OV5:PS5) -> 0
B6: 10024 | C6: Benton County PUD #1 | D6: 254 | E6: 183 | F6: 253 | G6: 221 | H6: 495 | I6: 390 | J6: 347 | K6: 299 | L6: 274 | M6: 203 | N6: 260 | O6: 187 | P6: 338 | Q6: 247 | R6: 661 | S6: 568 | T6: 664 | U6: 485 | V6: 414 | W6: 357 | X6: 321 | Y6: 231 | Z6: 230 | AA6: 183 | AB6: 245 | AC6: 192 | AD6: 263 | AE6: 211 | AF6: 495 | AG6: 390 | AH6: 347 | AI6: 299 | AJ6: 263 | AK6: 198 | AL6: 260 | AM6: 187 | AN6: 325 | AO6: 260 | AP6: 687 | AQ6: 542 | AR6: 664 | AS6: 485 | AT6: 414 | AU6: 357 | AV6: 321 | AW6: 231 | AX6: 230 | AY6: 183 | AZ6: 245 | BA6: 192 | BB6: 263 | BC6: 211 | BD6: 476 | BE6: 409 | BF6: 361 | BG6: 285 | BH6: 263 | BI6: 198 | BJ6: 260 | BK6: 187 | BL6: 325 | BM6: 260 | BN6: 687 | BO6: 542 | BP6: 664 | BQ6: 485 | BR6: 414 | BS6: 357 | BT6: 321 | BU6: 231 | BV6: 220 | BW6: 193 | BX6: 254 | BY6: 183 | BZ6: 263 | CA6: 211 | CB6: 476 | CC6: 409 | CD6: 361 | CE6: 285 | CF6: 263 | CG6: 198 | CH6: 250 | CI6: 197 | CJ6: 338 | CK6: 247 | CL6: 687 | CM6: 542 | CN6: 638 | CO6: 511 | CP6: 431 | CQ6: 340 | CR6: 321 | CS6: 231 | CT6: 220 | CU6: 193 | CV6: 254 | CW6: 183 | CX6: 263 | CY6: 211 | CZ6: 476 | DA6: 409 | DB6: 361 | DC6: 285 | DD6: 274 | DE6: 203 | DF6: 250 | DG6: 197 | DH6: 338 | DI6: 247 | DJ6: 661 | DK6: 568 | DL6: 664 | DM6: 485 | DN6: 431 | DO6: 340 | DP6: 309 | DQ6: 243 | DR6: 230 | DS6: 183 | DT6: 254 | DU6: 183 | DV6: 253 | DW6: 221 | DX6: 495 | DY6: 390 | DZ6: 347 | EA6: 299 | EB6: 263 | EC6: 198 | ED6: 260 | EE6: 187 | EF6: 338 | EG6: 247 | EH6: 661 | EI6: 568 | EJ6: 664 | EK6: 485 | EL6: 431 | EM6: 340 | EN6: 309 | EO6: 243 | EP6: 230 | EQ6: 183 | ER6: 245 | ES6: 192 | ET6: 263 | EU6: 211 | EV6: 495 | EW6: 390 | EX6: 347 | EY6: 299 | EZ6: 263 | FA6: 198 | FB6: 260 | FC6: 187 | FD6: 338 | FE6: 247 | FF6: 661 | FG6: 568 | FH6: 664 | FI6: 485 | FJ6: 414 | FK6: 357 | FL6: 321 | FM6: 231 | FN6: 230 | FO6: 183 | FP6: 245 | FQ6: 192 | FR6: 263 | FS6: 211 | FT6: 495 | FU6: 390 | FV6: 347 | FW6: 299 | FX6: 263 | FY6: 198 | FZ6: 260 | GA6: 187 | GB6: 325 | GC6: 260 | GD6: 687 | GE6: 542 | GF6: 664 | GG6: 485 | GH6: 414 | GI6: 357 | GJ6: 321 | GK6: 231 | GL6: 230 | GM6: 183 | GN6: 245 | GO6: 192 | GP6: 263 | GQ6: 211 | GR6: 476 | GS6: 409 | GT6: 361 | GU6: 285 | GV6: 274 | GW6: 203 | GX6: 250 | GY6: 197 | GZ6: 338 | HA6: 247 | HB6: 687 | HC6: 542 | HD6: 638 | HE6: 511 | HF6: 431 | HG6: 340 | HH6: 321 | HI6: 231 | HJ6: 220 | HK6: 193 | HL6: 254 | HM6: 183 | HN6: 263 | HO6: 211 | HP6: 476 | HQ6: 409 | HR6: 361 | HS6: 285 | HT6: 263 | HU6: 198 | HV6: 250 | HW6: 197 | HX6: 338 | HY6: 247 | HZ6: 687 | IA6: 542 | IB6: 638 | IC6: 511 | ID6: 431 | IE6: 340 | IF6: 309 | IG6: 243 | IH6: 230 | II6: 183 | IJ6: 254 | IK6: 183 | IL6: 253 | IM6: 221 | IN6: 495 | IO6: 390 | IP6: 361 | IQ6: 285 | IR6: 263 | IS6: 198 | IT6: 250 | IU6: 197 | IV6: 338 | IW6: 247 | IX6: 661 | IY6: 568 | IZ6: 664 | JA6: 485 | JB6: 431 | JC6: 340 | JD6: 309 | JE6: 243 | JF6: 230 | JG6: 183 | JH6: 254 | JI6: 183 | JJ6: 253 | JK6: 221 | JL6: 495 | JM6: 390 | JN6: 347 | JO6: 299 | JP6: 263 | JQ6: 198 | JR6: 260 | JS6: 187 | JT6: 338 | JU6: 247 | JV6: 661 | JW6: 568 | JX6: 664 | JY6: 485 | JZ6: 431 | KA6: 340 | KB6: 309 | KC6: 243 | KD6: 230 | KE6: 183 | KF6: 245 | KG6: 192 | KH6: 263 | KI6: 211 | KJ6: 495 | KK6: 390 | KL6: 347 | KM6: 299 | KN6: 274 | KO6: 203 | KP6: 260 | KQ6: 187 | KR6: 325 | KS6: 260 | KT6: 687 | KU6: 542 | KV6: 664 | KW6: 485 | KX6: 414 | KY6: 357 | KZ6: 321 | LA6: 231 | LB6: 230 | LC6: 183 | LD6: 0 | LE6: 0 | LF6: 0 | LG6: 0 | LH6: 0 | LI6: 0 | LJ6: 0 | LK6: 0 | LL6: 0 | LM6: 0 | LN6: 0 | LO6: 0 | LP6: 0 | LQ6: 0 | LR6: 0 | LS6: 0 | LT6: 0 | LU6: 0 | LV6: 0 | LW6: 0 | LX6: 0 | LY6: 0 | LZ6: 0 | MA6: 0 | MB6: 0 | MC6: 0 | MD6: 0 | ME6: 0 | MF6: 0 | MG6: 0 | MH6: 0 | MI6: 0 | MJ6: 0 | MK6: 0 | ML6: 0 | MM6: 0 | MN6: 0 | MO6: 0 | MP6: 0 | MQ6: 0 | MR6: 0 | MS6: 0 | MT6: 0 | MU6: 0 | MV6: 0 | MW6: 0 | MX6: 0 | MY6: 0 | MZ6: 0 | NA6: 0 | NB6: 0 | NC6: 0 | ND6: 0 | NE6: 0 | NF6: 0 | NG6: 0 | NH6: 0 | NI6: 0 | NJ6: 0 | NK6: 0 | NL6: 0 | NM6: 0 | NN6: 0 | NO6: 0 | NP6: 0 | NQ6: 0 | NR6: 0 | NS6: 0 | NT6: 0 | NU6: 0 | NV6: 0 | NW6: 0 | NX6: 0 | NY6: 0 | NZ6: 0 | OA6: 0 | OB6: 0 | OC6: 0 | OD6: 0 | OE6: 0 | OF6: 0 | OG6: 0 | OH6: 0 | OI6: 0 | OJ6: 0 | OK6: 0 | OL6: 0 | OM6: 0 | ON6: 0 | OO6: 0 | OP6: 0 | OQ6: 0 | OR6: 0 | OS6: 0 | OT6: 0 | OU6: 0 | OV6: 0 | OW6: 0 | OX6: 0 | OY6: 0 | OZ6: 0 | PA6: 0 | PB6: 0 | PC6: 0 | PD6: 0 | PE6: 0 | PF6: 0 | PG6: 0 | PH6: 0 | PI6: 0 | PJ6: 0 | PK6: 0 | PL6: 0 | PM6: 0 | PN6: 0 | PO6: 0 | PP6: 0 | PQ6: 0 | PR6: 0 | PS6: 0 | PU6: 8065 | PV6: 8049 | PW6: 8049 | PX6: 8049 | PY6: 8065 | PZ6: 8049 | QA6: 8049 | QB6: 8049 | QC6: 8065 | QD6: 8049 | QE6: 8049 | QF6: 8049 | QG6: 8065 | QH6: 0 | QI6: 0 | QJ6: 0 | QK6: 0 | QL6: 0
B7: 10025 | C7: Benton REA | D7: 0 | E7: 0 | F7: 0 | G7: 0 | H7: 0 | I7: 0 | J7: 0 | K7: 0 | L7: 0 | M7: 0 | N7: 0 | O7: 0 | P7: 0 | Q7: 0 | R7: 0 | S7: 0 | T7: 0 | U7: 0 | V7: 0 | W7: 0 | X7: 0 | Y7: 0 | Z7: 0 | AA7: 0 | AB7: 0 | AC7: 0 | AD7: 0 | AE7: 0 | AF7: 0 | AG7: 0 | AH7: 0 | AI7: 0 | AJ7: 0 | AK7: 0 | AL7: 0 | AM7: 0 | AN7: 0 | AO7: 0 | AP7: 0 | AQ7: 0 | AR7: 0 | AS7: 0 | AT7: 0 | AU7: 0 | AV7: 0 | AW7: 0 | AX7: 0 | AY7: 0 | AZ7: 0 | BA7: 0 | BB7: 0 | BC7: 0 | BD7: 0 | BE7: 0 | BF7: 0 | BG7: 0 | BH7: 0 | BI7: 0 | BJ7: 0 | BK7: 0 | BL7: 0 | BM7: 0 | BN7: 0 | BO7: 0 | BP7: 0 | BQ7: 0 | BR7: 0 | BS7: 0 | BT7: 0 | BU7: 0 | BV7: 0 | BW7: 0 | BX7: 0 | BY7: 0 | BZ7: 0 | CA7: 0 | CB7: 0 | CC7: 0 | CD7: 0 | CE7: 0 | CF7: 0 | CG7: 0 | CH7: 0 | CI7: 0 | CJ7: 0 | CK7: 0 | CL7: 0 | CM7: 0 | CN7: 0 | CO7: 0 | CP7: 0 | CQ7: 0 | CR7: 0 | CS7: 0 | CT7: 0 | CU7: 0 | CV7: 0 | CW7: 0 | CX7: 0 | CY7: 0 | CZ7: 0 | DA7: 0 | DB7: 0 | DC7: 0 | DD7: 0 | DE7: 0 | DF7: 0 | DG7: 0 | DH7: 0 | DI7: 0 | DJ7: 0 | DK7: 0 | DL7: 0 | DM7: 0 | DN7: 0 | DO7: 0 | DP7: 0 | DQ7: 0 | DR7: 0 | DS7: 0 | DT7: 0 | DU7: 0 | DV7: 0 | DW7: 0 | DX7: 0 | DY7: 0 | DZ7: 0 | EA7: 0 | EB7: 0 | EC7: 0 | ED7: 0 | EE7: 0 | EF7: 0 | EG7: 0 | EH7: 0 | EI7: 0 | EJ7: 0 | EK7: 0 | EL7: 0 | EM7: 0 | EN7: 0 | EO7: 0 | EP7: 0 | EQ7: 0 | ER7: 0 | ES7: 0 | ET7: 0 | EU7: 0 | EV7: 0 | EW7: 0 | EX7: 0 | EY7: 0 | EZ7: 0 | FA7: 0 | FB7: 0 | FC7: 0 | FD7: 0 | FE7: 0 | FF7: 0 | FG7: 0 | FH7: 0 | FI7: 0 | FJ7: 0 | FK7: 0 | FL7: 0 | FM7: 0 | FN7: 0 | FO7: 0 | FP7: 0 | FQ7: 0 | FR7: 0 | FS7: 0 | FT7: 0 | FU7: 0 | FV7: 0 | FW7: 0 | FX7: 0 | FY7: 0 | FZ7: 0 | GA7: 0 | GB7: 0 | GC7: 0 | GD7: 0 | GE7: 0 | GF7: 0 | GG7: 0 | GH7: 0 | GI7: 0 | GJ7: 0 | GK7: 0 | GL7: 0 | GM7: 0 | GN7: 0 | GO7: 0 | GP7: 0 | GQ7: 0 | GR7: 0 | GS7: 0 | GT7: 0 | GU7: 0 | GV7: 0 | GW7: 0 | GX7: 0 | GY7: 0 | GZ7: 0 | HA7: 0 | HB7: 0 | HC7: 0 | HD7: 0 | HE7: 0 | HF7: 0 | HG7: 0 | HH7: 0 | HI7: 0 | HJ7: 0 | HK7: 0 | HL7: 0 | HM7: 0 | HN7: 0 | HO7: 0 | HP7: 0 | HQ7: 0 | HR7: 0 | HS7: 0 | HT7: 0 | HU7: 0 | HV7: 0 | HW7: 0 | HX7: 0 | HY7: 0 | HZ7: 0 | IA7: 0 | IB7: 0 | IC7: 0 | ID7: 0 | IE7: 0 | IF7: 0 | IG7: 0 | IH7: 0 | II7: 0 | IJ7: 0 | IK7: 0 | IL7: 0 | IM7: 0 | IN7: 0 | IO7: 0 | IP7: 0 | IQ7: 0 | IR7: 0 | IS7: 0 | IT7: 0 | IU7: 0 | IV7: 0 | IW7: 0 | IX7: 0 | IY7: 0 | IZ7: 0 | JA7: 0 | JB7: 0 | JC7: 0 | JD7: 0 | JE7: 0 | JF7: 0 | JG7: 0 | JH7: 0 | JI7: 0 | JJ7: 0 | JK7: 0 | JL7: 0 | JM7: 0 | JN7: 0 | JO7: 0 | JP7: 0 | JQ7: 0 | JR7: 0 | JS7: 0 | JT7: 0 | JU7: 0 | JV7: 0 | JW7: 0 | JX7: 0 | JY7: 0 | JZ7: 0 | KA7: 0 | KB7: 0 | KC7: 0 | KD7: 0 | KE7: 0 | KF7: 0 | KG7: 0 | KH7: 0 | KI7: 0 | KJ7: 0 | KK7: 0 | KL7: 0 | KM7: 0 | KN7: 0 | KO7: 0 | KP7: 0 | KQ7: 0 | KR7: 0 | KS7: 0 | KT7: 0 | KU7: 0 | KV7: 0 | KW7: 0 | KX7: 0 | KY7: 0 | KZ7: 0 | LA7: 0 | LB7: 0 | LC7: 0 | LD7: 0 | LE7: 0 | LF7: 0 | LG7: 0 | LH7: 0 | LI7: 0 | LJ7: 0 | LK7: 0 | LL7: 0 | LM7: 0 | LN7: 0 | LO7: 0 | LP7: 0 | LQ7: 0 | LR7: 0 | LS7: 0 | LT7: 0 | LU7: 0 | LV7: 0 | LW7: 0 | LX7: 0 | LY7: 0 | LZ7: 0 | MA7: 0 | MB7: 0 | MC7: 0 | MD7: 0 | ME7: 0 | MF7: 0 | MG7: 0 | MH7: 0 | MI7: 0 | MJ7: 0 | MK7: 0 | ML7: 0 | MM7: 0 | MN7: 0 | MO7: 0 | MP7: 0 | MQ7: 0 | MR7: 0 | MS7: 0 | MT7: 0 | MU7: 0 | MV7: 0 | MW7: 0 | MX7: 0 | MY7: 0 | MZ7: 0 | NA7: 0 | NB7: 0 | NC7: 0 | ND7: 0 | NE7: 0 | NF7: 0 | NG7: 0 | NH7: 0 | NI7: 0 | NJ7: 0 | NK7: 0 | NL7: 0 | NM7: 0 | NN7: 0 | NO7: 0 | NP7: 0 | NQ7: 0 | NR7: 0 | NS7: 0 | NT7: 0 | NU7: 0 | NV7: 0 | NW7: 0 | NX7: 0 | NY7: 0 | NZ7: 0 | OA7: 0 | OB7: 0 | OC7: 0 | OD7: 0 | OE7: 0 | OF7: 0 | OG7: 0 | OH7: 0 | OI7: 0 | OJ7: 0 | OK7: 0 | OL7: 0 | OM7: 0 | ON7: 0 | OO7: 0 | OP7: 0 | OQ7: 0 | OR7: 0 | OS7: 0 | OT7: 0 | OU7: 0 | OV7: 0 | OW7: 0 | OX7: 0 | OY7: 0 | OZ7: 0 | PA7: 0 | PB7: 0 | PC7: 0 | PD7: 0 | PE7: 0 | PF7: 0 | PG7: 0 | PH7: 0 | PI7: 0 | PJ7: 0 | PK7: 0 | PL7: 0 | PM7: 0 | PN7: 0 | PO7: 0 | PP7: 0 | PQ7: 0 | PR7: 0 | PS7: 0 | PU7: 0 | PV7: 0 | PW7: 0 | PX7: 0 | PY7: 0 | PZ7: 0 | QA7: 0 | QB7: 0 | QC7: 0 | QD7: 0 | QE7: 0 | QF7: 0 | QG7: 0 | QH7: 0 | QI7: 0 | QJ7: 0 | QK7: 0 | QL7: 0
